Workbook

Sheet Notes
A1: DMH.xlsm; Traders Tip spreadsheet created for the December 2021 Issue
A2: Coded beginning 2021-October-06 by Ronald McAllister (rpmac_xltt@sprynet.com)
A4: This Workbook demonstrates an EXCEL version of the ideas presented
A5: by John Ehlers in an article titled "The DMH: An Improved Directional Movement Indicator", which originally appeared in the December 2021 issue of
A6: "Technical Analysis of Stocks and Commodities" magazine.
A8: * * * * * * * * * * * * * * * *
A12: New for May 2021
A13: Upgraded the data download logic to do a better job of catching the common data download errors and provide a more graceful resolution.
A14: This includes better user notification of the nature of the error and some user control over how the error should be handled.
A15: User notification comes in the form of a MSGbox display that includes the (sometimes cryptic) description of the error and offers the user three options.
A17: Abort - If I could customize the title, I would rename this button to "Debug"
A18: This choice places you in Debug mode at the failing VBA statement.
A19: Unless you are feeling good about your VBA (and Network) debugging skills, this is probably not for you.
A21: Retry
A22: Lets the code retry the failed download request.
A23: This is a reasonable option if the download request timed out (similar to video buffering) or your network connection has dropped out..
A24: Probably a good idea to make sure your internet connection is alive and well before you select Retry.
A26: Ignore
A27: Lets the code fall thru to a (hopefully) graceful error completion with the error indicated at the top of the InputPriceData tab
A29: New for August 2020
A30: Restructured my Symbol-Not-Found detection and now stop further processing in the not found case
A32: New with the May 2020 version of my T-Tips template: VBA to implement a "Perpetual" U.S. Markets Closed Holiday Calendar.
A34: Why we need one: The Yahoo Finance recently has begun having occasional filtration problems where bars for U.S. Market Closed Holidays
A35: make their way onto the Historical Data web page and into the Historical Data download.
A37: While testing this May 2020 spreadsheet with different symbols, I found that I sometimes had bars with the text "null" in the price fields.
A38: My code always translates the "null" text price values to zeros.
A39: The resulting zeros cause real problems with indicator computations and the amount of blank space below price candles on the price chart.
A41: "null" price bars can be valid for very lightly traded penny sheet symbols which may not trade every day the markets are open.
A42: But is definitely not normal for symbols on the big boards.
A44: A closer look determined that these "bars" were for holiday dates when the US markets are normally closed.
A45: I found it interesting that some times the next download for the same symbol would not contain any of these "holiday" bars. Weird!
A47: My approach here was to write code to determine if the DATE on a null price values bar falls on one of the 9 market closed U.S. Holidays.
A48: If the bar date corresponds to one of these market closed holidays, I drop the bar before it reaches the InputPriceData tab.
A49: If the date is not a holiday, I let the bar through with the resulting zero values.
A51: No messy tables to update over the years as there are good solid rules that can be used in VBA or any other programming language to determine
A52: the dates for U.S. Market Closed Holidays for any given calendar year.
A54: This workbook contains and uses VBA macros and may take advantage of user defined VBA Class structures.
A55: Input Data:
A56: The data in this workbook is sorted date-descending (most recent date at the top). All cell formulas and
A57: VBA routines are built assuming this date sequence.
A59: ERROR 9 (already fixed in this spreadsheet)
A60: On or about Jan 29, 2020 Yahoo Finance changed the format of the split factor expression used their historical data downloads.
A61: The Split expression went from using "/" as in "New Share Number/Old Share Number",
A62: to using ":" as in "New Share Number:Old Share Number".
A63: This caused the then current version of my VBA code to fail with a "Runtime Error '9': subscript out of range".
A65: Fix for this ERROR 9
A66: For T-Tip spreadsheets from September 2018 up to present:
A67: Selecting the Debug option takes one into the VBA at the code line which causes the failure:
A68: CellArray(C_A_RowNdx, C_A_ColNdx + 1) = SplitFactors(1)
A69: Two lines above the failing VBA line is a line that reads:
A70: SplitFactors = Split(CsvColumns(CsvColNdx), "/")
A71: Change the / to a :
A72: The corrected line should now read
A73: SplitFactors = Split(CsvColumns(CsvColNdx), ":")
A75: If you are fixing several spreadsheets and do not want to use the failure to find the fix location,
A76: you can use VBA’s FIND dialog (Ctrl F) to look for the substring
A77: SplitFactors =
A78: Do include one space and the equal sign in your FIND string
A79: Select the "Current Project" option
A80: There should only be one instance.
A82: T-Tip spreadsheets prior to the September 2018 spreadsheet do not hard fail.
A84: They just get weird results in the split columns of the Input Price Data tab (soft fail).
A85: These older spreadsheets used different data retrieval and formatting logic.
A87: To fix these older spreadsheets:
A88: In the VBA editor, use find (CTRL-F).
A89: Select the "Current Project" option, and search for the following:
A90: OtherChar:="/"
A91: You are looking for a hit in a line reading:
A92: Other:=True, OtherChar:="/", _
A93: This line is part of a multiline block of code starting with a line that reads:
A94: SplitRange.Offset(0, 1).Resize(SpRows, 1).TextToColumns
A95: Change the / to a : so that the line reads
A96: Other:=True, OtherChar:=":", _
A99: 2019-04-04 Finally came up with a mechanism to align the left location and overall length of the cursor scroll bar so that the left most and right most
A100: scroll bar thumb positions visually align reasonably well with the left and right ends of the price chart horizontal axis.
A101: Makes it a little easier to visually align the Thumb and thus the cursor with points of interest on the charts.
A103: Older:
B104: My sincere apologies to our Macintosh based readers: Neither MSXML nor WinHttpRequest are supported in your environment. So as it stands this version of the spreadsheet will not work for you.
B105: See "Why this approach does not work for Macintosh" below.
B106: I am investigating cURL as a non-Querytable based approach for the Macintosh environment.
A108: The new Yahoo Finance history download interface has changed rather radically. The biggest hurdle being a pseudo-security requirement of adding a
B109: crumb character string to any URL requesting any type of history download. That crumb must match up (by way of some sort of hash algorithm) with
B110: the Yahoo Finance cookie that must also be sent with any request to the new Yahoo History down load interface.
B112: A crumb value is returned, buried in the HTML for any of what I call the "entry level" Yahoo Finance web pages (no crumb security requirement for entry level pages).
B113: A crumb may come with other Yahoo Finance pages. A crumb may even accompany some of the secured pages as well. I have not checked.
B115: Entry level pages are the top level pages of the various Yahoo Finance dialogs and include: Quote Lookup, Stock Summary Quote, and any of the pages
B116: with links in the horizontal row with the "Summary" link on the quote summary page such as Options, Historical Data, and the rest.
B118: To date I have found no way to get at this crumb value using any native EXCEL capabilities.
B120: So this crumb requirement effectively shuts out any solution that attempts to exclusively use built-in facilities of EXCEL, which is to say a purely Querytables solution.
B122: The approach built for this Traders Tip spreadsheet uses WINHTTP calls to Load the InputPriceData worksheet.
B124: First I call to get the HTML text for the Yahoo Summary Quote page using the requested symbol. From this HTML text I extract the full company name,
B125: the market it trades, the market status and time stamp, and finally the associated crumb string. There is a bunch of other useful bits buried in this HTML
B126: text that do not necessarily appear on the web page your browser presents. Perhaps some day I will go after and build a worksheet with these other bits.
B128: Next I add the freshly extracted crumb string to the URLs I use in three separate WINHTTP calls to retrieve Price history, Split history, and Dividend history respectively.
B130: From there VBA code proceeds as in the past to fill in the cell formulas and formatting that make the "prettied up" InputPriceData sheet.
A132: Why this approach works for Windows:
B133: WINHTTP maintains a temporary computer memory cache where cookies are maintained for as long as the WINHTTP object is instantiated.
B134: WINHTTP updates this cache any time a "set cookie" header accompanies a web response.
B135: Subsequent WINHTTP calls automatically search this cache for cookies and add any "appropriate" cookies to the headers
B136: of any web requests that get sent out.
B137: This cookie handling automation means that even if the response to our WINHTTP call for the Summary web page includes a new version of
B138: the Yahoo Finance cookie, the imbedded Crumb value will always match the cookie newly installed in the cache!
A141: Why this approach does not work for Macintosh:
B142: For what it is worth, the Macintosh version of the MS Office suite of products do in fact maintain a special, shared amongst themselves only, cookie cache.
B143: They automate cookie handling into and from this cache JUST for the Office products and any Querytable activity they might originate.
B145: This cache is not tied to, nor shared with, any browser that might be installed on the MAC. And I have not found anything with HTTP capabilities similar to
B146: MSXML that can work with that Office product cookie cache.
B148: When working in the MAC EXCEL environment, I have not yet become conversant with a Mac based WINHTTP like capability.
B149: So l currently have no mechanism to replicate the non-Querytable data retrieval process I am using in Windows environments.
B150: A software product called CURL has been suggested as providing this capability in the MAC environment.
B151: A version of CURL is available for the Windows So some day I may explore its capabilities and how to access those capabilities from VBA.
A153: Calculation and Chart Worksheet Usage Comments:
C154: In General, Items in Bolded BLUE are items you may freely change to play what-if games.
C155: Be sure to have a backup copy of the spreadsheet before you alter anything else.
A157: Features carried forward from the June 2016 version of my T-Tips Template
A158: Added a pair of buttons near cell F12 that will allow the user to step the charting window forward or backward one bar for each click.
A159: I find this to be a good way to test my understanding of the author's ideas as I step through the evolution of the price behavior and the indicators.
B161: First: In the "Help! I would like to plot data" area.
B162: Added button to resolve #NA problems by locating the bar in the input data with a slightly more recent date than what the user actually requested.
B163: I find this particularly useful when I have a general idea of where I want to be date wise. Now I can pick a set of dates "out of the air".
B164: If either (or both) of my date specifications fall between dates that are available in the price history,
B165: this button will resolve them to the dates of the nearest, slightly more recent input bars.
B166: I can then refine my data interval search as necessary from there.
B167: Really great when working with Weekly or Monthly studies!
C168: 2016Jun11 - added logic to the "I would like to chart.." button to detect #N/A values and terminate
C169: gracefully with a message instead of blowing up in the charting logic.
B171: Second: In the "Price Chart Windowing Controls" area. (A11 and A12)
B172: When retrieving data for a new symbol or when changing from daily to weekly or monthly data, there was the possibility that the
B173: residual settings in A11 and A12 would fall outside of the number bars available on the input data tab after the new data retrieval.
B174: In certain combinations, this could create a serious error in the chart sizing logic and crash the spreadsheet.
B175: I have taken this opportunity to update the validity checking logic used in the chart sizing macros
B176: to adjust these values as necessary so that they fall within the boundaries of the newly retrieved input data.
A177: Features carried forward from the October 2015 Traders Tips Template
B178: Improved automation: changes to any of the following will automatically initiate calculations appropriate to reflect a change.
C179: Changing either of cells A11 (pan) or A12 (zoom) will automatically initiate the same chart sizing macros that the manual
C180: "Set Chart" button uses.

Sheet InputPriceData
A1: S&P 500 (^GSPC) -SNP (Daily)
M2: To retrieve data for symbols traded on non US Exchanges, | II2: 241.79
A3: Request Online Yahoo History for: | F3: Market State == > | G3: At close: | H3: 17:00:00 | I3: EDT | M3: you will need to append the dot-suffix for the exchange to the symbol.
A4: Symbol | B4: ^GSPC | D4: Valid | I4: =OFFSET(I4,-2,0,1,1) -> 0 | M4: The following links provide a description of how to use the exchange suffix
A5: From | B5: 1950-10-01 | D5: Data | M5: along with a list of suffixes for the major world exchanges. | AD5: Trailing 12 Div return (Cur Close)
A6: To | B6: =NOW() -> 2021-10-15T17:13:05.990 | D6: Types | E6: =VLOOKUP(B7,D7:E10,2,FALSE) -> d | M6: https://help.yahoo.com/kb/finance/SLN2310.html
A7: Data Type | B7: Daily | D7: Daily | E7: d | M7: And
A8: Crumb | B8: 08t8o6uJwru | D8: Weekly | E8: w | M8: https://www.stockmarketeye.com/users-guide/ticker-symbols-and-data-providers/data-providers.html
A9: Available Data | D9: Monthly | E9: m
A10: Bar Count: | B10: 17872 | M10: You may search on “exchange suffixes” for additional discussions | AD10: =OFFSET(AC15,1,0,1,1)/OFFSET(N15,1,0,1,1) -> 0
A11: From: | B11: =IF(B10<=0,"",OFFSET(B15,B10,IF(HistReqDataType="v",1,0),1,1)) -> 1950-10-02 | W11: Trailing 12 Month Dividend Returns
A12: To: | B12: =IF(B10<=0,"",IF(HistReqDataType="v",OFFSET(B15,2,1,1,1),OFFSET(B15,1,0,1,1))) -> 2021-10-08 | W12: Raw Close price on Dividend date | X12: Div Year and Month | Y12: Looking for year ago Div Year and Month | Z12: Year ago Div Date we found | AA12: row offset to year ago div Date | AB12: Same month flag | AC12: Trailing 12 Div Total | AD12: Trailing 12 Div return
Q13: Split History | S13: 0 | T13: Running | U13: Dividend History
B14: Raw Data Values | H14: Adjusted | I14: Price Adjust | J14: Vol Adjust | K14: Adjusted Values | P14: Last | Q14: Effective | R14: Shares | T14: Vol Adjust | V14: 0
A15: RelRow | B15: Date | C15: Open | D15: High | E15: Low | F15: Close | G15: Volume | H15: Close | I15: Factor | J15: Factor | K15: Open | L15: High | M15: Low | N15: Close | O15: Volume | P15: Trade | Q15: 44479 | R15: New | S15: Old | T15: 1 | U15: Date | V15: $ / Share
A16: 1 | B16: 2021-10-08 | C16: 4406.509766 | D16: 4412.02002 | E16: 4386.220215 | F16: 4391.339844 | G16: 2401890000 | H16: 4391.339844 | I16: =IF(F16=0,1,H16/F16) -> 1 | J16: =INDEX(OFFSET($T$15,0,0,$S$13+1,1),MATCH(B16,OFFSET($Q$15,0,0,$S$13+1,1),-1)) -> 1 | K16: =ROUND($I16*C16,2) -> 4406.51 | L16: =ROUND($I16*D16,2) -> 4412.02 | M16: 4386.22 | N16: 4391.34 | O16: =G16*J16 -> 2401890000
A17: 2 | B17: 2021-10-07 | C17: 4383.72998 | D17: 4429.970215 | E17: 4383.72998 | F17: 4399.759766 | G17: 3096080000 | H17: 4399.759766 | I17: =IF(F17=0,1,H17/F17) -> 1 | J17: =INDEX(OFFSET($T$15,0,0,$S$13+1,1),MATCH(B17,OFFSET($Q$15,0,0,$S$13+1,1),-1)) -> 1 | K17: =ROUND($I17*C17,2) -> 4383.73 | L17: =ROUND($I17*D17,2) -> 4429.97 | M17: =ROUND($I17*E17,2) -> 4383.73 | N17: =ROUND($I17*F17,2) -> 4399.76 | O17: =G17*J17 -> 3096080000
A18: 3 | B18: 2021-10-06 | C18: 4319.569824 | D18: 4365.569824 | E18: 4290.490234 | F18: 4363.549805 | G18: 3219590000 | H18: 4363.549805 | I18: 1 | J18: 1 | K18: 4319.57 | L18: 4365.57 | M18: 4290.49 | N18: 4363.55 | O18: 3219590000
A19: 4 | B19: 2021-10-05 | C19: 4309.870117 | D19: 4369.22998 | E19: 4309.870117 | F19: 4345.720215 | G19: 2967400000 | H19: 4345.720215 | I19: 1 | J19: 1 | K19: 4309.87 | L19: 4369.23 | M19: 4309.87 | N19: 4345.72 | O19: 2967400000
A20: 5 | B20: 2021-10-04 | C20: 4348.839844 | D20: 4355.509766 | E20: 4278.939941 | F20: 4300.459961 | G20: 3110560000 | H20: 4300.459961 | I20: 1 | J20: 1 | K20: 4348.84 | L20: 4355.51 | M20: 4278.94 | N20: 4300.46 | O20: 3110560000
A21: 6 | B21: 2021-10-01 | C21: 4317.160156 | D21: 4375.189941 | E21: 4288.52002 | F21: 4357.040039 | G21: 3148980000 | H21: 4357.040039 | I21: 1 | J21: 1 | K21: 4317.16 | L21: 4375.19 | M21: 4288.52 | N21: 4357.04 | O21: 3148980000
A22: 7 | B22: 2021-09-30 | C22: 4370.669922 | D22: 4382.549805 | E22: 4306.240234 | F22: 4307.540039 | G22: 3123770000 | H22: 4307.540039 | I22: 1 | J22: 1 | K22: 4370.67 | L22: 4382.55 | M22: 4306.24 | N22: 4307.54 | O22: 3123770000
A23: 8 | B23: 2021-09-29 | C23: 4362.410156 | D23: 4385.569824 | E23: 4355.080078 | F23: 4359.459961 | G23: 2753800000 | H23: 4359.459961 | I23: 1 | J23: 1 | K23: 4362.41 | L23: 4385.57 | M23: 4355.08 | N23: 4359.46 | O23: 2753800000
A24: 9 | B24: 2021-09-28 | C24: 4419.540039 | D24: 4419.540039 | E24: 4346.330078 | F24: 4352.629883 | G24: 3495970000 | H24: 4352.629883 | I24: 1 | J24: 1 | K24: 4419.54 | L24: 4419.54 | M24: 4346.33 | N24: 4352.63 | O24: 3495970000
A25: 10 | B25: 2021-09-27 | C25: 4442.120117 | D25: 4457.299805 | E25: 4436.189941 | F25: 4443.109863 | G25: 3032870000 | H25: 4443.109863 | I25: 1 | J25: 1 | K25: 4442.12 | L25: 4457.3 | M25: 4436.19 | N25: 4443.11 | O25: 3032870000
A26: 11 | B26: 2021-09-24 | C26: 4438.040039 | D26: 4463.120117 | E26: 4430.27002 | F26: 4455.47998 | G26: 2772090000 | H26: 4455.47998 | I26: 1 | J26: 1 | K26: 4438.04 | L26: 4463.12 | M26: 4430.27 | N26: 4455.48 | O26: 2772090000
A27: 12 | B27: 2021-09-23 | C27: 4406.75 | D27: 4465.399902 | E27: 4406.75 | F27: 4448.97998 | G27: 2833290000 | H27: 4448.97998 | I27: 1 | J27: 1 | K27: 4406.75 | L27: 4465.4 | M27: 4406.75 | N27: 4448.98 | O27: 2833290000
A28: 13 | B28: 2021-09-22 | C28: 4367.430176 | D28: 4416.75 | E28: 4367.430176 | F28: 4395.640137 | G28: 3273670000 | H28: 4395.640137 | I28: 1 | J28: 1 | K28: 4367.43 | L28: 4416.75 | M28: 4367.43 | N28: 4395.64 | O28: 3273670000
A29: 14 | B29: 2021-09-21 | C29: 4374.450195 | D29: 4394.870117 | E29: 4347.959961 | F29: 4354.189941 | G29: 3044300000 | H29: 4354.189941 | I29: 1 | J29: 1 | K29: 4374.45 | L29: 4394.87 | M29: 4347.96 | N29: 4354.19 | O29: 3044300000
A30: 15 | B30: 2021-09-20 | C30: 4402.950195 | D30: 4402.950195 | E30: 4305.910156 | F30: 4357.72998 | G30: 3773680000 | H30: 4357.72998 | I30: 1 | J30: 1 | K30: 4402.95 | L30: 4402.95 | M30: 4305.91 | N30: 4357.73 | O30: 3773680000
A31: 16 | B31: 2021-09-17 | C31: 4469.740234 | D31: 4471.52002 | E31: 4427.759766 | F31: 4432.990234 | G31: 5622210000 | H31: 4432.990234 | I31: 1 | J31: 1 | K31: 4469.74 | L31: 4471.52 | M31: 4427.76 | N31: 4432.99 | O31: 5622210000
A32: 17 | B32: 2021-09-16 | C32: 4477.089844 | D32: 4485.870117 | E32: 4443.799805 | F32: 4473.75 | G32: 3321030000 | H32: 4473.75 | I32: 1 | J32: 1 | K32: 4477.09 | L32: 4485.87 | M32: 4443.8 | N32: 4473.75 | O32: 3321030000
A33: 18 | B33: 2021-09-15 | C33: 4447.490234 | D33: 4486.870117 | E33: 4438.370117 | F33: 4480.700195 | G33: 3154760000 | H33: 4480.700195 | I33: 1 | J33: 1 | K33: 4447.49 | L33: 4486.87 | M33: 4438.37 | N33: 4480.7 | O33: 3154760000
A34: 19 | B34: 2021-09-14 | C34: 4479.330078 | D34: 4485.680176 | E34: 4435.459961 | F34: 4443.049805 | G34: 2568730000 | H34: 4443.049805 | I34: 1 | J34: 1 | K34: 4479.33 | L34: 4485.68 | M34: 4435.46 | N34: 4443.05 | O34: 2568730000
A35: 20 | B35: 2021-09-13 | C35: 4474.810059 | D35: 4492.990234 | E35: 4445.700195 | F35: 4468.72998 | G35: 3096390000 | H35: 4468.72998 | I35: 1 | J35: 1 | K35: 4474.81 | L35: 4492.99 | M35: 4445.7 | N35: 4468.73 | O35: 3096390000
A36: 21 | B36: 2021-09-10 | C36: 4506.919922 | D36: 4520.470215 | E36: 4457.660156 | F36: 4458.580078 | G36: 2851140000 | H36: 4458.580078 | I36: 1 | J36: 1 | K36: 4506.92 | L36: 4520.47 | M36: 4457.66 | N36: 4458.58 | O36: 2851140000
A37: 22 | B37: 2021-09-09 | C37: 4513.02002 | D37: 4529.899902 | E37: 4492.069824 | F37: 4493.279785 | G37: 3035300000 | H37: 4493.279785 | I37: 1 | J37: 1 | K37: 4513.02 | L37: 4529.9 | M37: 4492.07 | N37: 4493.28 | O37: 3035300000
A38: 23 | B38: 2021-09-08 | C38: 4518.089844 | D38: 4521.790039 | E38: 4493.950195 | F38: 4514.069824 | G38: 2808480000 | H38: 4514.069824 | I38: 1 | J38: 1 | K38: 4518.09 | L38: 4521.79 | M38: 4493.95 | N38: 4514.07 | O38: 2808480000
A39: 24 | B39: 2021-09-07 | C39: 4535.379883 | D39: 4535.379883 | E39: 4513 | F39: 4520.029785 | G39: 3098870000 | H39: 4520.029785 | I39: 1 | J39: 1 | K39: 4535.38 | L39: 4535.38 | M39: 4513 | N39: 4520.03 | O39: 3098870000
A40: 25 | B40: 2021-09-03 | C40: 4532.419922 | D40: 4541.450195 | E40: 4521.299805 | F40: 4535.430176 | G40: 2609660000 | H40: 4535.430176 | I40: 1 | J40: 1 | K40: 4532.42 | L40: 4541.45 | M40: 4521.3 | N40: 4535.43 | O40: 2609660000
A41: 26 | B41: 2021-09-02 | C41: 4534.47998 | D41: 4545.850098 | E41: 4524.660156 | F41: 4536.950195 | G41: 2897010000 | H41: 4536.950195 | I41: 1 | J41: 1 | K41: 4534.48 | L41: 4545.85 | M41: 4524.66 | N41: 4536.95 | O41: 2897010000
A42: 27 | B42: 2021-09-01 | C42: 4528.799805 | D42: 4537.109863 | E42: 4522.02002 | F42: 4524.089844 | G42: 3101830000 | H42: 4524.089844 | I42: 1 | J42: 1 | K42: 4528.8 | L42: 4537.11 | M42: 4522.02 | N42: 4524.09 | O42: 3101830000
A43: 28 | B43: 2021-08-31 | C43: 4529.75 | D43: 4531.390137 | E43: 4515.799805 | F43: 4522.680176 | G43: 3090380000 | H43: 4522.680176 | I43: 1 | J43: 1 | K43: 4529.75 | L43: 4531.39 | M43: 4515.8 | N43: 4522.68 | O43: 3090380000
A44: 29 | B44: 2021-08-30 | C44: 4513.759766 | D44: 4537.359863 | E44: 4513.759766 | F44: 4528.790039 | G44: 2557300000 | H44: 4528.790039 | I44: 1 | J44: 1 | K44: 4513.76 | L44: 4537.36 | M44: 4513.76 | N44: 4528.79 | O44: 2557300000
A45: 30 | B45: 2021-08-27 | C45: 4474.100098 | D45: 4513.330078 | E45: 4474.100098 | F45: 4509.370117 | G45: 2862360000 | H45: 4509.370117 | I45: 1 | J45: 1 | K45: 4474.1 | L45: 4513.33 | M45: 4474.1 | N45: 4509.37 | O45: 2862360000
A46: 31 | B46: 2021-08-26 | C46: 4493.75 | D46: 4495.899902 | E46: 4468.990234 | F46: 4470 | G46: 2704600000 | H46: 4470 | I46: 1 | J46: 1 | K46: 4493.75 | L46: 4495.9 | M46: 4468.99 | N46: 4470 | O46: 2704600000
A47: 32 | B47: 2021-08-25 | C47: 4490.450195 | D47: 4501.709961 | E47: 4485.660156 | F47: 4496.189941 | G47: 2554680000 | H47: 4496.189941 | I47: 1 | J47: 1 | K47: 4490.45 | L47: 4501.71 | M47: 4485.66 | N47: 4496.19 | O47: 2554680000
A48: 33 | B48: 2021-08-24 | C48: 4484.399902 | D48: 4492.810059 | E48: 4482.279785 | F48: 4486.22998 | G48: 3037770000 | H48: 4486.22998 | I48: 1 | J48: 1 | K48: 4484.4 | L48: 4492.81 | M48: 4482.28 | N48: 4486.23 | O48: 3037770000
A49: 34 | B49: 2021-08-23 | C49: 4450.290039 | D49: 4489.879883 | E49: 4450.290039 | F49: 4479.529785 | G49: 2965520000 | H49: 4479.529785 | I49: 1 | J49: 1 | K49: 4450.29 | L49: 4489.88 | M49: 4450.29 | N49: 4479.53 | O49: 2965520000
A50: 35 | B50: 2021-08-20 | C50: 4410.560059 | D50: 4444.350098 | E50: 4406.799805 | F50: 4441.669922 | G50: 2867770000 | H50: 4441.669922 | I50: 1 | J50: 1 | K50: 4410.56 | L50: 4444.35 | M50: 4406.8 | N50: 4441.67 | O50: 2867770000
A51: 36 | B51: 2021-08-19 | C51: 4382.439941 | D51: 4418.609863 | E51: 4367.72998 | F51: 4405.799805 | G51: 3120840000 | H51: 4405.799805 | I51: 1 | J51: 1 | K51: 4382.44 | L51: 4418.61 | M51: 4367.73 | N51: 4405.8 | O51: 3120840000
A52: 37 | B52: 2021-08-18 | C52: 4440.939941 | D52: 4454.319824 | E52: 4397.589844 | F52: 4400.27002 | G52: 2965210000 | H52: 4400.27002 | I52: 1 | J52: 1 | K52: 4440.94 | L52: 4454.32 | M52: 4397.59 | N52: 4400.27 | O52: 2965210000
A53: 38 | B53: 2021-08-17 | C53: 4462.120117 | D53: 4462.120117 | E53: 4417.830078 | F53: 4448.080078 | G53: 2884000000 | H53: 4448.080078 | I53: 1 | J53: 1 | K53: 4462.12 | L53: 4462.12 | M53: 4417.83 | N53: 4448.08 | O53: 2884000000
A54: 39 | B54: 2021-08-16 | C54: 4461.649902 | D54: 4480.259766 | E54: 4437.660156 | F54: 4479.709961 | G54: 2707170000 | H54: 4479.709961 | I54: 1 | J54: 1 | K54: 4461.65 | L54: 4480.26 | M54: 4437.66 | N54: 4479.71 | O54: 2707170000
A55: 40 | B55: 2021-08-13 | C55: 4464.839844 | D55: 4468.370117 | E55: 4460.819824 | F55: 4468 | G55: 2371630000 | H55: 4468 | I55: 1 | J55: 1 | K55: 4464.84 | L55: 4468.37 | M55: 4460.82 | N55: 4468 | O55: 2371630000
A56: 41 | B56: 2021-08-12 | C56: 4446.080078 | D56: 4461.77002 | E56: 4435.959961 | F56: 4460.830078 | G56: 2543860000 | H56: 4460.830078 | I56: 1 | J56: 1 | K56: 4446.08 | L56: 4461.77 | M56: 4435.96 | N56: 4460.83 | O56: 2543860000
A57: 42 | B57: 2021-08-11 | C57: 4442.180176 | D57: 4449.439941 | E57: 4436.419922 | F57: 4442.410156 | G57: 2803060000 | H57: 4442.410156 | I57: 1 | J57: 1 | K57: 4442.18 | L57: 4449.44 | M57: 4436.42 | N57: 4442.41 | O57: 2803060000
A58: 43 | B58: 2021-08-10 | C58: 4435.790039 | D58: 4445.209961 | E58: 4430.029785 | F58: 4436.75 | G58: 3219840000 | H58: 4436.75 | I58: 1 | J58: 1 | K58: 4435.79 | L58: 4445.21 | M58: 4430.03 | N58: 4436.75 | O58: 3219840000
A59: 44 | B59: 2021-08-09 | C59: 4437.77002 | D59: 4439.390137 | E59: 4424.740234 | F59: 4432.350098 | G59: 2779880000 | H59: 4432.350098 | I59: 1 | J59: 1 | K59: 4437.77 | L59: 4439.39 | M59: 4424.74 | N59: 4432.35 | O59: 2779880000
A60: 45 | B60: 2021-08-06 | C60: 4429.069824 | D60: 4440.819824 | E60: 4429.069824 | F60: 4436.52002 | G60: 2839970000 | H60: 4436.52002 | I60: 1 | J60: 1 | K60: 4429.07 | L60: 4440.82 | M60: 4429.07 | N60: 4436.52 | O60: 2839970000
A61: 46 | B61: 2021-08-05 | C61: 4408.859863 | D61: 4429.759766 | E61: 4408.859863 | F61: 4429.100098 | G61: 2734220000 | H61: 4429.100098 | I61: 1 | J61: 1 | K61: 4408.86 | L61: 4429.76 | M61: 4408.86 | N61: 4429.1 | O61: 2734220000
A62: 47 | B62: 2021-08-04 | C62: 4415.950195 | D62: 4416.169922 | E62: 4400.22998 | F62: 4402.660156 | G62: 3382620000 | H62: 4402.660156 | I62: 1 | J62: 1 | K62: 4415.95 | L62: 4416.17 | M62: 4400.23 | N62: 4402.66 | O62: 3382620000
A63: 48 | B63: 2021-08-03 | C63: 4392.740234 | D63: 4423.790039 | E63: 4373 | F63: 4423.149902 | G63: 3305340000 | H63: 4423.149902 | I63: 1 | J63: 1 | K63: 4392.74 | L63: 4423.79 | M63: 4373 | N63: 4423.15 | O63: 3305340000
A64: 49 | B64: 2021-08-02 | C64: 4406.859863 | D64: 4422.180176 | E64: 4384.810059 | F64: 4387.160156 | G64: 2919940000 | H64: 4387.160156 | I64: 1 | J64: 1 | K64: 4406.86 | L64: 4422.18 | M64: 4384.81 | N64: 4387.16 | O64: 2919940000
A65: 50 | B65: 2021-07-30 | C65: 4395.120117 | D65: 4412.25 | E65: 4389.649902 | F65: 4395.259766 | G65: 2861600000 | H65: 4395.259766 | I65: 1 | J65: 1 | K65: 4395.12 | L65: 4412.25 | M65: 4389.65 | N65: 4395.26 | O65: 2861600000
A66: 51 | B66: 2021-07-29 | C66: 4403.589844 | D66: 4429.970215 | E66: 4403.589844 | F66: 4419.149902 | G66: 2815510000 | H66: 4419.149902 | I66: 1 | J66: 1 | K66: 4403.59 | L66: 4429.97 | M66: 4403.59 | N66: 4419.15 | O66: 2815510000
A67: 52 | B67: 2021-07-28 | C67: 4402.950195 | D67: 4415.470215 | E67: 4387.009766 | F67: 4400.640137 | G67: 3215130000 | H67: 4400.640137 | I67: 1 | J67: 1 | K67: 4402.95 | L67: 4415.47 | M67: 4387.01 | N67: 4400.64 | O67: 3215130000
A68: 53 | B68: 2021-07-27 | C68: 4416.379883 | D68: 4416.379883 | E68: 4372.509766 | F68: 4401.459961 | G68: 3381080000 | H68: 4401.459961 | I68: 1 | J68: 1 | K68: 4416.38 | L68: 4416.38 | M68: 4372.51 | N68: 4401.46 | O68: 3381080000
A69: 54 | B69: 2021-07-26 | C69: 4409.580078 | D69: 4422.72998 | E69: 4405.450195 | F69: 4422.299805 | G69: 2679110000 | H69: 4422.299805 | I69: 1 | J69: 1 | K69: 4409.58 | L69: 4422.73 | M69: 4405.45 | N69: 4422.3 | O69: 2679110000
A70: 55 | B70: 2021-07-23 | C70: 4381.200195 | D70: 4415.180176 | E70: 4381.200195 | F70: 4411.790039 | G70: 3490730000 | H70: 4411.790039 | I70: 1 | J70: 1 | K70: 4381.2 | L70: 4415.18 | M70: 4381.2 | N70: 4411.79 | O70: 3490730000
A71: 56 | B71: 2021-07-22 | C71: 4361.27002 | D71: 4369.870117 | E71: 4350.060059 | F71: 4367.47998 | G71: 2907910000 | H71: 4367.47998 | I71: 1 | J71: 1 | K71: 4361.27 | L71: 4369.87 | M71: 4350.06 | N71: 4367.48 | O71: 2907910000
A72: 57 | B72: 2021-07-21 | C72: 4331.129883 | D72: 4359.700195 | E72: 4331.129883 | F72: 4358.689941 | G72: 3078550000 | H72: 4358.689941 | I72: 1 | J72: 1 | K72: 4331.13 | L72: 4359.7 | M72: 4331.13 | N72: 4358.69 | O72: 3078550000
A73: 58 | B73: 2021-07-20 | C73: 4265.109863 | D73: 4336.839844 | E73: 4262.049805 | F73: 4323.060059 | G73: 3634190000 | H73: 4323.060059 | I73: 1 | J73: 1 | K73: 4265.11 | L73: 4336.84 | M73: 4262.05 | N73: 4323.06 | O73: 3634190000
A74: 59 | B74: 2021-07-19 | C74: 4296.399902 | D74: 4296.399902 | E74: 4233.129883 | F74: 4258.490234 | G74: 4155790000 | H74: 4258.490234 | I74: 1 | J74: 1 | K74: 4296.4 | L74: 4296.4 | M74: 4233.13 | N74: 4258.49 | O74: 4155790000
A75: 60 | B75: 2021-07-16 | C75: 4367.430176 | D75: 4375.089844 | E75: 4322.529785 | F75: 4327.160156 | G75: 3165160000 | H75: 4327.160156 | I75: 1 | J75: 1 | K75: 4367.43 | L75: 4375.09 | M75: 4322.53 | N75: 4327.16 | O75: 3165160000
A76: 61 | B76: 2021-07-15 | C76: 4369.02002 | D76: 4369.02002 | E76: 4340.700195 | F76: 4360.029785 | G76: 3226930000 | H76: 4360.029785 | I76: 1 | J76: 1 | K76: 4369.02 | L76: 4369.02 | M76: 4340.7 | N76: 4360.03 | O76: 3226930000
A77: 62 | B77: 2021-07-14 | C77: 4380.109863 | D77: 4393.680176 | E77: 4362.359863 | F77: 4374.299805 | G77: 3213870000 | H77: 4374.299805 | I77: 1 | J77: 1 | K77: 4380.11 | L77: 4393.68 | M77: 4362.36 | N77: 4374.3 | O77: 3213870000
A78: 63 | B78: 2021-07-13 | C78: 4381.069824 | D78: 4392.370117 | E78: 4366.919922 | F78: 4369.209961 | G78: 3166900000 | H78: 4369.209961 | I78: 1 | J78: 1 | K78: 4381.07 | L78: 4392.37 | M78: 4366.92 | N78: 4369.21 | O78: 3166900000
A79: 64 | B79: 2021-07-12 | C79: 4372.410156 | D79: 4386.680176 | E79: 4364.029785 | F79: 4384.629883 | G79: 2983980000 | H79: 4384.629883 | I79: 1 | J79: 1 | K79: 4372.41 | L79: 4386.68 | M79: 4364.03 | N79: 4384.63 | O79: 2983980000
A80: 65 | B80: 2021-07-09 | C80: 4329.379883 | D80: 4371.600098 | E80: 4329.379883 | F80: 4369.549805 | G80: 2738280000 | H80: 4369.549805 | I80: 1 | J80: 1 | K80: 4329.38 | L80: 4371.6 | M80: 4329.38 | N80: 4369.55 | O80: 2738280000
A81: 66 | B81: 2021-07-08 | C81: 4321.069824 | D81: 4330.879883 | E81: 4289.370117 | F81: 4320.819824 | G81: 3393780000 | H81: 4320.819824 | I81: =IF(F81=0,1,H81/F81) -> 1 | J81: =INDEX(OFFSET($T$15,0,0,$S$13+1,1),MATCH(B81,OFFSET($Q$15,0,0,$S$13+1,1),-1)) -> 1 | K81: =ROUND($I81*C81,2) -> 4321.07 | L81: =ROUND($I81*D81,2) -> 4330.88 | M81: =ROUND($I81*E81,2) -> 4289.37 | N81: =ROUND($I81*F81,2) -> 4320.82 | O81: =G81*J81 -> 3393780000
A82: 67 | B82: 2021-07-07 | C82: 4351.009766 | D82: 4361.879883 | E82: 4329.790039 | F82: 4358.129883 | G82: 3243900000 | H82: 4358.129883 | I82: 1 | J82: 1 | K82: 4351.01 | L82: 4361.88 | M82: 4329.79 | N82: 4358.13 | O82: 3243900000
A83: 68 | B83: 2021-07-06 | C83: 4356.459961 | D83: 4356.459961 | E83: 4314.370117 | F83: 4343.540039 | G83: 3437900000 | H83: 4343.540039 | I83: 1 | J83: 1 | K83: 4356.46 | L83: 4356.46 | M83: 4314.37 | N83: 4343.54 | O83: 3437900000
A84: 69 | B84: 2021-07-02 | C84: 4326.600098 | D84: 4355.430176 | E84: 4326.600098 | F84: 4352.339844 | G84: 2628550000 | H84: 4352.339844 | I84: 1 | J84: 1 | K84: 4326.6 | L84: 4355.43 | M84: 4326.6 | N84: 4352.34 | O84: 2628550000
A85: 70 | B85: 2021-07-01 | C85: 4300.72998 | D85: 4320.660156 | E85: 4300.72998 | F85: 4319.939941 | G85: 3077580000 | H85: 4319.939941 | I85: 1 | J85: 1 | K85: 4300.73 | L85: 4320.66 | M85: 4300.73 | N85: 4319.94 | O85: 3077580000
A86: 71 | B86: 2021-06-30 | C86: 4290.649902 | D86: 4302.430176 | E86: 4287.959961 | F86: 4297.5 | G86: 3687880000 | H86: 4297.5 | I86: 1 | J86: 1 | K86: 4290.65 | L86: 4302.43 | M86: 4287.96 | N86: 4297.5 | O86: 3687880000
A87: 72 | B87: 2021-06-29 | C87: 4293.209961 | D87: 4300.52002 | E87: 4287.040039 | F87: 4291.799805 | G87: 3049560000 | H87: 4291.799805 | I87: 1 | J87: 1 | K87: 4293.21 | L87: 4300.52 | M87: 4287.04 | N87: 4291.8 | O87: 3049560000
A88: 73 | B88: 2021-06-28 | C88: 4284.899902 | D88: 4292.140137 | E88: 4274.669922 | F88: 4290.609863 | G88: 3415610000 | H88: 4290.609863 | I88: 1 | J88: 1 | K88: 4284.9 | L88: 4292.14 | M88: 4274.67 | N88: 4290.61 | O88: 3415610000
A89: 74 | B89: 2021-06-25 | C89: 4274.450195 | D89: 4286.120117 | E89: 4271.160156 | F89: 4280.700195 | G89: 6248390000 | H89: 4280.700195 | I89: 1 | J89: 1 | K89: 4274.45 | L89: 4286.12 | M89: 4271.16 | N89: 4280.7 | O89: 6248390000
A90: 75 | B90: 2021-06-24 | C90: 4256.970215 | D90: 4271.279785 | E90: 4256.970215 | F90: 4266.490234 | G90: 3141680000 | H90: 4266.490234 | I90: 1 | J90: 1 | K90: 4256.97 | L90: 4271.28 | M90: 4256.97 | N90: 4266.49 | O90: 3141680000
A91: 76 | B91: 2021-06-23 | C91: 4249.27002 | D91: 4256.600098 | E91: 4241.430176 | F91: 4241.839844 | G91: 3172440000 | H91: 4241.839844 | I91: 1 | J91: 1 | K91: 4249.27 | L91: 4256.6 | M91: 4241.43 | N91: 4241.84 | O91: 3172440000
A92: 77 | B92: 2021-06-22 | C92: 4224.609863 | D92: 4255.839844 | E92: 4217.27002 | F92: 4246.439941 | G92: 3208760000 | H92: 4246.439941 | I92: 1 | J92: 1 | K92: 4224.61 | L92: 4255.84 | M92: 4217.27 | N92: 4246.44 | O92: 3208760000
A93: 78 | B93: 2021-06-21 | C93: 4173.399902 | D93: 4226.240234 | E93: 4173.399902 | F93: 4224.790039 | G93: 3391740000 | H93: 4224.790039 | I93: 1 | J93: 1 | K93: 4173.4 | L93: 4226.24 | M93: 4173.4 | N93: 4224.79 | O93: 3391740000
A94: 79 | B94: 2021-06-18 | C94: 4204.779785 | D94: 4204.779785 | E94: 4164.399902 | F94: 4166.450195 | G94: 6084980000 | H94: 4166.450195 | I94: 1 | J94: 1 | K94: 4204.78 | L94: 4204.78 | M94: 4164.4 | N94: 4166.45 | O94: 6084980000
A95: 80 | B95: 2021-06-17 | C95: 4220.370117 | D95: 4232.290039 | E95: 4196.049805 | F95: 4221.859863 | G95: 3952110000 | H95: 4221.859863 | I95: 1 | J95: 1 | K95: 4220.37 | L95: 4232.29 | M95: 4196.05 | N95: 4221.86 | O95: 3952110000
A96: 81 | B96: 2021-06-16 | C96: 4248.870117 | D96: 4251.890137 | E96: 4202.450195 | F96: 4223.700195 | G96: 3722050000 | H96: 4223.700195 | I96: 1 | J96: 1 | K96: 4248.87 | L96: 4251.89 | M96: 4202.45 | N96: 4223.7 | O96: 3722050000
A97: 82 | B97: 2021-06-15 | C97: 4255.279785 | D97: 4257.160156 | E97: 4238.350098 | F97: 4246.589844 | G97: 3578450000 | H97: 4246.589844 | I97: 1 | J97: 1 | K97: 4255.28 | L97: 4257.16 | M97: 4238.35 | N97: 4246.59 | O97: 3578450000
A98: 83 | B98: 2021-06-14 | C98: 4248.310059 | D98: 4255.589844 | E98: 4234.069824 | F98: 4255.149902 | G98: 3612050000 | H98: 4255.149902 | I98: 1 | J98: 1 | K98: 4248.31 | L98: 4255.59 | M98: 4234.07 | N98: 4255.15 | O98: 3612050000
A99: 84 | B99: 2021-06-11 | C99: 4242.899902 | D99: 4248.379883 | E99: 4232.25 | F99: 4247.439941 | G99: 3204280000 | H99: 4247.439941 | I99: 1 | J99: 1 | K99: 4242.9 | L99: 4248.38 | M99: 4232.25 | N99: 4247.44 | O99: 3204280000
A100: 85 | B100: 2021-06-10 | C100: 4228.560059 | D100: 4249.740234 | E100: 4220.339844 | F100: 4239.180176 | G100: 3502480000 | H100: 4239.180176 | I100: 1 | J100: 1 | K100: 4228.56 | L100: 4249.74 | M100: 4220.34 | N100: 4239.18 | O100: 3502480000
A101: 86 | B101: 2021-06-09 | C101: 4232.990234 | D101: 4237.089844 | E101: 4218.740234 | F101: 4219.549805 | G101: 3902870000 | H101: 4219.549805 | I101: 1 | J101: 1 | K101: 4232.99 | L101: 4237.09 | M101: 4218.74 | N101: 4219.55 | O101: 3902870000
A102: 87 | B102: 2021-06-08 | C102: 4233.810059 | D102: 4236.740234 | E102: 4208.410156 | F102: 4227.259766 | G102: 3943870000 | H102: 4227.259766 | I102: 1 | J102: 1 | K102: 4233.81 | L102: 4236.74 | M102: 4208.41 | N102: 4227.26 | O102: 3943870000
A103: 88 | B103: 2021-06-07 | C103: 4229.339844 | D103: 4232.339844 | E103: 4215.660156 | F103: 4226.52002 | G103: 3835570000 | H103: 4226.52002 | I103: 1 | J103: 1 | K103: 4229.34 | L103: 4232.34 | M103: 4215.66 | N103: 4226.52 | O103: 3835570000
A104: 89 | B104: 2021-06-04 | C104: 4206.049805 | D104: 4233.450195 | E104: 4206.049805 | F104: 4229.890137 | G104: 3487070000 | H104: 4229.890137 | I104: 1 | J104: 1 | K104: 4206.05 | L104: 4233.45 | M104: 4206.05 | N104: 4229.89 | O104: 3487070000
A105: 90 | B105: 2021-06-03 | C105: 4191.430176 | D105: 4204.390137 | E105: 4167.930176 | F105: 4192.850098 | G105: 4579450000 | H105: 4192.850098 | I105: 1 | J105: 1 | K105: 4191.43 | L105: 4204.39 | M105: 4167.93 | N105: 4192.85 | O105: 4579450000
A106: 91 | B106: 2021-06-02 | C106: 4206.819824 | D106: 4217.370117 | E106: 4198.27002 | F106: 4208.120117 | G106: 4860930000 | H106: 4208.120117 | I106: 1 | J106: 1 | K106: 4206.82 | L106: 4217.37 | M106: 4198.27 | N106: 4208.12 | O106: 4860930000
A107: 92 | B107: 2021-06-01 | C107: 4216.52002 | D107: 4234.120117 | E107: 4197.589844 | F107: 4202.040039 | G107: 4122960000 | H107: 4202.040039 | I107: 1 | J107: 1 | K107: 4216.52 | L107: 4234.12 | M107: 4197.59 | N107: 4202.04 | O107: 4122960000
A108: 93 | B108: 2021-05-28 | C108: 4210.77002 | D108: 4218.359863 | E108: 4203.569824 | F108: 4204.109863 | G108: 4199270000 | H108: 4204.109863 | I108: 1 | J108: 1 | K108: 4210.77 | L108: 4218.36 | M108: 4203.57 | N108: 4204.11 | O108: 4199270000
A109: 94 | B109: 2021-05-27 | C109: 4201.939941 | D109: 4213.379883 | E109: 4197.779785 | F109: 4200.879883 | G109: 5201110000 | H109: 4200.879883 | I109: 1 | J109: 1 | K109: 4201.94 | L109: 4213.38 | M109: 4197.78 | N109: 4200.88 | O109: 5201110000
A110: 95 | B110: 2021-05-26 | C110: 4191.589844 | D110: 4202.609863 | E110: 4184.109863 | F110: 4195.990234 | G110: 3674490000 | H110: 4195.990234 | I110: 1 | J110: 1 | K110: 4191.59 | L110: 4202.61 | M110: 4184.11 | N110: 4195.99 | O110: 3674490000
A111: 96 | B111: 2021-05-25 | C111: 4205.939941 | D111: 4213.419922 | E111: 4182.52002 | F111: 4188.129883 | G111: 3420870000 | H111: 4188.129883 | I111: 1 | J111: 1 | K111: 4205.94 | L111: 4213.42 | M111: 4182.52 | N111: 4188.13 | O111: 3420870000
A112: 97 | B112: 2021-05-24 | C112: 4170.160156 | D112: 4209.52002 | E112: 4170.160156 | F112: 4197.049805 | G112: 2947400000 | H112: 4197.049805 | I112: 1 | J112: 1 | K112: 4170.16 | L112: 4209.52 | M112: 4170.16 | N112: 4197.05 | O112: 2947400000
A113: 98 | B113: 2021-05-21 | C113: 4168.609863 | D113: 4188.720215 | E113: 4151.720215 | F113: 4155.859863 | G113: 3344620000 | H113: 4155.859863 | I113: 1 | J113: 1 | K113: 4168.61 | L113: 4188.72 | M113: 4151.72 | N113: 4155.86 | O113: 3344620000
A114: 99 | B114: 2021-05-20 | C114: 4121.970215 | D114: 4172.799805 | E114: 4121.970215 | F114: 4159.120117 | G114: 3019060000 | H114: 4159.120117 | I114: 1 | J114: 1 | K114: 4121.97 | L114: 4172.8 | M114: 4121.97 | N114: 4159.12 | O114: 3019060000
A115: 100 | B115: 2021-05-19 | C115: 4098.450195 | D115: 4116.930176 | E115: 4061.409912 | F115: 4115.680176 | G115: 3485550000 | H115: 4115.680176 | I115: 1 | J115: 1 | K115: 4098.45 | L115: 4116.93 | M115: 4061.41 | N115: 4115.68 | O115: 3485550000
A116: 101 | B116: 2021-05-18 | C116: 4165.939941 | D116: 4169.149902 | E116: 4125.990234 | F116: 4127.830078 | G116: 3559790000 | H116: 4127.830078 | I116: 1 | J116: 1 | K116: 4165.94 | L116: 4169.15 | M116: 4125.99 | N116: 4127.83 | O116: 3559790000
A117: 102 | B117: 2021-05-17 | C117: 4169.919922 | D117: 4171.919922 | E117: 4142.689941 | F117: 4163.290039 | G117: 3307130000 | H117: 4163.290039 | I117: 1 | J117: 1 | K117: 4169.92 | L117: 4171.92 | M117: 4142.69 | N117: 4163.29 | O117: 3307130000
A118: 103 | B118: 2021-05-14 | C118: 4129.580078 | D118: 4183.129883 | E118: 4129.580078 | F118: 4173.850098 | G118: 3251920000 | H118: 4173.850098 | I118: 1 | J118: 1 | K118: 4129.58 | L118: 4183.13 | M118: 4129.58 | N118: 4173.85 | O118: 3251920000
A119: 104 | B119: 2021-05-13 | C119: 4074.98999 | D119: 4131.580078 | E119: 4074.98999 | F119: 4112.5 | G119: 3687780000 | H119: 4112.5 | I119: 1 | J119: 1 | K119: 4074.99 | L119: 4131.58 | M119: 4074.99 | N119: 4112.5 | O119: 3687780000
A120: 105 | B120: 2021-05-12 | C120: 4130.549805 | D120: 4134.72998 | E120: 4056.879883 | F120: 4063.040039 | G120: 3735080000 | H120: 4063.040039 | I120: 1 | J120: 1 | K120: 4130.55 | L120: 4134.73 | M120: 4056.88 | N120: 4063.04 | O120: 3735080000
A121: 106 | B121: 2021-05-11 | C121: 4150.339844 | D121: 4162.040039 | E121: 4111.529785 | F121: 4152.100098 | G121: 3593110000 | H121: 4152.100098 | I121: 1 | J121: 1 | K121: 4150.34 | L121: 4162.04 | M121: 4111.53 | N121: 4152.1 | O121: 3593110000
A122: 107 | B122: 2021-05-10 | C122: 4228.290039 | D122: 4236.390137 | E122: 4188.129883 | F122: 4188.430176 | G122: 3678970000 | H122: 4188.430176 | I122: 1 | J122: 1 | K122: 4228.29 | L122: 4236.39 | M122: 4188.13 | N122: 4188.43 | O122: 3678970000
A123: 108 | B123: 2021-05-07 | C123: 4210.339844 | D123: 4238.040039 | E123: 4201.640137 | F123: 4232.600098 | G123: 4013060000 | H123: 4232.600098 | I123: 1 | J123: 1 | K123: 4210.34 | L123: 4238.04 | M123: 4201.64 | N123: 4232.6 | O123: 4013060000
A124: 109 | B124: 2021-05-06 | C124: 4169.140137 | D124: 4202.700195 | E124: 4147.330078 | F124: 4201.620117 | G124: 4504860000 | H124: 4201.620117 | I124: 1 | J124: 1 | K124: 4169.14 | L124: 4202.7 | M124: 4147.33 | N124: 4201.62 | O124: 4504860000
A125: 110 | B125: 2021-05-05 | C125: 4177.060059 | D125: 4187.720215 | E125: 4160.939941 | F125: 4167.589844 | G125: 4029050000 | H125: 4167.589844 | I125: 1 | J125: 1 | K125: 4177.06 | L125: 4187.72 | M125: 4160.94 | N125: 4167.59 | O125: 4029050000
A126: 111 | B126: 2021-05-04 | C126: 4179.040039 | D126: 4179.040039 | E126: 4128.589844 | F126: 4164.660156 | G126: 4441080000 | H126: 4164.660156 | I126: 1 | J126: 1 | K126: 4179.04 | L126: 4179.04 | M126: 4128.59 | N126: 4164.66 | O126: 4441080000
A127: 112 | B127: 2021-05-03 | C127: 4191.97998 | D127: 4209.390137 | E127: 4188.029785 | F127: 4192.660156 | G127: 4061170000 | H127: 4192.660156 | I127: 1 | J127: 1 | K127: 4191.98 | L127: 4209.39 | M127: 4188.03 | N127: 4192.66 | O127: 4061170000
A128: 113 | B128: 2021-04-30 | C128: 4198.100098 | D128: 4198.100098 | E128: 4174.850098 | F128: 4181.169922 | G128: 4273680000 | H128: 4181.169922 | I128: 1 | J128: 1 | K128: 4198.1 | L128: 4198.1 | M128: 4174.85 | N128: 4181.17 | O128: 4273680000
A129: 114 | B129: 2021-04-29 | C129: 4206.140137 | D129: 4218.779785 | E129: 4176.810059 | F129: 4211.470215 | G129: 4288940000 | H129: 4211.470215 | I129: 1 | J129: 1 | K129: 4206.14 | L129: 4218.78 | M129: 4176.81 | N129: 4211.47 | O129: 4288940000
A130: 115 | B130: 2021-04-28 | C130: 4185.140137 | D130: 4201.529785 | E130: 4181.779785 | F130: 4183.180176 | G130: 3772390000 | H130: 4183.180176 | I130: 1 | J130: 1 | K130: 4185.14 | L130: 4201.53 | M130: 4181.78 | N130: 4183.18 | O130: 3772390000
A131: 116 | B131: 2021-04-27 | C131: 4188.25 | D131: 4193.350098 | E131: 4176.220215 | F131: 4186.720215 | G131: 3703240000 | H131: 4186.720215 | I131: 1 | J131: 1 | K131: 4188.25 | L131: 4193.35 | M131: 4176.22 | N131: 4186.72 | O131: 3703240000
A132: 117 | B132: 2021-04-26 | C132: 4185.029785 | D132: 4194.189941 | E132: 4182.359863 | F132: 4187.620117 | G132: 3738920000 | H132: 4187.620117 | I132: 1 | J132: 1 | K132: 4185.03 | L132: 4194.19 | M132: 4182.36 | N132: 4187.62 | O132: 3738920000
A133: 118 | B133: 2021-04-23 | C133: 4138.779785 | D133: 4194.169922 | E133: 4138.779785 | F133: 4180.169922 | G133: 3568080000 | H133: 4180.169922 | I133: 1 | J133: 1 | K133: 4138.78 | L133: 4194.17 | M133: 4138.78 | N133: 4180.17 | O133: 3568080000
A134: 119 | B134: 2021-04-22 | C134: 4170.459961 | D134: 4179.569824 | E134: 4123.689941 | F134: 4134.97998 | G134: 4235040000 | H134: 4134.97998 | I134: 1 | J134: 1 | K134: 4170.46 | L134: 4179.57 | M134: 4123.69 | N134: 4134.98 | O134: 4235040000
A135: 120 | B135: 2021-04-21 | C135: 4128.419922 | D135: 4175.02002 | E135: 4126.350098 | F135: 4173.419922 | G135: 3865820000 | H135: 4173.419922 | I135: 1 | J135: 1 | K135: 4128.42 | L135: 4175.02 | M135: 4126.35 | N135: 4173.42 | O135: 3865820000
A136: 121 | B136: 2021-04-20 | C136: 4159.180176 | D136: 4159.180176 | E136: 4118.379883 | F136: 4134.939941 | G136: 4338230000 | H136: 4134.939941 | I136: 1 | J136: 1 | K136: 4159.18 | L136: 4159.18 | M136: 4118.38 | N136: 4134.94 | O136: 4338230000
A137: 122 | B137: 2021-04-19 | C137: 4179.799805 | D137: 4180.810059 | E137: 4150.470215 | F137: 4163.259766 | G137: 3788020000 | H137: 4163.259766 | I137: 1 | J137: 1 | K137: 4179.8 | L137: 4180.81 | M137: 4150.47 | N137: 4163.26 | O137: 3788020000
A138: 123 | B138: 2021-04-16 | C138: 4174.140137 | D138: 4191.310059 | E138: 4170.75 | F138: 4185.470215 | G138: 4157430000 | H138: 4185.470215 | I138: 1 | J138: 1 | K138: 4174.14 | L138: 4191.31 | M138: 4170.75 | N138: 4185.47 | O138: 4157430000
A139: 124 | B139: 2021-04-15 | C139: 4139.759766 | D139: 4173.490234 | E139: 4139.759766 | F139: 4170.419922 | G139: 4027680000 | H139: 4170.419922 | I139: 1 | J139: 1 | K139: 4139.76 | L139: 4173.49 | M139: 4139.76 | N139: 4170.42 | O139: 4027680000
A140: 125 | B140: 2021-04-14 | C140: 4141.580078 | D140: 4151.689941 | E140: 4120.870117 | F140: 4124.660156 | G140: 3976540000 | H140: 4124.660156 | I140: 1 | J140: 1 | K140: 4141.58 | L140: 4151.69 | M140: 4120.87 | N140: 4124.66 | O140: 3976540000
A141: 126 | B141: 2021-04-13 | C141: 4130.100098 | D141: 4148 | E141: 4124.430176 | F141: 4141.589844 | G141: 3728440000 | H141: 4141.589844 | I141: 1 | J141: 1 | K141: 4130.1 | L141: 4148 | M141: 4124.43 | N141: 4141.59 | O141: 3728440000
A142: 127 | B142: 2021-04-12 | C142: 4124.709961 | D142: 4131.759766 | E142: 4114.819824 | F142: 4127.990234 | G142: 3578500000 | H142: 4127.990234 | I142: 1 | J142: 1 | K142: 4124.71 | L142: 4131.76 | M142: 4114.82 | N142: 4127.99 | O142: 3578500000
A143: 128 | B143: 2021-04-09 | C143: 4096.109863 | D143: 4129.47998 | E143: 4095.51001 | F143: 4128.799805 | G143: 3634910000 | H143: 4128.799805 | I143: 1 | J143: 1 | K143: 4096.11 | L143: 4129.48 | M143: 4095.51 | N143: 4128.8 | O143: 3634910000
A144: 129 | B144: 2021-04-08 | C144: 4089.949951 | D144: 4098.189941 | E144: 4082.540039 | F144: 4097.169922 | G144: 3901910000 | H144: 4097.169922 | I144: 1 | J144: 1 | K144: 4089.95 | L144: 4098.19 | M144: 4082.54 | N144: 4097.17 | O144: 3901910000
A145: 130 | B145: 2021-04-07 | C145: 4074.290039 | D145: 4083.129883 | E145: 4068.310059 | F145: 4079.949951 | G145: 4112640000 | H145: 4079.949951 | I145: =IF(F145=0,1,H145/F145) -> 1 | J145: =INDEX(OFFSET($T$15,0,0,$S$13+1,1),MATCH(B145,OFFSET($Q$15,0,0,$S$13+1,1),-1)) -> 1 | K145: =ROUND($I145*C145,2) -> 4074.29 | L145: =ROUND($I145*D145,2) -> 4083.13 | M145: =ROUND($I145*E145,2) -> 4068.31 | N145: =ROUND($I145*F145,2) -> 4079.95 | O145: =G145*J145 -> 4112640000
A146: 131 | B146: 2021-04-06 | C146: 4075.570068 | D146: 4086.22998 | E146: 4068.139893 | F146: 4073.939941 | G146: 4027880000 | H146: 4073.939941 | I146: 1 | J146: 1 | K146: 4075.57 | L146: 4086.23 | M146: 4068.14 | N146: 4073.94 | O146: 4027880000
A147: 132 | B147: 2021-04-05 | C147: 4034.439941 | D147: 4083.419922 | E147: 4034.439941 | F147: 4077.909912 | G147: 3999760000 | H147: 4077.909912 | I147: 1 | J147: 1 | K147: 4034.44 | L147: 4083.42 | M147: 4034.44 | N147: 4077.91 | O147: 3999760000
A148: 133 | B148: 2021-04-01 | C148: 3992.780029 | D148: 4020.629883 | E148: 3992.780029 | F148: 4019.870117 | G148: 4151240000 | H148: 4019.870117 | I148: 1 | J148: 1 | K148: 3992.78 | L148: 4020.63 | M148: 3992.78 | N148: 4019.87 | O148: 4151240000
A149: 134 | B149: 2021-03-31 | C149: 3967.25 | D149: 3994.409912 | E149: 3966.97998 | F149: 3972.889893 | G149: 4564980000 | H149: 3972.889893 | I149: 1 | J149: 1 | K149: 3967.25 | L149: 3994.41 | M149: 3966.98 | N149: 3972.89 | O149: 4564980000
A150: 135 | B150: 2021-03-30 | C150: 3963.340088 | D150: 3968.01001 | E150: 3944.350098 | F150: 3958.550049 | G150: 4103570000 | H150: 3958.550049 | I150: 1 | J150: 1 | K150: 3963.34 | L150: 3968.01 | M150: 3944.35 | N150: 3958.55 | O150: 4103570000
A151: 136 | B151: 2021-03-29 | C151: 3969.310059 | D151: 3981.830078 | E151: 3943.25 | F151: 3971.090088 | G151: 4619840000 | H151: 3971.090088 | I151: 1 | J151: 1 | K151: 3969.31 | L151: 3981.83 | M151: 3943.25 | N151: 3971.09 | O151: 4619840000
A152: 137 | B152: 2021-03-26 | C152: 3917.120117 | D152: 3978.189941 | E152: 3917.120117 | F152: 3974.540039 | G152: 5467850000 | H152: 3974.540039 | I152: 1 | J152: 1 | K152: 3917.12 | L152: 3978.19 | M152: 3917.12 | N152: 3974.54 | O152: 5467850000
A153: 138 | B153: 2021-03-25 | C153: 3879.340088 | D153: 3919.540039 | E153: 3853.5 | F153: 3909.52002 | G153: 4940800000 | H153: 3909.52002 | I153: 1 | J153: 1 | K153: 3879.34 | L153: 3919.54 | M153: 3853.5 | N153: 3909.52 | O153: 4940800000
A154: 139 | B154: 2021-03-24 | C154: 3919.929932 | D154: 3942.080078 | E154: 3889.070068 | F154: 3889.139893 | G154: 4766990000 | H154: 3889.139893 | I154: 1 | J154: 1 | K154: 3919.93 | L154: 3942.08 | M154: 3889.07 | N154: 3889.14 | O154: 4766990000
A155: 140 | B155: 2021-03-23 | C155: 3937.600098 | D155: 3949.129883 | E155: 3901.570068 | F155: 3910.52002 | G155: 4645340000 | H155: 3910.52002 | I155: 1 | J155: 1 | K155: 3937.6 | L155: 3949.13 | M155: 3901.57 | N155: 3910.52 | O155: 4645340000
A156: 141 | B156: 2021-03-22 | C156: 3916.47998 | D156: 3955.310059 | E156: 3914.159912 | F156: 3940.590088 | G156: 4311380000 | H156: 3940.590088 | I156: 1 | J156: 1 | K156: 3916.48 | L156: 3955.31 | M156: 3914.16 | N156: 3940.59 | O156: 4311380000
A157: 142 | B157: 2021-03-19 | C157: 3913.139893 | D157: 3930.120117 | E157: 3886.75 | F157: 3913.100098 | G157: 7725050000 | H157: 3913.100098 | I157: 1 | J157: 1 | K157: 3913.14 | L157: 3930.12 | M157: 3886.75 | N157: 3913.1 | O157: 7725050000
A158: 143 | B158: 2021-03-18 | C158: 3953.5 | D158: 3969.620117 | E158: 3910.860107 | F158: 3915.459961 | G158: 4043170000 | H158: 3915.459961 | I158: 1 | J158: 1 | K158: 3953.5 | L158: 3969.62 | M158: 3910.86 | N158: 3915.46 | O158: 4043170000
A159: 144 | B159: 2021-03-17 | C159: 3949.570068 | D159: 3983.870117 | E159: 3935.73999 | F159: 3974.120117 | G159: 4541620000 | H159: 3974.120117 | I159: 1 | J159: 1 | K159: 3949.57 | L159: 3983.87 | M159: 3935.74 | N159: 3974.12 | O159: 4541620000
A160: 145 | B160: 2021-03-16 | C160: 3973.590088 | D160: 3981.040039 | E160: 3953.439941 | F160: 3962.709961 | G160: 4604870000 | H160: 3962.709961 | I160: 1 | J160: 1 | K160: 3973.59 | L160: 3981.04 | M160: 3953.44 | N160: 3962.71 | O160: 4604870000
A161: 146 | B161: 2021-03-15 | C161: 3942.959961 | D161: 3970.080078 | E161: 3923.540039 | F161: 3968.939941 | G161: 4882190000 | H161: 3968.939941 | I161: 1 | J161: 1 | K161: 3942.96 | L161: 3970.08 | M161: 3923.54 | N161: 3968.94 | O161: 4882190000
A162: 147 | B162: 2021-03-12 | C162: 3924.52002 | D162: 3944.98999 | E162: 3915.209961 | F162: 3943.340088 | G162: 4469240000 | H162: 3943.340088 | I162: 1 | J162: 1 | K162: 3924.52 | L162: 3944.99 | M162: 3915.21 | N162: 3943.34 | O162: 4469240000
A163: 148 | B163: 2021-03-11 | C163: 3915.540039 | D163: 3960.27002 | E163: 3915.540039 | F163: 3939.340088 | G163: 5300010000 | H163: 3939.340088 | I163: 1 | J163: 1 | K163: 3915.54 | L163: 3960.27 | M163: 3915.54 | N163: 3939.34 | O163: 5300010000
A164: 149 | B164: 2021-03-10 | C164: 3891.98999 | D164: 3917.350098 | E164: 3885.72998 | F164: 3898.810059 | G164: 5827250000 | H164: 3898.810059 | I164: 1 | J164: 1 | K164: 3891.99 | L164: 3917.35 | M164: 3885.73 | N164: 3898.81 | O164: 5827250000
A165: 150 | B165: 2021-03-09 | C165: 3851.929932 | D165: 3903.76001 | E165: 3851.929932 | F165: 3875.439941 | G165: 5496340000 | H165: 3875.439941 | I165: 1 | J165: 1 | K165: 3851.93 | L165: 3903.76 | M165: 3851.93 | N165: 3875.44 | O165: 5496340000
A166: 151 | B166: 2021-03-08 | C166: 3844.389893 | D166: 3881.060059 | E166: 3819.25 | F166: 3821.350098 | G166: 5852240000 | H166: 3821.350098 | I166: 1 | J166: 1 | K166: 3844.39 | L166: 3881.06 | M166: 3819.25 | N166: 3821.35 | O166: 5852240000
A167: 152 | B167: 2021-03-05 | C167: 3793.580078 | D167: 3851.689941 | E167: 3730.189941 | F167: 3841.939941 | G167: 6842570000 | H167: 3841.939941 | I167: 1 | J167: 1 | K167: 3793.58 | L167: 3851.69 | M167: 3730.19 | N167: 3841.94 | O167: 6842570000
A168: 153 | B168: 2021-03-04 | C168: 3818.530029 | D168: 3843.669922 | E168: 3723.340088 | F168: 3768.469971 | G168: 7142240000 | H168: 3768.469971 | I168: 1 | J168: 1 | K168: 3818.53 | L168: 3843.67 | M168: 3723.34 | N168: 3768.47 | O168: 7142240000
A169: 154 | B169: 2021-03-03 | C169: 3863.98999 | D169: 3874.469971 | E169: 3818.860107 | F169: 3819.719971 | G169: 6150790000 | H169: 3819.719971 | I169: 1 | J169: 1 | K169: 3863.99 | L169: 3874.47 | M169: 3818.86 | N169: 3819.72 | O169: 6150790000
A170: 155 | B170: 2021-03-02 | C170: 3903.639893 | D170: 3906.409912 | E170: 3868.570068 | F170: 3870.290039 | G170: 5493690000 | H170: 3870.290039 | I170: 1 | J170: 1 | K170: 3903.64 | L170: 3906.41 | M170: 3868.57 | N170: 3870.29 | O170: 5493690000
A171: 156 | B171: 2021-03-01 | C171: 3842.51001 | D171: 3914.5 | E171: 3842.51001 | F171: 3901.820068 | G171: 5071540000 | H171: 3901.820068 | I171: 1 | J171: 1 | K171: 3842.51 | L171: 3914.5 | M171: 3842.51 | N171: 3901.82 | O171: 5071540000
A172: 157 | B172: 2021-02-26 | C172: 3839.659912 | D172: 3861.080078 | E172: 3789.540039 | F172: 3811.149902 | G172: 6512950000 | H172: 3811.149902 | I172: 1 | J172: 1 | K172: 3839.66 | L172: 3861.08 | M172: 3789.54 | N172: 3811.15 | O172: 6512950000
A173: 158 | B173: 2021-02-25 | C173: 3915.800049 | D173: 3925.02002 | E173: 3814.040039 | F173: 3829.340088 | G173: 6513060000 | H173: 3829.340088 | I173: 1 | J173: 1 | K173: 3915.8 | L173: 3925.02 | M173: 3814.04 | N173: 3829.34 | O173: 6513060000
A174: 159 | B174: 2021-02-24 | C174: 3873.709961 | D174: 3928.649902 | E174: 3859.600098 | F174: 3925.429932 | G174: 5942350000 | H174: 3925.429932 | I174: 1 | J174: 1 | K174: 3873.71 | L174: 3928.65 | M174: 3859.6 | N174: 3925.43 | O174: 5942350000
A175: 160 | B175: 2021-02-23 | C175: 3857.070068 | D175: 3895.97998 | E175: 3805.590088 | F175: 3881.370117 | G175: 6280650000 | H175: 3881.370117 | I175: 1 | J175: 1 | K175: 3857.07 | L175: 3895.98 | M175: 3805.59 | N175: 3881.37 | O175: 6280650000
A176: 161 | B176: 2021-02-22 | C176: 3885.550049 | D176: 3902.919922 | E176: 3874.709961 | F176: 3876.5 | G176: 5870190000 | H176: 3876.5 | I176: 1 | J176: 1 | K176: 3885.55 | L176: 3902.92 | M176: 3874.71 | N176: 3876.5 | O176: 5870190000
A177: 162 | B177: 2021-02-19 | C177: 3921.159912 | D177: 3930.409912 | E177: 3903.070068 | F177: 3906.709961 | G177: 4823940000 | H177: 3906.709961 | I177: 1 | J177: 1 | K177: 3921.16 | L177: 3930.41 | M177: 3903.07 | N177: 3906.71 | O177: 4823940000
A178: 163 | B178: 2021-02-18 | C178: 3915.860107 | D178: 3921.97998 | E178: 3885.030029 | F178: 3913.969971 | G178: 4773430000 | H178: 3913.969971 | I178: 1 | J178: 1 | K178: 3915.86 | L178: 3921.98 | M178: 3885.03 | N178: 3913.97 | O178: 4773430000
A179: 164 | B179: 2021-02-17 | C179: 3918.5 | D179: 3933.610107 | E179: 3900.429932 | F179: 3931.330078 | G179: 4718280000 | H179: 3931.330078 | I179: 1 | J179: 1 | K179: 3918.5 | L179: 3933.61 | M179: 3900.43 | N179: 3931.33 | O179: 4718280000
A180: 165 | B180: 2021-02-16 | C180: 3939.610107 | D180: 3950.429932 | E180: 3923.850098 | F180: 3932.590088 | G180: 5037360000 | H180: 3932.590088 | I180: 1 | J180: 1 | K180: 3939.61 | L180: 3950.43 | M180: 3923.85 | N180: 3932.59 | O180: 5037360000
A181: 166 | B181: 2021-02-12 | C181: 3911.649902 | D181: 3937.22998 | E181: 3905.780029 | F181: 3934.830078 | G181: 4119260000 | H181: 3934.830078 | I181: 1 | J181: 1 | K181: 3911.65 | L181: 3937.23 | M181: 3905.78 | N181: 3934.83 | O181: 4119260000
A182: 167 | B182: 2021-02-11 | C182: 3916.399902 | D182: 3925.98999 | E182: 3890.389893 | F182: 3916.379883 | G182: 4570080000 | H182: 3916.379883 | I182: 1 | J182: 1 | K182: 3916.4 | L182: 3925.99 | M182: 3890.39 | N182: 3916.38 | O182: 4570080000
A183: 168 | B183: 2021-02-10 | C183: 3920.780029 | D183: 3931.5 | E183: 3884.939941 | F183: 3909.879883 | G183: 4815380000 | H183: 3909.879883 | I183: 1 | J183: 1 | K183: 3920.78 | L183: 3931.5 | M183: 3884.94 | N183: 3909.88 | O183: 4815380000
A184: 169 | B184: 2021-02-09 | C184: 3910.48999 | D184: 3918.350098 | E184: 3902.639893 | F184: 3911.22998 | G184: 4554610000 | H184: 3911.22998 | I184: 1 | J184: 1 | K184: 3910.49 | L184: 3918.35 | M184: 3902.64 | N184: 3911.23 | O184: 4554610000
A185: 170 | B185: 2021-02-08 | C185: 3892.590088 | D185: 3915.77002 | E185: 3892.590088 | F185: 3915.590088 | G185: 4635030000 | H185: 3915.590088 | I185: 1 | J185: 1 | K185: 3892.59 | L185: 3915.77 | M185: 3892.59 | N185: 3915.59 | O185: 4635030000
A186: 171 | B186: 2021-02-05 | C186: 3878.300049 | D186: 3894.560059 | E186: 3874.929932 | F186: 3886.830078 | G186: 4838580000 | H186: 3886.830078 | I186: 1 | J186: 1 | K186: 3878.3 | L186: 3894.56 | M186: 3874.93 | N186: 3886.83 | O186: 4838580000
A187: 172 | B187: 2021-02-04 | C187: 3836.659912 | D187: 3872.419922 | E187: 3836.659912 | F187: 3871.73999 | G187: 4856670000 | H187: 3871.73999 | I187: 1 | J187: 1 | K187: 3836.66 | L187: 3872.42 | M187: 3836.66 | N187: 3871.74 | O187: 4856670000
A188: 173 | B188: 2021-02-03 | C188: 3840.27002 | D188: 3847.51001 | E188: 3816.679932 | F188: 3830.169922 | G188: 4846900000 | H188: 3830.169922 | I188: 1 | J188: 1 | K188: 3840.27 | L188: 3847.51 | M188: 3816.68 | N188: 3830.17 | O188: 4846900000
A189: 174 | B189: 2021-02-02 | C189: 3791.840088 | D189: 3843.090088 | E189: 3791.840088 | F189: 3826.310059 | G189: 5495370000 | H189: 3826.310059 | I189: 1 | J189: 1 | K189: 3791.84 | L189: 3843.09 | M189: 3791.84 | N189: 3826.31 | O189: 5495370000
A190: 175 | B190: 2021-02-01 | C190: 3731.169922 | D190: 3784.320068 | E190: 3725.620117 | F190: 3773.860107 | G190: 5392870000 | H190: 3773.860107 | I190: 1 | J190: 1 | K190: 3731.17 | L190: 3784.32 | M190: 3725.62 | N190: 3773.86 | O190: 5392870000
A191: 176 | B191: 2021-01-29 | C191: 3778.050049 | D191: 3778.050049 | E191: 3694.120117 | F191: 3714.23999 | G191: 6612570000 | H191: 3714.23999 | I191: 1 | J191: 1 | K191: 3778.05 | L191: 3778.05 | M191: 3694.12 | N191: 3714.24 | O191: 6612570000
A192: 177 | B192: 2021-01-28 | C192: 3755.75 | D192: 3830.5 | E192: 3755.75 | F192: 3787.379883 | G192: 6937960000 | H192: 3787.379883 | I192: 1 | J192: 1 | K192: 3755.75 | L192: 3830.5 | M192: 3755.75 | N192: 3787.38 | O192: 6937960000
A193: 178 | B193: 2021-01-27 | C193: 3836.830078 | D193: 3836.830078 | E193: 3732.47998 | F193: 3750.77002 | G193: 9878040000 | H193: 3750.77002 | I193: 1 | J193: 1 | K193: 3836.83 | L193: 3836.83 | M193: 3732.48 | N193: 3750.77 | O193: 9878040000
A194: 179 | B194: 2021-01-26 | C194: 3862.959961 | D194: 3870.899902 | E194: 3847.780029 | F194: 3849.620117 | G194: 6029090000 | H194: 3849.620117 | I194: 1 | J194: 1 | K194: 3862.96 | L194: 3870.9 | M194: 3847.78 | N194: 3849.62 | O194: 6029090000
A195: 180 | B195: 2021-01-25 | C195: 3851.679932 | D195: 3859.22998 | E195: 3797.159912 | F195: 3855.360107 | G195: 6955860000 | H195: 3855.360107 | I195: 1 | J195: 1 | K195: 3851.68 | L195: 3859.23 | M195: 3797.16 | N195: 3855.36 | O195: 6955860000
A196: 181 | B196: 2021-01-22 | C196: 3844.23999 | D196: 3852.310059 | E196: 3830.409912 | F196: 3841.469971 | G196: 5080430000 | H196: 3841.469971 | I196: 1 | J196: 1 | K196: 3844.24 | L196: 3852.31 | M196: 3830.41 | N196: 3841.47 | O196: 5080430000
A197: 182 | B197: 2021-01-21 | C197: 3857.459961 | D197: 3861.449951 | E197: 3845.050049 | F197: 3853.070068 | G197: 4484460000 | H197: 3853.070068 | I197: 1 | J197: 1 | K197: 3857.46 | L197: 3861.45 | M197: 3845.05 | N197: 3853.07 | O197: 4484460000
A198: 183 | B198: 2021-01-20 | C198: 3816.219971 | D198: 3859.75 | E198: 3816.219971 | F198: 3851.850098 | G198: 4551790000 | H198: 3851.850098 | I198: 1 | J198: 1 | K198: 3816.22 | L198: 3859.75 | M198: 3816.22 | N198: 3851.85 | O198: 4551790000
A199: 184 | B199: 2021-01-19 | C199: 3781.879883 | D199: 3804.530029 | E199: 3780.370117 | F199: 3798.909912 | G199: 4982940000 | H199: 3798.909912 | I199: 1 | J199: 1 | K199: 3781.88 | L199: 3804.53 | M199: 3780.37 | N199: 3798.91 | O199: 4982940000
A200: 185 | B200: 2021-01-15 | C200: 3788.72998 | D200: 3788.72998 | E200: 3749.620117 | F200: 3768.25 | G200: 5353060000 | H200: 3768.25 | I200: 1 | J200: 1 | K200: 3788.73 | L200: 3788.73 | M200: 3749.62 | N200: 3768.25 | O200: 5353060000
... 4300 more rows

Sheet CalculationsAndCharts
A1: DMH.xlsm
A2: =InputPriceData!A1 -> S&P 500 (^GSPC) -SNP (Daily)
A4: User Charting Controls | E4: Click to Shift Chart One Bar:
A5: Data Control | C5: TRUE
A6: =InputPriceData!$B$10 -> 17872 | B6: Available Input Data Rows | E6: Earliest: | F6: =OFFSET(InputPriceData!B15,CalculationsAndCharts!A6,0,1,1) -> 1950-10-02
A7: =MAX(A33:A56896) -> 2500 | B7: Available Calculation Rows | E7: Latest: | F7: =OFFSET(InputPriceData!B15,1,0,1,1) -> 2021-10-08
A8: =MIN(AvailableInputRows-DataPanRows,A7) -> 2500 | B8: Logically Available for Calc / Plot | E8: $ Change: | F8: =G33-G34 -> 22.44
A10: Historical Price Windowing Specifications | F10: Click to Shift
A11: 69 | B11: Input Data Offset (Pan) | F11: Points to Plot
A12: 378 | B12: Data Points to Plot (Zoom)
B13: First: | C13: =OFFSET(B32,A12,0,1,1) -> 2020-01-02
B14: ="Last: " & IF(OFFSET(InputPriceData!P15,1+A11,0,1,1)="","",TEXT(OFFSET(InputPriceData!P15,1+A11,0,1,1),"H:MM AM/PM")) -> Last: | C14: =B33 -> 2021-07-01
A15: User Controls | R15: TRUE
A16: DM and DMH Indicators | C16: Calculated "Semi-Constants"
A17: 14 | B17: Length | C17: =1/A17 -> 0.07142857143 | D17: =1-C17 -> 0.9285714286 | E17: ="For EMA "&A17 -> For EMA 14
C18: Length / 6.28 | D18: Length + 1
C19: =A17/6.28*2 -> 4.458598726 | D19: =A17+1 -> 15 | E19: ="for Hann "&A17 -> for Hann 14 | R19: FALSE
A25: Help! I would like to plot data
A26: From | B26: 2020-01-02 | C26: =OFFSET(InputPriceData!$A$15,MATCH(B26,OFFSET(InputPriceData!B15,1,0,InputPriceData!$B$10,1),0),0,1,1)-C27 -> 378 | E26: 351
A27: To | B27: 2021-07-01 | C27: =OFFSET(InputPriceData!$A$15,MATCH(B27,OFFSET(InputPriceData!$B$15,1,0,InputPriceData!$B$10,1),0),0,1,1)-1 -> 69 | E27: =$A$12-$E$26+1 -> 28
H28: Value @ Cursor => | I28: =OFFSET(A32,$E$27,0,1,1)&"(RR)" -> 28(RR) | J28: =OFFSET($B$32,E27,0,1,1) -> 2021-05-24 | L28: =TEXT(OFFSET(E32,$E$27,0,1,1),"#,##0.00")&"(h)" -> 4,209.52(h) | M28: =TEXT(OFFSET(F32,$E$27,0,1,1),"#,##0.00")&"(l)" -> 4,170.16(l) | N28: =TEXT(OFFSET(G32,$E$27,0,1,1),"#,##0.00")&"(c)" -> 4,197.05(c) | O28: =TEXT(OFFSET(C32,$E$27,0,1,1),"#,##0.00,,""M""")&"(v)" -> 2,947.40M(v) | U28: DM Chart Display
E29: Cursor ==> | U29: Work Area | AY29: Work Area For Chart Cursors
B30: =LogicallyAvailableRows -> 2500 | C30: <== Calculation Rel Row Limits ==> | H30: =LogicallyAvailableRows-1 -> 2499 | I30: =H30-A17+1 -> 2486 | L30: =I30-A17+1 -> 2473 | S30: =L30-A17+1 -> 2460 | T30: =S30-1 -> 2459 | Y30: =A8-1 -> 2499 | AC30: =A8-1-A17+1 -> 2486 | AE30: =A8-1-2*A17+2 -> 2473 | AF30: =AE30-1 -> 2472
A31: Rel Row | H31: DM (alias ADX) Calculations | Y31: DMH Calculations | AE31: ="Hann("&$A$17&") Filt" -> Hann(14) Filt | AW31: Used To Color Vol Bars
B32: Date | C32: Volume | D32: Open | E32: High | F32: Low | G32: Close | H32: TrueRange | I32: ="ATR " & $A$17 -> ATR 14 | J32: +DM | K32: -DM | L32: ="+DM " & A17 -> +DM 14 | M32: ="-DM " & $A$17 -> -DM 14 | N32: ="+DI " & $A$17 -> +DI 14 | O32: ="-DI " & $A$17 -> -DI 14 | P32: ="DI " & $A$17 & " DIFF" -> DI 14 DIFF | Q32: ="DI " & $A$17 & " SUM" -> DI 14 SUM | R32: ="DX " & $A$17 -> DX 14 | S32: ="""DMI""-> ADX(" & $A$17 & ")" -> "DMI"-> ADX(14) | T32: DMI ROC | U32: =N32 -> +DI 14 | V32: =O32 -> -DI 14 | W32: =T32 -> DMI ROC | Y32: UpperMove | Z32: LowerMove | AA32: +DM | AB32: -DM | AC32: ="EMA("&A17&")" -> EMA(14) | AD32: ="Hann("&$A$17&") Coefs" -> Hann(14) Coefs | AE32: ="DMH("&$A$17&")" -> DMH(14) | AF32: DMH ROC | AW32: Up Vol | AX32: Dn Vol | AY32: Volume Cursor | AZ32: =MAX(OFFSET(C33,0,0,A12,1)) -> 9878040000 | BA32: Price Chart Cursor | BC32: Indicator 01 Cursor | BE32: Indicator 02 Cursor | BG32: Indicator 03 Cursor | BI32: Indicator 04 Cursor
A33: 1 | B33: =IF(A33>$B$30,NA(),IF($A33>$A$8,"",OFFSET(InputPriceData!$B$15,$A33+$A$11,0,1,1))) -> 2021-07-01 | C33: =IF(A33>$B$30,NA(),IF($A33>$A$8,"",OFFSET(InputPriceData!$G$15,CalculationsAndCharts!$A33+$A$11,IF($C$5,8,0),1,1))) -> 3077580000 | D33: =IF(A33>$B$30,NA(),IF(A33>$A$8,"",OFFSET(InputPriceData!$C$15,CalculationsAndCharts!$A33+$A$11,IF($C$5,8,0),1,1))) -> 4300.73 | E33: =IF(A33>$B$30,NA(),IF(A33>$A$8,"",OFFSET(InputPriceData!$D$15,CalculationsAndCharts!$A33+$A$11,IF($C$5,8,0),1,1))) -> 4320.66 | F33: =IF(A33>$B$30,NA(),IF(A33>$A$8,"",OFFSET(InputPriceData!$E$15,CalculationsAndCharts!$A33+$A$11,IF($C$5,8,0),1,1))) -> 4300.73 | G33: =IF(A33>$B$30,NA(),IF(A33>$A$8,"",OFFSET(InputPriceData!$F$15,CalculationsAndCharts!$A33+$A$11,IF($C$5,8,0),1,1))) -> 4319.94 | H33: =IF(A33>$H$30,NA(),MAX(E33-F33,ABS(E33-G34),ABS(F33-G34))) -> 23.16 | I33: =IF(A33>$I$30,NA(),IF($A33=$I$30,AVERAGE(OFFSET($H33,0,0,$A$17,1)),I34*$D$17+$H33*$C$17)) -> 29.852146 | J33: =IF(A33>$I$30,NA(),IF(E33-E34>F34-F33,MAX(E33-E34,0),0)) -> 18.23 | K33: =IF(A33>$I$30,NA(),IF(F34-F33>E33-E34,MAX(F34-F33,0),0)) -> 0 | L33: =IF(A33>$L$30,NA(),IF(A33=$L$30,AVERAGE(OFFSET(J33,0,0,$A$17,1)),L34*$D$17+J33*$C$17)) -> 9.291044005 | M33: =IF(A33>$L$30,NA(),IF(A33=$L$30,AVERAGE(OFFSET(K33,0,0,$A$17,1)),M34*$D$17+K33*$C$17)) -> 4.908974549 | N33: =IF(A33>$L$30,NA(),L33/I33*100) -> 31.123538 | O33: =IF(A33>$L$30,NA(),M33/I33*100) -> 16.44429365 | P33: =IF(A33>$L$30,NA(),ABS(N33-O33)) -> 14.67924435 | Q33: =IF(A33>$L$30,NA(),N33+O33) -> 47.56783165 | R33: =IF(A33>$L$30,NA(),P33/Q33*100) -> 30.85960373 | S33: =IF(A33>$S$30,NA(),IF(A33=$S$30,AVERAGE(OFFSET(R33,0,0,$A$17,1)),(S34*$D$17+R33*$C$17))) -> 15.01566732 | T33: =IF(A33>$T$30,NA(),S33-S34) -> 1.21876434 | U33: =IF($R$15,N33,NA()) -> 31.123538 | V33: =IF($R$15,O33,NA()) -> 16.44429365 | W33: =IF($R$19,T33,NA()) ->  | Y33: =IF(A33>$Y$30,NA(),E33-E34) -> 18.23 | Z33: =IF(A33>$Y$30,NA(),F34-F33) -> -12.77 | AA33: =IF(A33>$Y$30,NA(),IF(AND(Y33>Z33,Y33>0),Y33,0)) -> 18.23 | AB33: =IF(A33>$Y$30,NA(),IF(AND(Z33>Y33,Z33>0),Z33,0)) -> 0 | AC33: =IF(A33>$AC$30,NA(),IF(A33=$AC$30,(SUM(OFFSET(AA33,0,0,$A$17,1))-SUM(OFFSET(AB33,0,0,$A$17,1)))/$A$17,$C$17*(AA33-AB33)+$D$17*AC34)) -> 4.382069456 | AD33: =IF($A33>$D$19+1,NA(),IF($A33=$D$19+1,SUM(OFFSET(AD$33,0,0,$A$17,1)),IF($A33=$D$19,"-- Coef Sum--",1-COS(RADIANS(360*$A33/$D$19))))) -> 0.08645454236 | AE33: =IF($A33<=AE$30,SUMPRODUCT(OFFSET(AD$33,0,0,$A$17,1),OFFSET($AC33,0,0,$A$17,1))/OFFSET(AD$33,$D$19,0,1,1),NA()) -> 0.7551709404 | AF33: =IF($A33<=AF$30,$C$19*(AE33-AE34),NA()) -> 1.664706484 | AW33: =IF(G33>=D33,C33,NA()) -> 3077580000 | AX33: =IF(G33<D33,C33,NA()) ->  | AY33: =$E$27 -> 28 | AZ33: 0 | BA33: =$E$27 -> 28 | BB33: 2137.0635 | BC33: =$E$27 -> 28 | BD33: 4.970067062 | BE33: =$E$27 -> 28 | BG33: =$E$27 -> 28 | BH33: -40 | BI33: =$E$27 -> 28
A34: 2 | B34: =IF(A34>$B$30,NA(),IF($A34>$A$8,"",OFFSET(InputPriceData!$B$15,$A34+$A$11,0,1,1))) -> 2021-06-30 | C34: =IF(A34>$B$30,NA(),IF($A34>$A$8,"",OFFSET(InputPriceData!$G$15,CalculationsAndCharts!$A34+$A$11,IF($C$5,8,0),1,1))) -> 3687880000 | D34: =IF(A34>$B$30,NA(),IF(A34>$A$8,"",OFFSET(InputPriceData!$C$15,CalculationsAndCharts!$A34+$A$11,IF($C$5,8,0),1,1))) -> 4290.65 | E34: =IF(A34>$B$30,NA(),IF(A34>$A$8,"",OFFSET(InputPriceData!$D$15,CalculationsAndCharts!$A34+$A$11,IF($C$5,8,0),1,1))) -> 4302.43 | F34: =IF(A34>$B$30,NA(),IF(A34>$A$8,"",OFFSET(InputPriceData!$E$15,CalculationsAndCharts!$A34+$A$11,IF($C$5,8,0),1,1))) -> 4287.96 | G34: =IF(A34>$B$30,NA(),IF(A34>$A$8,"",OFFSET(InputPriceData!$F$15,CalculationsAndCharts!$A34+$A$11,IF($C$5,8,0),1,1))) -> 4297.5 | H34: =IF(A34>$H$30,NA(),MAX(E34-F34,ABS(E34-G35),ABS(F34-G35))) -> 14.47 | I34: =IF(A34>$I$30,NA(),IF($A34=$I$30,AVERAGE(OFFSET($H34,0,0,$A$17,1)),I35*$D$17+$H34*$C$17)) -> 30.36692646 | J34: 1.91 | K34: =IF(A34>$I$30,NA(),IF(F35-F34>E34-E35,MAX(F35-F34,0),0)) -> 0 | L34: =IF(A34>$L$30,NA(),IF(A34=$L$30,AVERAGE(OFFSET(J34,0,0,$A$17,1)),L35*$D$17+J34*$C$17)) -> 8.603432005 | M34: =IF(A34>$L$30,NA(),IF(A34=$L$30,AVERAGE(OFFSET(K34,0,0,$A$17,1)),M35*$D$17+K34*$C$17)) -> 5.286587976 | N34: =IF(A34>$L$30,NA(),L34/I34*100) -> 28.33158639 | O34: =IF(A34>$L$30,NA(),M34/I34*100) -> 17.4090321 | P34: =IF(A34>$L$30,NA(),ABS(N34-O34)) -> 10.92255429 | Q34: =IF(A34>$L$30,NA(),N34+O34) -> 45.74061849 | R34: =IF(A34>$L$30,NA(),P34/Q34*100) -> 23.87933231 | S34: =IF(A34>$S$30,NA(),IF(A34=$S$30,AVERAGE(OFFSET(R34,0,0,$A$17,1)),(S35*$D$17+R34*$C$17))) -> 13.79690298 | T34: =IF(A34>$T$30,NA(),S34-S35) -> 0.775571487 | U34: =IF($R$15,N34,NA()) -> 28.33158639 | V34: =IF($R$15,O34,NA()) -> 17.4090321 | W34: =IF($R$19,T34,NA()) ->  | Y34: 1.91 | Z34: -0.92 | AA34: 1.91 | AB34: 0 | AC34: 3.316844029 | AD34: 0.3308693936 | AE34: 0.3818010576 | AF34: 0.894537563 | AW34: 3687880000 | AY34: =$E$27 -> 28 | AZ34: =CEILING(AZ32,10^INT(LOG10(AZ32))/8) -> 10000000000 | BA34: =$E$27 -> 28 | BB34: 4428.6765 | BC34: =$E$27 -> 28 | BD34: 62.70151929 | BE34: =$E$27 -> 28 | BF34: 0 | BG34: =$E$27 -> 28 | BH34: 20 | BI34: =$E$27 -> 28 | BJ34: 0
A35: 3 | B35: =IF(A35>$B$30,NA(),IF($A35>$A$8,"",OFFSET(InputPriceData!$B$15,$A35+$A$11,0,1,1))) -> 2021-06-29 | C35: =IF(A35>$B$30,NA(),IF($A35>$A$8,"",OFFSET(InputPriceData!$G$15,CalculationsAndCharts!$A35+$A$11,IF($C$5,8,0),1,1))) -> 3049560000 | D35: =IF(A35>$B$30,NA(),IF(A35>$A$8,"",OFFSET(InputPriceData!$C$15,CalculationsAndCharts!$A35+$A$11,IF($C$5,8,0),1,1))) -> 4293.21 | E35: =IF(A35>$B$30,NA(),IF(A35>$A$8,"",OFFSET(InputPriceData!$D$15,CalculationsAndCharts!$A35+$A$11,IF($C$5,8,0),1,1))) -> 4300.52 | F35: =IF(A35>$B$30,NA(),IF(A35>$A$8,"",OFFSET(InputPriceData!$E$15,CalculationsAndCharts!$A35+$A$11,IF($C$5,8,0),1,1))) -> 4287.04 | G35: =IF(A35>$B$30,NA(),IF(A35>$A$8,"",OFFSET(InputPriceData!$F$15,CalculationsAndCharts!$A35+$A$11,IF($C$5,8,0),1,1))) -> 4291.8 | H35: 13.48 | I35: 31.58976696 | J35: 8.38 | K35: 0 | L35: =IF(A35>$L$30,NA(),IF(A35=$L$30,AVERAGE(OFFSET(J35,0,0,$A$17,1)),L36*$D$17+J35*$C$17)) -> 9.11831139 | M35: 5.693248589 | N35: 28.86476308 | O35: 18.02244568 | P35: 10.8423174 | Q35: 46.88720875 | R35: =IF(A35>$L$30,NA(),P35/Q35*100) -> 23.12425434 | S35: 13.02133149 | T35: 0.777147911 | U35: 28.86476308 | V35: 18.02244568 | Y35: 8.38 | Z35: -12.37 | AA35: 8.38 | AB35: 0 | AC35: 3.425062801 | AD35: 0.6909830056 | AE35: 0.1811690613 | AF35: 0.07726111101 | AX35: 3049560000
A36: 4 | B36: =IF(A36>$B$30,NA(),IF($A36>$A$8,"",OFFSET(InputPriceData!$B$15,$A36+$A$11,0,1,1))) -> 2021-06-28 | C36: =IF(A36>$B$30,NA(),IF($A36>$A$8,"",OFFSET(InputPriceData!$G$15,CalculationsAndCharts!$A36+$A$11,IF($C$5,8,0),1,1))) -> 3415610000 | D36: =IF(A36>$B$30,NA(),IF(A36>$A$8,"",OFFSET(InputPriceData!$C$15,CalculationsAndCharts!$A36+$A$11,IF($C$5,8,0),1,1))) -> 4284.9 | E36: =IF(A36>$B$30,NA(),IF(A36>$A$8,"",OFFSET(InputPriceData!$D$15,CalculationsAndCharts!$A36+$A$11,IF($C$5,8,0),1,1))) -> 4292.14 | F36: =IF(A36>$B$30,NA(),IF(A36>$A$8,"",OFFSET(InputPriceData!$E$15,CalculationsAndCharts!$A36+$A$11,IF($C$5,8,0),1,1))) -> 4274.67 | G36: =IF(A36>$B$30,NA(),IF(A36>$A$8,"",OFFSET(InputPriceData!$F$15,CalculationsAndCharts!$A36+$A$11,IF($C$5,8,0),1,1))) -> 4290.61 | H36: 17.47 | I36: 32.98282596 | J36: 6.02 | K36: 0 | L36: 9.175104574 | M36: 6.131190788 | N36: 27.8178243 | O36: 18.58904024 | P36: 9.228784064 | Q36: 46.40686454 | R36: 19.88667874 | S36: 12.24418358 | T36: 0.5878842428 | U36: 27.8178243 | V36: 18.58904024 | Y36: 6.02 | Z36: -3.51 | AA36: 6.02 | AB36: 0 | AC36: 3.043913786 | AD36: 1.104528463 | AE36: 0.1638404978 | AF36: -0.6516480204 | AW36: 3415610000
A37: 5 | B37: =IF(A37>$B$30,NA(),IF($A37>$A$8,"",OFFSET(InputPriceData!$B$15,$A37+$A$11,0,1,1))) -> 2021-06-25 | C37: =IF(A37>$B$30,NA(),IF($A37>$A$8,"",OFFSET(InputPriceData!$G$15,CalculationsAndCharts!$A37+$A$11,IF($C$5,8,0),1,1))) -> 6248390000 | D37: =IF(A37>$B$30,NA(),IF(A37>$A$8,"",OFFSET(InputPriceData!$C$15,CalculationsAndCharts!$A37+$A$11,IF($C$5,8,0),1,1))) -> 4274.45 | E37: =IF(A37>$B$30,NA(),IF(A37>$A$8,"",OFFSET(InputPriceData!$D$15,CalculationsAndCharts!$A37+$A$11,IF($C$5,8,0),1,1))) -> 4286.12 | F37: =IF(A37>$B$30,NA(),IF(A37>$A$8,"",OFFSET(InputPriceData!$E$15,CalculationsAndCharts!$A37+$A$11,IF($C$5,8,0),1,1))) -> 4271.16 | G37: =IF(A37>$B$30,NA(),IF(A37>$A$8,"",OFFSET(InputPriceData!$F$15,CalculationsAndCharts!$A37+$A$11,IF($C$5,8,0),1,1))) -> 4280.7 | H37: 19.63 | I37: 34.17612026 | J37: 14.84 | K37: 0 | L37: 9.417804926 | M37: 6.602820849 | N37: 27.55668243 | O37: 19.31998366 | P37: 8.236698769 | Q37: 46.87666608 | R37: 17.57099951 | S37: 11.65629934 | T37: 0.4549769364 | U37: 27.55668243 | V37: 19.31998366 | Y37: 14.84 | Z37: -14.19 | AA37: 14.84 | AB37: 0 | AC37: 2.814984077 | AD37: 1.5 | AE37: 0.3099958395 | AF37: -1.192310028 | AW37: 6248390000
A38: 6 | B38: =IF(A38>$B$30,NA(),IF($A38>$A$8,"",OFFSET(InputPriceData!$B$15,$A38+$A$11,0,1,1))) -> 2021-06-24 | C38: =IF(A38>$B$30,NA(),IF($A38>$A$8,"",OFFSET(InputPriceData!$G$15,CalculationsAndCharts!$A38+$A$11,IF($C$5,8,0),1,1))) -> 3141680000 | D38: =IF(A38>$B$30,NA(),IF(A38>$A$8,"",OFFSET(InputPriceData!$C$15,CalculationsAndCharts!$A38+$A$11,IF($C$5,8,0),1,1))) -> 4256.97 | E38: =IF(A38>$B$30,NA(),IF(A38>$A$8,"",OFFSET(InputPriceData!$D$15,CalculationsAndCharts!$A38+$A$11,IF($C$5,8,0),1,1))) -> 4271.28 | F38: =IF(A38>$B$30,NA(),IF(A38>$A$8,"",OFFSET(InputPriceData!$E$15,CalculationsAndCharts!$A38+$A$11,IF($C$5,8,0),1,1))) -> 4256.97 | G38: =IF(A38>$B$30,NA(),IF(A38>$A$8,"",OFFSET(InputPriceData!$F$15,CalculationsAndCharts!$A38+$A$11,IF($C$5,8,0),1,1))) -> 4266.49 | H38: 29.44 | I38: 35.29505259 | J38: 14.68 | K38: 0 | L38: 9.000712997 | M38: 7.110730145 | N38: 25.50134463 | O38: 20.14653506 | P38: 5.354809565 | Q38: 45.64787969 | R38: 11.73068629 | S38: 11.2013224 | T38: 0.04072029903 | U38: 25.50134463 | V38: 20.14653506 | Y38: 14.68 | Z38: -15.54 | AA38: 14.68 | AB38: 0 | AC38: 1.889982852 | AD38: 1.809016994 | AE38: 0.5774139457 | AF38: -1.488222987 | AW38: 3141680000
A39: 7 | B39: =IF(A39>$B$30,NA(),IF($A39>$A$8,"",OFFSET(InputPriceData!$B$15,$A39+$A$11,0,1,1))) -> 2021-06-23 | C39: =IF(A39>$B$30,NA(),IF($A39>$A$8,"",OFFSET(InputPriceData!$G$15,CalculationsAndCharts!$A39+$A$11,IF($C$5,8,0),1,1))) -> 3172440000 | D39: =IF(A39>$B$30,NA(),IF(A39>$A$8,"",OFFSET(InputPriceData!$C$15,CalculationsAndCharts!$A39+$A$11,IF($C$5,8,0),1,1))) -> 4249.27 | E39: =IF(A39>$B$30,NA(),IF(A39>$A$8,"",OFFSET(InputPriceData!$D$15,CalculationsAndCharts!$A39+$A$11,IF($C$5,8,0),1,1))) -> 4256.6 | F39: =IF(A39>$B$30,NA(),IF(A39>$A$8,"",OFFSET(InputPriceData!$E$15,CalculationsAndCharts!$A39+$A$11,IF($C$5,8,0),1,1))) -> 4241.43 | G39: =IF(A39>$B$30,NA(),IF(A39>$A$8,"",OFFSET(InputPriceData!$F$15,CalculationsAndCharts!$A39+$A$11,IF($C$5,8,0),1,1))) -> 4241.84 | H39: 15.17 | I39: 35.74544125 | J39: 0.76 | K39: 0 | L39: 8.563844766 | M39: 7.657709387 | N39: 23.95786558 | O39: 21.42289791 | P39: 2.534967669 | Q39: 45.38076349 | R39: 5.585996079 | S39: 11.1606021 | T39: -0.4288158481 | U39: 23.95786558 | V39: 21.42289791 | Y39: 0.76 | Z39: -24.16 | AA39: 0.76 | AB39: 0 | AC39: 0.9061353789 | AD39: 1.978147601 | AE39: 0.9112011013 | AF39: -1.469043221 | AX39: 3172440000
A40: 8 | B40: =IF(A40>$B$30,NA(),IF($A40>$A$8,"",OFFSET(InputPriceData!$B$15,$A40+$A$11,0,1,1))) -> 2021-06-22 | C40: =IF(A40>$B$30,NA(),IF($A40>$A$8,"",OFFSET(InputPriceData!$G$15,CalculationsAndCharts!$A40+$A$11,IF($C$5,8,0),1,1))) -> 3208760000 | D40: =IF(A40>$B$30,NA(),IF(A40>$A$8,"",OFFSET(InputPriceData!$C$15,CalculationsAndCharts!$A40+$A$11,IF($C$5,8,0),1,1))) -> 4224.61 | E40: =IF(A40>$B$30,NA(),IF(A40>$A$8,"",OFFSET(InputPriceData!$D$15,CalculationsAndCharts!$A40+$A$11,IF($C$5,8,0),1,1))) -> 4255.84 | F40: =IF(A40>$B$30,NA(),IF(A40>$A$8,"",OFFSET(InputPriceData!$E$15,CalculationsAndCharts!$A40+$A$11,IF($C$5,8,0),1,1))) -> 4217.27 | G40: =IF(A40>$B$30,NA(),IF(A40>$A$8,"",OFFSET(InputPriceData!$F$15,CalculationsAndCharts!$A40+$A$11,IF($C$5,8,0),1,1))) -> 4246.44 | H40: 38.57 | I40: 37.3281675 | J40: 29.6 | K40: 0 | L40: 9.164140517 | M40: 8.246763955 | N40: 24.55020198 | O40: 22.09260327 | P40: 2.457598707 | Q40: 46.64280526 | R40: 5.268977056 | S40: 11.58941795 | T40: -0.4861877612 | U40: 24.55020198 | V40: 22.09260327 | Y40: 29.6 | Z40: -43.87 | AA40: 29.6 | AB40: 0 | AC40: 0.9173765619 | AD40: 1.978147601 | AE40: 1.240686509 | AF40: -1.194527468 | AW40: 3208760000
A41: 9 | B41: =IF(A41>$B$30,NA(),IF($A41>$A$8,"",OFFSET(InputPriceData!$B$15,$A41+$A$11,0,1,1))) -> 2021-06-21 | C41: =IF(A41>$B$30,NA(),IF($A41>$A$8,"",OFFSET(InputPriceData!$G$15,CalculationsAndCharts!$A41+$A$11,IF($C$5,8,0),1,1))) -> 3391740000 | D41: =IF(A41>$B$30,NA(),IF(A41>$A$8,"",OFFSET(InputPriceData!$C$15,CalculationsAndCharts!$A41+$A$11,IF($C$5,8,0),1,1))) -> 4173.4 | E41: =IF(A41>$B$30,NA(),IF(A41>$A$8,"",OFFSET(InputPriceData!$D$15,CalculationsAndCharts!$A41+$A$11,IF($C$5,8,0),1,1))) -> 4226.24 | F41: =IF(A41>$B$30,NA(),IF(A41>$A$8,"",OFFSET(InputPriceData!$E$15,CalculationsAndCharts!$A41+$A$11,IF($C$5,8,0),1,1))) -> 4173.4 | G41: =IF(A41>$B$30,NA(),IF(A41>$A$8,"",OFFSET(InputPriceData!$F$15,CalculationsAndCharts!$A41+$A$11,IF($C$5,8,0),1,1))) -> 4224.79 | H41: 59.79 | I41: 37.23264192 | J41: 21.46 | K41: 0 | L41: 7.592151326 | M41: 8.881130413 | N41: 20.39111633 | O41: 23.8530761 | P41: 3.461959777 | Q41: 44.24419243 | R41: 7.824664858 | S41: 12.07560571 | T41: -0.3269954504 | U41: 20.39111633 | V41: 23.8530761 | Y41: 21.46 | Z41: -9 | AA41: 21.46 | AB41: 0 | AC41: -1.288979087 | AD41: 1.809016994 | AE41: 1.508601956 | AF41: -0.8025356494 | AW41: 3391740000
A42: 10 | B42: =IF(A42>$B$30,NA(),IF($A42>$A$8,"",OFFSET(InputPriceData!$B$15,$A42+$A$11,0,1,1))) -> 2021-06-18 | C42: =IF(A42>$B$30,NA(),IF($A42>$A$8,"",OFFSET(InputPriceData!$G$15,CalculationsAndCharts!$A42+$A$11,IF($C$5,8,0),1,1))) -> 6084980000 | D42: =IF(A42>$B$30,NA(),IF(A42>$A$8,"",OFFSET(InputPriceData!$C$15,CalculationsAndCharts!$A42+$A$11,IF($C$5,8,0),1,1))) -> 4204.78 | E42: =IF(A42>$B$30,NA(),IF(A42>$A$8,"",OFFSET(InputPriceData!$D$15,CalculationsAndCharts!$A42+$A$11,IF($C$5,8,0),1,1))) -> 4204.78 | F42: =IF(A42>$B$30,NA(),IF(A42>$A$8,"",OFFSET(InputPriceData!$E$15,CalculationsAndCharts!$A42+$A$11,IF($C$5,8,0),1,1))) -> 4164.4 | G42: =IF(A42>$B$30,NA(),IF(A42>$A$8,"",OFFSET(InputPriceData!$F$15,CalculationsAndCharts!$A42+$A$11,IF($C$5,8,0),1,1))) -> 4166.45 | H42: 57.46 | I42: 35.49746053 | J42: 0 | K42: 31.65 | L42: 6.525393736 | M42: 9.564294291 | N42: 18.3827058 | O42: 26.94360145 | P42: 8.560895653 | Q42: 45.32630725 | R42: 18.88725593 | S42: 12.40260116 | T42: 0.4988195972 | U42: 18.3827058 | V42: 26.94360145 | Y42: -27.51 | Z42: 31.65 | AA42: 0 | AB42: 31.65 | AC42: -3.038900555 | AD42: 1.5 | AE42: 1.688599237 | AF42: -0.396558682 | AX42: 6084980000
A43: 11 | B43: =IF(A43>$B$30,NA(),IF($A43>$A$8,"",OFFSET(InputPriceData!$B$15,$A43+$A$11,0,1,1))) -> 2021-06-17 | C43: =IF(A43>$B$30,NA(),IF($A43>$A$8,"",OFFSET(InputPriceData!$G$15,CalculationsAndCharts!$A43+$A$11,IF($C$5,8,0),1,1))) -> 3952110000 | D43: =IF(A43>$B$30,NA(),IF(A43>$A$8,"",OFFSET(InputPriceData!$C$15,CalculationsAndCharts!$A43+$A$11,IF($C$5,8,0),1,1))) -> 4220.37 | E43: =IF(A43>$B$30,NA(),IF(A43>$A$8,"",OFFSET(InputPriceData!$D$15,CalculationsAndCharts!$A43+$A$11,IF($C$5,8,0),1,1))) -> 4232.29 | F43: =IF(A43>$B$30,NA(),IF(A43>$A$8,"",OFFSET(InputPriceData!$E$15,CalculationsAndCharts!$A43+$A$11,IF($C$5,8,0),1,1))) -> 4196.05 | G43: =IF(A43>$B$30,NA(),IF(A43>$A$8,"",OFFSET(InputPriceData!$F$15,CalculationsAndCharts!$A43+$A$11,IF($C$5,8,0),1,1))) -> 4221.86 | H43: 36.24 | I43: 33.80803442 | J43: 0 | K43: 6.4 | L43: 7.0273471 | M43: 7.865393852 | N43: 20.78602682 | O43: 23.26486585 | P43: 2.478839029 | Q43: 44.05089266 | R43: 5.627216338 | S43: 11.90378157 | T43: -0.4828127099 | U43: 20.78602682 | V43: 23.26486585 | Y43: -19.6 | Z43: 6.4 | AA43: 0 | AB43: 6.4 | AC43: -0.838046752 | AD43: 1.104528463 | AE43: 1.777541684 | AF43: -0.1163272142 | AW43: 3952110000
A44: 12 | B44: =IF(A44>$B$30,NA(),IF($A44>$A$8,"",OFFSET(InputPriceData!$B$15,$A44+$A$11,0,1,1))) -> 2021-06-16 | C44: =IF(A44>$B$30,NA(),IF($A44>$A$8,"",OFFSET(InputPriceData!$G$15,CalculationsAndCharts!$A44+$A$11,IF($C$5,8,0),1,1))) -> 3722050000 | D44: =IF(A44>$B$30,NA(),IF(A44>$A$8,"",OFFSET(InputPriceData!$C$15,CalculationsAndCharts!$A44+$A$11,IF($C$5,8,0),1,1))) -> 4248.87 | E44: =IF(A44>$B$30,NA(),IF(A44>$A$8,"",OFFSET(InputPriceData!$D$15,CalculationsAndCharts!$A44+$A$11,IF($C$5,8,0),1,1))) -> 4251.89 | F44: =IF(A44>$B$30,NA(),IF(A44>$A$8,"",OFFSET(InputPriceData!$E$15,CalculationsAndCharts!$A44+$A$11,IF($C$5,8,0),1,1))) -> 4202.45 | G44: =IF(A44>$B$30,NA(),IF(A44>$A$8,"",OFFSET(InputPriceData!$F$15,CalculationsAndCharts!$A44+$A$11,IF($C$5,8,0),1,1))) -> 4223.7 | H44: 49.44 | I44: 33.62096014 | J44: 0 | K44: 35.9 | L44: 7.567912262 | M44: 7.978116456 | N44: 22.50950666 | O44: 23.72959137 | P44: 1.220084711 | Q44: 46.23909803 | R44: 2.638642974 | S44: 12.38659428 | T44: -0.7498424079 | U44: 22.50950666 | V44: 23.72959137 | Y44: -5.27 | Z44: 35.9 | AA44: 0 | AB44: 35.9 | AC44: -0.4102041945 | AD44: 0.6909830056 | AE44: 1.803632217 | AF44: 0.02603382583 | AX44: 3722050000
A45: 13 | B45: =IF(A45>$B$30,NA(),IF($A45>$A$8,"",OFFSET(InputPriceData!$B$15,$A45+$A$11,0,1,1))) -> 2021-06-15 | C45: =IF(A45>$B$30,NA(),IF($A45>$A$8,"",OFFSET(InputPriceData!$G$15,CalculationsAndCharts!$A45+$A$11,IF($C$5,8,0),1,1))) -> 3578450000 | D45: =IF(A45>$B$30,NA(),IF(A45>$A$8,"",OFFSET(InputPriceData!$C$15,CalculationsAndCharts!$A45+$A$11,IF($C$5,8,0),1,1))) -> 4255.28 | E45: =IF(A45>$B$30,NA(),IF(A45>$A$8,"",OFFSET(InputPriceData!$D$15,CalculationsAndCharts!$A45+$A$11,IF($C$5,8,0),1,1))) -> 4257.16 | F45: =IF(A45>$B$30,NA(),IF(A45>$A$8,"",OFFSET(InputPriceData!$E$15,CalculationsAndCharts!$A45+$A$11,IF($C$5,8,0),1,1))) -> 4238.35 | G45: =IF(A45>$B$30,NA(),IF(A45>$A$8,"",OFFSET(InputPriceData!$F$15,CalculationsAndCharts!$A45+$A$11,IF($C$5,8,0),1,1))) -> 4246.59 | H45: 18.81 | I45: 32.40411092 | J45: 1.57 | K45: 0 | L45: 8.150059359 | M45: 5.83027926 | N45: 25.15131299 | O45: 17.99240619 | P45: 7.158906794 | Q45: 43.14371918 | R45: 16.59316102 | S45: 13.13643668 | T45: 0.265901872 | U45: 25.15131299 | V45: 17.99240619 | Y45: 1.57 | Z45: -4.28 | AA45: 1.57 | AB45: 0 | AC45: 2.319780098 | AD45: 0.3308693936 | AE45: 1.797793201 | AF45: 0.09026117079 | AX45: 3578450000
A46: 14 | B46: =IF(A46>$B$30,NA(),IF($A46>$A$8,"",OFFSET(InputPriceData!$B$15,$A46+$A$11,0,1,1))) -> 2021-06-14 | C46: =IF(A46>$B$30,NA(),IF($A46>$A$8,"",OFFSET(InputPriceData!$G$15,CalculationsAndCharts!$A46+$A$11,IF($C$5,8,0),1,1))) -> 3612050000 | D46: =IF(A46>$B$30,NA(),IF(A46>$A$8,"",OFFSET(InputPriceData!$C$15,CalculationsAndCharts!$A46+$A$11,IF($C$5,8,0),1,1))) -> 4248.31 | E46: =IF(A46>$B$30,NA(),IF(A46>$A$8,"",OFFSET(InputPriceData!$D$15,CalculationsAndCharts!$A46+$A$11,IF($C$5,8,0),1,1))) -> 4255.59 | F46: =IF(A46>$B$30,NA(),IF(A46>$A$8,"",OFFSET(InputPriceData!$E$15,CalculationsAndCharts!$A46+$A$11,IF($C$5,8,0),1,1))) -> 4234.07 | G46: =IF(A46>$B$30,NA(),IF(A46>$A$8,"",OFFSET(InputPriceData!$F$15,CalculationsAndCharts!$A46+$A$11,IF($C$5,8,0),1,1))) -> 4255.15 | H46: 21.52 | I46: 33.44981176 | J46: 7.21 | K46: 0 | L46: 8.656217771 | M46: 6.27876228 | N46: 25.87822566 | O46: 18.77069541 | P46: 7.107530253 | Q46: 44.64892107 | R46: 15.9187055 | S46: 12.87053481 | T46: 0.2344746681 | U46: 25.87822566 | V46: 18.77069541 | Y46: 7.21 | Z46: -1.82 | AA46: 7.21 | AB46: 0 | AC46: 2.37745549 | AD46: 0.08645454236 | AE46: 1.77754891 | AF46: 0.1509111305 | AW46: 3612050000
A47: 15 | B47: =IF(A47>$B$30,NA(),IF($A47>$A$8,"",OFFSET(InputPriceData!$B$15,$A47+$A$11,0,1,1))) -> 2021-06-11 | C47: =IF(A47>$B$30,NA(),IF($A47>$A$8,"",OFFSET(InputPriceData!$G$15,CalculationsAndCharts!$A47+$A$11,IF($C$5,8,0),1,1))) -> 3204280000 | D47: =IF(A47>$B$30,NA(),IF(A47>$A$8,"",OFFSET(InputPriceData!$C$15,CalculationsAndCharts!$A47+$A$11,IF($C$5,8,0),1,1))) -> 4242.9 | E47: =IF(A47>$B$30,NA(),IF(A47>$A$8,"",OFFSET(InputPriceData!$D$15,CalculationsAndCharts!$A47+$A$11,IF($C$5,8,0),1,1))) -> 4248.38 | F47: =IF(A47>$B$30,NA(),IF(A47>$A$8,"",OFFSET(InputPriceData!$E$15,CalculationsAndCharts!$A47+$A$11,IF($C$5,8,0),1,1))) -> 4232.25 | G47: =IF(A47>$B$30,NA(),IF(A47>$A$8,"",OFFSET(InputPriceData!$F$15,CalculationsAndCharts!$A47+$A$11,IF($C$5,8,0),1,1))) -> 4247.44 | H47: 16.13 | I47: 34.36748959 | J47: 0 | K47: 0 | L47: 8.767465292 | M47: 6.761743994 | N47: 25.51092732 | O47: 19.67482663 | P47: 5.836100691 | Q47: 45.18575395 | R47: 12.91579797 | S47: 12.63606014 | T47: 0.02151829412 | U47: 25.51092732 | V47: 19.67482663 | Y47: -1.36 | Z47: -11.91 | AA47: 0 | AB47: 0 | AC47: 2.005721297 | AD47: -- Coef Sum-- | AE47: 1.7437017 | AF47: 0.3151096399 | AW47: 3204280000
A48: 16 | B48: =IF(A48>$B$30,NA(),IF($A48>$A$8,"",OFFSET(InputPriceData!$B$15,$A48+$A$11,0,1,1))) -> 2021-06-10 | C48: =IF(A48>$B$30,NA(),IF($A48>$A$8,"",OFFSET(InputPriceData!$G$15,CalculationsAndCharts!$A48+$A$11,IF($C$5,8,0),1,1))) -> 3502480000 | D48: =IF(A48>$B$30,NA(),IF(A48>$A$8,"",OFFSET(InputPriceData!$C$15,CalculationsAndCharts!$A48+$A$11,IF($C$5,8,0),1,1))) -> 4228.56 | E48: =IF(A48>$B$30,NA(),IF(A48>$A$8,"",OFFSET(InputPriceData!$D$15,CalculationsAndCharts!$A48+$A$11,IF($C$5,8,0),1,1))) -> 4249.74 | F48: =IF(A48>$B$30,NA(),IF(A48>$A$8,"",OFFSET(InputPriceData!$E$15,CalculationsAndCharts!$A48+$A$11,IF($C$5,8,0),1,1))) -> 4220.34 | G48: =IF(A48>$B$30,NA(),IF(A48>$A$8,"",OFFSET(InputPriceData!$F$15,CalculationsAndCharts!$A48+$A$11,IF($C$5,8,0),1,1))) -> 4239.18 | H48: 30.19 | I48: 35.7703734 | J48: 12.65 | K48: 0 | L48: 9.441885699 | M48: 7.281878148 | N48: 26.39582649 | O48: 20.3572886 | P48: 6.038537889 | Q48: 46.75311509 | R48: 12.91579797 | S48: 12.61454185 | T48: 0.02317354752 | U48: 26.39582649 | V48: 20.3572886 | Y48: 12.65 | Z48: -1.6 | AA48: 12.65 | AB48: 0 | AC48: 2.160007551 | AD48: 15 | AE48: 1.673027109 | AF48: 0.6196681568 | AW48: 3502480000
A49: 17 | B49: =IF(A49>$B$30,NA(),IF($A49>$A$8,"",OFFSET(InputPriceData!$B$15,$A49+$A$11,0,1,1))) -> 2021-06-09 | C49: =IF(A49>$B$30,NA(),IF($A49>$A$8,"",OFFSET(InputPriceData!$G$15,CalculationsAndCharts!$A49+$A$11,IF($C$5,8,0),1,1))) -> 3902870000 | D49: =IF(A49>$B$30,NA(),IF(A49>$A$8,"",OFFSET(InputPriceData!$C$15,CalculationsAndCharts!$A49+$A$11,IF($C$5,8,0),1,1))) -> 4232.99 | E49: =IF(A49>$B$30,NA(),IF(A49>$A$8,"",OFFSET(InputPriceData!$D$15,CalculationsAndCharts!$A49+$A$11,IF($C$5,8,0),1,1))) -> 4237.09 | F49: =IF(A49>$B$30,NA(),IF(A49>$A$8,"",OFFSET(InputPriceData!$E$15,CalculationsAndCharts!$A49+$A$11,IF($C$5,8,0),1,1))) -> 4218.74 | G49: =IF(A49>$B$30,NA(),IF(A49>$A$8,"",OFFSET(InputPriceData!$F$15,CalculationsAndCharts!$A49+$A$11,IF($C$5,8,0),1,1))) -> 4219.55 | H49: 18.35 | I49: 36.1996329 | J49: 0.35 | K49: 0 | L49: 9.195107675 | M49: 7.84202262 | N49: 25.40110752 | O49: 21.6632656 | P49: 3.737841925 | Q49: 47.06437312 | R49: 7.941977501 | S49: 12.5913683 | T49: -0.3576454463 | U49: 25.40110752 | V49: 21.6632656 | Y49: 0.35 | Z49: -10.33 | AA49: 0.35 | AB49: 0 | AC49: 1.353085055 | AE49: 1.534044394 | AF49: 1.154572318 | AX49: 3902870000
A50: 18 | B50: =IF(A50>$B$30,NA(),IF($A50>$A$8,"",OFFSET(InputPriceData!$B$15,$A50+$A$11,0,1,1))) -> 2021-06-08 | C50: =IF(A50>$B$30,NA(),IF($A50>$A$8,"",OFFSET(InputPriceData!$G$15,CalculationsAndCharts!$A50+$A$11,IF($C$5,8,0),1,1))) -> 3943870000 | D50: =IF(A50>$B$30,NA(),IF(A50>$A$8,"",OFFSET(InputPriceData!$C$15,CalculationsAndCharts!$A50+$A$11,IF($C$5,8,0),1,1))) -> 4233.81 | E50: =IF(A50>$B$30,NA(),IF(A50>$A$8,"",OFFSET(InputPriceData!$D$15,CalculationsAndCharts!$A50+$A$11,IF($C$5,8,0),1,1))) -> 4236.74 | F50: =IF(A50>$B$30,NA(),IF(A50>$A$8,"",OFFSET(InputPriceData!$E$15,CalculationsAndCharts!$A50+$A$11,IF($C$5,8,0),1,1))) -> 4208.41 | G50: =IF(A50>$B$30,NA(),IF(A50>$A$8,"",OFFSET(InputPriceData!$F$15,CalculationsAndCharts!$A50+$A$11,IF($C$5,8,0),1,1))) -> 4227.26 | H50: 28.33 | I50: 37.57268158 | J50: 0 | K50: 7.25 | L50: 9.875500574 | M50: 8.44525513 | N50: 26.28372572 | O50: 22.47711575 | P50: 3.806609972 | Q50: 48.76084147 | R50: 7.806694587 | S50: 12.94901375 | T50: -0.3955630125 | U50: 26.28372572 | V50: 22.47711575 | Y50: 4.4 | Z50: 7.25 | AA50: 0 | AB50: 7.25 | AC50: 1.430245444 | AE50: 1.275090317 | AF50: 1.811069886 | AX50: 3943870000
A51: 19 | B51: =IF(A51>$B$30,NA(),IF($A51>$A$8,"",OFFSET(InputPriceData!$B$15,$A51+$A$11,0,1,1))) -> 2021-06-07 | C51: =IF(A51>$B$30,NA(),IF($A51>$A$8,"",OFFSET(InputPriceData!$G$15,CalculationsAndCharts!$A51+$A$11,IF($C$5,8,0),1,1))) -> 3835570000 | D51: =IF(A51>$B$30,NA(),IF(A51>$A$8,"",OFFSET(InputPriceData!$C$15,CalculationsAndCharts!$A51+$A$11,IF($C$5,8,0),1,1))) -> 4229.34 | E51: =IF(A51>$B$30,NA(),IF(A51>$A$8,"",OFFSET(InputPriceData!$D$15,CalculationsAndCharts!$A51+$A$11,IF($C$5,8,0),1,1))) -> 4232.34 | F51: =IF(A51>$B$30,NA(),IF(A51>$A$8,"",OFFSET(InputPriceData!$E$15,CalculationsAndCharts!$A51+$A$11,IF($C$5,8,0),1,1))) -> 4215.66 | G51: =IF(A51>$B$30,NA(),IF(A51>$A$8,"",OFFSET(InputPriceData!$F$15,CalculationsAndCharts!$A51+$A$11,IF($C$5,8,0),1,1))) -> 4226.52 | H51: 16.68 | I51: 38.28365709 | J51: 0 | K51: 0 | L51: 10.63515446 | M51: 8.537197832 | N51: 27.77988122 | O51: 22.29984929 | P51: 5.480031928 | Q51: 50.0797305 | R51: 10.94261465 | S51: 13.34457676 | T51: -0.184766316 | U51: 27.77988122 | V51: 22.29984929 | Y51: -1.11 | Z51: -9.61 | AA51: 0 | AB51: 0 | AC51: 2.097956632 | AE51: 0.8688932135 | AF51: 2.3139885 | AX51: 3835570000
A52: 20 | B52: =IF(A52>$B$30,NA(),IF($A52>$A$8,"",OFFSET(InputPriceData!$B$15,$A52+$A$11,0,1,1))) -> 2021-06-04 | C52: =IF(A52>$B$30,NA(),IF($A52>$A$8,"",OFFSET(InputPriceData!$G$15,CalculationsAndCharts!$A52+$A$11,IF($C$5,8,0),1,1))) -> 3487070000 | D52: =IF(A52>$B$30,NA(),IF(A52>$A$8,"",OFFSET(InputPriceData!$C$15,CalculationsAndCharts!$A52+$A$11,IF($C$5,8,0),1,1))) -> 4206.05 | E52: =IF(A52>$B$30,NA(),IF(A52>$A$8,"",OFFSET(InputPriceData!$D$15,CalculationsAndCharts!$A52+$A$11,IF($C$5,8,0),1,1))) -> 4233.45 | F52: =IF(A52>$B$30,NA(),IF(A52>$A$8,"",OFFSET(InputPriceData!$E$15,CalculationsAndCharts!$A52+$A$11,IF($C$5,8,0),1,1))) -> 4206.05 | G52: =IF(A52>$B$30,NA(),IF(A52>$A$8,"",OFFSET(InputPriceData!$F$15,CalculationsAndCharts!$A52+$A$11,IF($C$5,8,0),1,1))) -> 4229.89 | H52: 40.6 | I52: 39.94547686 | J52: 29.06 | K52: 0 | L52: 11.45324327 | M52: 9.193905358 | N52: 28.67219062 | O52: 23.01613619 | P52: 5.656054424 | Q52: 51.68832681 | R52: 10.94261465 | S52: 13.52934308 | T52: -0.1989791095 | U52: 28.67219062 | V52: 23.01613619 | Y52: 29.06 | Z52: -38.12 | AA52: 29.06 | AB52: 0 | AC52: 2.259337911 | AE52: 0.3498986498 | AF52: 2.56927155 | AW52: 3487070000
A53: 21 | B53: =IF(A53>$B$30,NA(),IF($A53>$A$8,"",OFFSET(InputPriceData!$B$15,$A53+$A$11,0,1,1))) -> 2021-06-03 | C53: =IF(A53>$B$30,NA(),IF($A53>$A$8,"",OFFSET(InputPriceData!$G$15,CalculationsAndCharts!$A53+$A$11,IF($C$5,8,0),1,1))) -> 4579450000 | D53: =IF(A53>$B$30,NA(),IF(A53>$A$8,"",OFFSET(InputPriceData!$C$15,CalculationsAndCharts!$A53+$A$11,IF($C$5,8,0),1,1))) -> 4191.43 | E53: =IF(A53>$B$30,NA(),IF(A53>$A$8,"",OFFSET(InputPriceData!$D$15,CalculationsAndCharts!$A53+$A$11,IF($C$5,8,0),1,1))) -> 4204.39 | F53: =IF(A53>$B$30,NA(),IF(A53>$A$8,"",OFFSET(InputPriceData!$E$15,CalculationsAndCharts!$A53+$A$11,IF($C$5,8,0),1,1))) -> 4167.93 | G53: =IF(A53>$B$30,NA(),IF(A53>$A$8,"",OFFSET(InputPriceData!$F$15,CalculationsAndCharts!$A53+$A$11,IF($C$5,8,0),1,1))) -> 4192.85 | H53: 40.19 | I53: 39.89512893 | J53: 0 | K53: 30.34 | L53: 10.09887737 | M53: 9.901128847 | N53: 25.31355992 | O53: 24.81788908 | P53: 0.4956708375 | Q53: 50.131449 | R53: 0.9887422913 | S53: 13.72832219 | T53: -0.9799676843 | U53: 25.31355992 | V53: 24.81788908 | Y53: -12.98 | Z53: 30.34 | AA53: 0 | AB53: 30.34 | AC53: 0.1977485197 | AE53: -0.2263522551 | AF53: 2.660739911 | AW53: 4579450000
A54: 22 | B54: =IF(A54>$B$30,NA(),IF($A54>$A$8,"",OFFSET(InputPriceData!$B$15,$A54+$A$11,0,1,1))) -> 2021-06-02 | C54: =IF(A54>$B$30,NA(),IF($A54>$A$8,"",OFFSET(InputPriceData!$G$15,CalculationsAndCharts!$A54+$A$11,IF($C$5,8,0),1,1))) -> 4860930000 | D54: =IF(A54>$B$30,NA(),IF(A54>$A$8,"",OFFSET(InputPriceData!$C$15,CalculationsAndCharts!$A54+$A$11,IF($C$5,8,0),1,1))) -> 4206.82 | E54: =IF(A54>$B$30,NA(),IF(A54>$A$8,"",OFFSET(InputPriceData!$D$15,CalculationsAndCharts!$A54+$A$11,IF($C$5,8,0),1,1))) -> 4217.37 | F54: =IF(A54>$B$30,NA(),IF(A54>$A$8,"",OFFSET(InputPriceData!$E$15,CalculationsAndCharts!$A54+$A$11,IF($C$5,8,0),1,1))) -> 4198.27 | G54: =IF(A54>$B$30,NA(),IF(A54>$A$8,"",OFFSET(InputPriceData!$F$15,CalculationsAndCharts!$A54+$A$11,IF($C$5,8,0),1,1))) -> 4208.12 | H54: 19.1 | I54: 39.87244654 | J54: 0 | K54: 0 | L54: 10.87571409 | M54: 8.328907989 | N54: 27.27626477 | O54: 20.8888812 | P54: 6.387383567 | Q54: 48.16514596 | R54: 13.26142263 | S54: 14.70828987 | T54: -0.11129748 | U54: 27.27626477 | V54: 20.8888812 | Y54: -16.75 | Z54: -0.68 | AA54: 0 | AB54: 0 | AC54: 2.546806098 | AE54: -0.8231182065 | AF54: 2.638606939 | AW54: 4860930000
A55: 23 | B55: =IF(A55>$B$30,NA(),IF($A55>$A$8,"",OFFSET(InputPriceData!$B$15,$A55+$A$11,0,1,1))) -> 2021-06-01 | C55: =IF(A55>$B$30,NA(),IF($A55>$A$8,"",OFFSET(InputPriceData!$G$15,CalculationsAndCharts!$A55+$A$11,IF($C$5,8,0),1,1))) -> 4122960000 | D55: =IF(A55>$B$30,NA(),IF(A55>$A$8,"",OFFSET(InputPriceData!$C$15,CalculationsAndCharts!$A55+$A$11,IF($C$5,8,0),1,1))) -> 4216.52 | E55: =IF(A55>$B$30,NA(),IF(A55>$A$8,"",OFFSET(InputPriceData!$D$15,CalculationsAndCharts!$A55+$A$11,IF($C$5,8,0),1,1))) -> 4234.12 | F55: =IF(A55>$B$30,NA(),IF(A55>$A$8,"",OFFSET(InputPriceData!$E$15,CalculationsAndCharts!$A55+$A$11,IF($C$5,8,0),1,1))) -> 4197.59 | G55: =IF(A55>$B$30,NA(),IF(A55>$A$8,"",OFFSET(InputPriceData!$F$15,CalculationsAndCharts!$A55+$A$11,IF($C$5,8,0),1,1))) -> 4202.04 | H55: 36.53 | I55: 41.47032704 | J55: 15.76 | K55: 0 | L55: 11.71230748 | M55: 8.969593219 | N55: 28.24262144 | O55: 21.62894257 | P55: 6.613678876 | Q55: 49.87156401 | R55: 13.26142263 | S55: 14.81958735 | T55: -0.1198588246 | U55: 28.24262144 | V55: 21.62894257 | Y55: 15.76 | Z55: 5.98 | AA55: 15.76 | AB55: 0 | AC55: 2.74271426 | AE55: -1.414920049 | AF55: 2.427851655 | AX55: 4122960000
A56: 24 | B56: =IF(A56>$B$30,NA(),IF($A56>$A$8,"",OFFSET(InputPriceData!$B$15,$A56+$A$11,0,1,1))) -> 2021-05-28 | C56: =IF(A56>$B$30,NA(),IF($A56>$A$8,"",OFFSET(InputPriceData!$G$15,CalculationsAndCharts!$A56+$A$11,IF($C$5,8,0),1,1))) -> 4199270000 | D56: =IF(A56>$B$30,NA(),IF(A56>$A$8,"",OFFSET(InputPriceData!$C$15,CalculationsAndCharts!$A56+$A$11,IF($C$5,8,0),1,1))) -> 4210.77 | E56: =IF(A56>$B$30,NA(),IF(A56>$A$8,"",OFFSET(InputPriceData!$D$15,CalculationsAndCharts!$A56+$A$11,IF($C$5,8,0),1,1))) -> 4218.36 | F56: =IF(A56>$B$30,NA(),IF(A56>$A$8,"",OFFSET(InputPriceData!$E$15,CalculationsAndCharts!$A56+$A$11,IF($C$5,8,0),1,1))) -> 4203.57 | G56: =IF(A56>$B$30,NA(),IF(A56>$A$8,"",OFFSET(InputPriceData!$F$15,CalculationsAndCharts!$A56+$A$11,IF($C$5,8,0),1,1))) -> 4204.11 | H56: 17.48 | I56: 41.8503522 | J56: 4.98 | K56: 0 | L56: 11.40094651 | M56: 9.659561928 | N56: 27.24217579 | O56: 23.08119626 | P56: 4.160979527 | Q56: 50.32337205 | R56: 8.268483128 | S56: 14.93944618 | T56: -0.5131510037 | U56: 27.24217579 | V56: 23.08119626 | Y56: 4.98 | Z56: -5.79 | AA56: 4.98 | AB56: 0 | AC56: 1.741384587 | AE56: -1.959452491 | AF56: 1.886027697 | AX56: 4199270000
A57: 25 | B57: =IF(A57>$B$30,NA(),IF($A57>$A$8,"",OFFSET(InputPriceData!$B$15,$A57+$A$11,0,1,1))) -> 2021-05-27 | C57: =IF(A57>$B$30,NA(),IF($A57>$A$8,"",OFFSET(InputPriceData!$G$15,CalculationsAndCharts!$A57+$A$11,IF($C$5,8,0),1,1))) -> 5201110000 | D57: =IF(A57>$B$30,NA(),IF(A57>$A$8,"",OFFSET(InputPriceData!$C$15,CalculationsAndCharts!$A57+$A$11,IF($C$5,8,0),1,1))) -> 4201.94 | E57: =IF(A57>$B$30,NA(),IF(A57>$A$8,"",OFFSET(InputPriceData!$D$15,CalculationsAndCharts!$A57+$A$11,IF($C$5,8,0),1,1))) -> 4213.38 | F57: =IF(A57>$B$30,NA(),IF(A57>$A$8,"",OFFSET(InputPriceData!$E$15,CalculationsAndCharts!$A57+$A$11,IF($C$5,8,0),1,1))) -> 4197.78 | G57: =IF(A57>$B$30,NA(),IF(A57>$A$8,"",OFFSET(InputPriceData!$F$15,CalculationsAndCharts!$A57+$A$11,IF($C$5,8,0),1,1))) -> 4200.88 | H57: 17.39 | I57: 43.72499468 | J57: 10.77 | K57: 0 | L57: 11.89486548 | M57: 10.40260515 | N57: 27.20381229 | O57: 23.79098095 | P57: 3.412831347 | Q57: 50.99479324 | R57: 6.69250943 | S57: 15.45259718 | T57: -0.6738529038 | U57: 27.20381229 | V57: 23.79098095 | Y57: 10.77 | Z57: -13.67 | AA57: 10.77 | AB57: 0 | AC57: 1.492260325 | AE57: -2.38246156 | AF57: 0.9043682044 | AX57: 5201110000
A58: 26 | B58: =IF(A58>$B$30,NA(),IF($A58>$A$8,"",OFFSET(InputPriceData!$B$15,$A58+$A$11,0,1,1))) -> 2021-05-26 | C58: =IF(A58>$B$30,NA(),IF($A58>$A$8,"",OFFSET(InputPriceData!$G$15,CalculationsAndCharts!$A58+$A$11,IF($C$5,8,0),1,1))) -> 3674490000 | D58: =IF(A58>$B$30,NA(),IF(A58>$A$8,"",OFFSET(InputPriceData!$C$15,CalculationsAndCharts!$A58+$A$11,IF($C$5,8,0),1,1))) -> 4191.59 | E58: =IF(A58>$B$30,NA(),IF(A58>$A$8,"",OFFSET(InputPriceData!$D$15,CalculationsAndCharts!$A58+$A$11,IF($C$5,8,0),1,1))) -> 4202.61 | F58: =IF(A58>$B$30,NA(),IF(A58>$A$8,"",OFFSET(InputPriceData!$E$15,CalculationsAndCharts!$A58+$A$11,IF($C$5,8,0),1,1))) -> 4184.11 | G58: =IF(A58>$B$30,NA(),IF(A58>$A$8,"",OFFSET(InputPriceData!$F$15,CalculationsAndCharts!$A58+$A$11,IF($C$5,8,0),1,1))) -> 4195.99 | H58: 18.5 | I58: 45.7507635 | J58: 0 | K58: 0 | L58: 11.98139359 | M58: 11.20280555 | N58: 26.18840141 | O58: 24.48659802 | P58: 1.701803385 | Q58: 50.67499943 | R58: 3.358270162 | S58: 16.12645008 | T58: -0.9821676863 | U58: 26.18840141 | V58: 24.48659802 | Y58: -10.81 | Z58: -1.59 | AA58: 0 | AB58: 0 | AC58: 0.7785880419 | AE58: -2.585298429 | AF58: -0.3539823375 | AW58: 3674490000
A59: 27 | B59: =IF(A59>$B$30,NA(),IF($A59>$A$8,"",OFFSET(InputPriceData!$B$15,$A59+$A$11,0,1,1))) -> 2021-05-25 | C59: =IF(A59>$B$30,NA(),IF($A59>$A$8,"",OFFSET(InputPriceData!$G$15,CalculationsAndCharts!$A59+$A$11,IF($C$5,8,0),1,1))) -> 3420870000 | D59: =IF(A59>$B$30,NA(),IF(A59>$A$8,"",OFFSET(InputPriceData!$C$15,CalculationsAndCharts!$A59+$A$11,IF($C$5,8,0),1,1))) -> 4205.94 | E59: =IF(A59>$B$30,NA(),IF(A59>$A$8,"",OFFSET(InputPriceData!$D$15,CalculationsAndCharts!$A59+$A$11,IF($C$5,8,0),1,1))) -> 4213.42 | F59: =IF(A59>$B$30,NA(),IF(A59>$A$8,"",OFFSET(InputPriceData!$E$15,CalculationsAndCharts!$A59+$A$11,IF($C$5,8,0),1,1))) -> 4182.52 | G59: =IF(A59>$B$30,NA(),IF(A59>$A$8,"",OFFSET(InputPriceData!$F$15,CalculationsAndCharts!$A59+$A$11,IF($C$5,8,0),1,1))) -> 4188.13 | H59: 30.9 | I59: 47.84697607 | J59: 3.9 | K59: 0 | L59: 12.90303925 | M59: 12.06455982 | N59: 26.9673035 | O59: 25.21488464 | P59: 1.752418854 | Q59: 52.18218814 | R59: 3.358270162 | S59: 17.10861777 | T59: -1.057719047 | U59: 26.9673035 | V59: 25.21488464 | Y59: 3.9 | Z59: -12.36 | AA59: 3.9 | AB59: 0 | AC59: 0.8384794298 | AE59: -2.505905248 | AF59: -1.612362663 | AX59: 3420870000
A60: 28 | B60: =IF(A60>$B$30,NA(),IF($A60>$A$8,"",OFFSET(InputPriceData!$B$15,$A60+$A$11,0,1,1))) -> 2021-05-24 | C60: =IF(A60>$B$30,NA(),IF($A60>$A$8,"",OFFSET(InputPriceData!$G$15,CalculationsAndCharts!$A60+$A$11,IF($C$5,8,0),1,1))) -> 2947400000 | D60: =IF(A60>$B$30,NA(),IF(A60>$A$8,"",OFFSET(InputPriceData!$C$15,CalculationsAndCharts!$A60+$A$11,IF($C$5,8,0),1,1))) -> 4170.16 | E60: =IF(A60>$B$30,NA(),IF(A60>$A$8,"",OFFSET(InputPriceData!$D$15,CalculationsAndCharts!$A60+$A$11,IF($C$5,8,0),1,1))) -> 4209.52 | F60: =IF(A60>$B$30,NA(),IF(A60>$A$8,"",OFFSET(InputPriceData!$E$15,CalculationsAndCharts!$A60+$A$11,IF($C$5,8,0),1,1))) -> 4170.16 | G60: =IF(A60>$B$30,NA(),IF(A60>$A$8,"",OFFSET(InputPriceData!$F$15,CalculationsAndCharts!$A60+$A$11,IF($C$5,8,0),1,1))) -> 4197.05 | H60: 53.66 | I60: 49.15058962 | J60: 20.8 | K60: 0 | L60: 13.59558073 | M60: 12.99260289 | N60: 27.66107353 | O60: 26.43427675 | P60: 1.226796773 | Q60: 54.09535028 | R60: 2.267841444 | S60: 18.16633682 | T60: -1.222961182 | U60: 27.66107353 | V60: 26.43427675 | Y60: 20.8 | Z60: -18.44 | AA60: 20.8 | AB60: 0 | AC60: 0.6029778474 | AE60: -2.144275336 | AF60: -2.632417587 | AW60: 2947400000
A61: 29 | B61: =IF(A61>$B$30,NA(),IF($A61>$A$8,"",OFFSET(InputPriceData!$B$15,$A61+$A$11,0,1,1))) -> 2021-05-21 | C61: =IF(A61>$B$30,NA(),IF($A61>$A$8,"",OFFSET(InputPriceData!$G$15,CalculationsAndCharts!$A61+$A$11,IF($C$5,8,0),1,1))) -> 3344620000 | D61: =IF(A61>$B$30,NA(),IF(A61>$A$8,"",OFFSET(InputPriceData!$C$15,CalculationsAndCharts!$A61+$A$11,IF($C$5,8,0),1,1))) -> 4168.61 | E61: =IF(A61>$B$30,NA(),IF(A61>$A$8,"",OFFSET(InputPriceData!$D$15,CalculationsAndCharts!$A61+$A$11,IF($C$5,8,0),1,1))) -> 4188.72 | F61: =IF(A61>$B$30,NA(),IF(A61>$A$8,"",OFFSET(InputPriceData!$E$15,CalculationsAndCharts!$A61+$A$11,IF($C$5,8,0),1,1))) -> 4151.72 | G61: =IF(A61>$B$30,NA(),IF(A61>$A$8,"",OFFSET(InputPriceData!$F$15,CalculationsAndCharts!$A61+$A$11,IF($C$5,8,0),1,1))) -> 4155.86 | H61: 37 | I61: 48.8037119 | J61: 15.92 | K61: 0 | L61: 13.04139464 | M61: 13.99203388 | N61: 26.72213676 | O61: 28.67001983 | P61: 1.947883069 | Q61: 55.39215658 | R61: 3.516532284 | S61: 19.389298 | T61: -1.220981978 | U61: 26.72213676 | V61: 28.67001983 | Y61: 15.92 | Z61: -29.75 | AA61: 15.92 | AB61: 0 | AC61: -0.9506392412 | AE61: -1.553861677 | AF61: -3.34893229 | AX61: 3344620000
A62: 30 | B62: =IF(A62>$B$30,NA(),IF($A62>$A$8,"",OFFSET(InputPriceData!$B$15,$A62+$A$11,0,1,1))) -> 2021-05-20 | C62: =IF(A62>$B$30,NA(),IF($A62>$A$8,"",OFFSET(InputPriceData!$G$15,CalculationsAndCharts!$A62+$A$11,IF($C$5,8,0),1,1))) -> 3019060000 | D62: =IF(A62>$B$30,NA(),IF(A62>$A$8,"",OFFSET(InputPriceData!$C$15,CalculationsAndCharts!$A62+$A$11,IF($C$5,8,0),1,1))) -> 4121.97 | E62: =IF(A62>$B$30,NA(),IF(A62>$A$8,"",OFFSET(InputPriceData!$D$15,CalculationsAndCharts!$A62+$A$11,IF($C$5,8,0),1,1))) -> 4172.8 | F62: =IF(A62>$B$30,NA(),IF(A62>$A$8,"",OFFSET(InputPriceData!$E$15,CalculationsAndCharts!$A62+$A$11,IF($C$5,8,0),1,1))) -> 4121.97 | G62: =IF(A62>$B$30,NA(),IF(A62>$A$8,"",OFFSET(InputPriceData!$F$15,CalculationsAndCharts!$A62+$A$11,IF($C$5,8,0),1,1))) -> 4159.12 | H62: 57.12 | I62: 49.71168974 | J62: 55.87 | K62: 0 | L62: 12.81996345 | M62: 15.06834417 | N62: 25.78862944 | O62: 30.31147051 | P62: 4.522841073 | Q62: 56.10009995 | R62: 8.062090935 | S62: 20.61027998 | T62: -0.9652453109 | U62: 25.78862944 | V62: 30.31147051 | Y62: 55.87 | Z62: -60.56 | AA62: 55.87 | AB62: 0 | AC62: -2.248380721 | AE62: -0.8027440066 | AF62: -3.793684801 | AW62: 3019060000
A63: 31 | B63: =IF(A63>$B$30,NA(),IF($A63>$A$8,"",OFFSET(InputPriceData!$B$15,$A63+$A$11,0,1,1))) -> 2021-05-19 | C63: =IF(A63>$B$30,NA(),IF($A63>$A$8,"",OFFSET(InputPriceData!$G$15,CalculationsAndCharts!$A63+$A$11,IF($C$5,8,0),1,1))) -> 3485550000 | D63: =IF(A63>$B$30,NA(),IF(A63>$A$8,"",OFFSET(InputPriceData!$C$15,CalculationsAndCharts!$A63+$A$11,IF($C$5,8,0),1,1))) -> 4098.45 | E63: =IF(A63>$B$30,NA(),IF(A63>$A$8,"",OFFSET(InputPriceData!$D$15,CalculationsAndCharts!$A63+$A$11,IF($C$5,8,0),1,1))) -> 4116.93 | F63: =IF(A63>$B$30,NA(),IF(A63>$A$8,"",OFFSET(InputPriceData!$E$15,CalculationsAndCharts!$A63+$A$11,IF($C$5,8,0),1,1))) -> 4061.41 | G63: =IF(A63>$B$30,NA(),IF(A63>$A$8,"",OFFSET(InputPriceData!$F$15,CalculationsAndCharts!$A63+$A$11,IF($C$5,8,0),1,1))) -> 4115.68 | H63: 66.42 | I63: 49.14181971 | J63: 0 | K63: 64.58 | L63: 9.508422181 | M63: 16.22744757 | N63: 19.34894197 | O63: 33.021666 | P63: 13.67272403 | Q63: 52.37060797 | R63: 26.10762899 | S63: 21.57552529 | T63: 0.3486233615 | U63: 19.34894197 | V63: 33.021666 | Y63: -52.22 | Z63: 64.58 | AA63: 0 | AB63: 64.58 | AC63: -6.719025392 | AE63: 0.04812529879 | AF63: -3.967554891 | AW63: 3485550000
A64: 32 | B64: =IF(A64>$B$30,NA(),IF($A64>$A$8,"",OFFSET(InputPriceData!$B$15,$A64+$A$11,0,1,1))) -> 2021-05-18 | C64: =IF(A64>$B$30,NA(),IF($A64>$A$8,"",OFFSET(InputPriceData!$G$15,CalculationsAndCharts!$A64+$A$11,IF($C$5,8,0),1,1))) -> 3559790000 | D64: =IF(A64>$B$30,NA(),IF(A64>$A$8,"",OFFSET(InputPriceData!$C$15,CalculationsAndCharts!$A64+$A$11,IF($C$5,8,0),1,1))) -> 4165.94 | E64: =IF(A64>$B$30,NA(),IF(A64>$A$8,"",OFFSET(InputPriceData!$D$15,CalculationsAndCharts!$A64+$A$11,IF($C$5,8,0),1,1))) -> 4169.15 | F64: =IF(A64>$B$30,NA(),IF(A64>$A$8,"",OFFSET(InputPriceData!$E$15,CalculationsAndCharts!$A64+$A$11,IF($C$5,8,0),1,1))) -> 4125.99 | G64: =IF(A64>$B$30,NA(),IF(A64>$A$8,"",OFFSET(InputPriceData!$F$15,CalculationsAndCharts!$A64+$A$11,IF($C$5,8,0),1,1))) -> 4127.83 | H64: 43.16 | I64: 47.81272892 | J64: 0 | K64: 16.7 | L64: 10.23983927 | M64: 12.50802046 | N64: 21.41655476 | O64: 26.16044042 | P64: 4.743885661 | Q64: 47.57699518 | R64: 9.97096526 | S64: 21.22690193 | T64: -0.865841282 | U64: 21.41655476 | V64: 26.16044042 | Y64: -2.77 | Z64: 16.7 | AA64: 0 | AB64: 16.7 | AC64: -2.268181192 | AE64: 0.9379911815 | AF64: -3.981786726 | AX64: 3559790000
A65: 33 | B65: =IF(A65>$B$30,NA(),IF($A65>$A$8,"",OFFSET(InputPriceData!$B$15,$A65+$A$11,0,1,1))) -> 2021-05-17 | C65: =IF(A65>$B$30,NA(),IF($A65>$A$8,"",OFFSET(InputPriceData!$G$15,CalculationsAndCharts!$A65+$A$11,IF($C$5,8,0),1,1))) -> 3307130000 | D65: =IF(A65>$B$30,NA(),IF(A65>$A$8,"",OFFSET(InputPriceData!$C$15,CalculationsAndCharts!$A65+$A$11,IF($C$5,8,0),1,1))) -> 4169.92 | E65: =IF(A65>$B$30,NA(),IF(A65>$A$8,"",OFFSET(InputPriceData!$D$15,CalculationsAndCharts!$A65+$A$11,IF($C$5,8,0),1,1))) -> 4171.92 | F65: =IF(A65>$B$30,NA(),IF(A65>$A$8,"",OFFSET(InputPriceData!$E$15,CalculationsAndCharts!$A65+$A$11,IF($C$5,8,0),1,1))) -> 4142.69 | G65: =IF(A65>$B$30,NA(),IF(A65>$A$8,"",OFFSET(InputPriceData!$F$15,CalculationsAndCharts!$A65+$A$11,IF($C$5,8,0),1,1))) -> 4163.29 | H65: 31.16 | I65: 48.17063115 | J65: 0 | K65: 0 | L65: 11.02751922 | M65: 12.1855605 | N65: 22.89261933 | O65: 25.29665941 | P65: 2.404040088 | Q65: 48.18927874 | R65: 4.988744697 | S65: 22.09274321 | T65: -1.315692193 | U65: 22.89261933 | V65: 25.29665941 | Y65: -11.21 | Z65: -13.11 | AA65: 0 | AB65: 0 | AC65: -1.158041283 | AE65: 1.831049061 | AF65: -3.806924658 | AX65: 3307130000
A66: 34 | B66: =IF(A66>$B$30,NA(),IF($A66>$A$8,"",OFFSET(InputPriceData!$B$15,$A66+$A$11,0,1,1))) -> 2021-05-14 | C66: =IF(A66>$B$30,NA(),IF($A66>$A$8,"",OFFSET(InputPriceData!$G$15,CalculationsAndCharts!$A66+$A$11,IF($C$5,8,0),1,1))) -> 3251920000 | D66: =IF(A66>$B$30,NA(),IF(A66>$A$8,"",OFFSET(InputPriceData!$C$15,CalculationsAndCharts!$A66+$A$11,IF($C$5,8,0),1,1))) -> 4129.58 | E66: =IF(A66>$B$30,NA(),IF(A66>$A$8,"",OFFSET(InputPriceData!$D$15,CalculationsAndCharts!$A66+$A$11,IF($C$5,8,0),1,1))) -> 4183.13 | F66: =IF(A66>$B$30,NA(),IF(A66>$A$8,"",OFFSET(InputPriceData!$E$15,CalculationsAndCharts!$A66+$A$11,IF($C$5,8,0),1,1))) -> 4129.58 | G66: =IF(A66>$B$30,NA(),IF(A66>$A$8,"",OFFSET(InputPriceData!$F$15,CalculationsAndCharts!$A66+$A$11,IF($C$5,8,0),1,1))) -> 4173.85 | H66: 70.63 | I66: 49.47914124 | J66: 51.55 | K66: 0 | L66: 11.87578992 | M66: 13.12291131 | N66: 24.00160881 | O66: 26.52210806 | P66: 2.520499246 | Q66: 50.52371688 | R66: 4.988744697 | S66: 23.4084354 | T66: -1.416899285 | U66: 24.00160881 | V66: 26.52210806 | Y66: 51.55 | Z66: -54.59 | AA66: 51.55 | AB66: 0 | AC66: -1.247121382 | AE66: 2.684887878 | AF66: -3.346916038 | AW66: 3251920000
A67: 35 | B67: =IF(A67>$B$30,NA(),IF($A67>$A$8,"",OFFSET(InputPriceData!$B$15,$A67+$A$11,0,1,1))) -> 2021-05-13 | C67: =IF(A67>$B$30,NA(),IF($A67>$A$8,"",OFFSET(InputPriceData!$G$15,CalculationsAndCharts!$A67+$A$11,IF($C$5,8,0),1,1))) -> 3687780000 | D67: =IF(A67>$B$30,NA(),IF(A67>$A$8,"",OFFSET(InputPriceData!$C$15,CalculationsAndCharts!$A67+$A$11,IF($C$5,8,0),1,1))) -> 4074.99 | E67: =IF(A67>$B$30,NA(),IF(A67>$A$8,"",OFFSET(InputPriceData!$D$15,CalculationsAndCharts!$A67+$A$11,IF($C$5,8,0),1,1))) -> 4131.58 | F67: =IF(A67>$B$30,NA(),IF(A67>$A$8,"",OFFSET(InputPriceData!$E$15,CalculationsAndCharts!$A67+$A$11,IF($C$5,8,0),1,1))) -> 4074.99 | G67: =IF(A67>$B$30,NA(),IF(A67>$A$8,"",OFFSET(InputPriceData!$F$15,CalculationsAndCharts!$A67+$A$11,IF($C$5,8,0),1,1))) -> 4112.5 | H67: 68.54 | I67: 47.8521521 | J67: 0 | K67: 0 | L67: 8.823927611 | M67: 14.13236602 | N67: 18.4399807 | O67: 29.53339694 | P67: 11.09341624 | Q67: 47.97337763 | R67: 23.12410921 | S67: 24.82533469 | T67: -0.1308634979 | U67: 18.4399807 | V67: 29.53339694 | Y67: -3.15 | Z67: -18.11 | AA67: 0 | AB67: 0 | AC67: -5.308438411 | AE67: 3.435553332 | AF67: -2.689086935 | AW67: 3687780000
A68: 36 | B68: =IF(A68>$B$30,NA(),IF($A68>$A$8,"",OFFSET(InputPriceData!$B$15,$A68+$A$11,0,1,1))) -> 2021-05-12 | C68: =IF(A68>$B$30,NA(),IF($A68>$A$8,"",OFFSET(InputPriceData!$G$15,CalculationsAndCharts!$A68+$A$11,IF($C$5,8,0),1,1))) -> 3735080000 | D68: =IF(A68>$B$30,NA(),IF(A68>$A$8,"",OFFSET(InputPriceData!$C$15,CalculationsAndCharts!$A68+$A$11,IF($C$5,8,0),1,1))) -> 4130.55 | E68: =IF(A68>$B$30,NA(),IF(A68>$A$8,"",OFFSET(InputPriceData!$D$15,CalculationsAndCharts!$A68+$A$11,IF($C$5,8,0),1,1))) -> 4134.73 | F68: =IF(A68>$B$30,NA(),IF(A68>$A$8,"",OFFSET(InputPriceData!$E$15,CalculationsAndCharts!$A68+$A$11,IF($C$5,8,0),1,1))) -> 4056.88 | G68: =IF(A68>$B$30,NA(),IF(A68>$A$8,"",OFFSET(InputPriceData!$F$15,CalculationsAndCharts!$A68+$A$11,IF($C$5,8,0),1,1))) -> 4063.04 | H68: 95.22 | I68: 46.26077919 | J68: 0 | K68: 54.65 | L68: 9.502691273 | M68: 15.2194711 | N68: 20.54157202 | O68: 32.89929692 | P68: 12.3577249 | Q68: 53.44086894 | R68: 23.12410921 | S68: 24.95619818 | T68: -0.1409299208 | U68: 20.54157202 | V68: 32.89929692 | Y68: -27.31 | Z68: 54.65 | AA68: 0 | AB68: 54.65 | AC68: -5.716779828 | AE68: 4.038677116 | AF68: -2.049482692 | AX68: 3735080000
A69: 37 | B69: =IF(A69>$B$30,NA(),IF($A69>$A$8,"",OFFSET(InputPriceData!$B$15,$A69+$A$11,0,1,1))) -> 2021-05-11 | C69: =IF(A69>$B$30,NA(),IF($A69>$A$8,"",OFFSET(InputPriceData!$G$15,CalculationsAndCharts!$A69+$A$11,IF($C$5,8,0),1,1))) -> 3593110000 | D69: =IF(A69>$B$30,NA(),IF(A69>$A$8,"",OFFSET(InputPriceData!$C$15,CalculationsAndCharts!$A69+$A$11,IF($C$5,8,0),1,1))) -> 4150.34 | E69: =IF(A69>$B$30,NA(),IF(A69>$A$8,"",OFFSET(InputPriceData!$D$15,CalculationsAndCharts!$A69+$A$11,IF($C$5,8,0),1,1))) -> 4162.04 | F69: =IF(A69>$B$30,NA(),IF(A69>$A$8,"",OFFSET(InputPriceData!$E$15,CalculationsAndCharts!$A69+$A$11,IF($C$5,8,0),1,1))) -> 4111.53 | G69: =IF(A69>$B$30,NA(),IF(A69>$A$8,"",OFFSET(InputPriceData!$F$15,CalculationsAndCharts!$A69+$A$11,IF($C$5,8,0),1,1))) -> 4152.1 | H69: 76.9 | I69: 42.49468528 | J69: 0 | K69: 76.6 | L69: 10.23366753 | M69: 12.18635349 | N69: 24.08222924 | O69: 28.6773591 | P69: 4.595129851 | Q69: 52.75958834 | R69: 8.709563504 | S69: 25.09712811 | T69: -1.260581892 | U69: 24.08222924 | V69: 28.6773591 | Y69: -74.35 | Z69: 76.6 | AA69: 0 | AB69: 76.6 | AC69: -1.952685968 | AE69: 4.498346805 | AF69: -1.639912016 | AW69: 3593110000
A70: 38 | B70: =IF(A70>$B$30,NA(),IF($A70>$A$8,"",OFFSET(InputPriceData!$B$15,$A70+$A$11,0,1,1))) -> 2021-05-10 | C70: =IF(A70>$B$30,NA(),IF($A70>$A$8,"",OFFSET(InputPriceData!$G$15,CalculationsAndCharts!$A70+$A$11,IF($C$5,8,0),1,1))) -> 3678970000 | D70: =IF(A70>$B$30,NA(),IF(A70>$A$8,"",OFFSET(InputPriceData!$C$15,CalculationsAndCharts!$A70+$A$11,IF($C$5,8,0),1,1))) -> 4228.29 | E70: =IF(A70>$B$30,NA(),IF(A70>$A$8,"",OFFSET(InputPriceData!$D$15,CalculationsAndCharts!$A70+$A$11,IF($C$5,8,0),1,1))) -> 4236.39 | F70: =IF(A70>$B$30,NA(),IF(A70>$A$8,"",OFFSET(InputPriceData!$E$15,CalculationsAndCharts!$A70+$A$11,IF($C$5,8,0),1,1))) -> 4188.13 | G70: =IF(A70>$B$30,NA(),IF(A70>$A$8,"",OFFSET(InputPriceData!$F$15,CalculationsAndCharts!$A70+$A$11,IF($C$5,8,0),1,1))) -> 4188.43 | H70: 48.26 | I70: 39.84812261 | J70: 0 | K70: 13.51 | L70: 11.02087272 | M70: 7.231457608 | N70: 27.65719436 | O70: 18.14754908 | P70: 9.509645282 | Q70: 45.80474345 | R70: 20.76126743 | S70: 26.35771 | T70: -0.4304955823 | U70: 27.65719436 | V70: 18.14754908 | Y70: -1.65 | Z70: 13.51 | AA70: 0 | AB70: 13.51 | AC70: 3.789415111 | AE70: 4.866155643 | AF70: -1.427812575 | AX70: 3678970000
A71: 39 | B71: =IF(A71>$B$30,NA(),IF($A71>$A$8,"",OFFSET(InputPriceData!$B$15,$A71+$A$11,0,1,1))) -> 2021-05-07 | C71: =IF(A71>$B$30,NA(),IF($A71>$A$8,"",OFFSET(InputPriceData!$G$15,CalculationsAndCharts!$A71+$A$11,IF($C$5,8,0),1,1))) -> 4013060000 | D71: =IF(A71>$B$30,NA(),IF(A71>$A$8,"",OFFSET(InputPriceData!$C$15,CalculationsAndCharts!$A71+$A$11,IF($C$5,8,0),1,1))) -> 4210.34 | E71: =IF(A71>$B$30,NA(),IF(A71>$A$8,"",OFFSET(InputPriceData!$D$15,CalculationsAndCharts!$A71+$A$11,IF($C$5,8,0),1,1))) -> 4238.04 | F71: =IF(A71>$B$30,NA(),IF(A71>$A$8,"",OFFSET(InputPriceData!$E$15,CalculationsAndCharts!$A71+$A$11,IF($C$5,8,0),1,1))) -> 4201.64 | G71: =IF(A71>$B$30,NA(),IF(A71>$A$8,"",OFFSET(InputPriceData!$F$15,CalculationsAndCharts!$A71+$A$11,IF($C$5,8,0),1,1))) -> 4232.6 | H71: 36.42 | I71: 39.20105511 | J71: 35.34 | K71: 0 | L71: 11.86863216 | M71: 6.748492809 | N71: 30.27630793 | O71: 17.21507952 | P71: 13.06122842 | Q71: 47.49138745 | R71: 27.50230962 | S71: 26.78820558 | T71: 0.05493107973 | U71: 30.27630793 | V71: 17.21507952 | Y71: 35.34 | Z71: -54.31 | AA71: 35.34 | AB71: 0 | AC71: 5.120139351 | AE71: 5.186393606 | AF71: -1.259534189 | AW71: 4013060000
A72: 40 | B72: =IF(A72>$B$30,NA(),IF($A72>$A$8,"",OFFSET(InputPriceData!$B$15,$A72+$A$11,0,1,1))) -> 2021-05-06 | C72: =IF(A72>$B$30,NA(),IF($A72>$A$8,"",OFFSET(InputPriceData!$G$15,CalculationsAndCharts!$A72+$A$11,IF($C$5,8,0),1,1))) -> 4504860000 | D72: =IF(A72>$B$30,NA(),IF(A72>$A$8,"",OFFSET(InputPriceData!$C$15,CalculationsAndCharts!$A72+$A$11,IF($C$5,8,0),1,1))) -> 4169.14 | E72: =IF(A72>$B$30,NA(),IF(A72>$A$8,"",OFFSET(InputPriceData!$D$15,CalculationsAndCharts!$A72+$A$11,IF($C$5,8,0),1,1))) -> 4202.7 | F72: =IF(A72>$B$30,NA(),IF(A72>$A$8,"",OFFSET(InputPriceData!$E$15,CalculationsAndCharts!$A72+$A$11,IF($C$5,8,0),1,1))) -> 4147.33 | G72: =IF(A72>$B$30,NA(),IF(A72>$A$8,"",OFFSET(InputPriceData!$F$15,CalculationsAndCharts!$A72+$A$11,IF($C$5,8,0),1,1))) -> 4201.62 | H72: 55.37 | I72: 39.41498243 | J72: 14.98 | K72: 0 | L72: 10.06314233 | M72: 7.26760764 | N72: 25.53126173 | O72: 18.43869309 | P72: 7.092568645 | Q72: 43.96995482 | R72: 16.13048882 | S72: 26.7332745 | T72: -0.8155988987 | U72: 25.53126173 | V72: 18.43869309 | Y72: 14.98 | Z72: 13.61 | AA72: 14.98 | AB72: 0 | AC72: 2.795534685 | AE72: 5.468889132 | AF72: -1.111932958 | AW72: 4504860000
A73: 41 | B73: =IF(A73>$B$30,NA(),IF($A73>$A$8,"",OFFSET(InputPriceData!$B$15,$A73+$A$11,0,1,1))) -> 2021-05-05 | C73: =IF(A73>$B$30,NA(),IF($A73>$A$8,"",OFFSET(InputPriceData!$G$15,CalculationsAndCharts!$A73+$A$11,IF($C$5,8,0),1,1))) -> 4029050000 | D73: =IF(A73>$B$30,NA(),IF(A73>$A$8,"",OFFSET(InputPriceData!$C$15,CalculationsAndCharts!$A73+$A$11,IF($C$5,8,0),1,1))) -> 4177.06 | E73: =IF(A73>$B$30,NA(),IF(A73>$A$8,"",OFFSET(InputPriceData!$D$15,CalculationsAndCharts!$A73+$A$11,IF($C$5,8,0),1,1))) -> 4187.72 | F73: =IF(A73>$B$30,NA(),IF(A73>$A$8,"",OFFSET(InputPriceData!$E$15,CalculationsAndCharts!$A73+$A$11,IF($C$5,8,0),1,1))) -> 4160.94 | G73: =IF(A73>$B$30,NA(),IF(A73>$A$8,"",OFFSET(InputPriceData!$F$15,CalculationsAndCharts!$A73+$A$11,IF($C$5,8,0),1,1))) -> 4167.59 | H73: 26.78 | I73: 38.18767339 | J73: 8.68 | K73: 0 | L73: 9.684922504 | M73: 7.826654382 | N73: 25.36138404 | O73: 20.49523757 | P73: 4.866146475 | Q73: 45.85662161 | R73: 10.61165499 | S73: 27.5488734 | T73: -1.302862955 | U73: 25.36138404 | V73: 20.49523757 | Y73: 8.68 | Z73: -32.35 | AA73: 8.68 | AB73: 0 | AC73: 1.858268122 | AE73: 5.718279809 | AF73: -1.076888951 | AX73: 4029050000
A74: 42 | B74: =IF(A74>$B$30,NA(),IF($A74>$A$8,"",OFFSET(InputPriceData!$B$15,$A74+$A$11,0,1,1))) -> 2021-05-04 | C74: =IF(A74>$B$30,NA(),IF($A74>$A$8,"",OFFSET(InputPriceData!$G$15,CalculationsAndCharts!$A74+$A$11,IF($C$5,8,0),1,1))) -> 4441080000 | D74: =IF(A74>$B$30,NA(),IF(A74>$A$8,"",OFFSET(InputPriceData!$C$15,CalculationsAndCharts!$A74+$A$11,IF($C$5,8,0),1,1))) -> 4179.04 | E74: =IF(A74>$B$30,NA(),IF(A74>$A$8,"",OFFSET(InputPriceData!$D$15,CalculationsAndCharts!$A74+$A$11,IF($C$5,8,0),1,1))) -> 4179.04 | F74: =IF(A74>$B$30,NA(),IF(A74>$A$8,"",OFFSET(InputPriceData!$E$15,CalculationsAndCharts!$A74+$A$11,IF($C$5,8,0),1,1))) -> 4128.59 | G74: =IF(A74>$B$30,NA(),IF(A74>$A$8,"",OFFSET(InputPriceData!$F$15,CalculationsAndCharts!$A74+$A$11,IF($C$5,8,0),1,1))) -> 4164.66 | H74: 64.07 | I74: 39.06518672 | J74: 0 | K74: 59.44 | L74: 9.762224236 | M74: 8.428704719 | N74: 24.98957526 | O74: 21.57600008 | P74: 3.413575176 | Q74: 46.56557534 | R74: 7.33068399 | S74: 28.85173635 | T74: -1.655465566 | U74: 24.98957526 | V74: 21.57600008 | Y74: -30.35 | Z74: 59.44 | AA74: 0 | AB74: 59.44 | AC74: 1.333519517 | AE74: 5.959810617 | AF74: -1.205060546 | AX74: 4441080000
A75: 43 | B75: =IF(A75>$B$30,NA(),IF($A75>$A$8,"",OFFSET(InputPriceData!$B$15,$A75+$A$11,0,1,1))) -> 2021-05-03 | C75: =IF(A75>$B$30,NA(),IF($A75>$A$8,"",OFFSET(InputPriceData!$G$15,CalculationsAndCharts!$A75+$A$11,IF($C$5,8,0),1,1))) -> 4061170000 | D75: =IF(A75>$B$30,NA(),IF(A75>$A$8,"",OFFSET(InputPriceData!$C$15,CalculationsAndCharts!$A75+$A$11,IF($C$5,8,0),1,1))) -> 4191.98 | E75: =IF(A75>$B$30,NA(),IF(A75>$A$8,"",OFFSET(InputPriceData!$D$15,CalculationsAndCharts!$A75+$A$11,IF($C$5,8,0),1,1))) -> 4209.39 | F75: =IF(A75>$B$30,NA(),IF(A75>$A$8,"",OFFSET(InputPriceData!$E$15,CalculationsAndCharts!$A75+$A$11,IF($C$5,8,0),1,1))) -> 4188.03 | G75: =IF(A75>$B$30,NA(),IF(A75>$A$8,"",OFFSET(InputPriceData!$F$15,CalculationsAndCharts!$A75+$A$11,IF($C$5,8,0),1,1))) -> 4192.66 | H75: 28.22 | I75: 37.14173955 | J75: 11.29 | K75: 0 | L75: 10.51316456 | M75: 4.504758928 | N75: 28.30552551 | O75: 12.12856205 | P75: 16.17696345 | Q75: 40.43408756 | R75: 40.00823175 | S75: 30.50720192 | T75: 0.7308484482 | U75: 28.30552551 | V75: 12.12856205 | Y75: 11.29 | Z75: -13.18 | AA75: 11.29 | AB75: 0 | AC75: 6.008405633 | AE75: 6.230088482 | AF75: -1.49754668 | AW75: 4061170000
A76: 44 | B76: =IF(A76>$B$30,NA(),IF($A76>$A$8,"",OFFSET(InputPriceData!$B$15,$A76+$A$11,0,1,1))) -> 2021-04-30 | C76: =IF(A76>$B$30,NA(),IF($A76>$A$8,"",OFFSET(InputPriceData!$G$15,CalculationsAndCharts!$A76+$A$11,IF($C$5,8,0),1,1))) -> 4273680000 | D76: =IF(A76>$B$30,NA(),IF(A76>$A$8,"",OFFSET(InputPriceData!$C$15,CalculationsAndCharts!$A76+$A$11,IF($C$5,8,0),1,1))) -> 4198.1 | E76: =IF(A76>$B$30,NA(),IF(A76>$A$8,"",OFFSET(InputPriceData!$D$15,CalculationsAndCharts!$A76+$A$11,IF($C$5,8,0),1,1))) -> 4198.1 | F76: =IF(A76>$B$30,NA(),IF(A76>$A$8,"",OFFSET(InputPriceData!$E$15,CalculationsAndCharts!$A76+$A$11,IF($C$5,8,0),1,1))) -> 4174.85 | G76: =IF(A76>$B$30,NA(),IF(A76>$A$8,"",OFFSET(InputPriceData!$F$15,CalculationsAndCharts!$A76+$A$11,IF($C$5,8,0),1,1))) -> 4181.17 | H76: 36.62 | I76: 37.82802721 | J76: 0 | K76: 1.96 | L76: 10.45340799 | M76: 4.851278846 | N76: 27.63402895 | O76: 12.82456211 | P76: 14.80946683 | Q76: 40.45859106 | R76: 36.60401029 | S76: 29.77635347 | T76: 0.5252043704 | U76: 27.63402895 | V76: 12.82456211 | Y76: -20.68 | Z76: 1.96 | AA76: 0 | AB76: 1.96 | AC76: 5.602129143 | AE76: 6.565966809 | AF76: -1.792705164 | AX76: 4273680000
A77: 45 | B77: =IF(A77>$B$30,NA(),IF($A77>$A$8,"",OFFSET(InputPriceData!$B$15,$A77+$A$11,0,1,1))) -> 2021-04-29 | C77: =IF(A77>$B$30,NA(),IF($A77>$A$8,"",OFFSET(InputPriceData!$G$15,CalculationsAndCharts!$A77+$A$11,IF($C$5,8,0),1,1))) -> 4288940000 | D77: =IF(A77>$B$30,NA(),IF(A77>$A$8,"",OFFSET(InputPriceData!$C$15,CalculationsAndCharts!$A77+$A$11,IF($C$5,8,0),1,1))) -> 4206.14 | E77: =IF(A77>$B$30,NA(),IF(A77>$A$8,"",OFFSET(InputPriceData!$D$15,CalculationsAndCharts!$A77+$A$11,IF($C$5,8,0),1,1))) -> 4218.78 | F77: =IF(A77>$B$30,NA(),IF(A77>$A$8,"",OFFSET(InputPriceData!$E$15,CalculationsAndCharts!$A77+$A$11,IF($C$5,8,0),1,1))) -> 4176.81 | G77: =IF(A77>$B$30,NA(),IF(A77>$A$8,"",OFFSET(InputPriceData!$F$15,CalculationsAndCharts!$A77+$A$11,IF($C$5,8,0),1,1))) -> 4211.47 | H77: 41.97 | I77: 37.92095238 | J77: 17.25 | K77: 0 | L77: 11.2575163 | M77: 5.073684911 | N77: 29.68679738 | O77: 13.37963472 | P77: 16.30716266 | Q77: 43.0664321 | R77: 37.86513501 | S77: 29.2511491 | T77: 0.6626143004 | U77: 29.68679738 | V77: 13.37963472 | Y77: 17.25 | Z77: 4.97 | AA77: 17.25 | AB77: 0 | AC77: 6.183831385 | AE77: 6.968044967 | AF77: -1.927834522 | AW77: 4288940000
A78: 46 | B78: =IF(A78>$B$30,NA(),IF($A78>$A$8,"",OFFSET(InputPriceData!$B$15,$A78+$A$11,0,1,1))) -> 2021-04-28 | C78: =IF(A78>$B$30,NA(),IF($A78>$A$8,"",OFFSET(InputPriceData!$G$15,CalculationsAndCharts!$A78+$A$11,IF($C$5,8,0),1,1))) -> 3772390000 | D78: =IF(A78>$B$30,NA(),IF(A78>$A$8,"",OFFSET(InputPriceData!$C$15,CalculationsAndCharts!$A78+$A$11,IF($C$5,8,0),1,1))) -> 4185.14 | E78: =IF(A78>$B$30,NA(),IF(A78>$A$8,"",OFFSET(InputPriceData!$D$15,CalculationsAndCharts!$A78+$A$11,IF($C$5,8,0),1,1))) -> 4201.53 | F78: =IF(A78>$B$30,NA(),IF(A78>$A$8,"",OFFSET(InputPriceData!$E$15,CalculationsAndCharts!$A78+$A$11,IF($C$5,8,0),1,1))) -> 4181.78 | G78: =IF(A78>$B$30,NA(),IF(A78>$A$8,"",OFFSET(InputPriceData!$F$15,CalculationsAndCharts!$A78+$A$11,IF($C$5,8,0),1,1))) -> 4183.18 | H78: 19.75 | I78: 37.60948717 | J78: 8.18 | K78: 0 | L78: 10.79655601 | M78: 5.463968365 | N78: 28.7070014 | O78: 14.52816503 | P78: 14.17883637 | Q78: 43.23516644 | R78: 32.79468437 | S78: 28.5885348 | T78: 0.3235499666 | U78: 28.7070014 | V78: 14.52816503 | Y78: 8.18 | Z78: -5.56 | AA78: 8.18 | AB78: 0 | AC78: 5.332587646 | AE78: 7.40043071 | AF78: -1.843187555 | AX78: 3772390000
A79: 47 | B79: =IF(A79>$B$30,NA(),IF($A79>$A$8,"",OFFSET(InputPriceData!$B$15,$A79+$A$11,0,1,1))) -> 2021-04-27 | C79: =IF(A79>$B$30,NA(),IF($A79>$A$8,"",OFFSET(InputPriceData!$G$15,CalculationsAndCharts!$A79+$A$11,IF($C$5,8,0),1,1))) -> 3703240000 | D79: =IF(A79>$B$30,NA(),IF(A79>$A$8,"",OFFSET(InputPriceData!$C$15,CalculationsAndCharts!$A79+$A$11,IF($C$5,8,0),1,1))) -> 4188.25 | E79: =IF(A79>$B$30,NA(),IF(A79>$A$8,"",OFFSET(InputPriceData!$D$15,CalculationsAndCharts!$A79+$A$11,IF($C$5,8,0),1,1))) -> 4193.35 | F79: =IF(A79>$B$30,NA(),IF(A79>$A$8,"",OFFSET(InputPriceData!$E$15,CalculationsAndCharts!$A79+$A$11,IF($C$5,8,0),1,1))) -> 4176.22 | G79: =IF(A79>$B$30,NA(),IF(A79>$A$8,"",OFFSET(InputPriceData!$F$15,CalculationsAndCharts!$A79+$A$11,IF($C$5,8,0),1,1))) -> 4186.72 | H79: 17.13 | I79: 38.98329388 | J79: 0 | K79: 6.14 | L79: 10.99782955 | M79: 5.884273624 | N79: 28.21164775 | O79: 15.09434693 | P79: 13.11730082 | Q79: 43.30599468 | R79: 30.28980378 | S79: 28.26498483 | T79: 0.1557553037 | U79: 28.21164775 | V79: 15.09434693 | Y79: -0.84 | Z79: 6.14 | AA79: 0 | AB79: 6.14 | AC79: 5.113555926 | AE79: 7.813831347 | AF79: -1.500738335 | AX79: 3703240000
A80: 48 | B80: =IF(A80>$B$30,NA(),IF($A80>$A$8,"",OFFSET(InputPriceData!$B$15,$A80+$A$11,0,1,1))) -> 2021-04-26 | C80: =IF(A80>$B$30,NA(),IF($A80>$A$8,"",OFFSET(InputPriceData!$G$15,CalculationsAndCharts!$A80+$A$11,IF($C$5,8,0),1,1))) -> 3738920000 | D80: =IF(A80>$B$30,NA(),IF(A80>$A$8,"",OFFSET(InputPriceData!$C$15,CalculationsAndCharts!$A80+$A$11,IF($C$5,8,0),1,1))) -> 4185.03 | E80: =IF(A80>$B$30,NA(),IF(A80>$A$8,"",OFFSET(InputPriceData!$D$15,CalculationsAndCharts!$A80+$A$11,IF($C$5,8,0),1,1))) -> 4194.19 | F80: =IF(A80>$B$30,NA(),IF(A80>$A$8,"",OFFSET(InputPriceData!$E$15,CalculationsAndCharts!$A80+$A$11,IF($C$5,8,0),1,1))) -> 4182.36 | G80: =IF(A80>$B$30,NA(),IF(A80>$A$8,"",OFFSET(InputPriceData!$F$15,CalculationsAndCharts!$A80+$A$11,IF($C$5,8,0),1,1))) -> 4187.62 | H80: 14.02 | I80: 40.66431649 | J80: 0.02 | K80: 0 | L80: 11.84381644 | M80: 5.864602365 | N80: 29.125822 | O80: 14.42198682 | P80: 14.70383518 | Q80: 43.54780882 | R80: 33.76481063 | S80: 28.10922953 | T80: 0.4350446998 | U80: 29.125822 | V80: 14.42198682 | Y80: 0.02 | Z80: -43.58 | AA80: 0.02 | AB80: 0 | AC80: 5.979214074 | AE80: 8.150425517 | AF80: -0.9848830747 | AW80: 3738920000
A81: 49 | B81: =IF(A81>$B$30,NA(),IF($A81>$A$8,"",OFFSET(InputPriceData!$B$15,$A81+$A$11,0,1,1))) -> 2021-04-23 | C81: =IF(A81>$B$30,NA(),IF($A81>$A$8,"",OFFSET(InputPriceData!$G$15,CalculationsAndCharts!$A81+$A$11,IF($C$5,8,0),1,1))) -> 3568080000 | D81: =IF(A81>$B$30,NA(),IF(A81>$A$8,"",OFFSET(InputPriceData!$C$15,CalculationsAndCharts!$A81+$A$11,IF($C$5,8,0),1,1))) -> 4138.78 | E81: =IF(A81>$B$30,NA(),IF(A81>$A$8,"",OFFSET(InputPriceData!$D$15,CalculationsAndCharts!$A81+$A$11,IF($C$5,8,0),1,1))) -> 4194.17 | F81: =IF(A81>$B$30,NA(),IF(A81>$A$8,"",OFFSET(InputPriceData!$E$15,CalculationsAndCharts!$A81+$A$11,IF($C$5,8,0),1,1))) -> 4138.78 | G81: =IF(A81>$B$30,NA(),IF(A81>$A$8,"",OFFSET(InputPriceData!$F$15,CalculationsAndCharts!$A81+$A$11,IF($C$5,8,0),1,1))) -> 4180.17 | H81: 59.19 | I81: 42.71387929 | J81: 14.6 | K81: 0 | L81: 12.75334078 | M81: 6.315725624 | N81: 29.85760364 | O81: 14.78612041 | P81: 15.07148324 | Q81: 44.64372405 | R81: 33.75946688 | S81: 27.67418483 | T81: 0.4680986191 | U81: 29.85760364 | V81: 14.78612041 | Y81: 14.6 | Z81: -15.09 | AA81: 14.6 | AB81: 0 | AC81: 6.437615157 | AE81: 8.37132072 | AF81: -0.3899176791 | AW81: 3568080000
A82: 50 | B82: =IF(A82>$B$30,NA(),IF($A82>$A$8,"",OFFSET(InputPriceData!$B$15,$A82+$A$11,0,1,1))) -> 2021-04-22 | C82: =IF(A82>$B$30,NA(),IF($A82>$A$8,"",OFFSET(InputPriceData!$G$15,CalculationsAndCharts!$A82+$A$11,IF($C$5,8,0),1,1))) -> 4235040000 | D82: =IF(A82>$B$30,NA(),IF(A82>$A$8,"",OFFSET(InputPriceData!$C$15,CalculationsAndCharts!$A82+$A$11,IF($C$5,8,0),1,1))) -> 4170.46 | E82: =IF(A82>$B$30,NA(),IF(A82>$A$8,"",OFFSET(InputPriceData!$D$15,CalculationsAndCharts!$A82+$A$11,IF($C$5,8,0),1,1))) -> 4179.57 | F82: =IF(A82>$B$30,NA(),IF(A82>$A$8,"",OFFSET(InputPriceData!$E$15,CalculationsAndCharts!$A82+$A$11,IF($C$5,8,0),1,1))) -> 4123.69 | G82: =IF(A82>$B$30,NA(),IF(A82>$A$8,"",OFFSET(InputPriceData!$F$15,CalculationsAndCharts!$A82+$A$11,IF($C$5,8,0),1,1))) -> 4134.98 | H82: 55.88 | I82: 41.44648539 | J82: 4.55 | K82: 0 | L82: 12.61129007 | M82: 6.801550671 | N82: 30.4278878 | O82: 16.41044013 | P82: 14.01744767 | Q82: 46.83832793 | R82: 29.92730161 | S82: 27.20608621 | T82: 0.2093242612 | U82: 30.4278878 | V82: 16.41044013 | Y82: 4.55 | Z82: 2.66 | AA82: 4.55 | AB82: 0 | AC82: 5.8097394 | AE82: 8.458773686 | AF82: 0.3160411507 | AX82: 4235040000
A83: 51 | B83: =IF(A83>$B$30,NA(),IF($A83>$A$8,"",OFFSET(InputPriceData!$B$15,$A83+$A$11,0,1,1))) -> 2021-04-21 | C83: =IF(A83>$B$30,NA(),IF($A83>$A$8,"",OFFSET(InputPriceData!$G$15,CalculationsAndCharts!$A83+$A$11,IF($C$5,8,0),1,1))) -> 3865820000 | D83: =IF(A83>$B$30,NA(),IF(A83>$A$8,"",OFFSET(InputPriceData!$C$15,CalculationsAndCharts!$A83+$A$11,IF($C$5,8,0),1,1))) -> 4128.42 | E83: =IF(A83>$B$30,NA(),IF(A83>$A$8,"",OFFSET(InputPriceData!$D$15,CalculationsAndCharts!$A83+$A$11,IF($C$5,8,0),1,1))) -> 4175.02 | F83: =IF(A83>$B$30,NA(),IF(A83>$A$8,"",OFFSET(InputPriceData!$E$15,CalculationsAndCharts!$A83+$A$11,IF($C$5,8,0),1,1))) -> 4126.35 | G83: =IF(A83>$B$30,NA(),IF(A83>$A$8,"",OFFSET(InputPriceData!$F$15,CalculationsAndCharts!$A83+$A$11,IF($C$5,8,0),1,1))) -> 4173.42 | H83: 48.67 | I83: 40.33621504 | J83: 15.84 | K83: 0 | L83: 13.23138931 | M83: 7.324746877 | N83: 32.80275379 | O83: 18.15923202 | P83: 14.64352177 | Q83: 50.96198581 | R83: 28.73420558 | S83: 26.99676195 | T83: 0.1336495099 | U83: 32.80275379 | V83: 18.15923202 | Y83: 15.84 | Z83: -7.97 | AA83: 15.84 | AB83: 0 | AC83: 5.90664243 | AE83: 8.38789017 | AF83: 1.161328878 | AW83: 3865820000
A84: 52 | B84: =IF(A84>$B$30,NA(),IF($A84>$A$8,"",OFFSET(InputPriceData!$B$15,$A84+$A$11,0,1,1))) -> 2021-04-20 | C84: =IF(A84>$B$30,NA(),IF($A84>$A$8,"",OFFSET(InputPriceData!$G$15,CalculationsAndCharts!$A84+$A$11,IF($C$5,8,0),1,1))) -> 4338230000 | D84: =IF(A84>$B$30,NA(),IF(A84>$A$8,"",OFFSET(InputPriceData!$C$15,CalculationsAndCharts!$A84+$A$11,IF($C$5,8,0),1,1))) -> 4159.18 | E84: =IF(A84>$B$30,NA(),IF(A84>$A$8,"",OFFSET(InputPriceData!$D$15,CalculationsAndCharts!$A84+$A$11,IF($C$5,8,0),1,1))) -> 4159.18 | F84: =IF(A84>$B$30,NA(),IF(A84>$A$8,"",OFFSET(InputPriceData!$E$15,CalculationsAndCharts!$A84+$A$11,IF($C$5,8,0),1,1))) -> 4118.38 | G84: =IF(A84>$B$30,NA(),IF(A84>$A$8,"",OFFSET(InputPriceData!$F$15,CalculationsAndCharts!$A84+$A$11,IF($C$5,8,0),1,1))) -> 4134.94 | H84: 44.88 | I84: 39.69515466 | J84: 0 | K84: 32.09 | L84: 13.03072695 | M84: 7.888188944 | N84: 32.82699629 | O84: 19.87191891 | P84: 12.95507738 | Q84: 52.6989152 | R84: 24.58319556 | S84: 26.86311244 | T84: -0.1753782218 | U84: 32.82699629 | V84: 19.87191891 | Y84: -21.63 | Z84: 32.09 | AA84: 0 | AB84: 32.09 | AC84: 5.142538002 | AE84: 8.127420693 | AF84: 2.080870551 | AX84: 4338230000
A85: 53 | B85: =IF(A85>$B$30,NA(),IF($A85>$A$8,"",OFFSET(InputPriceData!$B$15,$A85+$A$11,0,1,1))) -> 2021-04-19 | C85: =IF(A85>$B$30,NA(),IF($A85>$A$8,"",OFFSET(InputPriceData!$G$15,CalculationsAndCharts!$A85+$A$11,IF($C$5,8,0),1,1))) -> 3788020000 | D85: =IF(A85>$B$30,NA(),IF(A85>$A$8,"",OFFSET(InputPriceData!$C$15,CalculationsAndCharts!$A85+$A$11,IF($C$5,8,0),1,1))) -> 4179.8 | E85: =IF(A85>$B$30,NA(),IF(A85>$A$8,"",OFFSET(InputPriceData!$D$15,CalculationsAndCharts!$A85+$A$11,IF($C$5,8,0),1,1))) -> 4180.81 | F85: =IF(A85>$B$30,NA(),IF(A85>$A$8,"",OFFSET(InputPriceData!$E$15,CalculationsAndCharts!$A85+$A$11,IF($C$5,8,0),1,1))) -> 4150.47 | G85: =IF(A85>$B$30,NA(),IF(A85>$A$8,"",OFFSET(InputPriceData!$F$15,CalculationsAndCharts!$A85+$A$11,IF($C$5,8,0),1,1))) -> 4163.26 | H85: 35 | I85: 39.2963204 | J85: 0 | K85: 20.28 | L85: 14.03309056 | M85: 6.026511171 | N85: 35.71095312 | O85: 15.33606992 | P85: 20.37488321 | Q85: 51.04702304 | R85: 39.91394991 | S85: 27.03849066 | T85: 0.9904199424 | U85: 35.71095312 | V85: 15.33606992 | Y85: -10.5 | Z85: 20.28 | AA85: 0 | AB85: 20.28 | AC85: 8.006579387 | AE85: 7.660711156 | AF85: 2.948707651 | AX85: 3788020000
A86: 54 | B86: =IF(A86>$B$30,NA(),IF($A86>$A$8,"",OFFSET(InputPriceData!$B$15,$A86+$A$11,0,1,1))) -> 2021-04-16 | C86: =IF(A86>$B$30,NA(),IF($A86>$A$8,"",OFFSET(InputPriceData!$G$15,CalculationsAndCharts!$A86+$A$11,IF($C$5,8,0),1,1))) -> 4157430000 | D86: =IF(A86>$B$30,NA(),IF(A86>$A$8,"",OFFSET(InputPriceData!$C$15,CalculationsAndCharts!$A86+$A$11,IF($C$5,8,0),1,1))) -> 4174.14 | E86: =IF(A86>$B$30,NA(),IF(A86>$A$8,"",OFFSET(InputPriceData!$D$15,CalculationsAndCharts!$A86+$A$11,IF($C$5,8,0),1,1))) -> 4191.31 | F86: =IF(A86>$B$30,NA(),IF(A86>$A$8,"",OFFSET(InputPriceData!$E$15,CalculationsAndCharts!$A86+$A$11,IF($C$5,8,0),1,1))) -> 4170.75 | G86: =IF(A86>$B$30,NA(),IF(A86>$A$8,"",OFFSET(InputPriceData!$F$15,CalculationsAndCharts!$A86+$A$11,IF($C$5,8,0),1,1))) -> 4185.47 | H86: 20.89 | I86: 39.62680658 | J86: 17.82 | K86: 0 | L86: 15.11255906 | M86: 4.930088953 | N86: 38.13721156 | O86: 12.44129764 | P86: 25.69591392 | Q86: 50.5785092 | R86: 50.80401602 | S86: 26.04807072 | T86: 1.904303485 | U86: 38.13721156 | V86: 12.44129764 | Y86: 17.82 | Z86: -30.99 | AA86: 17.82 | AB86: 0 | AC86: 10.18247011 | AE86: 6.999358154 | AF86: 3.677800561 | AW86: 4157430000
A87: 55 | B87: =IF(A87>$B$30,NA(),IF($A87>$A$8,"",OFFSET(InputPriceData!$B$15,$A87+$A$11,0,1,1))) -> 2021-04-15 | C87: =IF(A87>$B$30,NA(),IF($A87>$A$8,"",OFFSET(InputPriceData!$G$15,CalculationsAndCharts!$A87+$A$11,IF($C$5,8,0),1,1))) -> 4027680000 | D87: =IF(A87>$B$30,NA(),IF(A87>$A$8,"",OFFSET(InputPriceData!$C$15,CalculationsAndCharts!$A87+$A$11,IF($C$5,8,0),1,1))) -> 4139.76 | E87: =IF(A87>$B$30,NA(),IF(A87>$A$8,"",OFFSET(InputPriceData!$D$15,CalculationsAndCharts!$A87+$A$11,IF($C$5,8,0),1,1))) -> 4173.49 | F87: =IF(A87>$B$30,NA(),IF(A87>$A$8,"",OFFSET(InputPriceData!$E$15,CalculationsAndCharts!$A87+$A$11,IF($C$5,8,0),1,1))) -> 4139.76 | G87: =IF(A87>$B$30,NA(),IF(A87>$A$8,"",OFFSET(InputPriceData!$F$15,CalculationsAndCharts!$A87+$A$11,IF($C$5,8,0),1,1))) -> 4170.42 | H87: 48.83 | I87: 41.0680994 | J87: 21.8 | K87: 0 | L87: 14.90429437 | M87: 5.309326565 | N87: 36.29165847 | O87: 12.92810391 | P87: 23.36355456 | Q87: 49.21976238 | R87: 47.46783289 | S87: 24.14376724 | T87: 1.794158897 | U87: 36.29165847 | V87: 12.92810391 | Y87: 21.8 | Z87: -18.89 | AA87: 21.8 | AB87: 0 | AC87: 9.59496781 | AE87: 6.174480028 | AF87: 4.397283808 | AW87: 4027680000
A88: 56 | B88: =IF(A88>$B$30,NA(),IF($A88>$A$8,"",OFFSET(InputPriceData!$B$15,$A88+$A$11,0,1,1))) -> 2021-04-14 | C88: =IF(A88>$B$30,NA(),IF($A88>$A$8,"",OFFSET(InputPriceData!$G$15,CalculationsAndCharts!$A88+$A$11,IF($C$5,8,0),1,1))) -> 3976540000 | D88: =IF(A88>$B$30,NA(),IF(A88>$A$8,"",OFFSET(InputPriceData!$C$15,CalculationsAndCharts!$A88+$A$11,IF($C$5,8,0),1,1))) -> 4141.58 | E88: =IF(A88>$B$30,NA(),IF(A88>$A$8,"",OFFSET(InputPriceData!$D$15,CalculationsAndCharts!$A88+$A$11,IF($C$5,8,0),1,1))) -> 4151.69 | F88: =IF(A88>$B$30,NA(),IF(A88>$A$8,"",OFFSET(InputPriceData!$E$15,CalculationsAndCharts!$A88+$A$11,IF($C$5,8,0),1,1))) -> 4120.87 | G88: =IF(A88>$B$30,NA(),IF(A88>$A$8,"",OFFSET(InputPriceData!$F$15,CalculationsAndCharts!$A88+$A$11,IF($C$5,8,0),1,1))) -> 4124.66 | H88: 30.82 | I88: 40.47103012 | J88: 3.69 | K88: 0 | L88: 14.37385548 | M88: 5.717736301 | N88: 35.51640627 | O88: 14.12797323 | P88: 21.38843304 | Q88: 49.6443795 | R88: 43.08329212 | S88: 22.34960834 | T88: 1.594898753 | U88: 35.51640627 | V88: 14.12797323 | Y88: 3.69 | Z88: 3.56 | AA88: 3.69 | AB88: 0 | AC88: 8.656119179 | AE88: 5.188232088 | AF88: 5.081416494 | AX88: 3976540000
A89: 57 | B89: =IF(A89>$B$30,NA(),IF($A89>$A$8,"",OFFSET(InputPriceData!$B$15,$A89+$A$11,0,1,1))) -> 2021-04-13 | C89: =IF(A89>$B$30,NA(),IF($A89>$A$8,"",OFFSET(InputPriceData!$G$15,CalculationsAndCharts!$A89+$A$11,IF($C$5,8,0),1,1))) -> 3728440000 | D89: =IF(A89>$B$30,NA(),IF(A89>$A$8,"",OFFSET(InputPriceData!$C$15,CalculationsAndCharts!$A89+$A$11,IF($C$5,8,0),1,1))) -> 4130.1 | E89: =IF(A89>$B$30,NA(),IF(A89>$A$8,"",OFFSET(InputPriceData!$D$15,CalculationsAndCharts!$A89+$A$11,IF($C$5,8,0),1,1))) -> 4148 | F89: =IF(A89>$B$30,NA(),IF(A89>$A$8,"",OFFSET(InputPriceData!$E$15,CalculationsAndCharts!$A89+$A$11,IF($C$5,8,0),1,1))) -> 4124.43 | G89: =IF(A89>$B$30,NA(),IF(A89>$A$8,"",OFFSET(InputPriceData!$F$15,CalculationsAndCharts!$A89+$A$11,IF($C$5,8,0),1,1))) -> 4141.59 | H89: 23.57 | I89: 41.21341705 | J89: 16.24 | K89: 0 | L89: 15.19569052 | M89: 6.15756217 | N89: 36.87073677 | O89: 14.94067372 | P89: 21.93006306 | Q89: 51.81141049 | R89: 42.32670535 | S89: 20.75470959 | T89: 1.659384289 | U89: 36.87073677 | V89: 14.94067372 | Y89: 16.24 | Z89: -9.61 | AA89: 16.24 | AB89: 0 | AC89: 9.038128347 | AE89: 4.04854296 | AF89: 5.49433239 | AW89: 3728440000
A90: 58 | B90: =IF(A90>$B$30,NA(),IF($A90>$A$8,"",OFFSET(InputPriceData!$B$15,$A90+$A$11,0,1,1))) -> 2021-04-12 | C90: =IF(A90>$B$30,NA(),IF($A90>$A$8,"",OFFSET(InputPriceData!$G$15,CalculationsAndCharts!$A90+$A$11,IF($C$5,8,0),1,1))) -> 3578500000 | D90: =IF(A90>$B$30,NA(),IF(A90>$A$8,"",OFFSET(InputPriceData!$C$15,CalculationsAndCharts!$A90+$A$11,IF($C$5,8,0),1,1))) -> 4124.71 | E90: =IF(A90>$B$30,NA(),IF(A90>$A$8,"",OFFSET(InputPriceData!$D$15,CalculationsAndCharts!$A90+$A$11,IF($C$5,8,0),1,1))) -> 4131.76 | F90: =IF(A90>$B$30,NA(),IF(A90>$A$8,"",OFFSET(InputPriceData!$E$15,CalculationsAndCharts!$A90+$A$11,IF($C$5,8,0),1,1))) -> 4114.82 | G90: =IF(A90>$B$30,NA(),IF(A90>$A$8,"",OFFSET(InputPriceData!$F$15,CalculationsAndCharts!$A90+$A$11,IF($C$5,8,0),1,1))) -> 4127.99 | H90: 16.94 | I90: 42.57060298 | J90: 2.28 | K90: 0 | L90: 15.11535902 | M90: 6.631220799 | N90: 35.50656547 | O90: 15.57699524 | P90: 19.92957023 | Q90: 51.08356071 | R90: 39.01366694 | S90: 19.0953253 | T90: 1.532180126 | U90: 35.50656547 | V90: 15.57699524 | Y90: 2.28 | Z90: -19.31 | AA90: 2.28 | AB90: 0 | AC90: 8.48413822 | AE90: 2.816242695 | AF90: 5.511374167 | AW90: 3578500000
A91: 59 | B91: =IF(A91>$B$30,NA(),IF($A91>$A$8,"",OFFSET(InputPriceData!$B$15,$A91+$A$11,0,1,1))) -> 2021-04-09 | C91: =IF(A91>$B$30,NA(),IF($A91>$A$8,"",OFFSET(InputPriceData!$G$15,CalculationsAndCharts!$A91+$A$11,IF($C$5,8,0),1,1))) -> 3634910000 | D91: =IF(A91>$B$30,NA(),IF(A91>$A$8,"",OFFSET(InputPriceData!$C$15,CalculationsAndCharts!$A91+$A$11,IF($C$5,8,0),1,1))) -> 4096.11 | E91: =IF(A91>$B$30,NA(),IF(A91>$A$8,"",OFFSET(InputPriceData!$D$15,CalculationsAndCharts!$A91+$A$11,IF($C$5,8,0),1,1))) -> 4129.48 | F91: =IF(A91>$B$30,NA(),IF(A91>$A$8,"",OFFSET(InputPriceData!$E$15,CalculationsAndCharts!$A91+$A$11,IF($C$5,8,0),1,1))) -> 4095.51 | G91: =IF(A91>$B$30,NA(),IF(A91>$A$8,"",OFFSET(InputPriceData!$F$15,CalculationsAndCharts!$A91+$A$11,IF($C$5,8,0),1,1))) -> 4128.8 | H91: 33.97 | I91: 44.54218783 | J91: 31.29 | K91: 0 | L91: 16.10269433 | M91: 7.141314706 | N91: 36.15155679 | O91: 16.03269856 | P91: 20.11885823 | Q91: 52.18425535 | R91: 38.55350258 | S91: 17.56314517 | T91: 1.614642877 | U91: 36.15155679 | V91: 16.03269856 | Y91: 31.29 | Z91: -12.97 | AA91: 31.29 | AB91: 0 | AC91: 8.961379622 | AE91: 1.580120204 | AF91: 5.15773218 | AW91: 3634910000
A92: 60 | B92: =IF(A92>$B$30,NA(),IF($A92>$A$8,"",OFFSET(InputPriceData!$B$15,$A92+$A$11,0,1,1))) -> 2021-04-08 | C92: =IF(A92>$B$30,NA(),IF($A92>$A$8,"",OFFSET(InputPriceData!$G$15,CalculationsAndCharts!$A92+$A$11,IF($C$5,8,0),1,1))) -> 3901910000 | D92: =IF(A92>$B$30,NA(),IF(A92>$A$8,"",OFFSET(InputPriceData!$C$15,CalculationsAndCharts!$A92+$A$11,IF($C$5,8,0),1,1))) -> 4089.95 | E92: =IF(A92>$B$30,NA(),IF(A92>$A$8,"",OFFSET(InputPriceData!$D$15,CalculationsAndCharts!$A92+$A$11,IF($C$5,8,0),1,1))) -> 4098.19 | F92: =IF(A92>$B$30,NA(),IF(A92>$A$8,"",OFFSET(InputPriceData!$E$15,CalculationsAndCharts!$A92+$A$11,IF($C$5,8,0),1,1))) -> 4082.54 | G92: =IF(A92>$B$30,NA(),IF(A92>$A$8,"",OFFSET(InputPriceData!$F$15,CalculationsAndCharts!$A92+$A$11,IF($C$5,8,0),1,1))) -> 4097.17 | H92: 18.24 | I92: 45.35543304 | J92: 15.06 | K92: 0 | L92: 14.93444005 | M92: 7.690646607 | N92: 32.92756577 | O92: 16.9563955 | P92: 15.97117027 | Q92: 49.88396127 | R92: 32.01664396 | S92: 15.94850229 | T92: 1.236010897 | U92: 32.92756577 | V92: 16.9563955 | Y92: 15.06 | Z92: -14.23 | AA92: 15.06 | AB92: 0 | AC92: 7.243793439 | AE92: 0.4233145576 | AF92: 4.504870825 | AW92: 3901910000
A93: 61 | B93: =IF(A93>$B$30,NA(),IF($A93>$A$8,"",OFFSET(InputPriceData!$B$15,$A93+$A$11,0,1,1))) -> 2021-04-07 | C93: =IF(A93>$B$30,NA(),IF($A93>$A$8,"",OFFSET(InputPriceData!$G$15,CalculationsAndCharts!$A93+$A$11,IF($C$5,8,0),1,1))) -> 4112640000 | D93: =IF(A93>$B$30,NA(),IF(A93>$A$8,"",OFFSET(InputPriceData!$C$15,CalculationsAndCharts!$A93+$A$11,IF($C$5,8,0),1,1))) -> 4074.29 | E93: =IF(A93>$B$30,NA(),IF(A93>$A$8,"",OFFSET(InputPriceData!$D$15,CalculationsAndCharts!$A93+$A$11,IF($C$5,8,0),1,1))) -> 4083.13 | F93: =IF(A93>$B$30,NA(),IF(A93>$A$8,"",OFFSET(InputPriceData!$E$15,CalculationsAndCharts!$A93+$A$11,IF($C$5,8,0),1,1))) -> 4068.31 | G93: =IF(A93>$B$30,NA(),IF(A93>$A$8,"",OFFSET(InputPriceData!$F$15,CalculationsAndCharts!$A93+$A$11,IF($C$5,8,0),1,1))) -> 4079.95 | H93: 14.82 | I93: 47.44123559 | J93: 0 | K93: 0 | L93: 14.92478159 | M93: 8.282234807 | N93: 31.45951281 | O93: 17.45788175 | P93: 14.00163107 | Q93: 48.91739456 | R93: 28.62301068 | S93: 14.7124914 | T93: 1.070039945 | U93: 31.45951281 | V93: 17.45788175 | Y93: -3.1 | Z93: -0.17 | AA93: 0 | AB93: 0 | AC93: 6.64254678 | AE93: -0.5870636133 | AF93: 3.548059909 | AW93: 4112640000
A94: 62 | B94: =IF(A94>$B$30,NA(),IF($A94>$A$8,"",OFFSET(InputPriceData!$B$15,$A94+$A$11,0,1,1))) -> 2021-04-06 | C94: =IF(A94>$B$30,NA(),IF($A94>$A$8,"",OFFSET(InputPriceData!$G$15,CalculationsAndCharts!$A94+$A$11,IF($C$5,8,0),1,1))) -> 4027880000 | D94: =IF(A94>$B$30,NA(),IF(A94>$A$8,"",OFFSET(InputPriceData!$C$15,CalculationsAndCharts!$A94+$A$11,IF($C$5,8,0),1,1))) -> 4075.57 | E94: =IF(A94>$B$30,NA(),IF(A94>$A$8,"",OFFSET(InputPriceData!$D$15,CalculationsAndCharts!$A94+$A$11,IF($C$5,8,0),1,1))) -> 4086.23 | F94: =IF(A94>$B$30,NA(),IF(A94>$A$8,"",OFFSET(InputPriceData!$E$15,CalculationsAndCharts!$A94+$A$11,IF($C$5,8,0),1,1))) -> 4068.14 | G94: =IF(A94>$B$30,NA(),IF(A94>$A$8,"",OFFSET(InputPriceData!$F$15,CalculationsAndCharts!$A94+$A$11,IF($C$5,8,0),1,1))) -> 4073.94 | H94: 18.09 | I94: 49.9505614 | J94: 2.81 | K94: 0 | L94: 16.07284171 | M94: 8.919329792 | N94: 32.17749963 | O94: 17.85631541 | P94: 14.32118422 | Q94: 50.03381504 | R94: 28.62301068 | S94: 13.64245145 | T94: 1.15235071 | U94: 32.17749963 | V94: 17.85631541 | Y94: 2.81 | Z94: -33.7 | AA94: 2.81 | AB94: 0 | AC94: 7.153511917 | AE94: -1.382842764 | AF94: 2.31348561 | AX94: 4027880000
A95: 63 | B95: =IF(A95>$B$30,NA(),IF($A95>$A$8,"",OFFSET(InputPriceData!$B$15,$A95+$A$11,0,1,1))) -> 2021-04-05 | C95: =IF(A95>$B$30,NA(),IF($A95>$A$8,"",OFFSET(InputPriceData!$G$15,CalculationsAndCharts!$A95+$A$11,IF($C$5,8,0),1,1))) -> 3999760000 | D95: =IF(A95>$B$30,NA(),IF(A95>$A$8,"",OFFSET(InputPriceData!$C$15,CalculationsAndCharts!$A95+$A$11,IF($C$5,8,0),1,1))) -> 4034.44 | E95: =IF(A95>$B$30,NA(),IF(A95>$A$8,"",OFFSET(InputPriceData!$D$15,CalculationsAndCharts!$A95+$A$11,IF($C$5,8,0),1,1))) -> 4083.42 | F95: =IF(A95>$B$30,NA(),IF(A95>$A$8,"",OFFSET(InputPriceData!$E$15,CalculationsAndCharts!$A95+$A$11,IF($C$5,8,0),1,1))) -> 4034.44 | G95: =IF(A95>$B$30,NA(),IF(A95>$A$8,"",OFFSET(InputPriceData!$F$15,CalculationsAndCharts!$A95+$A$11,IF($C$5,8,0),1,1))) -> 4077.91 | H95: 63.55 | I95: 52.40137381 | J95: 62.79 | K95: 0 | L95: 17.0930603 | M95: 9.605432084 | N95: 32.61948888 | O95: 18.33049667 | P95: 14.2889922 | Q95: 50.94998555 | R95: 28.04513495 | S95: 12.49010074 | T95: 1.196541093 | U95: 32.61948888 | V95: 18.33049667 | Y95: 62.79 | Z95: -41.66 | AA95: 62.79 | AB95: 0 | AC95: 7.487628218 | AE95: -1.901724537 | AF95: 0.997349169 | AW95: 3999760000
A96: 64 | B96: =IF(A96>$B$30,NA(),IF($A96>$A$8,"",OFFSET(InputPriceData!$B$15,$A96+$A$11,0,1,1))) -> 2021-04-01 | C96: =IF(A96>$B$30,NA(),IF($A96>$A$8,"",OFFSET(InputPriceData!$G$15,CalculationsAndCharts!$A96+$A$11,IF($C$5,8,0),1,1))) -> 4151240000 | D96: =IF(A96>$B$30,NA(),IF(A96>$A$8,"",OFFSET(InputPriceData!$C$15,CalculationsAndCharts!$A96+$A$11,IF($C$5,8,0),1,1))) -> 3992.78 | E96: =IF(A96>$B$30,NA(),IF(A96>$A$8,"",OFFSET(InputPriceData!$D$15,CalculationsAndCharts!$A96+$A$11,IF($C$5,8,0),1,1))) -> 4020.63 | F96: =IF(A96>$B$30,NA(),IF(A96>$A$8,"",OFFSET(InputPriceData!$E$15,CalculationsAndCharts!$A96+$A$11,IF($C$5,8,0),1,1))) -> 3992.78 | G96: =IF(A96>$B$30,NA(),IF(A96>$A$8,"",OFFSET(InputPriceData!$F$15,CalculationsAndCharts!$A96+$A$11,IF($C$5,8,0),1,1))) -> 4019.87 | H96: 47.74 | I96: 51.54378719 | J96: 26.22 | K96: 0 | L96: 13.57791109 | M96: 10.34431148 | N96: 26.34247857 | O96: 20.06897832 | P96: 6.273500253 | Q96: 46.41145689 | R96: 13.51713709 | S96: 11.29355965 | T96: 0.1710444185 | U96: 26.34247857 | V96: 20.06897832 | Y96: 26.22 | Z96: -25.8 | AA96: 26.22 | AB96: 0 | AC96: 3.23359962 | AE96: -2.125415708 | AF96: -0.08257335664 | AW96: 4151240000
A97: 65 | B97: =IF(A97>$B$30,NA(),IF($A97>$A$8,"",OFFSET(InputPriceData!$B$15,$A97+$A$11,0,1,1))) -> 2021-03-31 | C97: =IF(A97>$B$30,NA(),IF($A97>$A$8,"",OFFSET(InputPriceData!$G$15,CalculationsAndCharts!$A97+$A$11,IF($C$5,8,0),1,1))) -> 4564980000 | D97: =IF(A97>$B$30,NA(),IF(A97>$A$8,"",OFFSET(InputPriceData!$C$15,CalculationsAndCharts!$A97+$A$11,IF($C$5,8,0),1,1))) -> 3967.25 | E97: =IF(A97>$B$30,NA(),IF(A97>$A$8,"",OFFSET(InputPriceData!$D$15,CalculationsAndCharts!$A97+$A$11,IF($C$5,8,0),1,1))) -> 3994.41 | F97: =IF(A97>$B$30,NA(),IF(A97>$A$8,"",OFFSET(InputPriceData!$E$15,CalculationsAndCharts!$A97+$A$11,IF($C$5,8,0),1,1))) -> 3966.98 | G97: =IF(A97>$B$30,NA(),IF(A97>$A$8,"",OFFSET(InputPriceData!$F$15,CalculationsAndCharts!$A97+$A$11,IF($C$5,8,0),1,1))) -> 3972.89 | H97: 35.86 | I97: 51.8363862 | J97: 26.4 | K97: 0 | L97: 12.60544272 | M97: 11.14002774 | N97: 24.31774983 | O97: 21.49074918 | P97: 2.82700065 | Q97: 45.80849901 | R97: 6.171345299 | S97: 11.12251523 | T97: -0.3808592255 | U97: 24.31774983 | V97: 21.49074918 | Y97: =IF(A97>$Y$30,NA(),E97-E98) -> 26.4 | Z97: =IF(A97>$Y$30,NA(),F98-F97) -> -22.63 | AA97: =IF(A97>$Y$30,NA(),IF(AND(Y97>Z97,Y97>0),Y97,0)) -> 26.4 | AB97: =IF(A97>$Y$30,NA(),IF(AND(Z97>Y97,Z97>0),Z97,0)) -> 0 | AC97: =IF(A97>$AC$30,NA(),IF(A97=$AC$30,(SUM(OFFSET(AA97,0,0,$A$17,1))-SUM(OFFSET(AB97,0,0,$A$17,1)))/$A$17,$C$17*(AA97-AB97)+$D$17*AC98)) -> 1.465414975 | AD97: =IF($A97>$D$19+1,NA(),IF($A97=$D$19+1,SUM(OFFSET(AD$33,0,0,$A$17,1)),IF($A97=$D$19,"-- Coef Sum--",1-COS(RADIANS(360*$A97/$D$19))))) ->  | AE97: =IF($A97<=AE$30,SUMPRODUCT(OFFSET(AD$33,0,0,$A$17,1),OFFSET($AC97,0,0,$A$17,1))/OFFSET(AD$33,$D$19,0,1,1),NA()) -> -2.106895683 | AF97: =IF($A97<=AF$30,$C$19*(AE97-AE98),NA()) -> -0.7888482502 | AW97: =IF(G97>=D97,C97,NA()) -> 4564980000 | AX97: =IF(G97<D97,C97,NA()) -> 
A98: 66 | B98: =IF(A98>$B$30,NA(),IF($A98>$A$8,"",OFFSET(InputPriceData!$B$15,$A98+$A$11,0,1,1))) -> 2021-03-30 | C98: =IF(A98>$B$30,NA(),IF($A98>$A$8,"",OFFSET(InputPriceData!$G$15,CalculationsAndCharts!$A98+$A$11,IF($C$5,8,0),1,1))) -> 4103570000 | D98: =IF(A98>$B$30,NA(),IF(A98>$A$8,"",OFFSET(InputPriceData!$C$15,CalculationsAndCharts!$A98+$A$11,IF($C$5,8,0),1,1))) -> 3963.34 | E98: =IF(A98>$B$30,NA(),IF(A98>$A$8,"",OFFSET(InputPriceData!$D$15,CalculationsAndCharts!$A98+$A$11,IF($C$5,8,0),1,1))) -> 3968.01 | F98: =IF(A98>$B$30,NA(),IF(A98>$A$8,"",OFFSET(InputPriceData!$E$15,CalculationsAndCharts!$A98+$A$11,IF($C$5,8,0),1,1))) -> 3944.35 | G98: =IF(A98>$B$30,NA(),IF(A98>$A$8,"",OFFSET(InputPriceData!$F$15,CalculationsAndCharts!$A98+$A$11,IF($C$5,8,0),1,1))) -> 3958.55 | H98: =IF(A98>$H$30,NA(),MAX(E98-F98,ABS(E98-G99),ABS(F98-G99))) -> 26.74 | I98: =IF(A98>$I$30,NA(),IF($A98=$I$30,AVERAGE(OFFSET($H98,0,0,$A$17,1)),I99*$D$17+$H98*$C$17)) -> 53.06533898 | J98: =IF(A98>$I$30,NA(),IF(E98-E99>F99-F98,MAX(E98-E99,0),0)) -> 0 | K98: =IF(A98>$I$30,NA(),IF(F99-F98>E98-E99,MAX(F99-F98,0),0)) -> 0 | L98: 11.54432293 | M98: =IF(A98>$L$30,NA(),IF(A98=$L$30,AVERAGE(OFFSET(K98,0,0,$A$17,1)),M99*$D$17+K98*$C$17)) -> 11.99695295 | N98: =IF(A98>$L$30,NA(),L98/I98*100) -> 21.75492166 | O98: =IF(A98>$L$30,NA(),M98/I98*100) -> 22.60788903 | P98: =IF(A98>$L$30,NA(),ABS(N98-O98)) -> 0.8529673712 | Q98: =IF(A98>$L$30,NA(),N98+O98) -> 44.3628107 | R98: 1.922708137 | S98: =IF(A98>$S$30,NA(),IF(A98=$S$30,AVERAGE(OFFSET(R98,0,0,$A$17,1)),(S99*$D$17+R98*$C$17))) -> 11.50337446 | T98: =IF(A98>$T$30,NA(),S98-S99) -> -0.7369743322 | U98: =IF($R$15,N98,NA()) -> 21.75492166 | V98: =IF($R$15,O98,NA()) -> 22.60788903 | W98: =IF($R$19,T98,NA()) ->  | Y98: -13.82 | Z98: -1.1 | AA98: 0 | AB98: 0 | AC98: -0.4526300269 | AE98: -1.92996829 | AF98: -1.063471026 | AX98: 4103570000
A99: 67 | B99: =IF(A99>$B$30,NA(),IF($A99>$A$8,"",OFFSET(InputPriceData!$B$15,$A99+$A$11,0,1,1))) -> 2021-03-29 | C99: =IF(A99>$B$30,NA(),IF($A99>$A$8,"",OFFSET(InputPriceData!$G$15,CalculationsAndCharts!$A99+$A$11,IF($C$5,8,0),1,1))) -> 4619840000 | D99: =IF(A99>$B$30,NA(),IF(A99>$A$8,"",OFFSET(InputPriceData!$C$15,CalculationsAndCharts!$A99+$A$11,IF($C$5,8,0),1,1))) -> 3969.31 | E99: =IF(A99>$B$30,NA(),IF(A99>$A$8,"",OFFSET(InputPriceData!$D$15,CalculationsAndCharts!$A99+$A$11,IF($C$5,8,0),1,1))) -> 3981.83 | F99: =IF(A99>$B$30,NA(),IF(A99>$A$8,"",OFFSET(InputPriceData!$E$15,CalculationsAndCharts!$A99+$A$11,IF($C$5,8,0),1,1))) -> 3943.25 | G99: =IF(A99>$B$30,NA(),IF(A99>$A$8,"",OFFSET(InputPriceData!$F$15,CalculationsAndCharts!$A99+$A$11,IF($C$5,8,0),1,1))) -> 3971.09 | H99: 38.58 | I99: 55.09036506 | J99: 3.64 | K99: 0 | L99: =IF(A99>$L$30,NA(),IF(A99=$L$30,AVERAGE(OFFSET(J99,0,0,$A$17,1)),L100*$D$17+J99*$C$17)) -> 12.43234777 | M99: 12.91979549 | N99: 22.56719075 | O99: 23.45200558 | P99: 0.8848148325 | Q99: 46.01919633 | R99: =IF(A99>$L$30,NA(),P99/Q99*100) -> 1.922708137 | S99: 12.24034879 | T99: -0.7936646654 | U99: 22.56719075 | V99: 23.45200558 | Y99: 3.64 | Z99: -26.13 | AA99: 3.64 | AB99: 0 | AC99: -0.4874477213 | AE99: -1.691446931 | AF99: -0.8285555813 | AW99: 4619840000
A100: 68 | B100: =IF(A100>$B$30,NA(),IF($A100>$A$8,"",OFFSET(InputPriceData!$B$15,$A100+$A$11,0,1,1))) -> 2021-03-26 | C100: =IF(A100>$B$30,NA(),IF($A100>$A$8,"",OFFSET(InputPriceData!$G$15,CalculationsAndCharts!$A100+$A$11,IF($C$5,8,0),1,1))) -> 5467850000 | D100: =IF(A100>$B$30,NA(),IF(A100>$A$8,"",OFFSET(InputPriceData!$C$15,CalculationsAndCharts!$A100+$A$11,IF($C$5,8,0),1,1))) -> 3917.12 | E100: =IF(A100>$B$30,NA(),IF(A100>$A$8,"",OFFSET(InputPriceData!$D$15,CalculationsAndCharts!$A100+$A$11,IF($C$5,8,0),1,1))) -> 3978.19 | F100: =IF(A100>$B$30,NA(),IF(A100>$A$8,"",OFFSET(InputPriceData!$E$15,CalculationsAndCharts!$A100+$A$11,IF($C$5,8,0),1,1))) -> 3917.12 | G100: =IF(A100>$B$30,NA(),IF(A100>$A$8,"",OFFSET(InputPriceData!$F$15,CalculationsAndCharts!$A100+$A$11,IF($C$5,8,0),1,1))) -> 3974.54 | H100: 68.67 | I100: 56.36039314 | J100: 58.65 | K100: 0 | L100: 13.10868221 | M100: 13.91362591 | N100: 23.25867773 | O100: 24.68688583 | P100: 1.4282081 | Q100: 47.94556357 | R100: 2.978811789 | S100: 13.03401345 | T100: -0.7734770511 | U100: 23.25867773 | V100: 24.68688583 | Y100: 58.65 | Z100: -63.62 | AA100: 58.65 | AB100: 0 | AC100: -0.8049436999 | AE100: -1.505613751 | AF100: -0.08012053932 | AW100: 5467850000
A101: 69 | B101: =IF(A101>$B$30,NA(),IF($A101>$A$8,"",OFFSET(InputPriceData!$B$15,$A101+$A$11,0,1,1))) -> 2021-03-25 | C101: =IF(A101>$B$30,NA(),IF($A101>$A$8,"",OFFSET(InputPriceData!$G$15,CalculationsAndCharts!$A101+$A$11,IF($C$5,8,0),1,1))) -> 4940800000 | D101: =IF(A101>$B$30,NA(),IF(A101>$A$8,"",OFFSET(InputPriceData!$C$15,CalculationsAndCharts!$A101+$A$11,IF($C$5,8,0),1,1))) -> 3879.34 | E101: =IF(A101>$B$30,NA(),IF(A101>$A$8,"",OFFSET(InputPriceData!$D$15,CalculationsAndCharts!$A101+$A$11,IF($C$5,8,0),1,1))) -> 3919.54 | F101: =IF(A101>$B$30,NA(),IF(A101>$A$8,"",OFFSET(InputPriceData!$E$15,CalculationsAndCharts!$A101+$A$11,IF($C$5,8,0),1,1))) -> 3853.5 | G101: =IF(A101>$B$30,NA(),IF(A101>$A$8,"",OFFSET(InputPriceData!$F$15,CalculationsAndCharts!$A101+$A$11,IF($C$5,8,0),1,1))) -> 3909.52 | H101: 66.04 | I101: 55.41350031 | J101: 0 | K101: 35.57 | L101: 9.605503919 | M101: 14.98390483 | N101: 17.33423059 | O101: 27.04017025 | P101: 9.705939668 | Q101: 44.37440084 | R101: 21.87283543 | S101: 13.8074905 | T101: 0.6204111479 | U101: 17.33423059 | V101: 27.04017025 | Y101: -22.54 | Z101: 35.57 | AA101: 0 | AB101: 35.57 | AC101: -5.378400908 | AE101: -1.487643859 | AF101: 1.176637989 | AW101: 4940800000
A102: 70 | B102: =IF(A102>$B$30,NA(),IF($A102>$A$8,"",OFFSET(InputPriceData!$B$15,$A102+$A$11,0,1,1))) -> 2021-03-24 | C102: =IF(A102>$B$30,NA(),IF($A102>$A$8,"",OFFSET(InputPriceData!$G$15,CalculationsAndCharts!$A102+$A$11,IF($C$5,8,0),1,1))) -> 4766990000 | D102: =IF(A102>$B$30,NA(),IF(A102>$A$8,"",OFFSET(InputPriceData!$C$15,CalculationsAndCharts!$A102+$A$11,IF($C$5,8,0),1,1))) -> 3919.93 | E102: =IF(A102>$B$30,NA(),IF(A102>$A$8,"",OFFSET(InputPriceData!$D$15,CalculationsAndCharts!$A102+$A$11,IF($C$5,8,0),1,1))) -> 3942.08 | F102: =IF(A102>$B$30,NA(),IF(A102>$A$8,"",OFFSET(InputPriceData!$E$15,CalculationsAndCharts!$A102+$A$11,IF($C$5,8,0),1,1))) -> 3889.07 | G102: =IF(A102>$B$30,NA(),IF(A102>$A$8,"",OFFSET(InputPriceData!$F$15,CalculationsAndCharts!$A102+$A$11,IF($C$5,8,0),1,1))) -> 3889.14 | H102: 53.01 | I102: 54.59607725 | J102: 0 | K102: 12.5 | L102: 10.34438884 | M102: 13.40035904 | N102: 18.94712836 | O102: 24.54454554 | P102: 5.597417181 | Q102: 43.4916739 | R102: 12.8700891 | S102: 13.18707936 | T102: -0.02438386609 | U102: 18.94712836 | V102: 24.54454554 | Y102: -7.05 | Z102: 12.5 | AA102: 0 | AB102: 12.5 | AC102: -3.055970208 | AE102: -1.75154695 | AF102: 2.713230127 | AX102: 4766990000
A103: 71 | B103: =IF(A103>$B$30,NA(),IF($A103>$A$8,"",OFFSET(InputPriceData!$B$15,$A103+$A$11,0,1,1))) -> 2021-03-23 | C103: =IF(A103>$B$30,NA(),IF($A103>$A$8,"",OFFSET(InputPriceData!$G$15,CalculationsAndCharts!$A103+$A$11,IF($C$5,8,0),1,1))) -> 4645340000 | D103: =IF(A103>$B$30,NA(),IF(A103>$A$8,"",OFFSET(InputPriceData!$C$15,CalculationsAndCharts!$A103+$A$11,IF($C$5,8,0),1,1))) -> 3937.6 | E103: =IF(A103>$B$30,NA(),IF(A103>$A$8,"",OFFSET(InputPriceData!$D$15,CalculationsAndCharts!$A103+$A$11,IF($C$5,8,0),1,1))) -> 3949.13 | F103: =IF(A103>$B$30,NA(),IF(A103>$A$8,"",OFFSET(InputPriceData!$E$15,CalculationsAndCharts!$A103+$A$11,IF($C$5,8,0),1,1))) -> 3901.57 | G103: =IF(A103>$B$30,NA(),IF(A103>$A$8,"",OFFSET(InputPriceData!$F$15,CalculationsAndCharts!$A103+$A$11,IF($C$5,8,0),1,1))) -> 3910.52 | H103: 47.56 | I103: 54.71808319 | J103: 0 | K103: 12.59 | L103: 11.14011105 | M103: 13.46961743 | N103: 20.35910325 | O103: 24.61639123 | P103: 4.257287979 | Q103: 44.97549448 | R103: 9.465794713 | S103: 13.21146322 | T103: -0.2881283469 | U103: 20.35910325 | V103: 24.61639123 | Y103: -6.18 | Z103: 12.59 | AA103: 0 | AB103: 12.59 | AC103: -2.329506378 | AE103: -2.360085708 | AF103: 4.082551968 | AX103: 4645340000
A104: 72 | B104: =IF(A104>$B$30,NA(),IF($A104>$A$8,"",OFFSET(InputPriceData!$B$15,$A104+$A$11,0,1,1))) -> 2021-03-22 | C104: =IF(A104>$B$30,NA(),IF($A104>$A$8,"",OFFSET(InputPriceData!$G$15,CalculationsAndCharts!$A104+$A$11,IF($C$5,8,0),1,1))) -> 4311380000 | D104: =IF(A104>$B$30,NA(),IF(A104>$A$8,"",OFFSET(InputPriceData!$C$15,CalculationsAndCharts!$A104+$A$11,IF($C$5,8,0),1,1))) -> 3916.48 | E104: =IF(A104>$B$30,NA(),IF(A104>$A$8,"",OFFSET(InputPriceData!$D$15,CalculationsAndCharts!$A104+$A$11,IF($C$5,8,0),1,1))) -> 3955.31 | F104: =IF(A104>$B$30,NA(),IF(A104>$A$8,"",OFFSET(InputPriceData!$E$15,CalculationsAndCharts!$A104+$A$11,IF($C$5,8,0),1,1))) -> 3914.16 | G104: =IF(A104>$B$30,NA(),IF(A104>$A$8,"",OFFSET(InputPriceData!$F$15,CalculationsAndCharts!$A104+$A$11,IF($C$5,8,0),1,1))) -> 3940.59 | H104: 42.21 | I104: 55.26870498 | J104: 25.19 | K104: 0 | L104: 11.99704267 | M104: 13.53728031 | N104: 21.70675553 | O104: 24.49357248 | P104: 2.786816949 | Q104: 46.20032801 | R104: 6.032028492 | S104: 13.49959157 | T104: -0.574427929 | U104: 21.70675553 | V104: 24.49357248 | Y104: 25.19 | Z104: -27.41 | AA104: 25.19 | AB104: 0 | AC104: -1.540237638 | AE104: -3.275743792 | AF104: 4.878995274 | AW104: 4311380000
A105: 73 | B105: =IF(A105>$B$30,NA(),IF($A105>$A$8,"",OFFSET(InputPriceData!$B$15,$A105+$A$11,0,1,1))) -> 2021-03-19 | C105: =IF(A105>$B$30,NA(),IF($A105>$A$8,"",OFFSET(InputPriceData!$G$15,CalculationsAndCharts!$A105+$A$11,IF($C$5,8,0),1,1))) -> 7725050000 | D105: =IF(A105>$B$30,NA(),IF(A105>$A$8,"",OFFSET(InputPriceData!$C$15,CalculationsAndCharts!$A105+$A$11,IF($C$5,8,0),1,1))) -> 3913.14 | E105: =IF(A105>$B$30,NA(),IF(A105>$A$8,"",OFFSET(InputPriceData!$D$15,CalculationsAndCharts!$A105+$A$11,IF($C$5,8,0),1,1))) -> 3930.12 | F105: =IF(A105>$B$30,NA(),IF(A105>$A$8,"",OFFSET(InputPriceData!$E$15,CalculationsAndCharts!$A105+$A$11,IF($C$5,8,0),1,1))) -> 3886.75 | G105: =IF(A105>$B$30,NA(),IF(A105>$A$8,"",OFFSET(InputPriceData!$F$15,CalculationsAndCharts!$A105+$A$11,IF($C$5,8,0),1,1))) -> 3913.1 | H105: 43.37 | I105: 56.27322075 | J105: 0 | K105: 24.11 | L105: 10.9821998 | M105: 14.57860957 | N105: 19.51585436 | O105: 25.90683343 | P105: 6.390979077 | Q105: 45.42268779 | R105: 14.0700152 | S105: 14.0740195 | T105: -0.0003080228455 | U105: 19.51585436 | V105: 25.90683343 | Y105: -39.5 | Z105: 24.11 | AA105: 0 | AB105: 24.11 | AC105: -3.596409764 | AE105: -4.370032732 | AF105: 4.926413409 | AX105: 7725050000
A106: 74 | B106: =IF(A106>$B$30,NA(),IF($A106>$A$8,"",OFFSET(InputPriceData!$B$15,$A106+$A$11,0,1,1))) -> 2021-03-18 | C106: =IF(A106>$B$30,NA(),IF($A106>$A$8,"",OFFSET(InputPriceData!$G$15,CalculationsAndCharts!$A106+$A$11,IF($C$5,8,0),1,1))) -> 4043170000 | D106: =IF(A106>$B$30,NA(),IF(A106>$A$8,"",OFFSET(InputPriceData!$C$15,CalculationsAndCharts!$A106+$A$11,IF($C$5,8,0),1,1))) -> 3953.5 | E106: =IF(A106>$B$30,NA(),IF(A106>$A$8,"",OFFSET(InputPriceData!$D$15,CalculationsAndCharts!$A106+$A$11,IF($C$5,8,0),1,1))) -> 3969.62 | F106: =IF(A106>$B$30,NA(),IF(A106>$A$8,"",OFFSET(InputPriceData!$E$15,CalculationsAndCharts!$A106+$A$11,IF($C$5,8,0),1,1))) -> 3910.86 | G106: =IF(A106>$B$30,NA(),IF(A106>$A$8,"",OFFSET(InputPriceData!$F$15,CalculationsAndCharts!$A106+$A$11,IF($C$5,8,0),1,1))) -> 3915.46 | H106: 63.26 | I106: 57.26577619 | J106: 0 | K106: 24.88 | L106: 11.8269844 | M106: 13.84542569 | N106: 20.65279682 | O106: 24.17748716 | P106: 3.524690345 | Q106: 44.83028398 | R106: 7.862297607 | S106: 14.07432752 | T106: -0.477848455 | U106: 20.65279682 | V106: 24.17748716 | Y106: -14.25 | Z106: 24.88 | AA106: 0 | AB106: 24.88 | AC106: -2.018441284 | AE106: -5.474956882 | AF106: 4.304574979 | AX106: 4043170000
A107: 75 | B107: =IF(A107>$B$30,NA(),IF($A107>$A$8,"",OFFSET(InputPriceData!$B$15,$A107+$A$11,0,1,1))) -> 2021-03-17 | C107: =IF(A107>$B$30,NA(),IF($A107>$A$8,"",OFFSET(InputPriceData!$G$15,CalculationsAndCharts!$A107+$A$11,IF($C$5,8,0),1,1))) -> 4541620000 | D107: =IF(A107>$B$30,NA(),IF(A107>$A$8,"",OFFSET(InputPriceData!$C$15,CalculationsAndCharts!$A107+$A$11,IF($C$5,8,0),1,1))) -> 3949.57 | E107: =IF(A107>$B$30,NA(),IF(A107>$A$8,"",OFFSET(InputPriceData!$D$15,CalculationsAndCharts!$A107+$A$11,IF($C$5,8,0),1,1))) -> 3983.87 | F107: =IF(A107>$B$30,NA(),IF(A107>$A$8,"",OFFSET(InputPriceData!$E$15,CalculationsAndCharts!$A107+$A$11,IF($C$5,8,0),1,1))) -> 3935.74 | G107: =IF(A107>$B$30,NA(),IF(A107>$A$8,"",OFFSET(InputPriceData!$F$15,CalculationsAndCharts!$A107+$A$11,IF($C$5,8,0),1,1))) -> 3974.12 | H107: 48.13 | I107: 56.80468205 | J107: 0 | K107: 17.7 | L107: 12.73675243 | M107: 12.99661228 | N107: 22.42201166 | O107: 22.87947368 | P107: 0.4574620173 | Q107: 45.30148534 | R107: 1.009816817 | S107: 14.55217598 | T107: -1.041719935 | U107: 22.42201166 | V107: 22.87947368 | Y107: 2.83 | Z107: 17.7 | AA107: 0 | AB107: 17.7 | AC107: -0.2598598444 | AE107: -6.440411556 | AF107: 3.190077666 | AW107: 4541620000
A108: 76 | B108: =IF(A108>$B$30,NA(),IF($A108>$A$8,"",OFFSET(InputPriceData!$B$15,$A108+$A$11,0,1,1))) -> 2021-03-16 | C108: =IF(A108>$B$30,NA(),IF($A108>$A$8,"",OFFSET(InputPriceData!$G$15,CalculationsAndCharts!$A108+$A$11,IF($C$5,8,0),1,1))) -> 4604870000 | D108: =IF(A108>$B$30,NA(),IF(A108>$A$8,"",OFFSET(InputPriceData!$C$15,CalculationsAndCharts!$A108+$A$11,IF($C$5,8,0),1,1))) -> 3973.59 | E108: =IF(A108>$B$30,NA(),IF(A108>$A$8,"",OFFSET(InputPriceData!$D$15,CalculationsAndCharts!$A108+$A$11,IF($C$5,8,0),1,1))) -> 3981.04 | F108: =IF(A108>$B$30,NA(),IF(A108>$A$8,"",OFFSET(InputPriceData!$E$15,CalculationsAndCharts!$A108+$A$11,IF($C$5,8,0),1,1))) -> 3953.44 | G108: =IF(A108>$B$30,NA(),IF(A108>$A$8,"",OFFSET(InputPriceData!$F$15,CalculationsAndCharts!$A108+$A$11,IF($C$5,8,0),1,1))) -> 3962.71 | H108: 27.6 | I108: 57.47196528 | J108: 10.96 | K108: 0 | L108: 13.71650262 | M108: 12.63481322 | N108: 23.86642349 | O108: 21.98430689 | P108: 1.882116599 | Q108: 45.85073037 | R108: 4.10487812 | S108: 15.59389591 | T108: -0.8837705994 | U108: 23.86642349 | V108: 21.98430689 | Y108: 10.96 | Z108: -29.9 | AA108: 10.96 | AB108: 0 | AC108: 1.081689398 | AE108: -7.155900404 | AF108: 1.753335089 | AX108: 4604870000
A109: 77 | B109: =IF(A109>$B$30,NA(),IF($A109>$A$8,"",OFFSET(InputPriceData!$B$15,$A109+$A$11,0,1,1))) -> 2021-03-15 | C109: =IF(A109>$B$30,NA(),IF($A109>$A$8,"",OFFSET(InputPriceData!$G$15,CalculationsAndCharts!$A109+$A$11,IF($C$5,8,0),1,1))) -> 4882190000 | D109: =IF(A109>$B$30,NA(),IF(A109>$A$8,"",OFFSET(InputPriceData!$C$15,CalculationsAndCharts!$A109+$A$11,IF($C$5,8,0),1,1))) -> 3942.96 | E109: =IF(A109>$B$30,NA(),IF(A109>$A$8,"",OFFSET(InputPriceData!$D$15,CalculationsAndCharts!$A109+$A$11,IF($C$5,8,0),1,1))) -> 3970.08 | F109: =IF(A109>$B$30,NA(),IF(A109>$A$8,"",OFFSET(InputPriceData!$E$15,CalculationsAndCharts!$A109+$A$11,IF($C$5,8,0),1,1))) -> 3923.54 | G109: =IF(A109>$B$30,NA(),IF(A109>$A$8,"",OFFSET(InputPriceData!$F$15,CalculationsAndCharts!$A109+$A$11,IF($C$5,8,0),1,1))) -> 3968.94 | H109: 46.54 | I109: 59.76980877 | J109: 25.09 | K109: 0 | L109: 13.92854128 | M109: 13.60672193 | N109: 23.30364037 | O109: 22.76520908 | P109: 0.5384312894 | Q109: 46.06884945 | R109: 1.168753498 | S109: 16.47766651 | T109: -1.177608693 | U109: 23.30364037 | V109: 22.76520908 | Y109: 25.09 | Z109: -8.33 | AA109: 25.09 | AB109: 0 | AC109: 0.321819352 | AE109: -7.549148417 | AF109: 0.319104945 | AW109: 4882190000
A110: 78 | B110: =IF(A110>$B$30,NA(),IF($A110>$A$8,"",OFFSET(InputPriceData!$B$15,$A110+$A$11,0,1,1))) -> 2021-03-12 | C110: =IF(A110>$B$30,NA(),IF($A110>$A$8,"",OFFSET(InputPriceData!$G$15,CalculationsAndCharts!$A110+$A$11,IF($C$5,8,0),1,1))) -> 4469240000 | D110: =IF(A110>$B$30,NA(),IF(A110>$A$8,"",OFFSET(InputPriceData!$C$15,CalculationsAndCharts!$A110+$A$11,IF($C$5,8,0),1,1))) -> 3924.52 | E110: =IF(A110>$B$30,NA(),IF(A110>$A$8,"",OFFSET(InputPriceData!$D$15,CalculationsAndCharts!$A110+$A$11,IF($C$5,8,0),1,1))) -> 3944.99 | F110: =IF(A110>$B$30,NA(),IF(A110>$A$8,"",OFFSET(InputPriceData!$E$15,CalculationsAndCharts!$A110+$A$11,IF($C$5,8,0),1,1))) -> 3915.21 | G110: =IF(A110>$B$30,NA(),IF(A110>$A$8,"",OFFSET(InputPriceData!$F$15,CalculationsAndCharts!$A110+$A$11,IF($C$5,8,0),1,1))) -> 3943.34 | H110: 29.78 | I110: 60.78748636 | J110: 0 | K110: 0.33 | L110: 13.06996754 | M110: 14.65339285 | N110: 21.50108241 | O110: 24.10593648 | P110: 2.604854071 | Q110: 45.60701889 | R110: 5.711520144 | S110: 17.6552752 | T110: -0.9187503892 | U110: 21.50108241 | V110: 24.10593648 | Y110: -15.28 | Z110: 0.33 | AA110: 0 | AB110: 0.33 | AC110: -1.583425313 | AE110: -7.620719097 | AF110: -0.8998367209 | AW110: 4469240000
A111: 79 | B111: =IF(A111>$B$30,NA(),IF($A111>$A$8,"",OFFSET(InputPriceData!$B$15,$A111+$A$11,0,1,1))) -> 2021-03-11 | C111: =IF(A111>$B$30,NA(),IF($A111>$A$8,"",OFFSET(InputPriceData!$G$15,CalculationsAndCharts!$A111+$A$11,IF($C$5,8,0),1,1))) -> 5300010000 | D111: =IF(A111>$B$30,NA(),IF(A111>$A$8,"",OFFSET(InputPriceData!$C$15,CalculationsAndCharts!$A111+$A$11,IF($C$5,8,0),1,1))) -> 3915.54 | E111: =IF(A111>$B$30,NA(),IF(A111>$A$8,"",OFFSET(InputPriceData!$D$15,CalculationsAndCharts!$A111+$A$11,IF($C$5,8,0),1,1))) -> 3960.27 | F111: =IF(A111>$B$30,NA(),IF(A111>$A$8,"",OFFSET(InputPriceData!$E$15,CalculationsAndCharts!$A111+$A$11,IF($C$5,8,0),1,1))) -> 3915.54 | G111: =IF(A111>$B$30,NA(),IF(A111>$A$8,"",OFFSET(InputPriceData!$F$15,CalculationsAndCharts!$A111+$A$11,IF($C$5,8,0),1,1))) -> 3939.34 | H111: 61.46 | I111: 63.17267762 | J111: 42.92 | K111: 0 | L111: 14.07534965 | M111: 15.7551923 | N111: 22.2807552 | O111: 24.93988365 | P111: 2.659128453 | Q111: 47.22063885 | R111: 5.631284365 | S111: 18.57402559 | T111: -0.9955954791 | U111: 22.2807552 | V111: 24.93988365 | Y111: 42.92 | Z111: -29.81 | AA111: 42.92 | AB111: 0 | AC111: -1.679842645 | AE111: -7.418898575 | AF111: -1.935874183 | AW111: 5300010000
A112: 80 | B112: =IF(A112>$B$30,NA(),IF($A112>$A$8,"",OFFSET(InputPriceData!$B$15,$A112+$A$11,0,1,1))) -> 2021-03-10 | C112: =IF(A112>$B$30,NA(),IF($A112>$A$8,"",OFFSET(InputPriceData!$G$15,CalculationsAndCharts!$A112+$A$11,IF($C$5,8,0),1,1))) -> 5827250000 | D112: =IF(A112>$B$30,NA(),IF(A112>$A$8,"",OFFSET(InputPriceData!$C$15,CalculationsAndCharts!$A112+$A$11,IF($C$5,8,0),1,1))) -> 3891.99 | E112: =IF(A112>$B$30,NA(),IF(A112>$A$8,"",OFFSET(InputPriceData!$D$15,CalculationsAndCharts!$A112+$A$11,IF($C$5,8,0),1,1))) -> 3917.35 | F112: =IF(A112>$B$30,NA(),IF(A112>$A$8,"",OFFSET(InputPriceData!$E$15,CalculationsAndCharts!$A112+$A$11,IF($C$5,8,0),1,1))) -> 3885.73 | G112: =IF(A112>$B$30,NA(),IF(A112>$A$8,"",OFFSET(InputPriceData!$F$15,CalculationsAndCharts!$A112+$A$11,IF($C$5,8,0),1,1))) -> 3898.81 | H112: 41.91 | I112: 63.30442206 | J112: 13.59 | K112: 0 | L112: 11.8565304 | M112: 16.96713017 | N112: 18.72938732 | O112: 26.80244068 | P112: 8.073053359 | Q112: 45.531828 | R112: 17.73057159 | S112: 19.56962107 | T112: -0.1414653448 | U112: 18.72938732 | V112: 26.80244068 | Y112: 13.59 | Z112: -33.8 | AA112: 13.59 | AB112: 0 | AC112: -5.110599772 | AE112: -6.984709652 | AF112: -2.696106981 | AW112: 5827250000
A113: 81 | B113: =IF(A113>$B$30,NA(),IF($A113>$A$8,"",OFFSET(InputPriceData!$B$15,$A113+$A$11,0,1,1))) -> 2021-03-09 | C113: =IF(A113>$B$30,NA(),IF($A113>$A$8,"",OFFSET(InputPriceData!$G$15,CalculationsAndCharts!$A113+$A$11,IF($C$5,8,0),1,1))) -> 5496340000 | D113: =IF(A113>$B$30,NA(),IF(A113>$A$8,"",OFFSET(InputPriceData!$C$15,CalculationsAndCharts!$A113+$A$11,IF($C$5,8,0),1,1))) -> 3851.93 | E113: =IF(A113>$B$30,NA(),IF(A113>$A$8,"",OFFSET(InputPriceData!$D$15,CalculationsAndCharts!$A113+$A$11,IF($C$5,8,0),1,1))) -> 3903.76 | F113: =IF(A113>$B$30,NA(),IF(A113>$A$8,"",OFFSET(InputPriceData!$E$15,CalculationsAndCharts!$A113+$A$11,IF($C$5,8,0),1,1))) -> 3851.93 | G113: =IF(A113>$B$30,NA(),IF(A113>$A$8,"",OFFSET(InputPriceData!$F$15,CalculationsAndCharts!$A113+$A$11,IF($C$5,8,0),1,1))) -> 3875.44 | H113: 82.41 | I113: 64.95014683 | J113: 22.7 | K113: 0 | L113: 11.72318658 | M113: 18.27229403 | N113: 18.04951513 | O113: 28.13279865 | P113: 10.08328351 | Q113: 46.18231378 | R113: 21.83364731 | S113: 19.71108642 | T113: 0.163273915 | U113: 18.04951513 | V113: 28.13279865 | Y113: 22.7 | Z113: -32.68 | AA113: 22.7 | AB113: 0 | AC113: -6.549107446 | AE113: -6.380011372 | AF113: -3.151584389 | AW113: 5496340000
A114: 82 | B114: =IF(A114>$B$30,NA(),IF($A114>$A$8,"",OFFSET(InputPriceData!$B$15,$A114+$A$11,0,1,1))) -> 2021-03-08 | C114: =IF(A114>$B$30,NA(),IF($A114>$A$8,"",OFFSET(InputPriceData!$G$15,CalculationsAndCharts!$A114+$A$11,IF($C$5,8,0),1,1))) -> 5852240000 | D114: =IF(A114>$B$30,NA(),IF(A114>$A$8,"",OFFSET(InputPriceData!$C$15,CalculationsAndCharts!$A114+$A$11,IF($C$5,8,0),1,1))) -> 3844.39 | E114: =IF(A114>$B$30,NA(),IF(A114>$A$8,"",OFFSET(InputPriceData!$D$15,CalculationsAndCharts!$A114+$A$11,IF($C$5,8,0),1,1))) -> 3881.06 | F114: =IF(A114>$B$30,NA(),IF(A114>$A$8,"",OFFSET(InputPriceData!$E$15,CalculationsAndCharts!$A114+$A$11,IF($C$5,8,0),1,1))) -> 3819.25 | G114: =IF(A114>$B$30,NA(),IF(A114>$A$8,"",OFFSET(InputPriceData!$F$15,CalculationsAndCharts!$A114+$A$11,IF($C$5,8,0),1,1))) -> 3821.35 | H114: 61.81 | I114: 63.6070812 | J114: 29.37 | K114: 0 | L114: 10.87881632 | M114: 19.67785511 | N114: 17.10315285 | O114: 30.93657929 | P114: 13.83342644 | Q114: 48.03973213 | R114: 28.79580261 | S114: 19.5478125 | T114: 0.7113838545 | U114: 17.10315285 | V114: 30.93657929 | Y114: 29.37 | Z114: -89.06 | AA114: 29.37 | AB114: 0 | AC114: -8.799038788 | AE114: -5.673156016 | AF114: -3.424411119 | AX114: 5852240000
A115: 83 | B115: =IF(A115>$B$30,NA(),IF($A115>$A$8,"",OFFSET(InputPriceData!$B$15,$A115+$A$11,0,1,1))) -> 2021-03-05 | C115: =IF(A115>$B$30,NA(),IF($A115>$A$8,"",OFFSET(InputPriceData!$G$15,CalculationsAndCharts!$A115+$A$11,IF($C$5,8,0),1,1))) -> 6842570000 | D115: =IF(A115>$B$30,NA(),IF(A115>$A$8,"",OFFSET(InputPriceData!$C$15,CalculationsAndCharts!$A115+$A$11,IF($C$5,8,0),1,1))) -> 3793.58 | E115: =IF(A115>$B$30,NA(),IF(A115>$A$8,"",OFFSET(InputPriceData!$D$15,CalculationsAndCharts!$A115+$A$11,IF($C$5,8,0),1,1))) -> 3851.69 | F115: =IF(A115>$B$30,NA(),IF(A115>$A$8,"",OFFSET(InputPriceData!$E$15,CalculationsAndCharts!$A115+$A$11,IF($C$5,8,0),1,1))) -> 3730.19 | G115: =IF(A115>$B$30,NA(),IF(A115>$A$8,"",OFFSET(InputPriceData!$F$15,CalculationsAndCharts!$A115+$A$11,IF($C$5,8,0),1,1))) -> 3841.94 | H115: 121.5 | I115: 63.74531822 | J115: 8.02 | K115: 0 | L115: 9.456417574 | M115: 21.19153627 | N115: 14.83468565 | O115: 33.24406696 | P115: 18.40938131 | Q115: 48.07875261 | R115: 38.29005602 | S115: 18.83642865 | T115: 1.496432875 | U115: 14.83468565 | V115: 33.24406696 | Y115: 8.02 | Z115: -6.85 | AA115: 8.02 | AB115: 0 | AC115: -11.7351187 | AE115: -4.905109522 | AF115: -3.587219785 | AW115: 6842570000
A116: 84 | B116: =IF(A116>$B$30,NA(),IF($A116>$A$8,"",OFFSET(InputPriceData!$B$15,$A116+$A$11,0,1,1))) -> 2021-03-04 | C116: =IF(A116>$B$30,NA(),IF($A116>$A$8,"",OFFSET(InputPriceData!$G$15,CalculationsAndCharts!$A116+$A$11,IF($C$5,8,0),1,1))) -> 7142240000 | D116: =IF(A116>$B$30,NA(),IF(A116>$A$8,"",OFFSET(InputPriceData!$C$15,CalculationsAndCharts!$A116+$A$11,IF($C$5,8,0),1,1))) -> 3818.53 | E116: =IF(A116>$B$30,NA(),IF(A116>$A$8,"",OFFSET(InputPriceData!$D$15,CalculationsAndCharts!$A116+$A$11,IF($C$5,8,0),1,1))) -> 3843.67 | F116: =IF(A116>$B$30,NA(),IF(A116>$A$8,"",OFFSET(InputPriceData!$E$15,CalculationsAndCharts!$A116+$A$11,IF($C$5,8,0),1,1))) -> 3723.34 | G116: =IF(A116>$B$30,NA(),IF(A116>$A$8,"",OFFSET(InputPriceData!$F$15,CalculationsAndCharts!$A116+$A$11,IF($C$5,8,0),1,1))) -> 3768.47 | H116: 120.33 | I116: 59.30265039 | J116: 0 | K116: 95.52 | L116: 9.566911234 | M116: 22.82165444 | N116: 16.13235019 | O116: 38.48336338 | P116: 22.35101319 | Q116: 54.61571357 | R116: 40.92414385 | S116: 17.33999577 | T116: 1.814165237 | U116: 16.13235019 | V116: 38.48336338 | Y116: -30.8 | Z116: 95.52 | AA116: 0 | AB116: 95.52 | AC116: -13.25474321 | AE116: -4.10054737 | AF116: -3.703561004 | AX116: 7142240000
A117: 85 | B117: =IF(A117>$B$30,NA(),IF($A117>$A$8,"",OFFSET(InputPriceData!$B$15,$A117+$A$11,0,1,1))) -> 2021-03-03 | C117: =IF(A117>$B$30,NA(),IF($A117>$A$8,"",OFFSET(InputPriceData!$G$15,CalculationsAndCharts!$A117+$A$11,IF($C$5,8,0),1,1))) -> 6150790000 | D117: =IF(A117>$B$30,NA(),IF(A117>$A$8,"",OFFSET(InputPriceData!$C$15,CalculationsAndCharts!$A117+$A$11,IF($C$5,8,0),1,1))) -> 3863.99 | E117: =IF(A117>$B$30,NA(),IF(A117>$A$8,"",OFFSET(InputPriceData!$D$15,CalculationsAndCharts!$A117+$A$11,IF($C$5,8,0),1,1))) -> 3874.47 | F117: =IF(A117>$B$30,NA(),IF(A117>$A$8,"",OFFSET(InputPriceData!$E$15,CalculationsAndCharts!$A117+$A$11,IF($C$5,8,0),1,1))) -> 3818.86 | G117: =IF(A117>$B$30,NA(),IF(A117>$A$8,"",OFFSET(InputPriceData!$F$15,CalculationsAndCharts!$A117+$A$11,IF($C$5,8,0),1,1))) -> 3819.72 | H117: 55.61 | I117: 54.60823888 | J117: 0 | K117: 49.71 | L117: 10.30282748 | M117: 17.22947402 | N117: 18.86680049 | O117: 31.55105231 | P117: 12.68425182 | Q117: 50.41785281 | R117: 25.15825469 | S117: 15.52583054 | T117: 0.7409557043 | U117: 18.86680049 | V117: 31.55105231 | Y117: -31.94 | Z117: 49.71 | AA117: 0 | AB117: 49.71 | AC117: -6.926646534 | AE117: -3.269891545 | AF117: -3.849148429 | AX117: 6150790000
A118: 86 | B118: =IF(A118>$B$30,NA(),IF($A118>$A$8,"",OFFSET(InputPriceData!$B$15,$A118+$A$11,0,1,1))) -> 2021-03-02 | C118: =IF(A118>$B$30,NA(),IF($A118>$A$8,"",OFFSET(InputPriceData!$G$15,CalculationsAndCharts!$A118+$A$11,IF($C$5,8,0),1,1))) -> 5493690000 | D118: =IF(A118>$B$30,NA(),IF(A118>$A$8,"",OFFSET(InputPriceData!$C$15,CalculationsAndCharts!$A118+$A$11,IF($C$5,8,0),1,1))) -> 3903.64 | E118: =IF(A118>$B$30,NA(),IF(A118>$A$8,"",OFFSET(InputPriceData!$D$15,CalculationsAndCharts!$A118+$A$11,IF($C$5,8,0),1,1))) -> 3906.41 | F118: =IF(A118>$B$30,NA(),IF(A118>$A$8,"",OFFSET(InputPriceData!$E$15,CalculationsAndCharts!$A118+$A$11,IF($C$5,8,0),1,1))) -> 3868.57 | G118: =IF(A118>$B$30,NA(),IF(A118>$A$8,"",OFFSET(InputPriceData!$F$15,CalculationsAndCharts!$A118+$A$11,IF($C$5,8,0),1,1))) -> 3870.29 | H118: 37.84 | I118: 54.53118033 | J118: 0 | K118: 0 | L118: 11.09535267 | M118: 14.73097202 | N118: 20.34680454 | O118: 27.01385139 | P118: 6.667046857 | Q118: 47.36065593 | R118: 14.07718438 | S118: 14.78487483 | T118: -0.05443772744 | U118: 20.34680454 | V118: 27.01385139 | Y118: -8.09 | Z118: -26.06 | AA118: 0 | AB118: 0 | AC118: -3.635619344 | AE118: -2.40658254 | AF118: -3.912341226 | AX118: 5493690000
A119: 87 | B119: =IF(A119>$B$30,NA(),IF($A119>$A$8,"",OFFSET(InputPriceData!$B$15,$A119+$A$11,0,1,1))) -> 2021-03-01 | C119: =IF(A119>$B$30,NA(),IF($A119>$A$8,"",OFFSET(InputPriceData!$G$15,CalculationsAndCharts!$A119+$A$11,IF($C$5,8,0),1,1))) -> 5071540000 | D119: =IF(A119>$B$30,NA(),IF(A119>$A$8,"",OFFSET(InputPriceData!$C$15,CalculationsAndCharts!$A119+$A$11,IF($C$5,8,0),1,1))) -> 3842.51 | E119: =IF(A119>$B$30,NA(),IF(A119>$A$8,"",OFFSET(InputPriceData!$D$15,CalculationsAndCharts!$A119+$A$11,IF($C$5,8,0),1,1))) -> 3914.5 | F119: =IF(A119>$B$30,NA(),IF(A119>$A$8,"",OFFSET(InputPriceData!$E$15,CalculationsAndCharts!$A119+$A$11,IF($C$5,8,0),1,1))) -> 3842.51 | G119: =IF(A119>$B$30,NA(),IF(A119>$A$8,"",OFFSET(InputPriceData!$F$15,CalculationsAndCharts!$A119+$A$11,IF($C$5,8,0),1,1))) -> 3901.82 | H119: 103.35 | I119: 55.81511728 | J119: 53.42 | K119: 0 | L119: 11.94884134 | M119: 15.86412371 | N119: 21.40789435 | O119: 28.422629 | P119: 7.014734648 | Q119: 49.83052336 | R119: 14.07718438 | S119: 14.83931256 | T119: -0.05862524493 | U119: 21.40789435 | V119: 28.422629 | Y119: 53.42 | Z119: -52.97 | AA119: 53.42 | AB119: 0 | AC119: -3.915282371 | AE119: -1.529100294 | AF119: -3.669876254 | AW119: 5071540000
A120: 88 | B120: =IF(A120>$B$30,NA(),IF($A120>$A$8,"",OFFSET(InputPriceData!$B$15,$A120+$A$11,0,1,1))) -> 2021-02-26 | C120: =IF(A120>$B$30,NA(),IF($A120>$A$8,"",OFFSET(InputPriceData!$G$15,CalculationsAndCharts!$A120+$A$11,IF($C$5,8,0),1,1))) -> 6512950000 | D120: =IF(A120>$B$30,NA(),IF(A120>$A$8,"",OFFSET(InputPriceData!$C$15,CalculationsAndCharts!$A120+$A$11,IF($C$5,8,0),1,1))) -> 3839.66 | E120: =IF(A120>$B$30,NA(),IF(A120>$A$8,"",OFFSET(InputPriceData!$D$15,CalculationsAndCharts!$A120+$A$11,IF($C$5,8,0),1,1))) -> 3861.08 | F120: =IF(A120>$B$30,NA(),IF(A120>$A$8,"",OFFSET(InputPriceData!$E$15,CalculationsAndCharts!$A120+$A$11,IF($C$5,8,0),1,1))) -> 3789.54 | G120: =IF(A120>$B$30,NA(),IF(A120>$A$8,"",OFFSET(InputPriceData!$F$15,CalculationsAndCharts!$A120+$A$11,IF($C$5,8,0),1,1))) -> 3811.15 | H120: 71.54 | I120: 52.15858784 | J120: 0 | K120: 24.5 | L120: 8.758752213 | M120: 17.08444092 | N120: 16.79254093 | O120: 32.7547996 | P120: 15.96225866 | Q120: 49.54734053 | R120: 32.21617648 | S120: 14.8979378 | T120: 1.332172206 | U120: 16.79254093 | V120: 32.7547996 | Y120: -63.94 | Z120: 24.5 | AA120: 0 | AB120: 24.5 | AC120: -8.325688707 | AE120: -0.7059994769 | AF120: -3.04691157 | AX120: 6512950000
A121: 89 | B121: =IF(A121>$B$30,NA(),IF($A121>$A$8,"",OFFSET(InputPriceData!$B$15,$A121+$A$11,0,1,1))) -> 2021-02-25 | C121: =IF(A121>$B$30,NA(),IF($A121>$A$8,"",OFFSET(InputPriceData!$G$15,CalculationsAndCharts!$A121+$A$11,IF($C$5,8,0),1,1))) -> 6513060000 | D121: =IF(A121>$B$30,NA(),IF(A121>$A$8,"",OFFSET(InputPriceData!$C$15,CalculationsAndCharts!$A121+$A$11,IF($C$5,8,0),1,1))) -> 3915.8 | E121: =IF(A121>$B$30,NA(),IF(A121>$A$8,"",OFFSET(InputPriceData!$D$15,CalculationsAndCharts!$A121+$A$11,IF($C$5,8,0),1,1))) -> 3925.02 | F121: =IF(A121>$B$30,NA(),IF(A121>$A$8,"",OFFSET(InputPriceData!$E$15,CalculationsAndCharts!$A121+$A$11,IF($C$5,8,0),1,1))) -> 3814.04 | G121: =IF(A121>$B$30,NA(),IF(A121>$A$8,"",OFFSET(InputPriceData!$F$15,CalculationsAndCharts!$A121+$A$11,IF($C$5,8,0),1,1))) -> 3829.34 | H121: 111.39 | I121: 50.66770998 | J121: 0 | K121: 45.56 | L121: 9.432502383 | M121: 16.5140133 | N121: 18.61639768 | O121: 32.59277616 | P121: 13.97637848 | Q121: 51.20917383 | R121: 27.29272401 | S121: 13.5657656 | T121: 1.055919878 | U121: 18.61639768 | V121: 32.59277616 | Y121: -3.63 | Z121: 45.56 | AA121: 0 | AB121: 45.56 | AC121: -7.081510915 | AE121: -0.02262073904 | AF121: -2.190612005 | AX121: 6513060000
A122: 90 | B122: =IF(A122>$B$30,NA(),IF($A122>$A$8,"",OFFSET(InputPriceData!$B$15,$A122+$A$11,0,1,1))) -> 2021-02-24 | C122: =IF(A122>$B$30,NA(),IF($A122>$A$8,"",OFFSET(InputPriceData!$G$15,CalculationsAndCharts!$A122+$A$11,IF($C$5,8,0),1,1))) -> 5942350000 | D122: =IF(A122>$B$30,NA(),IF(A122>$A$8,"",OFFSET(InputPriceData!$C$15,CalculationsAndCharts!$A122+$A$11,IF($C$5,8,0),1,1))) -> 3873.71 | E122: =IF(A122>$B$30,NA(),IF(A122>$A$8,"",OFFSET(InputPriceData!$D$15,CalculationsAndCharts!$A122+$A$11,IF($C$5,8,0),1,1))) -> 3928.65 | F122: =IF(A122>$B$30,NA(),IF(A122>$A$8,"",OFFSET(InputPriceData!$E$15,CalculationsAndCharts!$A122+$A$11,IF($C$5,8,0),1,1))) -> 3859.6 | G122: =IF(A122>$B$30,NA(),IF(A122>$A$8,"",OFFSET(InputPriceData!$F$15,CalculationsAndCharts!$A122+$A$11,IF($C$5,8,0),1,1))) -> 3925.43 | H122: 69.05 | I122: 45.99676459 | J122: 32.67 | K122: 0 | L122: 10.15807949 | M122: 14.27970663 | N122: 22.0843348 | O122: 31.04502405 | P122: 8.960689248 | Q122: 53.12935885 | R122: 16.86579594 | S122: 12.50984572 | T122: 0.3350730938 | U122: 22.0843348 | V122: 31.04502405 | Y122: 32.67 | Z122: -54.01 | AA122: 32.67 | AB122: 0 | AC122: -4.121627139 | AE122: 0.4687022392 | AF122: -1.235778283 | AW122: 5942350000
A123: 91 | B123: =IF(A123>$B$30,NA(),IF($A123>$A$8,"",OFFSET(InputPriceData!$B$15,$A123+$A$11,0,1,1))) -> 2021-02-23 | C123: =IF(A123>$B$30,NA(),IF($A123>$A$8,"",OFFSET(InputPriceData!$G$15,CalculationsAndCharts!$A123+$A$11,IF($C$5,8,0),1,1))) -> 6280650000 | D123: =IF(A123>$B$30,NA(),IF(A123>$A$8,"",OFFSET(InputPriceData!$C$15,CalculationsAndCharts!$A123+$A$11,IF($C$5,8,0),1,1))) -> 3857.07 | E123: =IF(A123>$B$30,NA(),IF(A123>$A$8,"",OFFSET(InputPriceData!$D$15,CalculationsAndCharts!$A123+$A$11,IF($C$5,8,0),1,1))) -> 3895.98 | F123: =IF(A123>$B$30,NA(),IF(A123>$A$8,"",OFFSET(InputPriceData!$E$15,CalculationsAndCharts!$A123+$A$11,IF($C$5,8,0),1,1))) -> 3805.59 | G123: =IF(A123>$B$30,NA(),IF(A123>$A$8,"",OFFSET(InputPriceData!$F$15,CalculationsAndCharts!$A123+$A$11,IF($C$5,8,0),1,1))) -> 3881.37 | H123: 90.39 | I123: 44.22343879 | J123: 0 | K123: 69.12 | L123: 8.426393297 | M123: 15.3781456 | N123: 19.05413402 | O123: 34.77374447 | P123: 15.71961045 | Q123: 53.82787849 | R123: 29.2034739 | S123: 12.17477263 | T123: 1.309900098 | U123: 19.05413402 | V123: 34.77374447 | Y123: -6.94 | Z123: 69.12 | AA123: 0 | AB123: 69.12 | AC123: -6.951752304 | AE123: 0.7458696541 | AF123: -0.1725978373 | AW123: 6280650000
A124: 92 | B124: =IF(A124>$B$30,NA(),IF($A124>$A$8,"",OFFSET(InputPriceData!$B$15,$A124+$A$11,0,1,1))) -> 2021-02-22 | C124: =IF(A124>$B$30,NA(),IF($A124>$A$8,"",OFFSET(InputPriceData!$G$15,CalculationsAndCharts!$A124+$A$11,IF($C$5,8,0),1,1))) -> 5870190000 | D124: =IF(A124>$B$30,NA(),IF(A124>$A$8,"",OFFSET(InputPriceData!$C$15,CalculationsAndCharts!$A124+$A$11,IF($C$5,8,0),1,1))) -> 3885.55 | E124: =IF(A124>$B$30,NA(),IF(A124>$A$8,"",OFFSET(InputPriceData!$D$15,CalculationsAndCharts!$A124+$A$11,IF($C$5,8,0),1,1))) -> 3902.92 | F124: =IF(A124>$B$30,NA(),IF(A124>$A$8,"",OFFSET(InputPriceData!$E$15,CalculationsAndCharts!$A124+$A$11,IF($C$5,8,0),1,1))) -> 3874.71 | G124: =IF(A124>$B$30,NA(),IF(A124>$A$8,"",OFFSET(InputPriceData!$F$15,CalculationsAndCharts!$A124+$A$11,IF($C$5,8,0),1,1))) -> 3876.5 | H124: 32 | I124: 40.67216486 | J124: 0 | K124: 28.36 | L124: 9.074577397 | M124: 11.2441568 | N124: 22.31151803 | O124: 27.64582815 | P124: 5.334310116 | Q124: 49.95734618 | R124: 10.67772915 | S124: 10.86487253 | T124: -0.01439564461 | U124: 22.31151803 | V124: 27.64582815 | Y124: -27.49 | Z124: 28.36 | AA124: 0 | AB124: 28.36 | AC124: -2.169579404 | AE124: 0.7845808833 | AF124: 0.9573845095 | AX124: 5870190000
A125: 93 | B125: =IF(A125>$B$30,NA(),IF($A125>$A$8,"",OFFSET(InputPriceData!$B$15,$A125+$A$11,0,1,1))) -> 2021-02-19 | C125: =IF(A125>$B$30,NA(),IF($A125>$A$8,"",OFFSET(InputPriceData!$G$15,CalculationsAndCharts!$A125+$A$11,IF($C$5,8,0),1,1))) -> 4823940000 | D125: =IF(A125>$B$30,NA(),IF(A125>$A$8,"",OFFSET(InputPriceData!$C$15,CalculationsAndCharts!$A125+$A$11,IF($C$5,8,0),1,1))) -> 3921.16 | E125: =IF(A125>$B$30,NA(),IF(A125>$A$8,"",OFFSET(InputPriceData!$D$15,CalculationsAndCharts!$A125+$A$11,IF($C$5,8,0),1,1))) -> 3930.41 | F125: =IF(A125>$B$30,NA(),IF(A125>$A$8,"",OFFSET(InputPriceData!$E$15,CalculationsAndCharts!$A125+$A$11,IF($C$5,8,0),1,1))) -> 3903.07 | G125: =IF(A125>$B$30,NA(),IF(A125>$A$8,"",OFFSET(InputPriceData!$F$15,CalculationsAndCharts!$A125+$A$11,IF($C$5,8,0),1,1))) -> 3906.71 | H125: 27.34 | I125: 41.33925446 | J125: 8.43 | K125: 0 | L125: 9.772621812 | M125: 9.927553478 | N125: 23.64005336 | O125: 24.01483434 | P125: 0.3747809875 | Q125: 47.6548877 | R125: 0.7864481601 | S125: 10.87926817 | T125: -0.7763707703 | U125: 23.64005336 | V125: 24.01483434 | Y125: 8.43 | Z125: -18.04 | AA125: 8.43 | AB125: 0 | AC125: -0.1549316661 | AE125: 0.5698532148 | AF125: 2.162247766 | AX125: 4823940000
A126: 94 | B126: =IF(A126>$B$30,NA(),IF($A126>$A$8,"",OFFSET(InputPriceData!$B$15,$A126+$A$11,0,1,1))) -> 2021-02-18 | C126: =IF(A126>$B$30,NA(),IF($A126>$A$8,"",OFFSET(InputPriceData!$G$15,CalculationsAndCharts!$A126+$A$11,IF($C$5,8,0),1,1))) -> 4773430000 | D126: =IF(A126>$B$30,NA(),IF(A126>$A$8,"",OFFSET(InputPriceData!$C$15,CalculationsAndCharts!$A126+$A$11,IF($C$5,8,0),1,1))) -> 3915.86 | E126: =IF(A126>$B$30,NA(),IF(A126>$A$8,"",OFFSET(InputPriceData!$D$15,CalculationsAndCharts!$A126+$A$11,IF($C$5,8,0),1,1))) -> 3921.98 | F126: =IF(A126>$B$30,NA(),IF(A126>$A$8,"",OFFSET(InputPriceData!$E$15,CalculationsAndCharts!$A126+$A$11,IF($C$5,8,0),1,1))) -> 3885.03 | G126: =IF(A126>$B$30,NA(),IF(A126>$A$8,"",OFFSET(InputPriceData!$F$15,CalculationsAndCharts!$A126+$A$11,IF($C$5,8,0),1,1))) -> 3913.97 | H126: 46.3 | I126: 42.41612019 | J126: 0 | K126: 15.4 | L126: 9.875900413 | M126: 10.69121144 | N126: 23.28336578 | O126: 25.20553834 | P126: 1.922172564 | Q126: 48.48890412 | R126: 3.964149322 | S126: 11.65563894 | T126: -0.5916530479 | U126: 23.28336578 | V126: 25.20553834 | Y126: -11.63 | Z126: 15.4 | AA126: 0 | AB126: 15.4 | AC126: -0.815311025 | AE126: 0.0848919301 | AF126: 3.335414762 | AX126: 4773430000
A127: 95 | B127: =IF(A127>$B$30,NA(),IF($A127>$A$8,"",OFFSET(InputPriceData!$B$15,$A127+$A$11,0,1,1))) -> 2021-02-17 | C127: =IF(A127>$B$30,NA(),IF($A127>$A$8,"",OFFSET(InputPriceData!$G$15,CalculationsAndCharts!$A127+$A$11,IF($C$5,8,0),1,1))) -> 4718280000 | D127: =IF(A127>$B$30,NA(),IF(A127>$A$8,"",OFFSET(InputPriceData!$C$15,CalculationsAndCharts!$A127+$A$11,IF($C$5,8,0),1,1))) -> 3918.5 | E127: =IF(A127>$B$30,NA(),IF(A127>$A$8,"",OFFSET(InputPriceData!$D$15,CalculationsAndCharts!$A127+$A$11,IF($C$5,8,0),1,1))) -> 3933.61 | F127: =IF(A127>$B$30,NA(),IF(A127>$A$8,"",OFFSET(InputPriceData!$E$15,CalculationsAndCharts!$A127+$A$11,IF($C$5,8,0),1,1))) -> 3900.43 | G127: =IF(A127>$B$30,NA(),IF(A127>$A$8,"",OFFSET(InputPriceData!$F$15,CalculationsAndCharts!$A127+$A$11,IF($C$5,8,0),1,1))) -> 3931.33 | H127: 33.18 | I127: 42.1173602 | J127: 0 | K127: 23.42 | L127: 10.63558506 | M127: 10.32899693 | N127: 25.25225942 | O127: 24.52432176 | P127: 0.7279376614 | Q127: 49.77658118 | R127: 1.462409921 | S127: 12.24729199 | T127: -0.8296063132 | U127: 25.25225942 | V127: 24.52432176 | Y127: -16.82 | Z127: 23.42 | AA127: 0 | AB127: 23.42 | AC127: 0.3065881269 | AE127: -0.6631939523 | AF127: 4.217925054 | AW127: 4718280000
A128: 96 | B128: =IF(A128>$B$30,NA(),IF($A128>$A$8,"",OFFSET(InputPriceData!$B$15,$A128+$A$11,0,1,1))) -> 2021-02-16 | C128: =IF(A128>$B$30,NA(),IF($A128>$A$8,"",OFFSET(InputPriceData!$G$15,CalculationsAndCharts!$A128+$A$11,IF($C$5,8,0),1,1))) -> 5037360000 | D128: =IF(A128>$B$30,NA(),IF(A128>$A$8,"",OFFSET(InputPriceData!$C$15,CalculationsAndCharts!$A128+$A$11,IF($C$5,8,0),1,1))) -> 3939.61 | E128: =IF(A128>$B$30,NA(),IF(A128>$A$8,"",OFFSET(InputPriceData!$D$15,CalculationsAndCharts!$A128+$A$11,IF($C$5,8,0),1,1))) -> 3950.43 | F128: =IF(A128>$B$30,NA(),IF(A128>$A$8,"",OFFSET(InputPriceData!$E$15,CalculationsAndCharts!$A128+$A$11,IF($C$5,8,0),1,1))) -> 3923.85 | G128: =IF(A128>$B$30,NA(),IF(A128>$A$8,"",OFFSET(InputPriceData!$F$15,CalculationsAndCharts!$A128+$A$11,IF($C$5,8,0),1,1))) -> 3932.59 | H128: 26.58 | I128: 42.80484945 | J128: 13.2 | K128: 0 | L128: 11.45370699 | M128: 9.321996697 | N128: 26.75796583 | O128: 21.77789857 | P128: 4.980067254 | Q128: 48.5358644 | R128: 10.26059248 | S128: 13.07689831 | T128: -0.2166389094 | U128: 26.75796583 | V128: 21.77789857 | Y128: 13.2 | Z128: -18.07 | AA128: 13.2 | AB128: 0 | AC128: 2.13171029 | AE128: -1.609214286 | AF128: 4.465048483 | AX128: 5037360000
A129: 97 | B129: =IF(A129>$B$30,NA(),IF($A129>$A$8,"",OFFSET(InputPriceData!$B$15,$A129+$A$11,0,1,1))) -> 2021-02-12 | C129: =IF(A129>$B$30,NA(),IF($A129>$A$8,"",OFFSET(InputPriceData!$G$15,CalculationsAndCharts!$A129+$A$11,IF($C$5,8,0),1,1))) -> 4119260000 | D129: =IF(A129>$B$30,NA(),IF(A129>$A$8,"",OFFSET(InputPriceData!$C$15,CalculationsAndCharts!$A129+$A$11,IF($C$5,8,0),1,1))) -> 3911.65 | E129: =IF(A129>$B$30,NA(),IF(A129>$A$8,"",OFFSET(InputPriceData!$D$15,CalculationsAndCharts!$A129+$A$11,IF($C$5,8,0),1,1))) -> 3937.23 | F129: =IF(A129>$B$30,NA(),IF(A129>$A$8,"",OFFSET(InputPriceData!$E$15,CalculationsAndCharts!$A129+$A$11,IF($C$5,8,0),1,1))) -> 3905.78 | G129: =IF(A129>$B$30,NA(),IF(A129>$A$8,"",OFFSET(InputPriceData!$F$15,CalculationsAndCharts!$A129+$A$11,IF($C$5,8,0),1,1))) -> 3934.83 | H129: 31.45 | I129: 44.05291479 | J129: 11.24 | K129: 0 | L129: 11.31937676 | M129: 10.03907337 | N129: 25.69495528 | O129: 22.78866997 | P129: 2.906285307 | Q129: 48.48362526 | R129: 5.994364678 | S129: 13.29353721 | T129: -0.5614748106 | U129: 25.69495528 | V129: 22.78866997 | Y129: 11.24 | Z129: -15.39 | AA129: 11.24 | AB129: 0 | AC129: 1.28030339 | AE129: -2.610660874 | AF129: 3.913167478 | AW129: 4119260000
A130: 98 | B130: =IF(A130>$B$30,NA(),IF($A130>$A$8,"",OFFSET(InputPriceData!$B$15,$A130+$A$11,0,1,1))) -> 2021-02-11 | C130: =IF(A130>$B$30,NA(),IF($A130>$A$8,"",OFFSET(InputPriceData!$G$15,CalculationsAndCharts!$A130+$A$11,IF($C$5,8,0),1,1))) -> 4570080000 | D130: =IF(A130>$B$30,NA(),IF(A130>$A$8,"",OFFSET(InputPriceData!$C$15,CalculationsAndCharts!$A130+$A$11,IF($C$5,8,0),1,1))) -> 3916.4 | E130: =IF(A130>$B$30,NA(),IF(A130>$A$8,"",OFFSET(InputPriceData!$D$15,CalculationsAndCharts!$A130+$A$11,IF($C$5,8,0),1,1))) -> 3925.99 | F130: =IF(A130>$B$30,NA(),IF(A130>$A$8,"",OFFSET(InputPriceData!$E$15,CalculationsAndCharts!$A130+$A$11,IF($C$5,8,0),1,1))) -> 3890.39 | G130: =IF(A130>$B$30,NA(),IF(A130>$A$8,"",OFFSET(InputPriceData!$F$15,CalculationsAndCharts!$A130+$A$11,IF($C$5,8,0),1,1))) -> 3916.38 | H130: 35.6 | I130: 45.02236977 | J130: 0 | K130: 0 | L130: 11.32548266 | M130: 10.81130978 | N130: 25.15523442 | O130: 24.01319574 | P130: 1.142038688 | Q130: 49.16843016 | R130: 2.322707243 | S130: 13.85501203 | T130: -0.8871003679 | U130: 25.15523442 | V130: 24.01319574 | Y130: -5.51 | Z130: -5.45 | AA130: 0 | AB130: 0 | AC130: 0.5141728813 | AE130: -3.488328437 | AF130: 2.633177794 | AX130: 4570080000
A131: 99 | B131: =IF(A131>$B$30,NA(),IF($A131>$A$8,"",OFFSET(InputPriceData!$B$15,$A131+$A$11,0,1,1))) -> 2021-02-10 | C131: =IF(A131>$B$30,NA(),IF($A131>$A$8,"",OFFSET(InputPriceData!$G$15,CalculationsAndCharts!$A131+$A$11,IF($C$5,8,0),1,1))) -> 4815380000 | D131: =IF(A131>$B$30,NA(),IF(A131>$A$8,"",OFFSET(InputPriceData!$C$15,CalculationsAndCharts!$A131+$A$11,IF($C$5,8,0),1,1))) -> 3920.78 | E131: =IF(A131>$B$30,NA(),IF(A131>$A$8,"",OFFSET(InputPriceData!$D$15,CalculationsAndCharts!$A131+$A$11,IF($C$5,8,0),1,1))) -> 3931.5 | F131: =IF(A131>$B$30,NA(),IF(A131>$A$8,"",OFFSET(InputPriceData!$E$15,CalculationsAndCharts!$A131+$A$11,IF($C$5,8,0),1,1))) -> 3884.94 | G131: =IF(A131>$B$30,NA(),IF(A131>$A$8,"",OFFSET(InputPriceData!$F$15,CalculationsAndCharts!$A131+$A$11,IF($C$5,8,0),1,1))) -> 3909.88 | H131: 46.56 | I131: 45.74716745 | J131: 0 | K131: 17.7 | L131: 12.19667363 | M131: 11.64294899 | N131: 26.6610466 | O131: 25.45064458 | P131: 1.210402025 | Q131: 52.11169118 | R131: 2.322707243 | S131: 14.74211239 | T131: -0.9553388578 | U131: 26.6610466 | V131: 25.45064458 | Y131: 13.15 | Z131: 17.7 | AA131: 0 | AB131: 17.7 | AC131: 0.5537246414 | AE131: -4.0789126 | AF131: 0.6994625006 | AX131: 4815380000
A132: 100 | B132: =IF(A132>$B$30,NA(),IF($A132>$A$8,"",OFFSET(InputPriceData!$B$15,$A132+$A$11,0,1,1))) -> 2021-02-09 | C132: =IF(A132>$B$30,NA(),IF($A132>$A$8,"",OFFSET(InputPriceData!$G$15,CalculationsAndCharts!$A132+$A$11,IF($C$5,8,0),1,1))) -> 4554610000 | D132: =IF(A132>$B$30,NA(),IF(A132>$A$8,"",OFFSET(InputPriceData!$C$15,CalculationsAndCharts!$A132+$A$11,IF($C$5,8,0),1,1))) -> 3910.49 | E132: =IF(A132>$B$30,NA(),IF(A132>$A$8,"",OFFSET(InputPriceData!$D$15,CalculationsAndCharts!$A132+$A$11,IF($C$5,8,0),1,1))) -> 3918.35 | F132: =IF(A132>$B$30,NA(),IF(A132>$A$8,"",OFFSET(InputPriceData!$E$15,CalculationsAndCharts!$A132+$A$11,IF($C$5,8,0),1,1))) -> 3902.64 | G132: =IF(A132>$B$30,NA(),IF(A132>$A$8,"",OFFSET(InputPriceData!$F$15,CalculationsAndCharts!$A132+$A$11,IF($C$5,8,0),1,1))) -> 3911.23 | H132: 15.71 | I132: 45.68464187 | J132: 2.58 | K132: 0 | L132: 13.1348793 | M132: 11.17702199 | N132: 28.75119244 | O132: 24.46560055 | P132: 4.285591888 | Q132: 53.21679299 | R132: 8.053081833 | S132: 15.69745125 | T132: -0.5880284168 | U132: 28.75119244 | V132: 24.46560055 | Y132: 2.58 | Z132: -10.05 | AA132: 2.58 | AB132: 0 | AC132: 1.957857306 | AE132: -4.235792046 | AF132: -1.616682739 | AW132: 4554610000
A133: 101 | B133: =IF(A133>$B$30,NA(),IF($A133>$A$8,"",OFFSET(InputPriceData!$B$15,$A133+$A$11,0,1,1))) -> 2021-02-08 | C133: =IF(A133>$B$30,NA(),IF($A133>$A$8,"",OFFSET(InputPriceData!$G$15,CalculationsAndCharts!$A133+$A$11,IF($C$5,8,0),1,1))) -> 4635030000 | D133: =IF(A133>$B$30,NA(),IF(A133>$A$8,"",OFFSET(InputPriceData!$C$15,CalculationsAndCharts!$A133+$A$11,IF($C$5,8,0),1,1))) -> 3892.59 | E133: =IF(A133>$B$30,NA(),IF(A133>$A$8,"",OFFSET(InputPriceData!$D$15,CalculationsAndCharts!$A133+$A$11,IF($C$5,8,0),1,1))) -> 3915.77 | F133: =IF(A133>$B$30,NA(),IF(A133>$A$8,"",OFFSET(InputPriceData!$E$15,CalculationsAndCharts!$A133+$A$11,IF($C$5,8,0),1,1))) -> 3892.59 | G133: =IF(A133>$B$30,NA(),IF(A133>$A$8,"",OFFSET(InputPriceData!$F$15,CalculationsAndCharts!$A133+$A$11,IF($C$5,8,0),1,1))) -> 3915.59 | H133: 28.94 | I133: 47.99038355 | J133: 21.21 | K133: 0 | L133: 13.94679309 | M133: 12.03679291 | N133: 29.06164123 | O133: 25.08167684 | P133: 3.97996439 | Q133: 54.14331806 | R133: 7.350795135 | S133: 16.28547967 | T133: -0.6872834256 | U133: 29.06164123 | V133: 25.08167684 | Y133: 21.21 | Z133: -17.66 | AA133: 21.21 | AB133: 0 | AC133: 1.910000176 | AE133: -3.873193203 | AF133: -3.787384688 | AW133: 4635030000
A134: 102 | B134: =IF(A134>$B$30,NA(),IF($A134>$A$8,"",OFFSET(InputPriceData!$B$15,$A134+$A$11,0,1,1))) -> 2021-02-05 | C134: =IF(A134>$B$30,NA(),IF($A134>$A$8,"",OFFSET(InputPriceData!$G$15,CalculationsAndCharts!$A134+$A$11,IF($C$5,8,0),1,1))) -> 4838580000 | D134: =IF(A134>$B$30,NA(),IF(A134>$A$8,"",OFFSET(InputPriceData!$C$15,CalculationsAndCharts!$A134+$A$11,IF($C$5,8,0),1,1))) -> 3878.3 | E134: =IF(A134>$B$30,NA(),IF(A134>$A$8,"",OFFSET(InputPriceData!$D$15,CalculationsAndCharts!$A134+$A$11,IF($C$5,8,0),1,1))) -> 3894.56 | F134: =IF(A134>$B$30,NA(),IF(A134>$A$8,"",OFFSET(InputPriceData!$E$15,CalculationsAndCharts!$A134+$A$11,IF($C$5,8,0),1,1))) -> 3874.93 | G134: =IF(A134>$B$30,NA(),IF(A134>$A$8,"",OFFSET(InputPriceData!$F$15,CalculationsAndCharts!$A134+$A$11,IF($C$5,8,0),1,1))) -> 3886.83 | H134: 22.82 | I134: 49.45579767 | J134: 22.14 | K134: 0 | L134: 13.38808487 | M134: 12.96270006 | N134: 27.07080969 | O134: 26.21067837 | P134: 0.8601313188 | Q134: 53.28148805 | R134: 1.614315497 | S134: 16.97276309 | T134: -1.181419046 | U134: 27.07080969 | V134: 26.21067837 | Y134: 22.14 | Z134: -38.27 | AA134: 22.14 | AB134: 0 | AC134: 0.4253848047 | AE134: -3.023736923 | AF134: -5.277347138 | AW134: 4838580000
A135: 103 | B135: =IF(A135>$B$30,NA(),IF($A135>$A$8,"",OFFSET(InputPriceData!$B$15,$A135+$A$11,0,1,1))) -> 2021-02-04 | C135: =IF(A135>$B$30,NA(),IF($A135>$A$8,"",OFFSET(InputPriceData!$G$15,CalculationsAndCharts!$A135+$A$11,IF($C$5,8,0),1,1))) -> 4856670000 | D135: =IF(A135>$B$30,NA(),IF(A135>$A$8,"",OFFSET(InputPriceData!$C$15,CalculationsAndCharts!$A135+$A$11,IF($C$5,8,0),1,1))) -> 3836.66 | E135: =IF(A135>$B$30,NA(),IF(A135>$A$8,"",OFFSET(InputPriceData!$D$15,CalculationsAndCharts!$A135+$A$11,IF($C$5,8,0),1,1))) -> 3872.42 | F135: =IF(A135>$B$30,NA(),IF(A135>$A$8,"",OFFSET(InputPriceData!$E$15,CalculationsAndCharts!$A135+$A$11,IF($C$5,8,0),1,1))) -> 3836.66 | G135: =IF(A135>$B$30,NA(),IF(A135>$A$8,"",OFFSET(InputPriceData!$F$15,CalculationsAndCharts!$A135+$A$11,IF($C$5,8,0),1,1))) -> 3871.74 | H135: 42.25 | I135: 51.50470518 | J135: 24.91 | K135: 0 | L135: 12.71486063 | M135: 13.95983084 | N135: 24.6867943 | O135: 27.10399135 | P135: 2.417197042 | Q135: 51.79078565 | R135: 4.667233779 | S135: 18.15418214 | T135: -1.037457566 | U135: 24.6867943 | V135: 27.10399135 | Y135: 24.91 | Z135: -19.98 | AA135: 24.91 | AB135: 0 | AC135: -1.24497021 | AE135: -1.840103351 | AF135: -5.9282212 | AW135: 4856670000
A136: 104 | B136: =IF(A136>$B$30,NA(),IF($A136>$A$8,"",OFFSET(InputPriceData!$B$15,$A136+$A$11,0,1,1))) -> 2021-02-03 | C136: =IF(A136>$B$30,NA(),IF($A136>$A$8,"",OFFSET(InputPriceData!$G$15,CalculationsAndCharts!$A136+$A$11,IF($C$5,8,0),1,1))) -> 4846900000 | D136: =IF(A136>$B$30,NA(),IF(A136>$A$8,"",OFFSET(InputPriceData!$C$15,CalculationsAndCharts!$A136+$A$11,IF($C$5,8,0),1,1))) -> 3840.27 | E136: =IF(A136>$B$30,NA(),IF(A136>$A$8,"",OFFSET(InputPriceData!$D$15,CalculationsAndCharts!$A136+$A$11,IF($C$5,8,0),1,1))) -> 3847.51 | F136: =IF(A136>$B$30,NA(),IF(A136>$A$8,"",OFFSET(InputPriceData!$E$15,CalculationsAndCharts!$A136+$A$11,IF($C$5,8,0),1,1))) -> 3816.68 | G136: =IF(A136>$B$30,NA(),IF(A136>$A$8,"",OFFSET(InputPriceData!$F$15,CalculationsAndCharts!$A136+$A$11,IF($C$5,8,0),1,1))) -> 3830.17 | H136: 30.83 | I136: 52.21660558 | J136: 4.42 | K136: 0 | L136: 11.77677298 | M136: 15.03366398 | N136: 22.55369312 | O136: 28.79096374 | P136: 6.237270614 | Q136: 51.34465686 | R136: 12.1478475 | S136: 19.19163971 | T136: -0.5418301697 | U136: 22.55369312 | V136: 28.79096374 | Y136: 4.42 | Z136: -24.84 | AA136: 4.42 | AB136: 0 | AC136: -3.256890996 | AE136: -0.5104880245 | AF136: -5.799060082 | AX136: 4846900000
A137: 105 | B137: =IF(A137>$B$30,NA(),IF($A137>$A$8,"",OFFSET(InputPriceData!$B$15,$A137+$A$11,0,1,1))) -> 2021-02-02 | C137: =IF(A137>$B$30,NA(),IF($A137>$A$8,"",OFFSET(InputPriceData!$G$15,CalculationsAndCharts!$A137+$A$11,IF($C$5,8,0),1,1))) -> 5495370000 | D137: =IF(A137>$B$30,NA(),IF(A137>$A$8,"",OFFSET(InputPriceData!$C$15,CalculationsAndCharts!$A137+$A$11,IF($C$5,8,0),1,1))) -> 3791.84 | E137: =IF(A137>$B$30,NA(),IF(A137>$A$8,"",OFFSET(InputPriceData!$D$15,CalculationsAndCharts!$A137+$A$11,IF($C$5,8,0),1,1))) -> 3843.09 | F137: =IF(A137>$B$30,NA(),IF(A137>$A$8,"",OFFSET(InputPriceData!$E$15,CalculationsAndCharts!$A137+$A$11,IF($C$5,8,0),1,1))) -> 3791.84 | G137: =IF(A137>$B$30,NA(),IF(A137>$A$8,"",OFFSET(InputPriceData!$F$15,CalculationsAndCharts!$A137+$A$11,IF($C$5,8,0),1,1))) -> 3826.31 | H137: 69.23 | I137: 53.86172909 | J137: 58.77 | K137: 0 | L137: 12.34267859 | M137: 16.19009967 | N137: 22.91548898 | O137: 30.05863336 | P137: 7.143144376 | Q137: 52.97412234 | R137: 13.48421467 | S137: 19.73346988 | T137: -0.4807119388 | U137: 22.91548898 | V137: 30.05863336 | Y137: 58.77 | Z137: -66.22 | AA137: 58.77 | AB137: 0 | AC137: -3.847421072 | AE137: 0.7901583082 | AF137: -4.998707822 | AW137: 5495370000
A138: 106 | B138: =IF(A138>$B$30,NA(),IF($A138>$A$8,"",OFFSET(InputPriceData!$B$15,$A138+$A$11,0,1,1))) -> 2021-02-01 | C138: =IF(A138>$B$30,NA(),IF($A138>$A$8,"",OFFSET(InputPriceData!$G$15,CalculationsAndCharts!$A138+$A$11,IF($C$5,8,0),1,1))) -> 5392870000 | D138: =IF(A138>$B$30,NA(),IF(A138>$A$8,"",OFFSET(InputPriceData!$C$15,CalculationsAndCharts!$A138+$A$11,IF($C$5,8,0),1,1))) -> 3731.17 | E138: =IF(A138>$B$30,NA(),IF(A138>$A$8,"",OFFSET(InputPriceData!$D$15,CalculationsAndCharts!$A138+$A$11,IF($C$5,8,0),1,1))) -> 3784.32 | F138: =IF(A138>$B$30,NA(),IF(A138>$A$8,"",OFFSET(InputPriceData!$E$15,CalculationsAndCharts!$A138+$A$11,IF($C$5,8,0),1,1))) -> 3725.62 | G138: =IF(A138>$B$30,NA(),IF(A138>$A$8,"",OFFSET(InputPriceData!$F$15,CalculationsAndCharts!$A138+$A$11,IF($C$5,8,0),1,1))) -> 3773.86 | H138: 70.08 | I138: 52.6795544 | J138: 6.27 | K138: 0 | L138: 8.771346179 | M138: 17.43549195 | N138: 16.65038036 | O138: 33.09726543 | P138: 16.44688507 | Q138: 49.74764579 | R138: 33.06062993 | S138: 20.21418181 | T138: 0.9881883167 | U138: 16.65038036 | V138: 33.09726543 | Y138: 6.27 | Z138: -31.5 | AA138: 6.27 | AB138: 0 | AC138: -8.66414577 | AE138: 1.911297063 | AF138: -3.753637943 | AW138: 5392870000
A139: 107 | B139: =IF(A139>$B$30,NA(),IF($A139>$A$8,"",OFFSET(InputPriceData!$B$15,$A139+$A$11,0,1,1))) -> 2021-01-29 | C139: =IF(A139>$B$30,NA(),IF($A139>$A$8,"",OFFSET(InputPriceData!$G$15,CalculationsAndCharts!$A139+$A$11,IF($C$5,8,0),1,1))) -> 6612570000 | D139: =IF(A139>$B$30,NA(),IF(A139>$A$8,"",OFFSET(InputPriceData!$C$15,CalculationsAndCharts!$A139+$A$11,IF($C$5,8,0),1,1))) -> 3778.05 | E139: =IF(A139>$B$30,NA(),IF(A139>$A$8,"",OFFSET(InputPriceData!$D$15,CalculationsAndCharts!$A139+$A$11,IF($C$5,8,0),1,1))) -> 3778.05 | F139: =IF(A139>$B$30,NA(),IF(A139>$A$8,"",OFFSET(InputPriceData!$E$15,CalculationsAndCharts!$A139+$A$11,IF($C$5,8,0),1,1))) -> 3694.12 | G139: =IF(A139>$B$30,NA(),IF(A139>$A$8,"",OFFSET(InputPriceData!$F$15,CalculationsAndCharts!$A139+$A$11,IF($C$5,8,0),1,1))) -> 3714.24 | H139: 93.26 | I139: 51.34105859 | J139: 0 | K139: 61.63 | L139: 8.963757424 | M139: 18.77668364 | N139: 17.45923764 | O139: 36.57245128 | P139: 19.11321364 | Q139: 54.03168891 | R139: 35.37408144 | S139: 19.2259935 | T139: 1.242160611 | U139: 17.45923764 | V139: 36.57245128 | Y139: -52.45 | Z139: 61.63 | AA139: 0 | AB139: 61.63 | AC139: -9.812926214 | AE139: 2.75318443 | AF139: -2.46105152 | AX139: 6612570000
A140: 108 | B140: =IF(A140>$B$30,NA(),IF($A140>$A$8,"",OFFSET(InputPriceData!$B$15,$A140+$A$11,0,1,1))) -> 2021-01-28 | C140: =IF(A140>$B$30,NA(),IF($A140>$A$8,"",OFFSET(InputPriceData!$G$15,CalculationsAndCharts!$A140+$A$11,IF($C$5,8,0),1,1))) -> 6937960000 | D140: =IF(A140>$B$30,NA(),IF(A140>$A$8,"",OFFSET(InputPriceData!$C$15,CalculationsAndCharts!$A140+$A$11,IF($C$5,8,0),1,1))) -> 3755.75 | E140: =IF(A140>$B$30,NA(),IF(A140>$A$8,"",OFFSET(InputPriceData!$D$15,CalculationsAndCharts!$A140+$A$11,IF($C$5,8,0),1,1))) -> 3830.5 | F140: =IF(A140>$B$30,NA(),IF(A140>$A$8,"",OFFSET(InputPriceData!$E$15,CalculationsAndCharts!$A140+$A$11,IF($C$5,8,0),1,1))) -> 3755.75 | G140: =IF(A140>$B$30,NA(),IF(A140>$A$8,"",OFFSET(InputPriceData!$F$15,CalculationsAndCharts!$A140+$A$11,IF($C$5,8,0),1,1))) -> 3787.38 | H140: 79.73 | I140: 48.11652463 | J140: 0 | K140: 0 | L140: 9.653277225 | M140: 15.48027469 | N140: 20.06229107 | O140: 32.17247049 | P140: 12.11017942 | Q140: 52.23476156 | R140: 23.1841384 | S140: 17.98383289 | T140: 0.4000235014 | U140: 20.06229107 | V140: 32.17247049 | Y140: -6.33 | Z140: -23.27 | AA140: 0 | AB140: 0 | AC140: -5.826997461 | AE140: 3.305163128 | AF140: -1.489359166 | AW140: 6937960000
A141: 109 | B141: =IF(A141>$B$30,NA(),IF($A141>$A$8,"",OFFSET(InputPriceData!$B$15,$A141+$A$11,0,1,1))) -> 2021-01-27 | C141: =IF(A141>$B$30,NA(),IF($A141>$A$8,"",OFFSET(InputPriceData!$G$15,CalculationsAndCharts!$A141+$A$11,IF($C$5,8,0),1,1))) -> 9878040000 | D141: =IF(A141>$B$30,NA(),IF(A141>$A$8,"",OFFSET(InputPriceData!$C$15,CalculationsAndCharts!$A141+$A$11,IF($C$5,8,0),1,1))) -> 3836.83 | E141: =IF(A141>$B$30,NA(),IF(A141>$A$8,"",OFFSET(InputPriceData!$D$15,CalculationsAndCharts!$A141+$A$11,IF($C$5,8,0),1,1))) -> 3836.83 | F141: =IF(A141>$B$30,NA(),IF(A141>$A$8,"",OFFSET(InputPriceData!$E$15,CalculationsAndCharts!$A141+$A$11,IF($C$5,8,0),1,1))) -> 3732.48 | G141: =IF(A141>$B$30,NA(),IF(A141>$A$8,"",OFFSET(InputPriceData!$F$15,CalculationsAndCharts!$A141+$A$11,IF($C$5,8,0),1,1))) -> 3750.77 | H141: 117.14 | I141: 45.68471883 | J141: 0 | K141: 115.3 | L141: 10.39583701 | M141: 16.67106505 | N141: 22.75561124 | O141: 36.49155664 | P141: 13.7359454 | Q141: 59.24716787 | R141: 23.1841384 | S141: 17.58380938 | T141: 0.43079454 | U141: 22.75561124 | V141: 36.49155664 | Y141: -34.07 | Z141: 115.3 | AA141: 0 | AB141: 115.3 | AC141: -6.275228035 | AE141: 3.639205112 | AF141: -0.8682752339 | AX141: 9878040000
A142: 110 | B142: =IF(A142>$B$30,NA(),IF($A142>$A$8,"",OFFSET(InputPriceData!$B$15,$A142+$A$11,0,1,1))) -> 2021-01-26 | C142: =IF(A142>$B$30,NA(),IF($A142>$A$8,"",OFFSET(InputPriceData!$G$15,CalculationsAndCharts!$A142+$A$11,IF($C$5,8,0),1,1))) -> 6029090000 | D142: =IF(A142>$B$30,NA(),IF(A142>$A$8,"",OFFSET(InputPriceData!$C$15,CalculationsAndCharts!$A142+$A$11,IF($C$5,8,0),1,1))) -> 3862.96 | E142: =IF(A142>$B$30,NA(),IF(A142>$A$8,"",OFFSET(InputPriceData!$D$15,CalculationsAndCharts!$A142+$A$11,IF($C$5,8,0),1,1))) -> 3870.9 | F142: =IF(A142>$B$30,NA(),IF(A142>$A$8,"",OFFSET(InputPriceData!$E$15,CalculationsAndCharts!$A142+$A$11,IF($C$5,8,0),1,1))) -> 3847.78 | G142: =IF(A142>$B$30,NA(),IF(A142>$A$8,"",OFFSET(InputPriceData!$F$15,CalculationsAndCharts!$A142+$A$11,IF($C$5,8,0),1,1))) -> 3849.62 | H142: 23.12 | I142: 40.18815875 | J142: 11.67 | K142: 0 | L142: 11.19551678 | M142: 9.084223897 | N142: 27.85774997 | O142: 22.60423015 | P142: 5.25351982 | Q142: 50.46198013 | R142: 10.41084755 | S142: 17.15301484 | T142: -0.5186282536 | U142: 27.85774997 | V142: 22.60423015 | Y142: 11.67 | Z142: -50.62 | AA142: 11.67 | AB142: 0 | AC142: 2.111292885 | AE142: 3.833946843 | AF142: -0.4844171573 | AX142: 6029090000
A143: 111 | B143: =IF(A143>$B$30,NA(),IF($A143>$A$8,"",OFFSET(InputPriceData!$B$15,$A143+$A$11,0,1,1))) -> 2021-01-25 | C143: =IF(A143>$B$30,NA(),IF($A143>$A$8,"",OFFSET(InputPriceData!$G$15,CalculationsAndCharts!$A143+$A$11,IF($C$5,8,0),1,1))) -> 6955860000 | D143: =IF(A143>$B$30,NA(),IF(A143>$A$8,"",OFFSET(InputPriceData!$C$15,CalculationsAndCharts!$A143+$A$11,IF($C$5,8,0),1,1))) -> 3851.68 | E143: =IF(A143>$B$30,NA(),IF(A143>$A$8,"",OFFSET(InputPriceData!$D$15,CalculationsAndCharts!$A143+$A$11,IF($C$5,8,0),1,1))) -> 3859.23 | F143: =IF(A143>$B$30,NA(),IF(A143>$A$8,"",OFFSET(InputPriceData!$E$15,CalculationsAndCharts!$A143+$A$11,IF($C$5,8,0),1,1))) -> 3797.16 | G143: =IF(A143>$B$30,NA(),IF(A143>$A$8,"",OFFSET(InputPriceData!$F$15,CalculationsAndCharts!$A143+$A$11,IF($C$5,8,0),1,1))) -> 3855.36 | H143: 62.07 | I143: 41.50109403 | J143: 0 | K143: 33.25 | L143: 11.15901807 | M143: 9.783010351 | N143: 26.88849134 | O143: 23.57289748 | P143: 3.315593852 | Q143: 50.46138882 | R143: 6.570556083 | S143: 17.6716431 | T143: -0.8539297704 | U143: 26.88849134 | V143: 23.57289748 | Y143: 6.92 | Z143: 33.25 | AA143: 0 | AB143: 33.25 | AC143: 1.376007722 | AE143: 3.942594691 | AF143: -0.1166662655 | AW143: 6955860000
A144: 112 | B144: =IF(A144>$B$30,NA(),IF($A144>$A$8,"",OFFSET(InputPriceData!$B$15,$A144+$A$11,0,1,1))) -> 2021-01-22 | C144: =IF(A144>$B$30,NA(),IF($A144>$A$8,"",OFFSET(InputPriceData!$G$15,CalculationsAndCharts!$A144+$A$11,IF($C$5,8,0),1,1))) -> 5080430000 | D144: =IF(A144>$B$30,NA(),IF(A144>$A$8,"",OFFSET(InputPriceData!$C$15,CalculationsAndCharts!$A144+$A$11,IF($C$5,8,0),1,1))) -> 3844.24 | E144: =IF(A144>$B$30,NA(),IF(A144>$A$8,"",OFFSET(InputPriceData!$D$15,CalculationsAndCharts!$A144+$A$11,IF($C$5,8,0),1,1))) -> 3852.31 | F144: =IF(A144>$B$30,NA(),IF(A144>$A$8,"",OFFSET(InputPriceData!$E$15,CalculationsAndCharts!$A144+$A$11,IF($C$5,8,0),1,1))) -> 3830.41 | G144: =IF(A144>$B$30,NA(),IF(A144>$A$8,"",OFFSET(InputPriceData!$F$15,CalculationsAndCharts!$A144+$A$11,IF($C$5,8,0),1,1))) -> 3841.47 | H144: 22.66 | I144: 39.9188705 | J144: 0 | K144: 14.64 | L144: 12.01740408 | M144: 7.977857301 | N144: 30.10456942 | O144: 19.98517794 | P144: 10.11939148 | Q144: 50.08974736 | R144: 20.20252049 | S144: 18.52557287 | T144: 0.1289959712 | U144: 30.10456942 | V144: 19.98517794 | Y144: -9.14 | Z144: 14.64 | AA144: 0 | AB144: 14.64 | AC144: 4.039546778 | AE144: 3.968761268 | AF144: 0.2417103975 | AX144: 5080430000
A145: 113 | B145: =IF(A145>$B$30,NA(),IF($A145>$A$8,"",OFFSET(InputPriceData!$B$15,$A145+$A$11,0,1,1))) -> 2021-01-21 | C145: =IF(A145>$B$30,NA(),IF($A145>$A$8,"",OFFSET(InputPriceData!$G$15,CalculationsAndCharts!$A145+$A$11,IF($C$5,8,0),1,1))) -> 4484460000 | D145: =IF(A145>$B$30,NA(),IF(A145>$A$8,"",OFFSET(InputPriceData!$C$15,CalculationsAndCharts!$A145+$A$11,IF($C$5,8,0),1,1))) -> 3857.46 | E145: =IF(A145>$B$30,NA(),IF(A145>$A$8,"",OFFSET(InputPriceData!$D$15,CalculationsAndCharts!$A145+$A$11,IF($C$5,8,0),1,1))) -> 3861.45 | F145: =IF(A145>$B$30,NA(),IF(A145>$A$8,"",OFFSET(InputPriceData!$E$15,CalculationsAndCharts!$A145+$A$11,IF($C$5,8,0),1,1))) -> 3845.05 | G145: =IF(A145>$B$30,NA(),IF(A145>$A$8,"",OFFSET(InputPriceData!$F$15,CalculationsAndCharts!$A145+$A$11,IF($C$5,8,0),1,1))) -> 3853.07 | H145: 16.4 | I145: 41.24647592 | J145: 1.7 | K145: 0 | L145: 12.94181978 | M145: 7.465384785 | N145: 31.37678914 | O145: 18.09944879 | P145: 13.27734035 | Q145: 49.47623793 | R145: 26.83579211 | S145: 18.3965769 | T145: 0.6491704009 | U145: 31.37678914 | V145: 18.09944879 | Y145: 1.7 | Z145: -28.83 | AA145: 1.7 | AB145: 0 | AC145: 5.476434992 | AE145: 3.914549079 | AF145: 0.4730616478 | AX145: 4484460000
A146: 114 | B146: =IF(A146>$B$30,NA(),IF($A146>$A$8,"",OFFSET(InputPriceData!$B$15,$A146+$A$11,0,1,1))) -> 2021-01-20 | C146: =IF(A146>$B$30,NA(),IF($A146>$A$8,"",OFFSET(InputPriceData!$G$15,CalculationsAndCharts!$A146+$A$11,IF($C$5,8,0),1,1))) -> 4551790000 | D146: =IF(A146>$B$30,NA(),IF(A146>$A$8,"",OFFSET(InputPriceData!$C$15,CalculationsAndCharts!$A146+$A$11,IF($C$5,8,0),1,1))) -> 3816.22 | E146: =IF(A146>$B$30,NA(),IF(A146>$A$8,"",OFFSET(InputPriceData!$D$15,CalculationsAndCharts!$A146+$A$11,IF($C$5,8,0),1,1))) -> 3859.75 | F146: =IF(A146>$B$30,NA(),IF(A146>$A$8,"",OFFSET(InputPriceData!$E$15,CalculationsAndCharts!$A146+$A$11,IF($C$5,8,0),1,1))) -> 3816.22 | G146: =IF(A146>$B$30,NA(),IF(A146>$A$8,"",OFFSET(InputPriceData!$F$15,CalculationsAndCharts!$A146+$A$11,IF($C$5,8,0),1,1))) -> 3851.85 | H146: 60.84 | I146: 43.1577433 | J146: 55.22 | K146: 0 | L146: 13.80657514 | M146: 8.039645153 | N146: 31.9909571 | O146: 18.62851145 | P146: 13.36244565 | Q146: 50.61946855 | R146: 26.39783868 | S146: 17.7474065 | T146: 0.6654178599 | U146: 31.9909571 | V146: 18.62851145 | Y146: 55.22 | Z146: -35.85 | AA146: 55.22 | AB146: 0 | AC146: 5.766929991 | AE146: 3.808448109 | AF146: 0.6562729941 | AW146: 4551790000
A147: 115 | B147: =IF(A147>$B$30,NA(),IF($A147>$A$8,"",OFFSET(InputPriceData!$B$15,$A147+$A$11,0,1,1))) -> 2021-01-19 | C147: =IF(A147>$B$30,NA(),IF($A147>$A$8,"",OFFSET(InputPriceData!$G$15,CalculationsAndCharts!$A147+$A$11,IF($C$5,8,0),1,1))) -> 4982940000 | D147: =IF(A147>$B$30,NA(),IF(A147>$A$8,"",OFFSET(InputPriceData!$C$15,CalculationsAndCharts!$A147+$A$11,IF($C$5,8,0),1,1))) -> 3781.88 | E147: =IF(A147>$B$30,NA(),IF(A147>$A$8,"",OFFSET(InputPriceData!$D$15,CalculationsAndCharts!$A147+$A$11,IF($C$5,8,0),1,1))) -> 3804.53 | F147: =IF(A147>$B$30,NA(),IF(A147>$A$8,"",OFFSET(InputPriceData!$E$15,CalculationsAndCharts!$A147+$A$11,IF($C$5,8,0),1,1))) -> 3780.37 | G147: =IF(A147>$B$30,NA(),IF(A147>$A$8,"",OFFSET(InputPriceData!$F$15,CalculationsAndCharts!$A147+$A$11,IF($C$5,8,0),1,1))) -> 3798.91 | H147: 36.28 | I147: 41.79756971 | J147: 15.8 | K147: 0 | L147: 10.62092708 | M147: 8.658079396 | N147: 25.41039384 | O147: 20.71431295 | P147: 4.696080888 | Q147: 46.1247068 | R147: 10.1812699 | S147: 17.08198864 | T147: -0.5308245184 | U147: 25.41039384 | V147: 20.71431295 | Y147: 15.8 | Z147: -30.75 | AA147: 15.8 | AB147: 0 | AC147: 1.962847683 | AE147: 3.661255452 | AF147: 0.8186907037 | AW147: 4982940000
A148: 116 | B148: =IF(A148>$B$30,NA(),IF($A148>$A$8,"",OFFSET(InputPriceData!$B$15,$A148+$A$11,0,1,1))) -> 2021-01-15 | C148: =IF(A148>$B$30,NA(),IF($A148>$A$8,"",OFFSET(InputPriceData!$G$15,CalculationsAndCharts!$A148+$A$11,IF($C$5,8,0),1,1))) -> 5353060000 | D148: =IF(A148>$B$30,NA(),IF(A148>$A$8,"",OFFSET(InputPriceData!$C$15,CalculationsAndCharts!$A148+$A$11,IF($C$5,8,0),1,1))) -> 3788.73 | E148: =IF(A148>$B$30,NA(),IF(A148>$A$8,"",OFFSET(InputPriceData!$D$15,CalculationsAndCharts!$A148+$A$11,IF($C$5,8,0),1,1))) -> 3788.73 | F148: =IF(A148>$B$30,NA(),IF(A148>$A$8,"",OFFSET(InputPriceData!$E$15,CalculationsAndCharts!$A148+$A$11,IF($C$5,8,0),1,1))) -> 3749.62 | G148: =IF(A148>$B$30,NA(),IF(A148>$A$8,"",OFFSET(InputPriceData!$F$15,CalculationsAndCharts!$A148+$A$11,IF($C$5,8,0),1,1))) -> 3768.25 | H148: 45.92 | I148: 42.22199815 | J148: 0 | K148: 43.24 | L148: 10.22253685 | M148: 9.324085503 | N148: 24.21139999 | O148: 22.0834776 | P148: 2.127922387 | Q148: 46.29487759 | R148: 4.596453209 | S148: 17.61281316 | T148: -1.001258457 | U148: 24.21139999 | V148: 22.0834776 | Y148: -34.87 | Z148: 43.24 | AA148: 0 | AB148: 43.24 | AC148: 0.8984513506 | AE148: 3.477634823 | AF148: 0.9302280761 | AX148: 5353060000
A149: 117 | B149: =IF(A149>$B$30,NA(),IF($A149>$A$8,"",OFFSET(InputPriceData!$B$15,$A149+$A$11,0,1,1))) -> 2021-01-14 | C149: =IF(A149>$B$30,NA(),IF($A149>$A$8,"",OFFSET(InputPriceData!$G$15,CalculationsAndCharts!$A149+$A$11,IF($C$5,8,0),1,1))) -> 5180140000 | D149: =IF(A149>$B$30,NA(),IF(A149>$A$8,"",OFFSET(InputPriceData!$C$15,CalculationsAndCharts!$A149+$A$11,IF($C$5,8,0),1,1))) -> 3814.98 | E149: =IF(A149>$B$30,NA(),IF(A149>$A$8,"",OFFSET(InputPriceData!$D$15,CalculationsAndCharts!$A149+$A$11,IF($C$5,8,0),1,1))) -> 3823.6 | F149: =IF(A149>$B$30,NA(),IF(A149>$A$8,"",OFFSET(InputPriceData!$E$15,CalculationsAndCharts!$A149+$A$11,IF($C$5,8,0),1,1))) -> 3792.86 | G149: =IF(A149>$B$30,NA(),IF(A149>$A$8,"",OFFSET(InputPriceData!$F$15,CalculationsAndCharts!$A149+$A$11,IF($C$5,8,0),1,1))) -> 3795.54 | H149: 30.74 | I149: 41.93753646 | J149: 2.64 | K149: 0 | L149: 11.00888584 | M149: 6.715169004 | N149: 26.25067367 | O149: 16.01231157 | P149: 10.2383621 | Q149: 42.26298524 | R149: 24.22536421 | S149: 18.61407161 | T149: 0.431637892 | U149: 26.25067367 | V149: 16.01231157 | Y149: 2.64 | Z149: -1.36 | AA149: 2.64 | AB149: 0 | AC149: 4.293716839 | AE149: 3.268997954 | AF149: 0.9107127696 | AX149: 5180140000
A150: 118 | B150: =IF(A150>$B$30,NA(),IF($A150>$A$8,"",OFFSET(InputPriceData!$B$15,$A150+$A$11,0,1,1))) -> 2021-01-13 | C150: =IF(A150>$B$30,NA(),IF($A150>$A$8,"",OFFSET(InputPriceData!$G$15,CalculationsAndCharts!$A150+$A$11,IF($C$5,8,0),1,1))) -> 4590420000 | D150: =IF(A150>$B$30,NA(),IF(A150>$A$8,"",OFFSET(InputPriceData!$C$15,CalculationsAndCharts!$A150+$A$11,IF($C$5,8,0),1,1))) -> 3802.23 | E150: =IF(A150>$B$30,NA(),IF(A150>$A$8,"",OFFSET(InputPriceData!$D$15,CalculationsAndCharts!$A150+$A$11,IF($C$5,8,0),1,1))) -> 3820.96 | F150: =IF(A150>$B$30,NA(),IF(A150>$A$8,"",OFFSET(InputPriceData!$E$15,CalculationsAndCharts!$A150+$A$11,IF($C$5,8,0),1,1))) -> 3791.5 | G150: =IF(A150>$B$30,NA(),IF(A150>$A$8,"",OFFSET(InputPriceData!$F$15,CalculationsAndCharts!$A150+$A$11,IF($C$5,8,0),1,1))) -> 3809.84 | H150: 29.46 | I150: 42.79888542 | J150: 10.18 | K150: 0 | L150: 11.65264629 | M150: 7.231720466 | N150: 27.22651811 | O150: 16.89698317 | P150: 10.32953495 | Q150: 44.12350128 | R150: 23.41050607 | S150: 18.18243372 | T150: 0.4021594117 | U150: 27.22651811 | V150: 16.89698317 | Y150: 10.18 | Z150: -14.99 | AA150: 10.18 | AB150: 0 | AC150: 4.420925827 | AE150: 3.06473809 | AF150: 0.8457110725 | AW150: 4590420000
A151: 119 | B151: =IF(A151>$B$30,NA(),IF($A151>$A$8,"",OFFSET(InputPriceData!$B$15,$A151+$A$11,0,1,1))) -> 2021-01-12 | C151: =IF(A151>$B$30,NA(),IF($A151>$A$8,"",OFFSET(InputPriceData!$G$15,CalculationsAndCharts!$A151+$A$11,IF($C$5,8,0),1,1))) -> 4977210000 | D151: =IF(A151>$B$30,NA(),IF(A151>$A$8,"",OFFSET(InputPriceData!$C$15,CalculationsAndCharts!$A151+$A$11,IF($C$5,8,0),1,1))) -> 3801.62 | E151: =IF(A151>$B$30,NA(),IF(A151>$A$8,"",OFFSET(InputPriceData!$D$15,CalculationsAndCharts!$A151+$A$11,IF($C$5,8,0),1,1))) -> 3810.78 | F151: =IF(A151>$B$30,NA(),IF(A151>$A$8,"",OFFSET(InputPriceData!$E$15,CalculationsAndCharts!$A151+$A$11,IF($C$5,8,0),1,1))) -> 3776.51 | G151: =IF(A151>$B$30,NA(),IF(A151>$A$8,"",OFFSET(InputPriceData!$F$15,CalculationsAndCharts!$A151+$A$11,IF($C$5,8,0),1,1))) -> 3801.19 | H151: 34.27 | I151: 43.82495353 | J151: 0 | K151: 12.51 | L151: 11.76592678 | M151: 7.788006655 | N151: 26.84755106 | O151: 17.77071286 | P151: 9.076838195 | Q151: 44.61826392 | R151: 20.34332445 | S151: 17.78027431 | T151: 0.1971577033 | U151: 26.84755106 | V151: 17.77071286 | Y151: -7.08 | Z151: 12.51 | AA151: 0 | AB151: 12.51 | AC151: 3.977920121 | AE151: 2.875057178 | AF151: 0.8609907592 | AX151: 4977210000
A152: 120 | B152: =IF(A152>$B$30,NA(),IF($A152>$A$8,"",OFFSET(InputPriceData!$B$15,$A152+$A$11,0,1,1))) -> 2021-01-11 | C152: =IF(A152>$B$30,NA(),IF($A152>$A$8,"",OFFSET(InputPriceData!$G$15,CalculationsAndCharts!$A152+$A$11,IF($C$5,8,0),1,1))) -> 4450500000 | D152: =IF(A152>$B$30,NA(),IF(A152>$A$8,"",OFFSET(InputPriceData!$C$15,CalculationsAndCharts!$A152+$A$11,IF($C$5,8,0),1,1))) -> 3803.14 | E152: =IF(A152>$B$30,NA(),IF(A152>$A$8,"",OFFSET(InputPriceData!$D$15,CalculationsAndCharts!$A152+$A$11,IF($C$5,8,0),1,1))) -> 3817.86 | F152: =IF(A152>$B$30,NA(),IF(A152>$A$8,"",OFFSET(InputPriceData!$E$15,CalculationsAndCharts!$A152+$A$11,IF($C$5,8,0),1,1))) -> 3789.02 | G152: =IF(A152>$B$30,NA(),IF(A152>$A$8,"",OFFSET(InputPriceData!$F$15,CalculationsAndCharts!$A152+$A$11,IF($C$5,8,0),1,1))) -> 3799.61 | H152: 35.66 | I152: 44.55994996 | J152: 0 | K152: 0 | L152: 12.67099807 | M152: 7.424776398 | N152: 28.43584447 | O152: 16.6624433 | P152: 11.77340117 | Q152: 45.09828778 | R152: 26.10609349 | S152: 17.58311661 | T152: 0.6556136063 | U152: 28.43584447 | V152: 16.6624433 | Y152: -8.83 | Z152: -5.42 | AA152: 0 | AB152: 0 | AC152: 5.246221669 | AE152: 2.681949251 | AF152: 0.8484196012 | AX152: 4450500000
A153: 121 | B153: =IF(A153>$B$30,NA(),IF($A153>$A$8,"",OFFSET(InputPriceData!$B$15,$A153+$A$11,0,1,1))) -> 2021-01-08 | C153: =IF(A153>$B$30,NA(),IF($A153>$A$8,"",OFFSET(InputPriceData!$G$15,CalculationsAndCharts!$A153+$A$11,IF($C$5,8,0),1,1))) -> 4764180000 | D153: =IF(A153>$B$30,NA(),IF(A153>$A$8,"",OFFSET(InputPriceData!$C$15,CalculationsAndCharts!$A153+$A$11,IF($C$5,8,0),1,1))) -> 3815.05 | E153: =IF(A153>$B$30,NA(),IF(A153>$A$8,"",OFFSET(InputPriceData!$D$15,CalculationsAndCharts!$A153+$A$11,IF($C$5,8,0),1,1))) -> 3826.69 | F153: =IF(A153>$B$30,NA(),IF(A153>$A$8,"",OFFSET(InputPriceData!$E$15,CalculationsAndCharts!$A153+$A$11,IF($C$5,8,0),1,1))) -> 3783.6 | G153: =IF(A153>$B$30,NA(),IF(A153>$A$8,"",OFFSET(InputPriceData!$F$15,CalculationsAndCharts!$A153+$A$11,IF($C$5,8,0),1,1))) -> 3824.68 | H153: 43.09 | I153: 45.24456149 | J153: 15.14 | K153: 0 | L153: 13.64569023 | M153: 7.995913044 | N153: 30.15984635 | O153: 17.6726501 | P153: 12.48719624 | Q153: 47.83249645 | R153: 26.10609349 | S153: 16.927503 | T153: 0.7060454222 | U153: 30.15984635 | V153: 17.6726501 | Y153: 15.14 | Z153: -18.89 | AA153: 15.14 | AB153: 0 | AC153: 5.649777182 | AE153: 2.491660854 | AF153: 0.6770361179 | AW153: 4764180000
A154: 122 | B154: =IF(A154>$B$30,NA(),IF($A154>$A$8,"",OFFSET(InputPriceData!$B$15,$A154+$A$11,0,1,1))) -> 2021-01-07 | C154: =IF(A154>$B$30,NA(),IF($A154>$A$8,"",OFFSET(InputPriceData!$G$15,CalculationsAndCharts!$A154+$A$11,IF($C$5,8,0),1,1))) -> 5080870000 | D154: =IF(A154>$B$30,NA(),IF(A154>$A$8,"",OFFSET(InputPriceData!$C$15,CalculationsAndCharts!$A154+$A$11,IF($C$5,8,0),1,1))) -> 3764.71 | E154: =IF(A154>$B$30,NA(),IF(A154>$A$8,"",OFFSET(InputPriceData!$D$15,CalculationsAndCharts!$A154+$A$11,IF($C$5,8,0),1,1))) -> 3811.55 | F154: =IF(A154>$B$30,NA(),IF(A154>$A$8,"",OFFSET(InputPriceData!$E$15,CalculationsAndCharts!$A154+$A$11,IF($C$5,8,0),1,1))) -> 3764.71 | G154: =IF(A154>$B$30,NA(),IF(A154>$A$8,"",OFFSET(InputPriceData!$F$15,CalculationsAndCharts!$A154+$A$11,IF($C$5,8,0),1,1))) -> 3803.79 | H154: 63.41 | I154: 45.41029699 | J154: 28.51 | K154: 0 | L154: 13.53074332 | M154: 8.610983278 | N154: 29.79664133 | O154: 18.96262268 | P154: 10.83401864 | Q154: 48.75926401 | R154: 22.21940561 | S154: 16.22145758 | T154: 0.461380618 | U154: 29.79664133 | V154: 18.96262268 | Y154: 28.51 | Z154: -59.37 | AA154: 28.51 | AB154: 0 | AC154: 4.919760042 | AE154: 2.339811325 | AF154: 0.3781713879 | AW154: 5080870000
A155: 123 | B155: =IF(A155>$B$30,NA(),IF($A155>$A$8,"",OFFSET(InputPriceData!$B$15,$A155+$A$11,0,1,1))) -> 2021-01-06 | C155: =IF(A155>$B$30,NA(),IF($A155>$A$8,"",OFFSET(InputPriceData!$G$15,CalculationsAndCharts!$A155+$A$11,IF($C$5,8,0),1,1))) -> 6049970000 | D155: =IF(A155>$B$30,NA(),IF(A155>$A$8,"",OFFSET(InputPriceData!$C$15,CalculationsAndCharts!$A155+$A$11,IF($C$5,8,0),1,1))) -> 3712.2 | E155: =IF(A155>$B$30,NA(),IF(A155>$A$8,"",OFFSET(InputPriceData!$D$15,CalculationsAndCharts!$A155+$A$11,IF($C$5,8,0),1,1))) -> 3783.04 | F155: =IF(A155>$B$30,NA(),IF(A155>$A$8,"",OFFSET(InputPriceData!$E$15,CalculationsAndCharts!$A155+$A$11,IF($C$5,8,0),1,1))) -> 3705.34 | G155: =IF(A155>$B$30,NA(),IF(A155>$A$8,"",OFFSET(InputPriceData!$F$15,CalculationsAndCharts!$A155+$A$11,IF($C$5,8,0),1,1))) -> 3748.14 | H155: 77.7 | I155: 44.02570445 | J155: 45.21 | K155: 0 | L155: 12.37849281 | M155: 9.273366607 | N155: 28.11651275 | O155: 21.06352805 | P155: 7.0529847 | Q155: 49.1800408 | R155: 14.3411526 | S155: 15.76007696 | T155: -0.1091480277 | U155: 28.11651275 | V155: 21.06352805 | Y155: 45.21 | Z155: -10.27 | AA155: 45.21 | AB155: 0 | AC155: 3.105126199 | AE155: 2.254992885 | AF155: 0.03173908914 | AW155: 6049970000
A156: 124 | B156: =IF(A156>$B$30,NA(),IF($A156>$A$8,"",OFFSET(InputPriceData!$B$15,$A156+$A$11,0,1,1))) -> 2021-01-05 | C156: =IF(A156>$B$30,NA(),IF($A156>$A$8,"",OFFSET(InputPriceData!$G$15,CalculationsAndCharts!$A156+$A$11,IF($C$5,8,0),1,1))) -> 4582620000 | D156: =IF(A156>$B$30,NA(),IF(A156>$A$8,"",OFFSET(InputPriceData!$C$15,CalculationsAndCharts!$A156+$A$11,IF($C$5,8,0),1,1))) -> 3698.02 | E156: =IF(A156>$B$30,NA(),IF(A156>$A$8,"",OFFSET(InputPriceData!$D$15,CalculationsAndCharts!$A156+$A$11,IF($C$5,8,0),1,1))) -> 3737.83 | F156: =IF(A156>$B$30,NA(),IF(A156>$A$8,"",OFFSET(InputPriceData!$E$15,CalculationsAndCharts!$A156+$A$11,IF($C$5,8,0),1,1))) -> 3695.07 | G156: =IF(A156>$B$30,NA(),IF(A156>$A$8,"",OFFSET(InputPriceData!$F$15,CalculationsAndCharts!$A156+$A$11,IF($C$5,8,0),1,1))) -> 3726.86 | H156: 42.76 | I156: 41.43537403 | J156: 0 | K156: 0 | L156: 9.852992253 | M156: 9.9867025 | N156: 23.77918019 | O156: 24.10187608 | P156: 0.3226958855 | Q156: 47.88105627 | R156: 0.6739531469 | S156: 15.86922499 | T156: -1.168867065 | U156: 23.77918019 | V156: 24.10187608 | Y156: -32.16 | Z156: -32.36 | AA156: 0 | AB156: 0 | AC156: -0.1337102471 | AE156: 2.247874261 | AF156: -0.3556852398 | AW156: 4582620000
A157: 125 | B157: =IF(A157>$B$30,NA(),IF($A157>$A$8,"",OFFSET(InputPriceData!$B$15,$A157+$A$11,0,1,1))) -> 2021-01-04 | C157: =IF(A157>$B$30,NA(),IF($A157>$A$8,"",OFFSET(InputPriceData!$G$15,CalculationsAndCharts!$A157+$A$11,IF($C$5,8,0),1,1))) -> 5006680000 | D157: =IF(A157>$B$30,NA(),IF(A157>$A$8,"",OFFSET(InputPriceData!$C$15,CalculationsAndCharts!$A157+$A$11,IF($C$5,8,0),1,1))) -> 3764.61 | E157: =IF(A157>$B$30,NA(),IF(A157>$A$8,"",OFFSET(InputPriceData!$D$15,CalculationsAndCharts!$A157+$A$11,IF($C$5,8,0),1,1))) -> 3769.99 | F157: =IF(A157>$B$30,NA(),IF(A157>$A$8,"",OFFSET(InputPriceData!$E$15,CalculationsAndCharts!$A157+$A$11,IF($C$5,8,0),1,1))) -> 3662.71 | G157: =IF(A157>$B$30,NA(),IF(A157>$A$8,"",OFFSET(InputPriceData!$F$15,CalculationsAndCharts!$A157+$A$11,IF($C$5,8,0),1,1))) -> 3700.65 | H157: 107.28 | I157: 41.33347972 | J157: 0 | K157: 64.17 | L157: 10.61091473 | M157: 10.75491038 | N157: 25.67147699 | O157: 26.01985233 | P157: 0.3483753406 | Q157: 51.69132931 | R157: 0.6739531469 | S157: 17.03809205 | T157: -1.258779916 | U157: 25.67147699 | V157: 26.01985233 | Y157: 9.79 | Z157: 64.17 | AA157: 0 | AB157: 64.17 | AC157: -0.1439956508 | AE157: 2.327649379 | AF157: -0.8029064991 | AX157: 5006680000
A158: 126 | B158: =IF(A158>$B$30,NA(),IF($A158>$A$8,"",OFFSET(InputPriceData!$B$15,$A158+$A$11,0,1,1))) -> 2020-12-31 | C158: =IF(A158>$B$30,NA(),IF($A158>$A$8,"",OFFSET(InputPriceData!$G$15,CalculationsAndCharts!$A158+$A$11,IF($C$5,8,0),1,1))) -> 3172510000 | D158: =IF(A158>$B$30,NA(),IF(A158>$A$8,"",OFFSET(InputPriceData!$C$15,CalculationsAndCharts!$A158+$A$11,IF($C$5,8,0),1,1))) -> 3733.27 | E158: =IF(A158>$B$30,NA(),IF(A158>$A$8,"",OFFSET(InputPriceData!$D$15,CalculationsAndCharts!$A158+$A$11,IF($C$5,8,0),1,1))) -> 3760.2 | F158: =IF(A158>$B$30,NA(),IF(A158>$A$8,"",OFFSET(InputPriceData!$E$15,CalculationsAndCharts!$A158+$A$11,IF($C$5,8,0),1,1))) -> 3726.88 | G158: =IF(A158>$B$30,NA(),IF(A158>$A$8,"",OFFSET(InputPriceData!$F$15,CalculationsAndCharts!$A158+$A$11,IF($C$5,8,0),1,1))) -> 3756.07 | H158: 33.32 | I158: 36.26067047 | J158: 15.57 | K158: 0 | L158: 11.42713894 | M158: 6.646057337 | N158: 31.51386556 | O158: 18.32855612 | P158: 13.18530944 | Q158: 49.84242169 | R158: 26.45399039 | S158: 18.29687197 | T158: 0.6274706477 | U158: 31.51386556 | V158: 18.32855612 | Y158: 15.57 | Z158: 3.33 | AA158: 15.57 | AB158: 0 | AC158: 4.781081607 | AE158: 2.507729837 | AF158: -1.291918686 | AW158: 3172510000
A159: 127 | B159: =IF(A159>$B$30,NA(),IF($A159>$A$8,"",OFFSET(InputPriceData!$B$15,$A159+$A$11,0,1,1))) -> 2020-12-30 | C159: =IF(A159>$B$30,NA(),IF($A159>$A$8,"",OFFSET(InputPriceData!$G$15,CalculationsAndCharts!$A159+$A$11,IF($C$5,8,0),1,1))) -> 3145200000 | D159: =IF(A159>$B$30,NA(),IF(A159>$A$8,"",OFFSET(InputPriceData!$C$15,CalculationsAndCharts!$A159+$A$11,IF($C$5,8,0),1,1))) -> 3736.19 | E159: =IF(A159>$B$30,NA(),IF(A159>$A$8,"",OFFSET(InputPriceData!$D$15,CalculationsAndCharts!$A159+$A$11,IF($C$5,8,0),1,1))) -> 3744.63 | F159: =IF(A159>$B$30,NA(),IF(A159>$A$8,"",OFFSET(InputPriceData!$E$15,CalculationsAndCharts!$A159+$A$11,IF($C$5,8,0),1,1))) -> 3730.21 | G159: =IF(A159>$B$30,NA(),IF(A159>$A$8,"",OFFSET(InputPriceData!$F$15,CalculationsAndCharts!$A159+$A$11,IF($C$5,8,0),1,1))) -> 3732.04 | H159: 17.59 | I159: 36.48687589 | J159: 0 | K159: 0 | L159: 11.10845732 | M159: 7.157292517 | N159: 30.44507663 | O159: 19.61607384 | P159: 10.82900279 | Q159: 50.06115047 | R159: 21.63154999 | S159: 17.66940132 | T159: 0.3047806667 | U159: 30.44507663 | V159: 19.61607384 | Y159: -11.49 | Z159: -6.9 | AA159: 0 | AB159: 0 | AC159: 3.951164807 | AE159: 2.797488742 | AF159: -1.678862029 | AX159: 3145200000
A160: 128 | B160: =IF(A160>$B$30,NA(),IF($A160>$A$8,"",OFFSET(InputPriceData!$B$15,$A160+$A$11,0,1,1))) -> 2020-12-29 | C160: =IF(A160>$B$30,NA(),IF($A160>$A$8,"",OFFSET(InputPriceData!$G$15,CalculationsAndCharts!$A160+$A$11,IF($C$5,8,0),1,1))) -> 3387030000 | D160: =IF(A160>$B$30,NA(),IF(A160>$A$8,"",OFFSET(InputPriceData!$C$15,CalculationsAndCharts!$A160+$A$11,IF($C$5,8,0),1,1))) -> 3750.01 | E160: =IF(A160>$B$30,NA(),IF(A160>$A$8,"",OFFSET(InputPriceData!$D$15,CalculationsAndCharts!$A160+$A$11,IF($C$5,8,0),1,1))) -> 3756.12 | F160: =IF(A160>$B$30,NA(),IF(A160>$A$8,"",OFFSET(InputPriceData!$E$15,CalculationsAndCharts!$A160+$A$11,IF($C$5,8,0),1,1))) -> 3723.31 | G160: =IF(A160>$B$30,NA(),IF(A160>$A$8,"",OFFSET(InputPriceData!$F$15,CalculationsAndCharts!$A160+$A$11,IF($C$5,8,0),1,1))) -> 3727.04 | H160: 32.81 | I160: 37.94048173 | J160: 15.61 | K160: 0 | L160: 11.96295404 | M160: 7.70785348 | N160: 31.53084383 | O160: 20.31564474 | P160: 11.21519909 | Q160: 51.84648857 | R160: 21.63154999 | S160: 17.36462065 | T160: 0.3282253334 | U160: 31.53084383 | V160: 20.31564474 | Y160: 15.61 | Z160: -0.28 | AA160: 15.61 | AB160: 0 | AC160: 4.255100562 | AE160: 3.174033511 | AF160: -1.876610078 | AX160: 3387030000
A161: 129 | B161: =IF(A161>$B$30,NA(),IF($A161>$A$8,"",OFFSET(InputPriceData!$B$15,$A161+$A$11,0,1,1))) -> 2020-12-28 | C161: =IF(A161>$B$30,NA(),IF($A161>$A$8,"",OFFSET(InputPriceData!$G$15,CalculationsAndCharts!$A161+$A$11,IF($C$5,8,0),1,1))) -> 3527460000 | D161: =IF(A161>$B$30,NA(),IF(A161>$A$8,"",OFFSET(InputPriceData!$C$15,CalculationsAndCharts!$A161+$A$11,IF($C$5,8,0),1,1))) -> 3723.03 | E161: =IF(A161>$B$30,NA(),IF(A161>$A$8,"",OFFSET(InputPriceData!$D$15,CalculationsAndCharts!$A161+$A$11,IF($C$5,8,0),1,1))) -> 3740.51 | F161: =IF(A161>$B$30,NA(),IF(A161>$A$8,"",OFFSET(InputPriceData!$E$15,CalculationsAndCharts!$A161+$A$11,IF($C$5,8,0),1,1))) -> 3723.03 | G161: =IF(A161>$B$30,NA(),IF(A161>$A$8,"",OFFSET(InputPriceData!$F$15,CalculationsAndCharts!$A161+$A$11,IF($C$5,8,0),1,1))) -> 3735.36 | H161: 37.45 | I161: 38.33513417 | J161: 36.69 | K161: 0 | L161: 11.68241204 | M161: 8.300765286 | N161: 30.47442587 | O161: 21.65315308 | P161: 8.821272789 | Q161: 52.12757896 | R161: 16.92246785 | S161: 17.03639532 | T161: -0.008763651624 | U161: 30.47442587 | V161: 21.65315308 | Y161: =IF(A161>$Y$30,NA(),E161-E162) -> 36.69 | Z161: =IF(A161>$Y$30,NA(),F162-F161) -> -33.71 | AA161: =IF(A161>$Y$30,NA(),IF(AND(Y161>Z161,Y161>0),Y161,0)) -> 36.69 | AB161: =IF(A161>$Y$30,NA(),IF(AND(Z161>Y161,Z161>0),Z161,0)) -> 0 | AC161: =IF(A161>$AC$30,NA(),IF(A161=$AC$30,(SUM(OFFSET(AA161,0,0,$A$17,1))-SUM(OFFSET(AB161,0,0,$A$17,1)))/$A$17,$C$17*(AA161-AB161)+$D$17*AC162)) -> 3.381646759 | AD161: =IF($A161>$D$19+1,NA(),IF($A161=$D$19+1,SUM(OFFSET(AD$33,0,0,$A$17,1)),IF($A161=$D$19,"-- Coef Sum--",1-COS(RADIANS(360*$A161/$D$19))))) ->  | AE161: =IF($A161<=AE$30,SUMPRODUCT(OFFSET(AD$33,0,0,$A$17,1),OFFSET($AC161,0,0,$A$17,1))/OFFSET(AD$33,$D$19,0,1,1),NA()) -> 3.594930343 | AF161: =IF($A161<=AF$30,$C$19*(AE161-AE162),NA()) -> -1.903856372 | AW161: =IF(G161>=D161,C161,NA()) -> 3527460000 | AX161: =IF(G161<D161,C161,NA()) -> 
A162: 130 | B162: =IF(A162>$B$30,NA(),IF($A162>$A$8,"",OFFSET(InputPriceData!$B$15,$A162+$A$11,0,1,1))) -> 2020-12-24 | C162: =IF(A162>$B$30,NA(),IF($A162>$A$8,"",OFFSET(InputPriceData!$G$15,CalculationsAndCharts!$A162+$A$11,IF($C$5,8,0),1,1))) -> 1885090000 | D162: =IF(A162>$B$30,NA(),IF(A162>$A$8,"",OFFSET(InputPriceData!$C$15,CalculationsAndCharts!$A162+$A$11,IF($C$5,8,0),1,1))) -> 3694.03 | E162: =IF(A162>$B$30,NA(),IF(A162>$A$8,"",OFFSET(InputPriceData!$D$15,CalculationsAndCharts!$A162+$A$11,IF($C$5,8,0),1,1))) -> 3703.82 | F162: =IF(A162>$B$30,NA(),IF(A162>$A$8,"",OFFSET(InputPriceData!$E$15,CalculationsAndCharts!$A162+$A$11,IF($C$5,8,0),1,1))) -> 3689.32 | G162: =IF(A162>$B$30,NA(),IF(A162>$A$8,"",OFFSET(InputPriceData!$F$15,CalculationsAndCharts!$A162+$A$11,IF($C$5,8,0),1,1))) -> 3703.06 | H162: =IF(A162>$H$30,NA(),MAX(E162-F162,ABS(E162-G163),ABS(F162-G163))) -> 14.5 | I162: =IF(A162>$I$30,NA(),IF($A162=$I$30,AVERAGE(OFFSET($H162,0,0,$A$17,1)),I163*$D$17+$H162*$C$17)) -> 38.40322141 | J162: =IF(A162>$I$30,NA(),IF(E162-E163>F163-F162,MAX(E162-E163,0),0)) -> 0 | K162: =IF(A162>$I$30,NA(),IF(F163-F162>E162-E163,MAX(F163-F162,0),0)) -> 0 | L162: 9.758751433 | M162: =IF(A162>$L$30,NA(),IF(A162=$L$30,AVERAGE(OFFSET(K162,0,0,$A$17,1)),M163*$D$17+K162*$C$17)) -> 8.939285693 | N162: =IF(A162>$L$30,NA(),L162/I162*100) -> 25.41128341 | O162: =IF(A162>$L$30,NA(),M162/I162*100) -> 23.27743706 | P162: =IF(A162>$L$30,NA(),ABS(N162-O162)) -> 2.133846355 | Q162: =IF(A162>$L$30,NA(),N162+O162) -> 48.68872047 | R162: 4.382629764 | S162: =IF(A162>$S$30,NA(),IF(A162=$S$30,AVERAGE(OFFSET(R162,0,0,$A$17,1)),(S163*$D$17+R162*$C$17))) -> 17.04515897 | T162: =IF(A162>$T$30,NA(),S162-S163) -> -0.9740407082 | U162: =IF($R$15,N162,NA()) -> 25.41128341 | V162: =IF($R$15,O162,NA()) -> 23.27743706 | W162: =IF($R$19,T162,NA()) ->  | Y162: -7.42 | Z162: -0.04 | AA162: 0 | AB162: 0 | AC162: 0.8194657403 | AE162: 4.021938129 | AF162: -1.77676823 | AW162: 1885090000
A163: 131 | B163: =IF(A163>$B$30,NA(),IF($A163>$A$8,"",OFFSET(InputPriceData!$B$15,$A163+$A$11,0,1,1))) -> 2020-12-23 | C163: =IF(A163>$B$30,NA(),IF($A163>$A$8,"",OFFSET(InputPriceData!$G$15,CalculationsAndCharts!$A163+$A$11,IF($C$5,8,0),1,1))) -> 3772630000 | D163: =IF(A163>$B$30,NA(),IF(A163>$A$8,"",OFFSET(InputPriceData!$C$15,CalculationsAndCharts!$A163+$A$11,IF($C$5,8,0),1,1))) -> 3693.42 | E163: =IF(A163>$B$30,NA(),IF(A163>$A$8,"",OFFSET(InputPriceData!$D$15,CalculationsAndCharts!$A163+$A$11,IF($C$5,8,0),1,1))) -> 3711.24 | F163: =IF(A163>$B$30,NA(),IF(A163>$A$8,"",OFFSET(InputPriceData!$E$15,CalculationsAndCharts!$A163+$A$11,IF($C$5,8,0),1,1))) -> 3689.28 | G163: =IF(A163>$B$30,NA(),IF(A163>$A$8,"",OFFSET(InputPriceData!$F$15,CalculationsAndCharts!$A163+$A$11,IF($C$5,8,0),1,1))) -> 3690.01 | H163: 23.98 | I163: 40.24193075 | J163: 12.98 | K163: 0 | L163: =IF(A163>$L$30,NA(),IF(A163=$L$30,AVERAGE(OFFSET(J163,0,0,$A$17,1)),L164*$D$17+J163*$C$17)) -> 10.50942462 | M163: 9.626923054 | N163: 26.11560734 | O163: 23.92261722 | P163: 2.192990123 | Q163: 50.03822455 | R163: =IF(A163>$L$30,NA(),P163/Q163*100) -> 4.382629764 | S163: 18.01919968 | T163: -1.048966917 | U163: 26.11560734 | V163: 23.92261722 | Y163: 12.98 | Z163: -13.12 | AA163: 12.98 | AB163: 0 | AC163: 0.8825015665 | AE163: 4.420441861 | AF163: -1.601598014 | AX163: 3772630000
A164: 132 | B164: =IF(A164>$B$30,NA(),IF($A164>$A$8,"",OFFSET(InputPriceData!$B$15,$A164+$A$11,0,1,1))) -> 2020-12-22 | C164: =IF(A164>$B$30,NA(),IF($A164>$A$8,"",OFFSET(InputPriceData!$G$15,CalculationsAndCharts!$A164+$A$11,IF($C$5,8,0),1,1))) -> 4023940000 | D164: =IF(A164>$B$30,NA(),IF(A164>$A$8,"",OFFSET(InputPriceData!$C$15,CalculationsAndCharts!$A164+$A$11,IF($C$5,8,0),1,1))) -> 3698.08 | E164: =IF(A164>$B$30,NA(),IF(A164>$A$8,"",OFFSET(InputPriceData!$D$15,CalculationsAndCharts!$A164+$A$11,IF($C$5,8,0),1,1))) -> 3698.26 | F164: =IF(A164>$B$30,NA(),IF(A164>$A$8,"",OFFSET(InputPriceData!$E$15,CalculationsAndCharts!$A164+$A$11,IF($C$5,8,0),1,1))) -> 3676.16 | G164: =IF(A164>$B$30,NA(),IF(A164>$A$8,"",OFFSET(InputPriceData!$F$15,CalculationsAndCharts!$A164+$A$11,IF($C$5,8,0),1,1))) -> 3687.26 | H164: 22.1 | I164: 41.4928485 | J164: 0 | K164: 0 | L164: 10.31938036 | M164: 10.3674556 | N164: 24.87026255 | O164: 24.98612645 | P164: 0.1158639086 | Q164: 49.856389 | R164: 0.2323953076 | S164: 19.0681666 | T164: -1.448905484 | U164: 24.87026255 | V164: 24.98612645 | Y164: -4.64 | Z164: -39.68 | AA164: 0 | AB164: 0 | AC164: -0.04807523605 | AE164: 4.779657416 | AF164: -1.445271414 | AX164: 4023940000
A165: 133 | B165: =IF(A165>$B$30,NA(),IF($A165>$A$8,"",OFFSET(InputPriceData!$B$15,$A165+$A$11,0,1,1))) -> 2020-12-21 | C165: =IF(A165>$B$30,NA(),IF($A165>$A$8,"",OFFSET(InputPriceData!$G$15,CalculationsAndCharts!$A165+$A$11,IF($C$5,8,0),1,1))) -> 4732160000 | D165: =IF(A165>$B$30,NA(),IF(A165>$A$8,"",OFFSET(InputPriceData!$C$15,CalculationsAndCharts!$A165+$A$11,IF($C$5,8,0),1,1))) -> 3684.28 | E165: =IF(A165>$B$30,NA(),IF(A165>$A$8,"",OFFSET(InputPriceData!$D$15,CalculationsAndCharts!$A165+$A$11,IF($C$5,8,0),1,1))) -> 3702.9 | F165: =IF(A165>$B$30,NA(),IF(A165>$A$8,"",OFFSET(InputPriceData!$E$15,CalculationsAndCharts!$A165+$A$11,IF($C$5,8,0),1,1))) -> 3636.48 | G165: =IF(A165>$B$30,NA(),IF(A165>$A$8,"",OFFSET(InputPriceData!$F$15,CalculationsAndCharts!$A165+$A$11,IF($C$5,8,0),1,1))) -> 3694.92 | H165: 72.93 | I165: 42.98460608 | J165: 0 | K165: 49.36 | L165: 11.11317885 | M165: 11.16495218 | N165: 25.85385761 | O165: 25.97430382 | P165: 0.1204462152 | Q165: 51.82816143 | R165: 0.2323953076 | S165: 20.51707208 | T165: -1.560359752 | U165: 25.85385761 | V165: 25.97430382 | Y165: -23.8 | Z165: 49.36 | AA165: 0 | AB165: 49.36 | AC165: -0.05177333113 | AE165: 5.103811147 | AF165: -1.361998521 | AW165: 4732160000
A166: 134 | B166: =IF(A166>$B$30,NA(),IF($A166>$A$8,"",OFFSET(InputPriceData!$B$15,$A166+$A$11,0,1,1))) -> 2020-12-18 | C166: =IF(A166>$B$30,NA(),IF($A166>$A$8,"",OFFSET(InputPriceData!$G$15,CalculationsAndCharts!$A166+$A$11,IF($C$5,8,0),1,1))) -> 7068340000 | D166: =IF(A166>$B$30,NA(),IF(A166>$A$8,"",OFFSET(InputPriceData!$C$15,CalculationsAndCharts!$A166+$A$11,IF($C$5,8,0),1,1))) -> 3722.39 | E166: =IF(A166>$B$30,NA(),IF(A166>$A$8,"",OFFSET(InputPriceData!$D$15,CalculationsAndCharts!$A166+$A$11,IF($C$5,8,0),1,1))) -> 3726.7 | F166: =IF(A166>$B$30,NA(),IF(A166>$A$8,"",OFFSET(InputPriceData!$E$15,CalculationsAndCharts!$A166+$A$11,IF($C$5,8,0),1,1))) -> 3685.84 | G166: =IF(A166>$B$30,NA(),IF(A166>$A$8,"",OFFSET(InputPriceData!$F$15,CalculationsAndCharts!$A166+$A$11,IF($C$5,8,0),1,1))) -> 3709.41 | H166: 40.86 | I166: 40.68111424 | J166: 0 | K166: 25.03 | L166: 11.96803876 | M166: 8.226871579 | N166: 29.41915182 | O166: 20.22282755 | P166: 9.19632427 | Q166: 49.64197938 | R166: 18.52529731 | S166: 22.07743183 | T166: -0.273241117 | U166: 29.41915182 | V166: 20.22282755 | Y166: 1.58 | Z166: 25.03 | AA166: 0 | AB166: 25.03 | AC166: 3.741167182 | AE166: 5.409287958 | AF166: -1.331204176 | AX166: 7068340000
A167: 135 | B167: =IF(A167>$B$30,NA(),IF($A167>$A$8,"",OFFSET(InputPriceData!$B$15,$A167+$A$11,0,1,1))) -> 2020-12-17 | C167: =IF(A167>$B$30,NA(),IF($A167>$A$8,"",OFFSET(InputPriceData!$G$15,CalculationsAndCharts!$A167+$A$11,IF($C$5,8,0),1,1))) -> 4184930000 | D167: =IF(A167>$B$30,NA(),IF(A167>$A$8,"",OFFSET(InputPriceData!$C$15,CalculationsAndCharts!$A167+$A$11,IF($C$5,8,0),1,1))) -> 3713.65 | E167: =IF(A167>$B$30,NA(),IF(A167>$A$8,"",OFFSET(InputPriceData!$D$15,CalculationsAndCharts!$A167+$A$11,IF($C$5,8,0),1,1))) -> 3725.12 | F167: =IF(A167>$B$30,NA(),IF(A167>$A$8,"",OFFSET(InputPriceData!$E$15,CalculationsAndCharts!$A167+$A$11,IF($C$5,8,0),1,1))) -> 3710.87 | G167: =IF(A167>$B$30,NA(),IF(A167>$A$8,"",OFFSET(InputPriceData!$F$15,CalculationsAndCharts!$A167+$A$11,IF($C$5,8,0),1,1))) -> 3722.48 | H167: 23.95 | I167: 40.66735379 | J167: 13.85 | K167: 0 | L167: 12.88865713 | M167: 6.934323239 | N167: 31.69288366 | O167: 17.05132641 | P167: 14.64155725 | Q167: 48.74421008 | R167: 30.03753108 | S167: 22.35067295 | T167: 0.5912967793 | U167: 31.69288366 | V167: 17.05132641 | Y167: 13.85 | Z167: -22.3 | AA167: 13.85 | AB167: 0 | AC167: 5.954333888 | AE167: 5.707858038 | AF167: -1.264349929 | AW167: 4184930000
A168: 136 | B168: =IF(A168>$B$30,NA(),IF($A168>$A$8,"",OFFSET(InputPriceData!$B$15,$A168+$A$11,0,1,1))) -> 2020-12-16 | C168: =IF(A168>$B$30,NA(),IF($A168>$A$8,"",OFFSET(InputPriceData!$G$15,CalculationsAndCharts!$A168+$A$11,IF($C$5,8,0),1,1))) -> 4056950000 | D168: =IF(A168>$B$30,NA(),IF(A168>$A$8,"",OFFSET(InputPriceData!$C$15,CalculationsAndCharts!$A168+$A$11,IF($C$5,8,0),1,1))) -> 3696.25 | E168: =IF(A168>$B$30,NA(),IF(A168>$A$8,"",OFFSET(InputPriceData!$D$15,CalculationsAndCharts!$A168+$A$11,IF($C$5,8,0),1,1))) -> 3711.27 | F168: =IF(A168>$B$30,NA(),IF(A168>$A$8,"",OFFSET(InputPriceData!$E$15,CalculationsAndCharts!$A168+$A$11,IF($C$5,8,0),1,1))) -> 3688.57 | G168: =IF(A168>$B$30,NA(),IF(A168>$A$8,"",OFFSET(InputPriceData!$F$15,CalculationsAndCharts!$A168+$A$11,IF($C$5,8,0),1,1))) -> 3701.17 | H168: 22.7 | I168: 41.95330409 | J168: 15.98 | K168: 0 | L168: 12.81470768 | M168: 7.467732719 | N168: 30.5451691 | O168: 17.80010629 | P168: 12.74506281 | Q168: 48.34527539 | R168: 26.36258188 | S168: 21.75937617 | T168: 0.3540927471 | U168: 30.5451691 | V168: 17.80010629 | Y168: 15.98 | Z168: -28.95 | AA168: 15.98 | AB168: 0 | AC168: 5.346974956 | AE168: 5.991433664 | AF168: -1.092529672 | AW168: 4056950000
A169: 137 | B169: =IF(A169>$B$30,NA(),IF($A169>$A$8,"",OFFSET(InputPriceData!$B$15,$A169+$A$11,0,1,1))) -> 2020-12-15 | C169: =IF(A169>$B$30,NA(),IF($A169>$A$8,"",OFFSET(InputPriceData!$G$15,CalculationsAndCharts!$A169+$A$11,IF($C$5,8,0),1,1))) -> 4360280000 | D169: =IF(A169>$B$30,NA(),IF(A169>$A$8,"",OFFSET(InputPriceData!$C$15,CalculationsAndCharts!$A169+$A$11,IF($C$5,8,0),1,1))) -> 3666.41 | E169: =IF(A169>$B$30,NA(),IF(A169>$A$8,"",OFFSET(InputPriceData!$D$15,CalculationsAndCharts!$A169+$A$11,IF($C$5,8,0),1,1))) -> 3695.29 | F169: =IF(A169>$B$30,NA(),IF(A169>$A$8,"",OFFSET(InputPriceData!$E$15,CalculationsAndCharts!$A169+$A$11,IF($C$5,8,0),1,1))) -> 3659.62 | G169: =IF(A169>$B$30,NA(),IF(A169>$A$8,"",OFFSET(InputPriceData!$F$15,CalculationsAndCharts!$A169+$A$11,IF($C$5,8,0),1,1))) -> 3694.62 | H169: 47.8 | I169: 43.43432748 | J169: 0 | K169: 0 | L169: 12.57122365 | M169: 8.042173697 | N169: 28.94306043 | O169: 18.51570904 | P169: 10.4273514 | Q169: 47.45876947 | R169: 21.97139014 | S169: 21.40528342 | T169: 0.04354667092 | U169: 28.94306043 | V169: 18.51570904 | Y169: -2.32 | Z169: -13.78 | AA169: 0 | AB169: 0 | AC169: 4.529049953 | AE169: 6.236472462 | AF169: -0.8146798995 | AW169: 4360280000
A170: 138 | B170: =IF(A170>$B$30,NA(),IF($A170>$A$8,"",OFFSET(InputPriceData!$B$15,$A170+$A$11,0,1,1))) -> 2020-12-14 | C170: =IF(A170>$B$30,NA(),IF($A170>$A$8,"",OFFSET(InputPriceData!$G$15,CalculationsAndCharts!$A170+$A$11,IF($C$5,8,0),1,1))) -> 4594920000 | D170: =IF(A170>$B$30,NA(),IF(A170>$A$8,"",OFFSET(InputPriceData!$C$15,CalculationsAndCharts!$A170+$A$11,IF($C$5,8,0),1,1))) -> 3675.27 | E170: =IF(A170>$B$30,NA(),IF(A170>$A$8,"",OFFSET(InputPriceData!$D$15,CalculationsAndCharts!$A170+$A$11,IF($C$5,8,0),1,1))) -> 3697.61 | F170: =IF(A170>$B$30,NA(),IF(A170>$A$8,"",OFFSET(InputPriceData!$E$15,CalculationsAndCharts!$A170+$A$11,IF($C$5,8,0),1,1))) -> 3645.84 | G170: =IF(A170>$B$30,NA(),IF(A170>$A$8,"",OFFSET(InputPriceData!$F$15,CalculationsAndCharts!$A170+$A$11,IF($C$5,8,0),1,1))) -> 3647.49 | H170: 51.77 | I170: 43.09850651 | J170: 31.7 | K170: 0 | L170: 13.53824085 | M170: 8.660802443 | N170: 31.41232017 | O170: 20.09536558 | P170: 11.31695459 | Q170: 51.50768575 | R170: 21.97139014 | S170: 21.36173675 | T170: 0.04689641484 | U170: 31.41232017 | V170: 20.09536558 | Y170: 31.7 | Z170: -12.44 | AA170: 31.7 | AB170: 0 | AC170: 4.877438411 | AE170: 6.419193525 | AF170: -0.4404057469 | AX170: 4594920000
A171: 139 | B171: =IF(A171>$B$30,NA(),IF($A171>$A$8,"",OFFSET(InputPriceData!$B$15,$A171+$A$11,0,1,1))) -> 2020-12-11 | C171: =IF(A171>$B$30,NA(),IF($A171>$A$8,"",OFFSET(InputPriceData!$G$15,CalculationsAndCharts!$A171+$A$11,IF($C$5,8,0),1,1))) -> 4367150000 | D171: =IF(A171>$B$30,NA(),IF(A171>$A$8,"",OFFSET(InputPriceData!$C$15,CalculationsAndCharts!$A171+$A$11,IF($C$5,8,0),1,1))) -> 3656.08 | E171: =IF(A171>$B$30,NA(),IF(A171>$A$8,"",OFFSET(InputPriceData!$D$15,CalculationsAndCharts!$A171+$A$11,IF($C$5,8,0),1,1))) -> 3665.91 | F171: =IF(A171>$B$30,NA(),IF(A171>$A$8,"",OFFSET(InputPriceData!$E$15,CalculationsAndCharts!$A171+$A$11,IF($C$5,8,0),1,1))) -> 3633.4 | G171: =IF(A171>$B$30,NA(),IF(A171>$A$8,"",OFFSET(InputPriceData!$F$15,CalculationsAndCharts!$A171+$A$11,IF($C$5,8,0),1,1))) -> 3663.46 | H171: 34.7 | I171: 42.43146855 | J171: 0 | K171: 11.78 | L171: 12.14118246 | M171: 9.327018016 | N171: 28.61362774 | O171: 21.9813698 | P171: 6.632257941 | Q171: 50.59499755 | R171: 13.10852508 | S171: 21.31484034 | T171: -0.6312550199 | U171: 28.61362774 | V171: 21.9813698 | Y171: -12.58 | Z171: 11.78 | AA171: 0 | AB171: 11.78 | AC171: 2.814164443 | AE171: 6.517970243 | AF171: 0.05131022621 | AW171: 4367150000
A172: 140 | B172: =IF(A172>$B$30,NA(),IF($A172>$A$8,"",OFFSET(InputPriceData!$B$15,$A172+$A$11,0,1,1))) -> 2020-12-10 | C172: =IF(A172>$B$30,NA(),IF($A172>$A$8,"",OFFSET(InputPriceData!$G$15,CalculationsAndCharts!$A172+$A$11,IF($C$5,8,0),1,1))) -> 4618240000 | D172: =IF(A172>$B$30,NA(),IF(A172>$A$8,"",OFFSET(InputPriceData!$C$15,CalculationsAndCharts!$A172+$A$11,IF($C$5,8,0),1,1))) -> 3659.13 | E172: =IF(A172>$B$30,NA(),IF(A172>$A$8,"",OFFSET(InputPriceData!$D$15,CalculationsAndCharts!$A172+$A$11,IF($C$5,8,0),1,1))) -> 3678.49 | F172: =IF(A172>$B$30,NA(),IF(A172>$A$8,"",OFFSET(InputPriceData!$E$15,CalculationsAndCharts!$A172+$A$11,IF($C$5,8,0),1,1))) -> 3645.18 | G172: =IF(A172>$B$30,NA(),IF(A172>$A$8,"",OFFSET(InputPriceData!$F$15,CalculationsAndCharts!$A172+$A$11,IF($C$5,8,0),1,1))) -> 3668.1 | H172: 33.31 | I172: 43.0261969 | J172: 0 | K172: 15.36 | L172: 13.07511957 | M172: 9.138327094 | N172: 30.38874107 | O172: 21.23898404 | P172: 9.149757032 | Q172: 51.62772511 | R172: 17.72256479 | S172: 21.94609536 | T172: -0.3248869668 | U172: 30.38874107 | V172: 21.23898404 | Y172: -33.9 | Z172: 15.36 | AA172: 0 | AB172: 15.36 | AC172: 3.936792477 | AE172: 6.506462092 | AF172: 0.5329196993 | AW172: 4618240000
A173: 141 | B173: =IF(A173>$B$30,NA(),IF($A173>$A$8,"",OFFSET(InputPriceData!$B$15,$A173+$A$11,0,1,1))) -> 2020-12-09 | C173: =IF(A173>$B$30,NA(),IF($A173>$A$8,"",OFFSET(InputPriceData!$G$15,CalculationsAndCharts!$A173+$A$11,IF($C$5,8,0),1,1))) -> 5209940000 | D173: =IF(A173>$B$30,NA(),IF(A173>$A$8,"",OFFSET(InputPriceData!$C$15,CalculationsAndCharts!$A173+$A$11,IF($C$5,8,0),1,1))) -> 3705.98 | E173: =IF(A173>$B$30,NA(),IF(A173>$A$8,"",OFFSET(InputPriceData!$D$15,CalculationsAndCharts!$A173+$A$11,IF($C$5,8,0),1,1))) -> 3712.39 | F173: =IF(A173>$B$30,NA(),IF(A173>$A$8,"",OFFSET(InputPriceData!$E$15,CalculationsAndCharts!$A173+$A$11,IF($C$5,8,0),1,1))) -> 3660.54 | G173: =IF(A173>$B$30,NA(),IF(A173>$A$8,"",OFFSET(InputPriceData!$F$15,CalculationsAndCharts!$A173+$A$11,IF($C$5,8,0),1,1))) -> 3672.82 | H173: 51.85 | I173: 43.77359667 | J173: 0 | K173: 18.29 | L173: 14.080898 | M173: 8.65973687 | N173: 32.16756006 | O173: 19.78301426 | P173: 12.3845458 | Q173: 51.95057432 | R173: 23.83909315 | S173: 22.27098232 | T173: 0.1206239096 | U173: 32.16756006 | V173: 19.78301426 | Y173: 3.94 | Z173: 18.29 | AA173: 0 | AB173: 18.29 | AC173: 5.421161129 | AE173: 6.386935817 | AF173: 0.8352423712 | AX173: 5209940000
A174: 142 | B174: =IF(A174>$B$30,NA(),IF($A174>$A$8,"",OFFSET(InputPriceData!$B$15,$A174+$A$11,0,1,1))) -> 2020-12-08 | C174: =IF(A174>$B$30,NA(),IF($A174>$A$8,"",OFFSET(InputPriceData!$G$15,CalculationsAndCharts!$A174+$A$11,IF($C$5,8,0),1,1))) -> 4549670000 | D174: =IF(A174>$B$30,NA(),IF(A174>$A$8,"",OFFSET(InputPriceData!$C$15,CalculationsAndCharts!$A174+$A$11,IF($C$5,8,0),1,1))) -> 3683.05 | E174: =IF(A174>$B$30,NA(),IF(A174>$A$8,"",OFFSET(InputPriceData!$D$15,CalculationsAndCharts!$A174+$A$11,IF($C$5,8,0),1,1))) -> 3708.45 | F174: =IF(A174>$B$30,NA(),IF(A174>$A$8,"",OFFSET(InputPriceData!$E$15,CalculationsAndCharts!$A174+$A$11,IF($C$5,8,0),1,1))) -> 3678.83 | G174: =IF(A174>$B$30,NA(),IF(A174>$A$8,"",OFFSET(InputPriceData!$F$15,CalculationsAndCharts!$A174+$A$11,IF($C$5,8,0),1,1))) -> 3702.25 | H174: 29.62 | I174: 43.15233487 | J174: 11.04 | K174: 0 | L174: 15.164044 | M174: 7.918947399 | N174: 35.14072655 | O174: 18.35114467 | P174: 16.78958189 | Q174: 53.49187122 | R174: 31.38716501 | S174: 22.15035841 | T174: 0.7105235847 | U174: 35.14072655 | V174: 18.35114467 | Y174: 11.04 | Z174: 0.05 | AA174: 11.04 | AB174: 0 | AC174: 7.2450966 | AE174: 6.199602885 | AF174: 0.8643123548 | AW174: 4549670000
A175: 143 | B175: =IF(A175>$B$30,NA(),IF($A175>$A$8,"",OFFSET(InputPriceData!$B$15,$A175+$A$11,0,1,1))) -> 2020-12-07 | C175: =IF(A175>$B$30,NA(),IF($A175>$A$8,"",OFFSET(InputPriceData!$G$15,CalculationsAndCharts!$A175+$A$11,IF($C$5,8,0),1,1))) -> 4788560000 | D175: =IF(A175>$B$30,NA(),IF(A175>$A$8,"",OFFSET(InputPriceData!$C$15,CalculationsAndCharts!$A175+$A$11,IF($C$5,8,0),1,1))) -> 3694.73 | E175: =IF(A175>$B$30,NA(),IF(A175>$A$8,"",OFFSET(InputPriceData!$D$15,CalculationsAndCharts!$A175+$A$11,IF($C$5,8,0),1,1))) -> 3697.41 | F175: =IF(A175>$B$30,NA(),IF(A175>$A$8,"",OFFSET(InputPriceData!$E$15,CalculationsAndCharts!$A175+$A$11,IF($C$5,8,0),1,1))) -> 3678.88 | G175: =IF(A175>$B$30,NA(),IF(A175>$A$8,"",OFFSET(InputPriceData!$F$15,CalculationsAndCharts!$A175+$A$11,IF($C$5,8,0),1,1))) -> 3691.96 | H175: 20.24 | I175: 44.19328371 | J175: 0 | K175: 0 | L175: 15.48127815 | M175: 8.528097199 | N175: 35.0308392 | O175: 19.29726982 | P175: 15.73356938 | Q175: 54.32810902 | R175: 28.96027428 | S175: 21.43983483 | T175: 0.5784953422 | U175: 35.0308392 | V175: 19.29726982 | Y175: -1.79 | Z175: -7.94 | AA175: 0 | AB175: 0 | AC175: 6.953180954 | AE175: 6.005749971 | AF175: 0.6068139899 | AX175: 4788560000
A176: 144 | B176: =IF(A176>$B$30,NA(),IF($A176>$A$8,"",OFFSET(InputPriceData!$B$15,$A176+$A$11,0,1,1))) -> 2020-12-04 | C176: =IF(A176>$B$30,NA(),IF($A176>$A$8,"",OFFSET(InputPriceData!$G$15,CalculationsAndCharts!$A176+$A$11,IF($C$5,8,0),1,1))) -> 5086370000 | D176: =IF(A176>$B$30,NA(),IF(A176>$A$8,"",OFFSET(InputPriceData!$C$15,CalculationsAndCharts!$A176+$A$11,IF($C$5,8,0),1,1))) -> 3670.94 | E176: =IF(A176>$B$30,NA(),IF(A176>$A$8,"",OFFSET(InputPriceData!$D$15,CalculationsAndCharts!$A176+$A$11,IF($C$5,8,0),1,1))) -> 3699.2 | F176: =IF(A176>$B$30,NA(),IF(A176>$A$8,"",OFFSET(InputPriceData!$E$15,CalculationsAndCharts!$A176+$A$11,IF($C$5,8,0),1,1))) -> 3670.94 | G176: =IF(A176>$B$30,NA(),IF(A176>$A$8,"",OFFSET(InputPriceData!$F$15,CalculationsAndCharts!$A176+$A$11,IF($C$5,8,0),1,1))) -> 3699.12 | H176: 32.48 | I176: 46.03584399 | J176: 16.47 | K176: 0 | L176: 16.6721457 | M176: 9.184104675 | N176: 36.21557521 | O176: 19.94989964 | P176: 16.26567557 | Q176: 56.16547485 | R176: 28.96027428 | S176: 20.86133949 | T176: 0.622994984 | U176: 36.21557521 | V176: 19.94989964 | Y176: 16.47 | Z176: -13.77 | AA176: 16.47 | AB176: 0 | AC176: 7.488041027 | AE176: 5.869650262 | AF176: 0.1572513858 | AW176: 5086370000
A177: 145 | B177: =IF(A177>$B$30,NA(),IF($A177>$A$8,"",OFFSET(InputPriceData!$B$15,$A177+$A$11,0,1,1))) -> 2020-12-03 | C177: =IF(A177>$B$30,NA(),IF($A177>$A$8,"",OFFSET(InputPriceData!$G$15,CalculationsAndCharts!$A177+$A$11,IF($C$5,8,0),1,1))) -> 5091760000 | D177: =IF(A177>$B$30,NA(),IF(A177>$A$8,"",OFFSET(InputPriceData!$C$15,CalculationsAndCharts!$A177+$A$11,IF($C$5,8,0),1,1))) -> 3668.28 | E177: =IF(A177>$B$30,NA(),IF(A177>$A$8,"",OFFSET(InputPriceData!$D$15,CalculationsAndCharts!$A177+$A$11,IF($C$5,8,0),1,1))) -> 3682.73 | F177: =IF(A177>$B$30,NA(),IF(A177>$A$8,"",OFFSET(InputPriceData!$E$15,CalculationsAndCharts!$A177+$A$11,IF($C$5,8,0),1,1))) -> 3657.17 | G177: =IF(A177>$B$30,NA(),IF(A177>$A$8,"",OFFSET(InputPriceData!$F$15,CalculationsAndCharts!$A177+$A$11,IF($C$5,8,0),1,1))) -> 3666.72 | H177: 25.56 | I177: 47.07860122 | J177: 11.77 | K177: 0 | L177: 16.68769537 | M177: 9.890574266 | N177: 35.44645537 | O177: 21.00864089 | P177: 14.43781448 | Q177: 56.45509626 | R177: 25.57397904 | S177: 20.2383445 | T177: 0.410433426 | U177: 35.44645537 | V177: 21.00864089 | Y177: 11.77 | Z177: -12.33 | AA177: 11.77 | AB177: 0 | AC177: 6.797121107 | AE177: 5.834381023 | AF177: -0.317571618 | AX177: 5091760000
A178: 146 | B178: =IF(A178>$B$30,NA(),IF($A178>$A$8,"",OFFSET(InputPriceData!$B$15,$A178+$A$11,0,1,1))) -> 2020-12-02 | C178: =IF(A178>$B$30,NA(),IF($A178>$A$8,"",OFFSET(InputPriceData!$G$15,CalculationsAndCharts!$A178+$A$11,IF($C$5,8,0),1,1))) -> 5029620000 | D178: =IF(A178>$B$30,NA(),IF(A178>$A$8,"",OFFSET(InputPriceData!$C$15,CalculationsAndCharts!$A178+$A$11,IF($C$5,8,0),1,1))) -> 3653.78 | E178: =IF(A178>$B$30,NA(),IF(A178>$A$8,"",OFFSET(InputPriceData!$D$15,CalculationsAndCharts!$A178+$A$11,IF($C$5,8,0),1,1))) -> 3670.96 | F178: =IF(A178>$B$30,NA(),IF(A178>$A$8,"",OFFSET(InputPriceData!$E$15,CalculationsAndCharts!$A178+$A$11,IF($C$5,8,0),1,1))) -> 3644.84 | G178: =IF(A178>$B$30,NA(),IF(A178>$A$8,"",OFFSET(InputPriceData!$F$15,CalculationsAndCharts!$A178+$A$11,IF($C$5,8,0),1,1))) -> 3669.01 | H178: 26.12 | I178: 48.73387824 | J178: 0 | K178: 1.03 | L178: 17.06597963 | M178: 10.65138767 | N178: 35.01871849 | O178: 21.85622827 | P178: 13.16249023 | Q178: 56.87494676 | R178: 23.14286162 | S178: 19.82791108 | T178: 0.254996196 | U178: 35.01871849 | V178: 21.85622827 | Y178: -7.49 | Z178: 1.03 | AA178: 0 | AB178: 1.03 | AC178: 6.414591961 | AE178: 5.9056078 | AF178: -0.7952020309 | AW178: 5029620000
A179: 147 | B179: =IF(A179>$B$30,NA(),IF($A179>$A$8,"",OFFSET(InputPriceData!$B$15,$A179+$A$11,0,1,1))) -> 2020-12-01 | C179: =IF(A179>$B$30,NA(),IF($A179>$A$8,"",OFFSET(InputPriceData!$G$15,CalculationsAndCharts!$A179+$A$11,IF($C$5,8,0),1,1))) -> 5403660000 | D179: =IF(A179>$B$30,NA(),IF(A179>$A$8,"",OFFSET(InputPriceData!$C$15,CalculationsAndCharts!$A179+$A$11,IF($C$5,8,0),1,1))) -> 3645.87 | E179: =IF(A179>$B$30,NA(),IF(A179>$A$8,"",OFFSET(InputPriceData!$D$15,CalculationsAndCharts!$A179+$A$11,IF($C$5,8,0),1,1))) -> 3678.45 | F179: =IF(A179>$B$30,NA(),IF(A179>$A$8,"",OFFSET(InputPriceData!$E$15,CalculationsAndCharts!$A179+$A$11,IF($C$5,8,0),1,1))) -> 3645.87 | G179: =IF(A179>$B$30,NA(),IF(A179>$A$8,"",OFFSET(InputPriceData!$F$15,CalculationsAndCharts!$A179+$A$11,IF($C$5,8,0),1,1))) -> 3662.45 | H179: 56.82 | I179: 50.47340733 | J179: 44.27 | K179: 0 | L179: 18.3787473 | M179: 11.39149441 | N179: 36.41273349 | O179: 22.56929939 | P179: 13.8434341 | Q179: 58.98203288 | R179: 23.47059506 | S179: 19.57291488 | T179: 0.2998215525 | U179: 36.41273349 | V179: 22.56929939 | Y179: 44.27 | Z179: -51.48 | AA179: 44.27 | AB179: 0 | AC179: 6.987252881 | AE179: 6.083960255 | AF179: -1.281939824 | AW179: 5403660000
A180: 148 | B180: =IF(A180>$B$30,NA(),IF($A180>$A$8,"",OFFSET(InputPriceData!$B$15,$A180+$A$11,0,1,1))) -> 2020-11-30 | C180: =IF(A180>$B$30,NA(),IF($A180>$A$8,"",OFFSET(InputPriceData!$G$15,CalculationsAndCharts!$A180+$A$11,IF($C$5,8,0),1,1))) -> 6291400000 | D180: =IF(A180>$B$30,NA(),IF(A180>$A$8,"",OFFSET(InputPriceData!$C$15,CalculationsAndCharts!$A180+$A$11,IF($C$5,8,0),1,1))) -> 3634.18 | E180: =IF(A180>$B$30,NA(),IF(A180>$A$8,"",OFFSET(InputPriceData!$D$15,CalculationsAndCharts!$A180+$A$11,IF($C$5,8,0),1,1))) -> 3634.18 | F180: =IF(A180>$B$30,NA(),IF(A180>$A$8,"",OFFSET(InputPriceData!$E$15,CalculationsAndCharts!$A180+$A$11,IF($C$5,8,0),1,1))) -> 3594.39 | G180: =IF(A180>$B$30,NA(),IF(A180>$A$8,"",OFFSET(InputPriceData!$F$15,CalculationsAndCharts!$A180+$A$11,IF($C$5,8,0),1,1))) -> 3621.63 | H180: 43.96 | I180: 49.9852079 | J180: 0 | K180: 34.94 | L180: 16.38711247 | M180: 12.26776322 | N180: 32.78392381 | O180: 24.54278722 | P180: 8.241136587 | Q180: 57.32671103 | R180: 14.37573592 | S180: 19.27309333 | T180: -0.3767198008 | U180: 32.78392381 | V180: 24.54278722 | Y180: -10.13 | Z180: 34.94 | AA180: 0 | AB180: 34.94 | AC180: 4.119349256 | AE180: 6.371481044 | AF180: -1.749120804 | AX180: 6291400000
A181: 149 | B181: =IF(A181>$B$30,NA(),IF($A181>$A$8,"",OFFSET(InputPriceData!$B$15,$A181+$A$11,0,1,1))) -> 2020-11-27 | C181: =IF(A181>$B$30,NA(),IF($A181>$A$8,"",OFFSET(InputPriceData!$G$15,CalculationsAndCharts!$A181+$A$11,IF($C$5,8,0),1,1))) -> 2778450000 | D181: =IF(A181>$B$30,NA(),IF(A181>$A$8,"",OFFSET(InputPriceData!$C$15,CalculationsAndCharts!$A181+$A$11,IF($C$5,8,0),1,1))) -> 3638.55 | E181: =IF(A181>$B$30,NA(),IF(A181>$A$8,"",OFFSET(InputPriceData!$D$15,CalculationsAndCharts!$A181+$A$11,IF($C$5,8,0),1,1))) -> 3644.31 | F181: =IF(A181>$B$30,NA(),IF(A181>$A$8,"",OFFSET(InputPriceData!$E$15,CalculationsAndCharts!$A181+$A$11,IF($C$5,8,0),1,1))) -> 3629.33 | G181: =IF(A181>$B$30,NA(),IF(A181>$A$8,"",OFFSET(InputPriceData!$F$15,CalculationsAndCharts!$A181+$A$11,IF($C$5,8,0),1,1))) -> 3638.35 | H181: 14.98 | I181: 50.44868543 | J181: 8.81 | K181: 0 | L181: 17.64765959 | M181: 10.523745 | N181: 34.98140623 | O181: 20.86029579 | P181: 14.12111044 | Q181: 55.84170201 | R181: 25.28775078 | S181: 19.64981313 | T181: 0.4336875118 | U181: 34.98140623 | V181: 20.86029579 | Y181: 8.81 | Z181: -11.57 | AA181: 8.81 | AB181: 0 | AC181: 7.123914584 | AE181: 6.763783853 | AF181: -2.041371692 | AX181: 2778450000
A182: 150 | B182: =IF(A182>$B$30,NA(),IF($A182>$A$8,"",OFFSET(InputPriceData!$B$15,$A182+$A$11,0,1,1))) -> 2020-11-25 | C182: =IF(A182>$B$30,NA(),IF($A182>$A$8,"",OFFSET(InputPriceData!$G$15,CalculationsAndCharts!$A182+$A$11,IF($C$5,8,0),1,1))) -> 4902560000 | D182: =IF(A182>$B$30,NA(),IF(A182>$A$8,"",OFFSET(InputPriceData!$C$15,CalculationsAndCharts!$A182+$A$11,IF($C$5,8,0),1,1))) -> 3635.5 | E182: =IF(A182>$B$30,NA(),IF(A182>$A$8,"",OFFSET(InputPriceData!$D$15,CalculationsAndCharts!$A182+$A$11,IF($C$5,8,0),1,1))) -> 3635.5 | F182: =IF(A182>$B$30,NA(),IF(A182>$A$8,"",OFFSET(InputPriceData!$E$15,CalculationsAndCharts!$A182+$A$11,IF($C$5,8,0),1,1))) -> 3617.76 | G182: =IF(A182>$B$30,NA(),IF(A182>$A$8,"",OFFSET(InputPriceData!$F$15,CalculationsAndCharts!$A182+$A$11,IF($C$5,8,0),1,1))) -> 3629.65 | H182: 17.74 | I182: 53.17704585 | J182: 0 | K182: 0 | L182: 18.32747955 | M182: 11.33326385 | N182: 34.46502013 | O182: 21.31232314 | P182: 13.15269698 | Q182: 55.77734327 | R182: 23.58071614 | S182: 19.21612562 | T182: 0.3357377323 | U182: 34.46502013 | V182: 21.31232314 | Y182: -6.81 | Z182: -23.24 | AA182: 0 | AB182: 0 | AC182: 6.994215706 | AE182: 7.221634361 | AF182: -1.893251163 | AX182: 4902560000
A183: 151 | B183: =IF(A183>$B$30,NA(),IF($A183>$A$8,"",OFFSET(InputPriceData!$B$15,$A183+$A$11,0,1,1))) -> 2020-11-24 | C183: =IF(A183>$B$30,NA(),IF($A183>$A$8,"",OFFSET(InputPriceData!$G$15,CalculationsAndCharts!$A183+$A$11,IF($C$5,8,0),1,1))) -> 6267570000 | D183: =IF(A183>$B$30,NA(),IF(A183>$A$8,"",OFFSET(InputPriceData!$C$15,CalculationsAndCharts!$A183+$A$11,IF($C$5,8,0),1,1))) -> 3594.52 | E183: =IF(A183>$B$30,NA(),IF(A183>$A$8,"",OFFSET(InputPriceData!$D$15,CalculationsAndCharts!$A183+$A$11,IF($C$5,8,0),1,1))) -> 3642.31 | F183: =IF(A183>$B$30,NA(),IF(A183>$A$8,"",OFFSET(InputPriceData!$E$15,CalculationsAndCharts!$A183+$A$11,IF($C$5,8,0),1,1))) -> 3594.52 | G183: =IF(A183>$B$30,NA(),IF(A183>$A$8,"",OFFSET(InputPriceData!$F$15,CalculationsAndCharts!$A183+$A$11,IF($C$5,8,0),1,1))) -> 3635.41 | H183: 64.72 | I183: 55.90297245 | J183: 52.5 | K183: 0 | L183: 19.73728567 | M183: 12.20505337 | N183: 35.30632596 | O183: 21.83256603 | P183: 13.47375992 | Q183: 57.13889199 | R183: 23.58071614 | S183: 18.88038788 | T183: 0.3615637117 | U183: 35.30632596 | V183: 21.83256603 | Y183: 52.5 | Z183: -41.75 | AA183: 52.5 | AB183: 0 | AC183: 7.532232298 | AE183: 7.646263551 | AF183: -1.190157667 | AW183: 6267570000
A184: 152 | B184: =IF(A184>$B$30,NA(),IF($A184>$A$8,"",OFFSET(InputPriceData!$B$15,$A184+$A$11,0,1,1))) -> 2020-11-23 | C184: =IF(A184>$B$30,NA(),IF($A184>$A$8,"",OFFSET(InputPriceData!$G$15,CalculationsAndCharts!$A184+$A$11,IF($C$5,8,0),1,1))) -> 5036290000 | D184: =IF(A184>$B$30,NA(),IF(A184>$A$8,"",OFFSET(InputPriceData!$C$15,CalculationsAndCharts!$A184+$A$11,IF($C$5,8,0),1,1))) -> 3566.82 | E184: =IF(A184>$B$30,NA(),IF(A184>$A$8,"",OFFSET(InputPriceData!$D$15,CalculationsAndCharts!$A184+$A$11,IF($C$5,8,0),1,1))) -> 3589.81 | F184: =IF(A184>$B$30,NA(),IF(A184>$A$8,"",OFFSET(InputPriceData!$E$15,CalculationsAndCharts!$A184+$A$11,IF($C$5,8,0),1,1))) -> 3552.77 | G184: =IF(A184>$B$30,NA(),IF(A184>$A$8,"",OFFSET(InputPriceData!$F$15,CalculationsAndCharts!$A184+$A$11,IF($C$5,8,0),1,1))) -> 3577.59 | H184: 37.04 | I184: 55.22473956 | J184: 8.58 | K184: 0 | L184: 17.21707688 | M184: 13.14390363 | N184: 31.17638402 | O184: 23.80075259 | P184: 7.375631423 | Q184: 54.97713661 | R184: 13.41581588 | S184: 18.51882417 | T184: -0.3925390996 | U184: 31.17638402 | V184: 23.80075259 | Y184: 8.58 | Z184: 4.08 | AA184: 8.58 | AB184: 0 | AC184: 4.073173244 | AE184: 7.913198913 | AF184: 0.2223061765 | AW184: 5036290000
A185: 153 | B185: =IF(A185>$B$30,NA(),IF($A185>$A$8,"",OFFSET(InputPriceData!$B$15,$A185+$A$11,0,1,1))) -> 2020-11-20 | C185: =IF(A185>$B$30,NA(),IF($A185>$A$8,"",OFFSET(InputPriceData!$G$15,CalculationsAndCharts!$A185+$A$11,IF($C$5,8,0),1,1))) -> 4218970000 | D185: =IF(A185>$B$30,NA(),IF(A185>$A$8,"",OFFSET(InputPriceData!$C$15,CalculationsAndCharts!$A185+$A$11,IF($C$5,8,0),1,1))) -> 3579.31 | E185: =IF(A185>$B$30,NA(),IF(A185>$A$8,"",OFFSET(InputPriceData!$D$15,CalculationsAndCharts!$A185+$A$11,IF($C$5,8,0),1,1))) -> 3581.23 | F185: =IF(A185>$B$30,NA(),IF(A185>$A$8,"",OFFSET(InputPriceData!$E$15,CalculationsAndCharts!$A185+$A$11,IF($C$5,8,0),1,1))) -> 3556.85 | G185: =IF(A185>$B$30,NA(),IF(A185>$A$8,"",OFFSET(InputPriceData!$F$15,CalculationsAndCharts!$A185+$A$11,IF($C$5,8,0),1,1))) -> 3557.54 | H185: 25.02 | I185: 56.62356568 | J185: 0 | K185: 0 | L185: 17.88146741 | M185: 14.15497314 | N185: 31.5795503 | O185: 24.99837828 | P185: 6.581172023 | Q185: 56.57792858 | R185: 11.63204838 | S185: 18.91136327 | T185: -0.5599472997 | U185: 31.5795503 | V185: 24.99837828 | Y185: -3.99 | Z185: -13.01 | AA185: 0 | AB185: 0 | AC185: 3.726494263 | AE185: 7.863338814 | AF185: 2.343460554 | AX185: 4218970000
A186: 154 | B186: =IF(A186>$B$30,NA(),IF($A186>$A$8,"",OFFSET(InputPriceData!$B$15,$A186+$A$11,0,1,1))) -> 2020-11-19 | C186: =IF(A186>$B$30,NA(),IF($A186>$A$8,"",OFFSET(InputPriceData!$G$15,CalculationsAndCharts!$A186+$A$11,IF($C$5,8,0),1,1))) -> 4347200000 | D186: =IF(A186>$B$30,NA(),IF(A186>$A$8,"",OFFSET(InputPriceData!$C$15,CalculationsAndCharts!$A186+$A$11,IF($C$5,8,0),1,1))) -> 3559.41 | E186: =IF(A186>$B$30,NA(),IF(A186>$A$8,"",OFFSET(InputPriceData!$D$15,CalculationsAndCharts!$A186+$A$11,IF($C$5,8,0),1,1))) -> 3585.22 | F186: =IF(A186>$B$30,NA(),IF(A186>$A$8,"",OFFSET(InputPriceData!$E$15,CalculationsAndCharts!$A186+$A$11,IF($C$5,8,0),1,1))) -> 3543.84 | G186: =IF(A186>$B$30,NA(),IF(A186>$A$8,"",OFFSET(InputPriceData!$F$15,CalculationsAndCharts!$A186+$A$11,IF($C$5,8,0),1,1))) -> 3581.87 | H186: 41.38 | I186: 59.0546092 | J186: 0 | K186: 23.49 | L186: 19.2569649 | M186: 15.24381723 | N186: 32.60874157 | O186: 25.81308629 | P186: 6.79565528 | Q186: 58.42182787 | R186: 11.63204838 | S186: 19.47131057 | T186: -0.6030201689 | U186: 32.60874157 | V186: 25.81308629 | Y186: -33.87 | Z186: 23.49 | AA186: 0 | AB186: 23.49 | AC186: 4.013147668 | AE186: 7.337734089 | AF186: 4.91042416 | AW186: 4347200000
A187: 155 | B187: =IF(A187>$B$30,NA(),IF($A187>$A$8,"",OFFSET(InputPriceData!$B$15,$A187+$A$11,0,1,1))) -> 2020-11-18 | C187: =IF(A187>$B$30,NA(),IF($A187>$A$8,"",OFFSET(InputPriceData!$G$15,CalculationsAndCharts!$A187+$A$11,IF($C$5,8,0),1,1))) -> 5274450000 | D187: =IF(A187>$B$30,NA(),IF(A187>$A$8,"",OFFSET(InputPriceData!$C$15,CalculationsAndCharts!$A187+$A$11,IF($C$5,8,0),1,1))) -> 3612.09 | E187: =IF(A187>$B$30,NA(),IF(A187>$A$8,"",OFFSET(InputPriceData!$D$15,CalculationsAndCharts!$A187+$A$11,IF($C$5,8,0),1,1))) -> 3619.09 | F187: =IF(A187>$B$30,NA(),IF(A187>$A$8,"",OFFSET(InputPriceData!$E$15,CalculationsAndCharts!$A187+$A$11,IF($C$5,8,0),1,1))) -> 3567.33 | G187: =IF(A187>$B$30,NA(),IF(A187>$A$8,"",OFFSET(InputPriceData!$F$15,CalculationsAndCharts!$A187+$A$11,IF($C$5,8,0),1,1))) -> 3567.79 | H187: 51.76 | I187: 60.41419452 | J187: 0 | K187: 21.35 | L187: 20.73826989 | M187: 14.60949548 | N187: 34.32681683 | O187: 24.1822234 | P187: 10.14459344 | Q187: 58.50904023 | R187: 17.33850598 | S187: 20.07433074 | T187: -0.2104480589 | U187: 34.32681683 | V187: 24.1822234 | Y187: -4.02 | Z187: 21.35 | AA187: 0 | AB187: 21.35 | AC187: 6.128774412 | AE187: 6.236396099 | AF187: 7.526523417 | AX187: 5274450000
A188: 156 | B188: =IF(A188>$B$30,NA(),IF($A188>$A$8,"",OFFSET(InputPriceData!$B$15,$A188+$A$11,0,1,1))) -> 2020-11-17 | C188: =IF(A188>$B$30,NA(),IF($A188>$A$8,"",OFFSET(InputPriceData!$G$15,CalculationsAndCharts!$A188+$A$11,IF($C$5,8,0),1,1))) -> 4799570000 | D188: =IF(A188>$B$30,NA(),IF(A188>$A$8,"",OFFSET(InputPriceData!$C$15,CalculationsAndCharts!$A188+$A$11,IF($C$5,8,0),1,1))) -> 3610.31 | E188: =IF(A188>$B$30,NA(),IF(A188>$A$8,"",OFFSET(InputPriceData!$D$15,CalculationsAndCharts!$A188+$A$11,IF($C$5,8,0),1,1))) -> 3623.11 | F188: =IF(A188>$B$30,NA(),IF(A188>$A$8,"",OFFSET(InputPriceData!$E$15,CalculationsAndCharts!$A188+$A$11,IF($C$5,8,0),1,1))) -> 3588.68 | G188: =IF(A188>$B$30,NA(),IF(A188>$A$8,"",OFFSET(InputPriceData!$F$15,CalculationsAndCharts!$A188+$A$11,IF($C$5,8,0),1,1))) -> 3609.53 | H188: 38.23 | I188: 61.07990179 | J188: 0 | K188: 11.48 | L188: 22.33352142 | M188: 14.09099513 | N188: 36.56443571 | O188: 23.06977372 | P188: 13.49466199 | Q188: 59.63420944 | R188: 22.6290616 | S188: 20.2847788 | T188: 0.1803294462 | U188: 36.56443571 | V188: 23.06977372 | Y188: -5.4 | Z188: 11.48 | AA188: 0 | AB188: 11.48 | AC188: 8.24252629 | AE188: 4.548304419 | AF188: 9.785849188 | AX188: 4799570000
A189: 157 | B189: =IF(A189>$B$30,NA(),IF($A189>$A$8,"",OFFSET(InputPriceData!$B$15,$A189+$A$11,0,1,1))) -> 2020-11-16 | C189: =IF(A189>$B$30,NA(),IF($A189>$A$8,"",OFFSET(InputPriceData!$G$15,CalculationsAndCharts!$A189+$A$11,IF($C$5,8,0),1,1))) -> 5281980000 | D189: =IF(A189>$B$30,NA(),IF(A189>$A$8,"",OFFSET(InputPriceData!$C$15,CalculationsAndCharts!$A189+$A$11,IF($C$5,8,0),1,1))) -> 3600.16 | E189: =IF(A189>$B$30,NA(),IF(A189>$A$8,"",OFFSET(InputPriceData!$D$15,CalculationsAndCharts!$A189+$A$11,IF($C$5,8,0),1,1))) -> 3628.51 | F189: =IF(A189>$B$30,NA(),IF(A189>$A$8,"",OFFSET(InputPriceData!$E$15,CalculationsAndCharts!$A189+$A$11,IF($C$5,8,0),1,1))) -> 3600.16 | G189: =IF(A189>$B$30,NA(),IF(A189>$A$8,"",OFFSET(InputPriceData!$F$15,CalculationsAndCharts!$A189+$A$11,IF($C$5,8,0),1,1))) -> 3626.91 | H189: 43.36 | I189: 62.83758654 | J189: 34.85 | K189: 0 | L189: 24.05148461 | M189: 14.29184091 | N189: 38.27563395 | O189: 22.74409585 | P189: 15.5315381 | Q189: 61.0197298 | R189: 25.45330527 | S189: 20.10444935 | T189: 0.4114504552 | U189: 38.27563395 | V189: 22.74409585 | Y189: 34.85 | Z189: -47.59 | AA189: 34.85 | AB189: 0 | AC189: 9.759643696 | AE189: 2.353478244 | AF189: 11.20426165 | AW189: 5281980000
A190: 158 | B190: =IF(A190>$B$30,NA(),IF($A190>$A$8,"",OFFSET(InputPriceData!$B$15,$A190+$A$11,0,1,1))) -> 2020-11-13 | C190: =IF(A190>$B$30,NA(),IF($A190>$A$8,"",OFFSET(InputPriceData!$G$15,CalculationsAndCharts!$A190+$A$11,IF($C$5,8,0),1,1))) -> 4709670000 | D190: =IF(A190>$B$30,NA(),IF(A190>$A$8,"",OFFSET(InputPriceData!$C$15,CalculationsAndCharts!$A190+$A$11,IF($C$5,8,0),1,1))) -> 3552.57 | E190: =IF(A190>$B$30,NA(),IF(A190>$A$8,"",OFFSET(InputPriceData!$D$15,CalculationsAndCharts!$A190+$A$11,IF($C$5,8,0),1,1))) -> 3593.66 | F190: =IF(A190>$B$30,NA(),IF(A190>$A$8,"",OFFSET(InputPriceData!$E$15,CalculationsAndCharts!$A190+$A$11,IF($C$5,8,0),1,1))) -> 3552.57 | G190: =IF(A190>$B$30,NA(),IF(A190>$A$8,"",OFFSET(InputPriceData!$F$15,CalculationsAndCharts!$A190+$A$11,IF($C$5,8,0),1,1))) -> 3585.15 | H190: 56.65 | I190: 64.33586243 | J190: 24.64 | K190: 0 | L190: 23.22082958 | M190: 15.39121329 | N190: 36.09313484 | O190: 23.92322526 | P190: 12.16990959 | Q190: 60.0163601 | R190: 20.27765357 | S190: 19.6929989 | T190: 0.04497343602 | U190: 36.09313484 | V190: 23.92322526 | Y190: 24.64 | Z190: -33.99 | AA190: 24.64 | AB190: 0 | AC190: 7.829616289 | AE190: -0.1594775839 | AF190: 11.43001998 | AW190: 4709670000
A191: 159 | B191: =IF(A191>$B$30,NA(),IF($A191>$A$8,"",OFFSET(InputPriceData!$B$15,$A191+$A$11,0,1,1))) -> 2020-11-12 | C191: =IF(A191>$B$30,NA(),IF($A191>$A$8,"",OFFSET(InputPriceData!$G$15,CalculationsAndCharts!$A191+$A$11,IF($C$5,8,0),1,1))) -> 4890120000 | D191: =IF(A191>$B$30,NA(),IF(A191>$A$8,"",OFFSET(InputPriceData!$C$15,CalculationsAndCharts!$A191+$A$11,IF($C$5,8,0),1,1))) -> 3562.67 | E191: =IF(A191>$B$30,NA(),IF(A191>$A$8,"",OFFSET(InputPriceData!$D$15,CalculationsAndCharts!$A191+$A$11,IF($C$5,8,0),1,1))) -> 3569.02 | F191: =IF(A191>$B$30,NA(),IF(A191>$A$8,"",OFFSET(InputPriceData!$E$15,CalculationsAndCharts!$A191+$A$11,IF($C$5,8,0),1,1))) -> 3518.58 | G191: =IF(A191>$B$30,NA(),IF(A191>$A$8,"",OFFSET(InputPriceData!$F$15,CalculationsAndCharts!$A191+$A$11,IF($C$5,8,0),1,1))) -> 3537.01 | H191: 54.08 | I191: 64.92708262 | J191: 0 | K191: 38.42 | L191: 23.11166262 | M191: 16.57515278 | N191: 35.59633622 | O191: 25.52887348 | P191: 10.06746274 | Q191: 61.1252097 | R191: 16.47023018 | S191: 19.64802546 | T191: -0.2444457906 | U191: 35.59633622 | V191: 25.52887348 | Y191: -12.14 | Z191: 38.42 | AA191: 0 | AB191: 38.42 | AC191: 6.536509849 | AE191: -2.723067779 | AF191: 10.28575128 | AX191: 4890120000
A192: 160 | B192: =IF(A192>$B$30,NA(),IF($A192>$A$8,"",OFFSET(InputPriceData!$B$15,$A192+$A$11,0,1,1))) -> 2020-11-11 | C192: =IF(A192>$B$30,NA(),IF($A192>$A$8,"",OFFSET(InputPriceData!$G$15,CalculationsAndCharts!$A192+$A$11,IF($C$5,8,0),1,1))) -> 4609970000 | D192: =IF(A192>$B$30,NA(),IF(A192>$A$8,"",OFFSET(InputPriceData!$C$15,CalculationsAndCharts!$A192+$A$11,IF($C$5,8,0),1,1))) -> 3563.22 | E192: =IF(A192>$B$30,NA(),IF(A192>$A$8,"",OFFSET(InputPriceData!$D$15,CalculationsAndCharts!$A192+$A$11,IF($C$5,8,0),1,1))) -> 3581.16 | F192: =IF(A192>$B$30,NA(),IF(A192>$A$8,"",OFFSET(InputPriceData!$E$15,CalculationsAndCharts!$A192+$A$11,IF($C$5,8,0),1,1))) -> 3557 | G192: =IF(A192>$B$30,NA(),IF(A192>$A$8,"",OFFSET(InputPriceData!$F$15,CalculationsAndCharts!$A192+$A$11,IF($C$5,8,0),1,1))) -> 3572.66 | H192: 35.63 | I192: 65.76147359 | J192: 23.94 | K192: 0 | L192: 24.88948283 | M192: 14.89477991 | N192: 37.84812211 | O192: 22.64970521 | P192: 15.1984169 | Q192: 60.49782733 | R192: 25.12225244 | S192: 19.89247125 | T192: 0.4022908601 | U192: 37.84812211 | V192: 22.64970521 | Y192: 23.94 | Z192: -45.09 | AA192: 23.94 | AB192: 0 | AC192: 9.994702915 | AE192: -5.030014851 | AF192: 7.760653388 | AW192: 4609970000
A193: 161 | B193: =IF(A193>$B$30,NA(),IF($A193>$A$8,"",OFFSET(InputPriceData!$B$15,$A193+$A$11,0,1,1))) -> 2020-11-10 | C193: =IF(A193>$B$30,NA(),IF($A193>$A$8,"",OFFSET(InputPriceData!$G$15,CalculationsAndCharts!$A193+$A$11,IF($C$5,8,0),1,1))) -> 6024230000 | D193: =IF(A193>$B$30,NA(),IF(A193>$A$8,"",OFFSET(InputPriceData!$C$15,CalculationsAndCharts!$A193+$A$11,IF($C$5,8,0),1,1))) -> 3543.26 | E193: =IF(A193>$B$30,NA(),IF(A193>$A$8,"",OFFSET(InputPriceData!$D$15,CalculationsAndCharts!$A193+$A$11,IF($C$5,8,0),1,1))) -> 3557.22 | F193: =IF(A193>$B$30,NA(),IF(A193>$A$8,"",OFFSET(InputPriceData!$E$15,CalculationsAndCharts!$A193+$A$11,IF($C$5,8,0),1,1))) -> 3511.91 | G193: =IF(A193>$B$30,NA(),IF(A193>$A$8,"",OFFSET(InputPriceData!$F$15,CalculationsAndCharts!$A193+$A$11,IF($C$5,8,0),1,1))) -> 3545.53 | H193: 45.31 | I193: 68.07927925 | J193: 0 | K193: 35.57 | L193: 24.96251997 | M193: 16.04053221 | N193: 36.66683937 | O193: 23.56154823 | P193: 13.10529114 | Q193: 60.2283876 | R193: 21.7593259 | S193: 19.49018039 | T193: 0.1745496546 | U193: 36.66683937 | V193: 23.56154823 | Y193: -88.77 | Z193: 35.57 | AA193: 0 | AB193: 35.57 | AC193: 8.921987754 | AE193: -6.770618539 | AF193: 4.325862458 | AW193: 6024230000
A194: 162 | B194: =IF(A194>$B$30,NA(),IF($A194>$A$8,"",OFFSET(InputPriceData!$B$15,$A194+$A$11,0,1,1))) -> 2020-11-09 | C194: =IF(A194>$B$30,NA(),IF($A194>$A$8,"",OFFSET(InputPriceData!$G$15,CalculationsAndCharts!$A194+$A$11,IF($C$5,8,0),1,1))) -> 8556610000 | D194: =IF(A194>$B$30,NA(),IF(A194>$A$8,"",OFFSET(InputPriceData!$C$15,CalculationsAndCharts!$A194+$A$11,IF($C$5,8,0),1,1))) -> 3583.04 | E194: =IF(A194>$B$30,NA(),IF(A194>$A$8,"",OFFSET(InputPriceData!$D$15,CalculationsAndCharts!$A194+$A$11,IF($C$5,8,0),1,1))) -> 3645.99 | F194: =IF(A194>$B$30,NA(),IF(A194>$A$8,"",OFFSET(InputPriceData!$E$15,CalculationsAndCharts!$A194+$A$11,IF($C$5,8,0),1,1))) -> 3547.48 | G194: =IF(A194>$B$30,NA(),IF(A194>$A$8,"",OFFSET(InputPriceData!$F$15,CalculationsAndCharts!$A194+$A$11,IF($C$5,8,0),1,1))) -> 3550.5 | H194: 136.55 | I194: 69.83076227 | J194: 124.41 | K194: 0 | L194: 26.88271381 | M194: 14.53826546 | N194: 38.49695025 | O194: 20.81928507 | P194: 17.67766519 | Q194: 59.31623532 | R194: 29.80240585 | S194: 19.31563074 | T194: 0.8066750088 | U194: 38.49695025 | V194: 20.81928507 | Y194: 124.41 | Z194: -63.14 | AA194: 124.41 | AB194: 0 | AC194: 12.34444835 | AE194: -7.740847691 | AF194: 0.5970063203 | AX194: 8556610000
A195: 163 | B195: =IF(A195>$B$30,NA(),IF($A195>$A$8,"",OFFSET(InputPriceData!$B$15,$A195+$A$11,0,1,1))) -> 2020-11-06 | C195: =IF(A195>$B$30,NA(),IF($A195>$A$8,"",OFFSET(InputPriceData!$G$15,CalculationsAndCharts!$A195+$A$11,IF($C$5,8,0),1,1))) -> 4833950000 | D195: =IF(A195>$B$30,NA(),IF(A195>$A$8,"",OFFSET(InputPriceData!$C$15,CalculationsAndCharts!$A195+$A$11,IF($C$5,8,0),1,1))) -> 3508.34 | E195: =IF(A195>$B$30,NA(),IF(A195>$A$8,"",OFFSET(InputPriceData!$D$15,CalculationsAndCharts!$A195+$A$11,IF($C$5,8,0),1,1))) -> 3521.58 | F195: =IF(A195>$B$30,NA(),IF(A195>$A$8,"",OFFSET(InputPriceData!$E$15,CalculationsAndCharts!$A195+$A$11,IF($C$5,8,0),1,1))) -> 3484.34 | G195: =IF(A195>$B$30,NA(),IF(A195>$A$8,"",OFFSET(InputPriceData!$F$15,CalculationsAndCharts!$A195+$A$11,IF($C$5,8,0),1,1))) -> 3509.44 | H195: 37.24 | I195: 64.69851321 | J195: 0 | K195: 1.4 | L195: 19.38061487 | M195: 15.65659357 | N195: 29.95527086 | O195: 24.19930968 | P195: 5.755961174 | Q195: 54.15458054 | R195: 10.62876144 | S195: 18.50895573 | T195: -0.6061687916 | U195: 29.95527086 | V195: 24.19930968 | Y195: -7.47 | Z195: 1.4 | AA195: 0 | AB195: 1.4 | AC195: 3.724021301 | AE195: -7.87474768 | AF195: -2.728375517 | AW195: 4833950000
A196: 164 | B196: =IF(A196>$B$30,NA(),IF($A196>$A$8,"",OFFSET(InputPriceData!$B$15,$A196+$A$11,0,1,1))) -> 2020-11-05 | C196: =IF(A196>$B$30,NA(),IF($A196>$A$8,"",OFFSET(InputPriceData!$G$15,CalculationsAndCharts!$A196+$A$11,IF($C$5,8,0),1,1))) -> 4841190000 | D196: =IF(A196>$B$30,NA(),IF(A196>$A$8,"",OFFSET(InputPriceData!$C$15,CalculationsAndCharts!$A196+$A$11,IF($C$5,8,0),1,1))) -> 3485.74 | E196: =IF(A196>$B$30,NA(),IF(A196>$A$8,"",OFFSET(InputPriceData!$D$15,CalculationsAndCharts!$A196+$A$11,IF($C$5,8,0),1,1))) -> 3529.05 | F196: =IF(A196>$B$30,NA(),IF(A196>$A$8,"",OFFSET(InputPriceData!$E$15,CalculationsAndCharts!$A196+$A$11,IF($C$5,8,0),1,1))) -> 3485.74 | G196: =IF(A196>$B$30,NA(),IF(A196>$A$8,"",OFFSET(InputPriceData!$F$15,CalculationsAndCharts!$A196+$A$11,IF($C$5,8,0),1,1))) -> 3510.45 | H196: 85.61 | I196: 66.81070654 | J196: 42.8 | K196: 0 | L196: 20.8714314 | M196: 16.75325462 | N196: 31.23965077 | O196: 25.07570341 | P196: 6.163947365 | Q196: 56.31535418 | R196: 10.9454117 | S196: 19.11512452 | T196: -0.6284394478 | U196: 31.23965077 | V196: 25.07570341 | Y196: 42.8 | Z196: -80.57 | AA196: 42.8 | AB196: 0 | AC196: 4.118176785 | AE196: -7.262812028 | AF196: -5.331564513 | AW196: 4841190000
A197: 165 | B197: =IF(A197>$B$30,NA(),IF($A197>$A$8,"",OFFSET(InputPriceData!$B$15,$A197+$A$11,0,1,1))) -> 2020-11-04 | C197: =IF(A197>$B$30,NA(),IF($A197>$A$8,"",OFFSET(InputPriceData!$G$15,CalculationsAndCharts!$A197+$A$11,IF($C$5,8,0),1,1))) -> 4783040000 | D197: =IF(A197>$B$30,NA(),IF(A197>$A$8,"",OFFSET(InputPriceData!$C$15,CalculationsAndCharts!$A197+$A$11,IF($C$5,8,0),1,1))) -> 3406.46 | E197: =IF(A197>$B$30,NA(),IF(A197>$A$8,"",OFFSET(InputPriceData!$D$15,CalculationsAndCharts!$A197+$A$11,IF($C$5,8,0),1,1))) -> 3486.25 | F197: =IF(A197>$B$30,NA(),IF(A197>$A$8,"",OFFSET(InputPriceData!$E$15,CalculationsAndCharts!$A197+$A$11,IF($C$5,8,0),1,1))) -> 3405.17 | G197: =IF(A197>$B$30,NA(),IF(A197>$A$8,"",OFFSET(InputPriceData!$F$15,CalculationsAndCharts!$A197+$A$11,IF($C$5,8,0),1,1))) -> 3443.44 | H197: 117.09 | I197: 65.36460704 | J197: 96.76 | K197: 0 | L197: 19.18461843 | M197: 18.04196651 | N197: 29.35016258 | O197: 27.60204234 | P197: 1.748120236 | Q197: 56.95220491 | R197: 3.069451373 | S197: 19.74356397 | T197: -1.282624046 | U197: 29.35016258 | V197: 27.60204234 | Y197: 96.76 | Z197: -68.92 | AA197: 96.76 | AB197: 0 | AC197: 1.142651923 | AE197: -6.067018273 | AF197: -7.053234772 | AW197: 4783040000
A198: 166 | B198: =IF(A198>$B$30,NA(),IF($A198>$A$8,"",OFFSET(InputPriceData!$B$15,$A198+$A$11,0,1,1))) -> 2020-11-03 | C198: =IF(A198>$B$30,NA(),IF($A198>$A$8,"",OFFSET(InputPriceData!$G$15,CalculationsAndCharts!$A198+$A$11,IF($C$5,8,0),1,1))) -> 4220070000 | D198: =IF(A198>$B$30,NA(),IF(A198>$A$8,"",OFFSET(InputPriceData!$C$15,CalculationsAndCharts!$A198+$A$11,IF($C$5,8,0),1,1))) -> 3336.25 | E198: =IF(A198>$B$30,NA(),IF(A198>$A$8,"",OFFSET(InputPriceData!$D$15,CalculationsAndCharts!$A198+$A$11,IF($C$5,8,0),1,1))) -> 3389.49 | F198: =IF(A198>$B$30,NA(),IF(A198>$A$8,"",OFFSET(InputPriceData!$E$15,CalculationsAndCharts!$A198+$A$11,IF($C$5,8,0),1,1))) -> 3336.25 | G198: =IF(A198>$B$30,NA(),IF(A198>$A$8,"",OFFSET(InputPriceData!$F$15,CalculationsAndCharts!$A198+$A$11,IF($C$5,8,0),1,1))) -> 3369.16 | H198: 79.25 | I198: 61.38573066 | J198: 59.35 | K198: 0 | L198: 13.21728139 | M198: 19.42981009 | N198: 21.53152084 | O198: 31.65199775 | P198: 10.12047691 | Q198: 53.18351859 | R198: 19.02934815 | S198: 21.02618801 | T198: -0.1536030663 | U198: 21.53152084 | V198: 31.65199775 | Y198: 59.35 | Z198: -56.51 | AA198: 59.35 | AB198: 0 | AC198: -6.212528699 | AE198: -4.485078474 | AF198: -7.706293894 | AW198: 4220070000
A199: 167 | B199: =IF(A199>$B$30,NA(),IF($A199>$A$8,"",OFFSET(InputPriceData!$B$15,$A199+$A$11,0,1,1))) -> 2020-11-02 | C199: =IF(A199>$B$30,NA(),IF($A199>$A$8,"",OFFSET(InputPriceData!$G$15,CalculationsAndCharts!$A199+$A$11,IF($C$5,8,0),1,1))) -> 4310590000 | D199: =IF(A199>$B$30,NA(),IF(A199>$A$8,"",OFFSET(InputPriceData!$C$15,CalculationsAndCharts!$A199+$A$11,IF($C$5,8,0),1,1))) -> 3296.2 | E199: =IF(A199>$B$30,NA(),IF(A199>$A$8,"",OFFSET(InputPriceData!$D$15,CalculationsAndCharts!$A199+$A$11,IF($C$5,8,0),1,1))) -> 3330.14 | F199: =IF(A199>$B$30,NA(),IF(A199>$A$8,"",OFFSET(InputPriceData!$E$15,CalculationsAndCharts!$A199+$A$11,IF($C$5,8,0),1,1))) -> 3279.74 | G199: =IF(A199>$B$30,NA(),IF(A199>$A$8,"",OFFSET(InputPriceData!$F$15,CalculationsAndCharts!$A199+$A$11,IF($C$5,8,0),1,1))) -> 3310.24 | H199: 60.18 | I199: 60.01155609 | J199: 25.21 | K199: 0 | L199: 9.668610726 | M199: 20.92441086 | N199: 16.11124816 | O199: 34.86730261 | P199: 18.75605445 | Q199: 50.97855077 | R199: 36.7920511 | S199: 21.17979108 | T199: 1.200943079 | U199: 16.11124816 | V199: 34.86730261 | Y199: 25.21 | Z199: -45.8 | AA199: 25.21 | AB199: 0 | AC199: -11.25580014 | AE199: -2.756666843 | AF199: -7.583854905 | AW199: 4310590000
A200: 168 | B200: =IF(A200>$B$30,NA(),IF($A200>$A$8,"",OFFSET(InputPriceData!$B$15,$A200+$A$11,0,1,1))) -> 2020-10-30 | C200: =IF(A200>$B$30,NA(),IF($A200>$A$8,"",OFFSET(InputPriceData!$G$15,CalculationsAndCharts!$A200+$A$11,IF($C$5,8,0),1,1))) -> 4840450000 | D200: =IF(A200>$B$30,NA(),IF(A200>$A$8,"",OFFSET(InputPriceData!$C$15,CalculationsAndCharts!$A200+$A$11,IF($C$5,8,0),1,1))) -> 3293.59 | E200: =IF(A200>$B$30,NA(),IF(A200>$A$8,"",OFFSET(InputPriceData!$D$15,CalculationsAndCharts!$A200+$A$11,IF($C$5,8,0),1,1))) -> 3304.93 | F200: =IF(A200>$B$30,NA(),IF(A200>$A$8,"",OFFSET(InputPriceData!$E$15,CalculationsAndCharts!$A200+$A$11,IF($C$5,8,0),1,1))) -> 3233.94 | G200: =IF(A200>$B$30,NA(),IF(A200>$A$8,"",OFFSET(InputPriceData!$F$15,CalculationsAndCharts!$A200+$A$11,IF($C$5,8,0),1,1))) -> 3269.96 | H200: 76.17 | I200: 59.99859887 | J200: 0 | K200: 25.88 | L200: 8.473119244 | M200: 22.53398093 | N200: 14.12219519 | O200: 37.55751193 | P200: 23.43531674 | Q200: 51.67970712 | R200: 45.34723211 | S200: 19.978848 | T200: 1.951414162 | U200: 14.12219519 | V200: 37.55751193 | Y200: -36.12 | Z200: 25.88 | AA200: 0 | AB200: 25.88 | AC200: -14.06086169 | AE200: -1.055716529 | AF200: -7.098672122 | AX200: 4840450000
A201: 169 | B201: =IF(A201>$B$30,NA(),IF($A201>$A$8,"",OFFSET(InputPriceData!$B$15,$A201+$A$11,0,1,1))) -> 2020-10-29 | C201: =IF(A201>$B$30,NA(),IF($A201>$A$8,"",OFFSET(InputPriceData!$G$15,CalculationsAndCharts!$A201+$A$11,IF($C$5,8,0),1,1))) -> 4903070000 | D201: =IF(A201>$B$30,NA(),IF(A201>$A$8,"",OFFSET(InputPriceData!$C$15,CalculationsAndCharts!$A201+$A$11,IF($C$5,8,0),1,1))) -> 3277.17 | E201: =IF(A201>$B$30,NA(),IF(A201>$A$8,"",OFFSET(InputPriceData!$D$15,CalculationsAndCharts!$A201+$A$11,IF($C$5,8,0),1,1))) -> 3341.05 | F201: =IF(A201>$B$30,NA(),IF(A201>$A$8,"",OFFSET(InputPriceData!$E$15,CalculationsAndCharts!$A201+$A$11,IF($C$5,8,0),1,1))) -> 3259.82 | G201: =IF(A201>$B$30,NA(),IF(A201>$A$8,"",OFFSET(InputPriceData!$F$15,CalculationsAndCharts!$A201+$A$11,IF($C$5,8,0),1,1))) -> 3310.11 | H201: 81.23 | I201: 58.75464493 | J201: 0 | K201: 9.07 | L201: 9.124897647 | M201: 22.27659485 | N201: 15.53051279 | O201: 37.91461062 | P201: 22.38409783 | Q201: 53.44512341 | R201: 41.88239525 | S201: 18.02743384 | T201: 1.834997031 | U201: 15.53051279 | V201: 37.91461062 | Y201: -1.43 | Z201: 9.07 | AA201: 0 | AB201: 9.07 | AC201: -13.1516972 | AE201: 0.5364142184 | AF201: -6.441308833 | AW201: 4903070000
A202: 170 | B202: =IF(A202>$B$30,NA(),IF($A202>$A$8,"",OFFSET(InputPriceData!$B$15,$A202+$A$11,0,1,1))) -> 2020-10-28 | C202: =IF(A202>$B$30,NA(),IF($A202>$A$8,"",OFFSET(InputPriceData!$G$15,CalculationsAndCharts!$A202+$A$11,IF($C$5,8,0),1,1))) -> 5129860000 | D202: =IF(A202>$B$30,NA(),IF(A202>$A$8,"",OFFSET(InputPriceData!$C$15,CalculationsAndCharts!$A202+$A$11,IF($C$5,8,0),1,1))) -> 3342.48 | E202: =IF(A202>$B$30,NA(),IF(A202>$A$8,"",OFFSET(InputPriceData!$D$15,CalculationsAndCharts!$A202+$A$11,IF($C$5,8,0),1,1))) -> 3342.48 | F202: =IF(A202>$B$30,NA(),IF(A202>$A$8,"",OFFSET(InputPriceData!$E$15,CalculationsAndCharts!$A202+$A$11,IF($C$5,8,0),1,1))) -> 3268.89 | G202: =IF(A202>$B$30,NA(),IF(A202>$A$8,"",OFFSET(InputPriceData!$F$15,CalculationsAndCharts!$A202+$A$11,IF($C$5,8,0),1,1))) -> 3271.03 | H202: 121.79 | I202: 57.02577147 | J202: 0 | K202: 119.82 | L202: 9.826812851 | M202: 23.29248676 | N202: 17.23223132 | O202: 40.84554432 | P202: 23.613313 | Q202: 58.07777564 | R202: 40.65808778 | S202: 16.19243681 | T202: 1.881973152 | U202: 17.23223132 | V202: 40.84554432 | Y202: -67.03 | Z202: 119.82 | AA202: 0 | AB202: 119.82 | AC202: -13.46567391 | AE202: 1.981107771 | AF202: -5.60252217 | AX202: 5129860000
A203: 171 | B203: =IF(A203>$B$30,NA(),IF($A203>$A$8,"",OFFSET(InputPriceData!$B$15,$A203+$A$11,0,1,1))) -> 2020-10-27 | C203: =IF(A203>$B$30,NA(),IF($A203>$A$8,"",OFFSET(InputPriceData!$G$15,CalculationsAndCharts!$A203+$A$11,IF($C$5,8,0),1,1))) -> 3946990000 | D203: =IF(A203>$B$30,NA(),IF(A203>$A$8,"",OFFSET(InputPriceData!$C$15,CalculationsAndCharts!$A203+$A$11,IF($C$5,8,0),1,1))) -> 3403.15 | E203: =IF(A203>$B$30,NA(),IF(A203>$A$8,"",OFFSET(InputPriceData!$D$15,CalculationsAndCharts!$A203+$A$11,IF($C$5,8,0),1,1))) -> 3409.51 | F203: =IF(A203>$B$30,NA(),IF(A203>$A$8,"",OFFSET(InputPriceData!$E$15,CalculationsAndCharts!$A203+$A$11,IF($C$5,8,0),1,1))) -> 3388.71 | G203: =IF(A203>$B$30,NA(),IF(A203>$A$8,"",OFFSET(InputPriceData!$F$15,CalculationsAndCharts!$A203+$A$11,IF($C$5,8,0),1,1))) -> 3390.68 | H203: 20.8 | I203: 52.04390773 | J203: 0 | K203: 0 | L203: 10.58272153 | M203: 15.86729343 | N203: 20.33421776 | O203: 30.48828215 | P203: 10.15406439 | Q203: 50.82249991 | R203: 19.97946658 | S203: 14.31046366 | T203: 0.4360771482 | U203: 20.33421776 | V203: 30.48828215 | Y203: -31.91 | Z203: -23.85 | AA203: 0 | AB203: 0 | AC203: -5.284571901 | AE203: 3.237673458 | AF203: -4.619120745 | AX203: 3946990000
A204: 172 | B204: =IF(A204>$B$30,NA(),IF($A204>$A$8,"",OFFSET(InputPriceData!$B$15,$A204+$A$11,0,1,1))) -> 2020-10-26 | C204: =IF(A204>$B$30,NA(),IF($A204>$A$8,"",OFFSET(InputPriceData!$G$15,CalculationsAndCharts!$A204+$A$11,IF($C$5,8,0),1,1))) -> 3988080000 | D204: =IF(A204>$B$30,NA(),IF(A204>$A$8,"",OFFSET(InputPriceData!$C$15,CalculationsAndCharts!$A204+$A$11,IF($C$5,8,0),1,1))) -> 3441.42 | E204: =IF(A204>$B$30,NA(),IF(A204>$A$8,"",OFFSET(InputPriceData!$D$15,CalculationsAndCharts!$A204+$A$11,IF($C$5,8,0),1,1))) -> 3441.42 | F204: =IF(A204>$B$30,NA(),IF(A204>$A$8,"",OFFSET(InputPriceData!$E$15,CalculationsAndCharts!$A204+$A$11,IF($C$5,8,0),1,1))) -> 3364.86 | G204: =IF(A204>$B$30,NA(),IF(A204>$A$8,"",OFFSET(InputPriceData!$F$15,CalculationsAndCharts!$A204+$A$11,IF($C$5,8,0),1,1))) -> 3400.97 | H204: 100.53 | I204: 54.44728525 | J204: 0 | K204: 75.59 | L204: 11.39677703 | M204: 17.08785447 | N204: 20.9317636 | O204: 31.38421757 | P204: 10.45245398 | Q204: 52.31598117 | R204: 19.97946658 | S204: 13.87438651 | T204: 0.4696215442 | U204: 20.9317636 | V204: 31.38421757 | Y204: -25.04 | Z204: 75.59 | AA204: 0 | AB204: 75.59 | AC204: -5.691077432 | AE204: 4.273676253 | AF204: -3.428202358 | AX204: 3988080000
A205: 173 | B205: =IF(A205>$B$30,NA(),IF($A205>$A$8,"",OFFSET(InputPriceData!$B$15,$A205+$A$11,0,1,1))) -> 2020-10-23 | C205: =IF(A205>$B$30,NA(),IF($A205>$A$8,"",OFFSET(InputPriceData!$G$15,CalculationsAndCharts!$A205+$A$11,IF($C$5,8,0),1,1))) -> 3646570000 | D205: =IF(A205>$B$30,NA(),IF(A205>$A$8,"",OFFSET(InputPriceData!$C$15,CalculationsAndCharts!$A205+$A$11,IF($C$5,8,0),1,1))) -> 3464.9 | E205: =IF(A205>$B$30,NA(),IF(A205>$A$8,"",OFFSET(InputPriceData!$D$15,CalculationsAndCharts!$A205+$A$11,IF($C$5,8,0),1,1))) -> 3466.46 | F205: =IF(A205>$B$30,NA(),IF(A205>$A$8,"",OFFSET(InputPriceData!$E$15,CalculationsAndCharts!$A205+$A$11,IF($C$5,8,0),1,1))) -> 3440.45 | G205: =IF(A205>$B$30,NA(),IF(A205>$A$8,"",OFFSET(InputPriceData!$F$15,CalculationsAndCharts!$A205+$A$11,IF($C$5,8,0),1,1))) -> 3465.39 | H205: 26.01 | I205: 50.90246104 | J205: 5.93 | K205: 0 | L205: 12.27345219 | M205: 12.58768942 | N205: 24.11170686 | O205: 24.72903896 | P205: 0.6173321053 | Q205: 48.84074582 | R205: 1.263969448 | S205: 13.40476496 | T205: -0.9339073475 | U205: 24.11170686 | V205: 24.72903896 | Y205: 5.93 | Z205: -25.11 | AA205: 5.93 | AB205: 0 | AC205: -0.3142372344 | AE205: 5.042573068 | AF205: -2.000839492 | AW205: 3646570000
A206: 174 | B206: =IF(A206>$B$30,NA(),IF($A206>$A$8,"",OFFSET(InputPriceData!$B$15,$A206+$A$11,0,1,1))) -> 2020-10-22 | C206: =IF(A206>$B$30,NA(),IF($A206>$A$8,"",OFFSET(InputPriceData!$G$15,CalculationsAndCharts!$A206+$A$11,IF($C$5,8,0),1,1))) -> 4163630000 | D206: =IF(A206>$B$30,NA(),IF(A206>$A$8,"",OFFSET(InputPriceData!$C$15,CalculationsAndCharts!$A206+$A$11,IF($C$5,8,0),1,1))) -> 3438.5 | E206: =IF(A206>$B$30,NA(),IF(A206>$A$8,"",OFFSET(InputPriceData!$D$15,CalculationsAndCharts!$A206+$A$11,IF($C$5,8,0),1,1))) -> 3460.53 | F206: =IF(A206>$B$30,NA(),IF(A206>$A$8,"",OFFSET(InputPriceData!$E$15,CalculationsAndCharts!$A206+$A$11,IF($C$5,8,0),1,1))) -> 3415.34 | G206: =IF(A206>$B$30,NA(),IF(A206>$A$8,"",OFFSET(InputPriceData!$F$15,CalculationsAndCharts!$A206+$A$11,IF($C$5,8,0),1,1))) -> 3453.49 | H206: 45.19 | I206: 52.81726574 | J206: 0 | K206: 17.72 | L206: 12.76141005 | M206: 13.55597323 | N206: 24.16143637 | O206: 25.66579893 | P206: 1.504362569 | Q206: 49.8272353 | R206: 3.019157213 | S206: 14.33867231 | T206: -0.8707319307 | U206: 24.16143637 | V206: 25.66579893 | Y206: -4.33 | Z206: 17.72 | AA206: 0 | AB206: 17.72 | AC206: -0.7945631755 | AE206: 5.491332782 | AF206: -0.3383553619 | AW206: 4163630000
A207: 175 | B207: =IF(A207>$B$30,NA(),IF($A207>$A$8,"",OFFSET(InputPriceData!$B$15,$A207+$A$11,0,1,1))) -> 2020-10-21 | C207: =IF(A207>$B$30,NA(),IF($A207>$A$8,"",OFFSET(InputPriceData!$G$15,CalculationsAndCharts!$A207+$A$11,IF($C$5,8,0),1,1))) -> 4097750000 | D207: =IF(A207>$B$30,NA(),IF(A207>$A$8,"",OFFSET(InputPriceData!$C$15,CalculationsAndCharts!$A207+$A$11,IF($C$5,8,0),1,1))) -> 3439.91 | E207: =IF(A207>$B$30,NA(),IF(A207>$A$8,"",OFFSET(InputPriceData!$D$15,CalculationsAndCharts!$A207+$A$11,IF($C$5,8,0),1,1))) -> 3464.86 | F207: =IF(A207>$B$30,NA(),IF(A207>$A$8,"",OFFSET(InputPriceData!$E$15,CalculationsAndCharts!$A207+$A$11,IF($C$5,8,0),1,1))) -> 3433.06 | G207: =IF(A207>$B$30,NA(),IF(A207>$A$8,"",OFFSET(InputPriceData!$F$15,CalculationsAndCharts!$A207+$A$11,IF($C$5,8,0),1,1))) -> 3435.56 | H207: 31.8 | I207: 53.40397849 | J207: 0 | K207: 2.59 | L207: 13.74305698 | M207: 13.23566347 | N207: 25.73414447 | O207: 24.78404016 | P207: 0.9501043137 | Q207: 50.51818463 | R207: 1.88071745 | S207: 15.20940424 | T207: -1.025283599 | U207: 25.73414447 | V207: 24.78404016 | Y207: -12.07 | Z207: 2.59 | AA207: 0 | AB207: 2.59 | AC207: 0.5073935033 | AE207: 5.567221056 | AF207: 1.406441061 | AX207: 4097750000
... 918 more rows

Sheet Follow
A1: Stocks and Indexes I wish to follow
A3: To ease following a stock, enter a Yahoo Finance acceptable symbol in column "A" anywhere below cell "A9".
A4: Thereafter you may doubleclick the cell containing a symbol of interest to initiate data retrieval and charting for that symbol.
A7: Symbol
A8: To | B8: Description | C8: Last Trade as of most recent check
A9: Follow | C9: Date | D9: Time | E9: Open | F9: High | G9: Low | H9: Close | I9: Volume | J9: Change | K9: Retrieved @
A10: A | B10: Agilent Technologies, Inc. (A) -NYSE (Daily) | C10: 2020-03-09 | D10: 16:04:00 | E10: 72.589996 | F10: 74.190002 | G10: 70.169998 | H10: 70.75 | I10: 4591093 | J10: -7.809998 | K10: 2020-03-09T16:59:21
A11: AA | B11: Alcoa Corporation (AA) -NYSE (Daily) | C11: 2020-01-31 | D11: 16:04:00 | E11: 14.01 | F11: 14.24 | G11: 13.62 | H11: 13.95 | I11: 9931500 | J11: -0.34 | K11: 2020-02-02T15:07:13
A12: AAL | B12: American Airlines Group Inc. (AAL) -NasdaqGS (Daily) | C12: 2020-03-09 | D12: 16:00:00 | E12: 14.87 | F12: 15.79 | G12: 14.46 | H12: 14.75 | I12: 41078614 | J12: -1.22 | K12: 2020-03-09T17:00:15
A13: AAPL | B13: Apple Inc. (AAPL) -NasdaqGS (Daily) | C13: 2020-06-17 | D13: 16:00:00 | E13: 355.149994 | F13: 355.369995 | G13: 351.089996 | H13: 351.589996 | I13: 27604481 | J13: -0.489991 | K13: 2020-06-17T17:45:34
A14: ADM | B14: Archer-Daniels-Midland Company (ADM) -NYSE (Weekly) | C14: 2018-07-13 | D14: 16:00:00 | E14: 47.5 | F14: 47.84 | G14: 47.169998 | H14: 47.57 | I14: 2402809 | J14: 0
A15: ADBE | B15: Adobe Inc. (ADBE) -NasdaqGS (Daily) | C15: 2020-06-17 | D15: 16:00:00 | E15: 414 | F15: 417.425995 | G15: 411.429993 | H15: 413.48999 | I15: 2026063 | J15: 1.819977 | K15: 2020-06-17T17:42:59
A16: ALGN | B16: Align Technology, Inc. (ALGN) -NasdaqGS (Daily) | C16: 2020-01-30 | D16: 16:00:00 | E16: 248.740005 | F16: 264.450012 | G16: 248.350006 | H16: 262.890015 | I16: 1833160 | J16: 1.290009
A17: AMC | B17: AMC Entertainment Holdings, Inc. (AMC) -NYSE (Weekly) | C17: 2018-07-13 | D17: 16:02:00 | E17: 17.049999 | F17: 17.15 | G17: 16.525 | H17: 17.049999 | I17: 1442776 | J17: 0
A18: AMD | B18: Advanced Micro Devices, Inc. (AMD) -NasdaqGS (Daily) | C18: 2020-08-19 | D18: 12:40:00 | E18: 81.775703 | F18: 81.849998 | G18: 80.449997 | H18: 80.760002 | I18: 18434143 | J18: -0.900002 | K18: 2020-08-19T12:40:49
A19: BSX | B19: Boston Scientific Corporation C (BSX) -NYQ (Daily) | C19: 2015-03-13 | D19: 16:01:00 | E19: 16.84 | F19: 16.91 | G19: 16.44 | H19: 16.61 | I19: 7262460 | J19: -0.28
A20: CASY | B20: Casey's General Stores, Inc. (CASY) -NasdaqGS (Daily) | C20: 2019-04-10 | D20: 16:00:00 | E20: 128.979996 | F20: 130.330002 | G20: 128.779999 | H20: 130.179993 | I20: 351300 | J20: 1.489991
A21: CAT | B21: Caterpillar Inc. (CAT) -NYSE (Daily) | C21: 2020-03-13 | D21: 11:48:00 | E21: 98.389999 | F21: 99.910004 | G21: 90.150101 | H21: 90.269997 | I21: 3568294 | J21: -1.990005 | K21: 2020-03-13T11:48:53
A22: CSCO | B22: Cisco Systems, In (CSCO) -NasdaqNM (Daily) | C22: 2015-02-19 | D22: 16:00:00 | E22: 29.32 | F22: 29.39 | G22: 29.13 | H22: 29.31 | I22: 21469012 | J22: -0.18
A23: CVS | B23: CVS Health Corporation (CVS) -NYSE (Daily) | C23: 2020-03-09 | D23: 16:07:00 | E23: 59.75 | F23: 63 | G23: 59.599998 | H23: 61.299999 | I23: 13065424 | J23: -2.850003 | K23: 2020-03-09T17:51:54
A24: DIS | B24: The Walt Disney Company (DIS) -NYSE (Daily) | C24: 2020-03-09 | D24: 16:07:00 | E24: 108.690002 | F24: 110.43 | G24: 104.279999 | H24: 104.349998 | I24: 26101127 | J24: -10.919999 | K24: 2020-03-09T16:59:51
A25: F | B25: Ford Motor Company (F) -NYSE (Daily) | C25: 2020-01-31 | D25: 16:03:00 | E25: 8.78 | F25: 8.84 | G25: 8.74 | H25: 8.82 | I25: 59781000 | J25: -0.02 | K25: 2020-02-02T15:09:03
A26: FAS | B26: Direxion Daily Financial Bull 3X ETF (FAS) -NYSEArca (Daily) | C26: 2017-10-13 | D26: 16:00:00 | E26: 58.099998 | F26: 58.939999 | G26: 57.43 | H26: 58.450001 | I26: 1709300 | J26: 0.07
A27: FB | B27: Facebook, Inc. (FB) -NasdaqGS (Daily) | C27: 2020-02-14 | D27: 16:00:00 | E27: 214 | F27: 214.929993 | G27: 212.649994 | H27: 214.179993 | I27: 10727400 | J27: 1.039994 | K27: 2020-02-15T17:19:34
A28: GSK | B28: GlaxoSmithKline plc (GSK) -NYSE (Daily) | C28: 2021-01-15 | D28: 16:00:00 | E28: 38.41 | F28: 38.66 | G28: 38.209999 | H28: 38.470001 | I28: 3100400 | J28: 0.310001 | K28: 2021-01-17T18:07:58
A29: GDX | B29: VanEck Vectors Gold Miners ETF (GDX) -NYSEArca (Daily) | C29: 2020-01-31 | D29: 16:00:00 | E29: 28.799999 | F29: 29.24 | G29: 28.76 | H29: 28.99 | I29: 41946000 | J29: 0.26 | K29: 2020-02-02T15:11:17
A30: GOOG | B30: Alphabet Inc. (GOOG) -NasdaqGS (Daily) | C30: 2021-06-10 | D30: 16:00:00 | E30: 2494.01001 | F30: 2523.26001 | G30: 2494.01001 | H30: 2521.600098 | I30: 1390763 | J30: 30.200196 | K30: 2021-06-10T16:45:42
A31: HAL | B31: Halliburton Company (HAL) -NYSE (Daily) | C31: 2020-09-17 | D31: 11:11:00 | E31: 14.73 | F31: 14.945 | G31: 14.57 | H31: 14.91 | I31: 4265279 | J31: -0.16 | K31: 2020-09-17T11:11:52
A32: HD | B32: The Home Depot, Inc. (HD) -NYSE (Daily) | C32: 2020-03-13 | D32: 11:54:00 | E32: 200.449997 | F32: 201.179993 | G32: 192.270096 | H32: 193.449997 | I32: 3274582 | J32: 2.860001 | K32: 2020-03-13T11:54:29
A33: HSY | B33: The Hershey Company (HSY) -NYSE (Daily) | C33: 2021-01-15 | D33: 16:00:00 | E33: 147.089996 | F33: 149.490005 | G33: 146.880005 | H33: 148.460007 | I33: 1193700 | J33: 1.040009 | K33: 2021-01-17T18:06:10
A34: HTLD | B34: Heartland Express, Inc. (HTLD) -NasdaqGS (Daily) | C34: 2020-03-09 | D34: 16:00:00 | E34: 17.33 | F34: 17.690001 | G34: 16.82 | H34: 16.879999 | I34: 284762 | J34: -1.280001 | K34: 2020-03-09T17:00:56
A35: IDEX | B35: Ideanomics, Inc. (IDEX) -NasdaqGS (Daily) | C35: 2021-02-19 | D35: 10:11:00 | E35: 3.99 | F35: 4.15 | G35: 3.88 | H35: 3.92 | I35: 8623006 | J35: 0.19 | K35: 2021-02-19T10:11:40
A36: IBM | B36: International Business Machines Corporation (IBM) -NYSE (Daily) | C36: 2021-02-09 | D36: 16:00:00 | E36: 121.900002 | F36: 122.565002 | G36: 121.050003 | H36: 122.099998 | I36: 4173266 | J36: -1.510003 | K36: 2021-02-09T17:01:49
A37: INTC | B37: Intel Corporation (INTC) -NasdaqGS (Daily) | C37: 2020-02-14 | D37: 16:00:00 | E37: 67.519997 | F37: 67.860001 | G37: 66.82 | H37: 67.269997 | I37: 13402800 | J37: -0.170005 | K37: 2020-02-15T17:21:41
A38: JAH | B38: Jarden Corporation Common Stock (JAH) -NYQ (Daily) | C38: 2016-01-08 | D38: 16:02:00 | E38: 53.82 | F38: 53.88 | G38: 52.65 | H38: 52.73 | I38: 4519480 | J38: -0.81
A39: JNJ | B39: Johnson & Johnson (JNJ) -NYSE (Daily) | C39: 2019-08-14 | D39: 10:33:00 | E39: 132.529999 | F39: 132.539993 | G39: 131.419998 | H39: 131.759995 | I39: 870520 | J39: -0.169998
A40: KO | B40: The Coca-Cola Company (KO) -NYSE (Daily) | C40: 2020-03-09 | D40: 16:07:00 | E40: 52.049999 | F40: 53.580002 | G40: 51.474998 | H40: 51.860001 | I40: 27771279 | J40: -3.399997 | K40: 2020-03-09T17:05:43
A41: LOW | B41: Lowe's Companies, Inc. (LOW) -NYSE (Daily) | C41: 2020-03-09 | D41: 16:03:00 | E41: 97.82 | F41: 99.82 | G41: 93.150101 | H41: 94.220001 | I41: 8167579 | J41: -11.089997 | K41: 2020-03-09T16:57:19
A42: LMT | B42: Lockheed Martin Corporation (LMT) -NYSE (Daily) | C42: 2021-02-09 | D42: 16:04:00 | E42: 338.540009 | F42: 344.48999 | G42: 336.570007 | H42: 342.339996 | I42: 1545066 | J42: 4.5 | K42: 2021-02-09T16:56:05
A43: MCD | B43: McDonald's Corporation (MCD) -NYSE (Daily) | C43: 2020-03-09 | D43: 16:01:00 | E43: 187.669998 | F43: 194.470001 | G43: 184.100006 | H43: 186.860001 | I43: 7601343 | J43: -12 | K43: 2020-03-09T16:58:16
A44: MDT | B44: Medtronic plc (MDT) -NYSE (Daily) | C44: 2020-03-09 | D44: 16:07:00 | E44: 94.019997 | F44: 95.470001 | G44: 91.709999 | H44: 92.400002 | I44: 9000931 | J44: -6.659996 | K44: 2020-03-09T17:48:45
A45: MGM | B45: MGM Resorts International (MGM) -NYSE (Daily) | C45: 2020-03-09 | D45: 16:02:00 | E45: 18.6 | F45: 19.58 | G45: 17.530001 | H45: 17.879999 | I45: 26050818 | J45: -2.51 | K45: 2020-03-09T17:13:53
A46: MO | B46: Altria Group, Inc. (MO) -NYSE (Daily) | C46: 2020-01-31 | D46: 16:05:00 | E46: 48.25 | F46: 48.799999 | G46: 47.240002 | H46: 47.529999 | I46: 11790800 | J46: -0.470001 | K46: 2020-02-02T15:20:55
A47: MSFT | B47: Microsoft Corporation (MSFT) -NasdaqGS (Daily) | C47: 2020-03-09 | D47: 16:00:00 | E47: 151 | F47: 157.75 | G47: 150 | H47: 150.619995 | I47: 69167627 | J47: -10.950012 | K47: 2020-03-09T17:06:41
A48: NFLX | B48: Netflix, Inc. (NFLX) -NasdaqGS (Daily) | C48: 2020-03-09 | D48: 16:00:00 | E48: 343.859985 | F48: 357.470001 | G48: 341.720886 | H48: 346.48999 | I48: 6746188 | J48: -22.480011 | K48: 2020-03-09T17:23:37
A49: NUGT | B49: Direxion Daily Gold Miners Index Bull 3X Shares (NUGT) -NYSEArca (Daily) | C49: 2020-01-31 | D49: 16:00:00 | E49: 32.439999 | F49: 33.830002 | G49: 32.240002 | H49: 33.02 | I49: 11325200 | J49: 0.84 | K49: 2020-02-02T15:21:51
A50: NVS | B50: Novartis AG (NVS) -NYSE (Daily) | C50: 2020-03-06 | D50: 16:02:00 | E50: 84.330002 | F50: 85.830002 | G50: 83.970001 | H50: 85.720001 | I50: 5624700 | J50: -0.089997 | K50: 2020-03-08T16:56:35
A51: NVDA | B51: NVIDIA Corporation (NVDA) -NasdaqGS (Daily) | C51: 2020-12-14 | D51: 16:00:00 | E51: 523.515015 | F51: 535.549988 | G51: 523.099976 | H51: 532.349976 | I51: 6580666 | J51: 11.819947 | K51: 2020-12-14T18:31:17
A52: PRU | B52: Prudential Financial, Inc. (PRU) -NYSE (Daily) | C52: 2020-03-09 | D52: 16:02:00 | E52: 63.75 | F52: 65.830002 | G52: 57.375 | H52: 58.240002 | I52: 7614493 | J52: -11.569996 | K52: 2020-03-09T17:11:43
A53: PSEC | B53: Prospect Capital Corporation (PSEC) -NasdaqGS (Daily) | C53: 2020-02-14 | D53: 16:00:00 | E53: 6.53 | F53: 6.56 | G53: 6.51 | H53: 6.52 | I53: 1235500 | J53: -0.04 | K53: 2020-02-15T14:43:16
A54: RPM | B54: RPM International Inc. (RPM) -NYSE (Daily) | C54: 2020-03-09 | D54: 16:02:00 | E54: 64.470001 | F54: 66.730003 | G54: 63.5 | H54: 65.290001 | I54: 1115882 | J54: -2.919998 | K54: 2020-03-09T17:10:08
A55: RSP | B55: Invesco S&P 500 Equal Weight ETF (RSP) -NYSEArca (Daily) | C55: 2020-01-31 | D55: 16:00:00 | E55: 115.279999 | F55: 115.32 | G55: 113.230003 | H55: 113.540001 | I55: 747600 | J55: -2.309997 | K55: 2020-02-02T15:28:52
A56: SPR | B56: Spirit AeroSystems Holdings, Inc. (SPR) -NYSE (Daily) | C56: 2020-03-09 | D56: 16:06:00 | E56: 43.700001 | F56: 43.880001 | G56: 41.5 | H56: 42.139999 | I56: 2091368 | J56: -5.23 | K56: 2020-03-09T17:09:37
A57: SQ | B57: Square, Inc. (SQ) -NYSE (Daily) | C57: 2020-10-02 | D57: 16:00:00 | E57: 164.050003 | F57: 171.240005 | G57: 163.800995 | H57: 169.610001 | I57: 11150500 | J57: 1.119996 | K57: 2020-10-04T20:00:52
A58: SWKS | B58: Skyworks Solutions, Inc. (SWKS) -NasdaqGS (Daily) | C58: 2020-01-31 | D58: 16:00:00 | E58: 115.5 | F58: 115.739998 | G58: 112.720001 | H58: 113.150002 | I58: 2444600 | J58: -3.080001 | K58: 2020-02-02T15:26:46
A59: TOL | B59: Toll Brothers, Inc. (TOL) -NYSE (Daily) | C59: 2020-03-09 | D59: 16:07:00 | E59: 34.759998 | F59: 35.314999 | G59: 32.060001 | H59: 34.110001 | I59: 3127968 | J59: -2.86 | K59: 2020-03-09T17:12:09
A60: TSLA | B60: Tesla, Inc. (TSLA) -NasdaqGS (Daily) | C60: 2020-03-13 | D60: 12:08:00 | E60: 595 | F60: 607.570007 | G60: 502.01001 | H60: 510 | I60: 12224537 | J60: -50.549988 | K60: 2020-03-13T12:08:39
A61: TXN | B61: Texas Instruments Incorporated (TXN) -NasdaqGS (Daily) | C61: 2020-06-19 | D61: 11:30:00 | E61: 128.059998 | F61: 128.179993 | G61: 126.07 | H61: 126.370003 | I61: 2078988 | J61: 0.39 | K61: 2020-06-19T11:31:00
A62: UNP | B62: Union Pacific Corporation (UNP) -NYSE (Daily) | C62: 2020-03-09 | D62: 16:07:00 | E62: 145.199997 | F62: 145.580002 | G62: 133.179993 | H62: 135.839996 | I62: 9380024 | J62: -20.25 | K62: 2020-03-09T17:11:21
A63: VZ | B63: Verizon Communications Inc. (VZ) -NYSE (Daily) | C63: 2019-04-10 | D63: 16:00:00 | E63: 58.400002 | F63: 58.700001 | G63: 58.360001 | H63: 58.610001 | I63: 8022000 | J63: 0.209999
A64: WBA | B64: Walgreens Boots Alliance, Inc. (WBA) -NasdaqGS (Daily) | C64: 2020-01-31 | D64: 16:00:00 | E64: 51.709999 | F64: 51.919998 | G64: 50.66 | H64: 50.849998 | I64: 6532300 | J64: -1.100003 | K64: 2020-02-02T15:28:06
A65: WMT | B65: Walmart Inc. (WMT) -NYSE (Daily) | C65: 2020-03-09 | D65: 16:01:00 | E65: 113.82 | F65: 120.629997 | G65: 112.730003 | H65: 117.160004 | I65: 19567750 | J65: -0.069999 | K65: 2020-03-09T17:10:39
A67: ^AEX | B67: AEX-INDEX (^AEX) -Amsterdam (Daily) | C67: 2020-03-09 | D67: 18:05:00 | E67: 506.950012 | F67: 506.950012 | G67: 485.730011 | H67: 490.660004 | I67: 0 | J67: -40.629974 | K67: 2020-03-09T17:41:58
A68: ^AORD | B68: ALL ORDINARIES (^AORD) -ASX (Daily) | C68: 2020-03-09 | D68: 16:17:00 | E68: 6472.399902 | F68: 6287.299805 | G68: 5822.399902 | H68: 5822.399902 | I68: 0 | J68: -465.100098 | K68: 2020-03-09T17:45:59
A69: ^DJI | B69: Dow Jones Industrial Average (^DJI) -DJI (Daily) | C69: 2021-01-15 | D69: 17:18:00 | E69: 30926.76953 | F69: 30941.98047 | G69: 30612.66992 | H69: 30814.25977 | I69: 433000000 | J69: -177.259765 | K69: 2021-01-18T09:45:18
A70: ^FTSE | B70: FTSE 100 (^FTSE) -FTSE Index (Daily) | C70: 2020-03-09 | D70: 16:45:00 | E70: 6462.549805 | F70: 6462.549805 | G70: 5891.560059 | H70: 5965.77002 | I70: 0 | J70: -496.830078 | K70: 2020-03-09T17:43:57
A71: ^GSPC | B71: S&P 500 (^GSPC) -SNP (Daily) | C71: 2021-10-08 | D71: 17:00:00 | E71: 4406.509766 | F71: 4412.02002 | G71: 4386.220215 | H71: 4391.339844 | I71: 2401890000 | J71: -8.419922 | K71: 2021-10-09T17:25:01
A72: ^HSI | B72: HANG SENG INDEX (^HSI) -HKSE (Daily) | C72: 2020-03-09 | D72: 16:08:00 | E72: 25134.01953 | F72: 25321.2793 | G72: 24948.38086 | H72: 25040.46094 | I72: 0 | J72: -1106.208984 | K72: 2020-03-09T17:39:06
A73: ^MID | B73: S&P MID CAP 400 INDEX (^MID) -NYSE (Daily) | C73: 2020-02-14 | D73: 16:06:00 | E73: 2099.459961 | F73: 2100.51001 | G73: 2089.610107 | H73: 2096.610107 | I73: 0 | J73: -0.679932 | K73: 2020-02-14T21:04:41
A74: ^NDX | B74: NASDAQ 100 (^NDX) -Nasdaq GIDS (Daily) | C74: 2021-06-17 | D74: 17:15:00 | E74: 13946.70019 | F74: 14205.43457 | G74: 13946.52148 | H74: 14163.80859 | I74: 618547720 | J74: 180.798828 | K74: 2021-06-18T09:08:44
A75: ^NYA | B75: NYSE COMPOSITE (DJ) (^NYA) -NYSE (Weekly) | C75: 2021-01-11 | D75: 16:10:00 | E75: 14828.03027 | F75: 15129.12012 | G75: 14791.65039 | H75: 14894.16992 | I75: 24551330000 | J75: -72.660156 | K75: 2021-01-18T09:10:33
A76: ^OEX | B76: S&P 100 INDEX (^OEX) -Chicago Options (Daily) | C76: 2019-09-13 | D76: 16:56:00 | E76: 1332.27002 | F76: 1334.420044 | G76: 1328.73999 | H76: 1330.969971 | I76: 3520060000 | J76: -1.010009
A77: ^RUT | B77: Russell 2000 (^RUT) -Chicago Options (Daily) | C77: 2021-01-15 | D77: 16:00:00 | E77: 2154.689941 | F77: 2154.689941 | G77: 2102.530029 | H77: 2123.199951 | I77: 53530600 | J77: -32.150147 | K77: 2021-01-18T08:41:42
A78: ^SSEC | B78: SSE Composite Index (^SSEC) -Shanghai (Daily) | C78: 2020-03-09 | D78: 15:00:00 | E78: 3039.939453 | F78: 2989.205078 | G78: 2940.713867 | H78: 2943.290771 | I78: 2801367936 | J78: -388.231202 | K78: 2020-03-09T17:38:09
A79: ^VIX | B79: CBOE Volatility Index (^VIX) -Chicago Options (Daily) | C79: 2020-03-09 | D79: 16:14:00 | E79: 41.939999 | F79: 62.119999 | G79: 41.939999 | H79: 54.459999 | I79: 0 | J79: 12.52 | K79: 2020-03-09T17:38:36
A80: IWM | B80: iShares Russell 2000 ETF (IWM) -NYSEArca (Daily) | C80: 2021-02-19 | D80: 09:56:00 | E80: 222.460007 | F80: 223.080002 | G80: 222.169998 | H80: 222.970001 | I80: 3614630 | J80: 2.380005 | K80: 2021-02-19T09:56:07
A81: QQQ | B81: Invesco QQQ Trust (QQQ) -NasdaqGM (Daily) | C81: 2020-08-27 | D81: 15:01:00 | E81: 293.079987 | F81: 293.851013 | G81: 288.704987 | H81: 291.994995 | I81: 41822663 | J81: 0.035004 | K81: 2020-08-27T15:02:03
A82: XLE | B82: Energy Select Sector SPDR Fund (XLE) -NYSEArca (Daily) | C82: 2020-07-10 | D82: 16:00:00 | E82: 34.240002 | F82: 35.580002 | G82: 34.240002 | H82: 35.540001 | I82: 25223900 | J82: 1.100002 | K82: 2020-07-11T16:34:13
A83: SPY | B83: SPDR S&P 500 ETF Trust (SPY) -NYSEArca (Daily) | C83: 2021-07-16 | D83: 16:00:00 | E83: 436.01001 | F83: 436.059998 | G83: 430.920013 | H83: 431.339996 | I83: 75784700 | J83: -3.410004 | K83: 2021-07-17T18:35:45
A85: ACAD | B85: ACADIA Pharmaceut (ACAD) -NasdaqNM (Daily) | C85: 2014-07-21 | D85: 16:00:00 | E85: 20.13 | F85: 20.55 | G85: 19.8101 | H85: 20.31 | I85: 691016
A86: CLDX | B86: Celldex Therapeut (CLDX) -NasdaqNM (Daily) | C86: 2015-02-02 | D86: 16:00:00 | E86: 21.47 | F86: 21.69 | G86: 20.11 | H86: 21.02 | I86: 1570418 | J86: -0.4
A87: ICPT | B87: Intercept Pharmac (ICPT) -NasdaqNM (Daily) | C87: 2014-07-21 | D87: 16:00:00 | E87: 215.97 | F87: 218.43 | G87: 213.05 | H87: 218.14 | I87: 191276
A88: INO | B88: Inovio Pharmaceut (INO) -AMEX (Daily) | C88: 2014-07-21 | D88: 16:00:00 | E88: 10.3 | F88: 11.08 | G88: 10.1 | H88: 11.01 | I88: 1800796
A89: JCP | B89: J. C. Penney Company, Inc. (JCP) -NYSE (Daily) | C89: 2017-12-07 | D89: 16:01:00 | E89: 3.34 | F89: 3.4 | G89: 3.25 | H89: 3.27 | I89: 14485464 | J89: -0.07
A90: LCI | B90: Lannett Co Inc Co (LCI) -NYSE (Daily) | C90: 2014-07-21 | D90: 16:02:00 | E90: 38.09 | F90: 38.803 | G90: 36.5101 | H90: 37.76 | I90: 611367
A91: NPSP | B91: NPS Pharmaceutica (NPSP) -NasdaqNM (Daily) | C91: 2014-07-21 | D91: 15:59:00 | E91: 28.75 | F91: 29.43 | G91: 28.31 | H91: 29.29 | I91: 1126758
A92: PBYI | B92: Puma Biotechnolog (PBYI) -NYSE (Daily) | C92: 2014-07-21 | D92: 16:02:00 | E92: 58.27 | F92: 59.46 | G92: 57.39 | H92: 58.98 | I92: 348030
